Workbook

Sheet FAME Persistence2 (hidden)
A1: 57 | B1: Charts
A2: Original data | B2: $B$9 | C2: A1:A156 | D2: 2962.151231 | E2: 2020-01-27T14:13:11 | F2: TRUE | G2: F029.DER.FLU.AFPMLV.M | H2: 1JAN2007 | I2: 2019 | J2: 0 | K2: Monthly | L2: FALSE | M2: FALSE | N2: FALSE
A3: Original data | B3: $C$9 | C3: A1:A156 | D3: 1056.030171 | E3: 2020-01-27T14:13:12 | F3: TRUE | G3: F029.DER.FLU.AFPMLC.M | H3: 1JAN2007 | I3: 2019 | J3: 0 | K3: Monthly | L3: FALSE | M3: FALSE | N3: FALSE
A4: Original data | B4: $D$9 | C4: A1:A156 | D4: 1378.614178 | E4: 2020-01-27T14:13:12 | F4: TRUE | G4: F029.DER.FLU.ENFMLV.M | H4: 1JAN2007 | I4: 2019 | J4: 0 | K4: Monthly | L4: FALSE | M4: FALSE | N4: FALSE
A5: Original data | B5: $E$9 | C5: A1:A156 | D5: 2150.119217 | E5: 2020-01-27T14:13:12 | F5: TRUE | G5: F029.DER.FLU.ENFMLC.M | H5: 1JAN2007 | I5: 2019 | J5: 0 | K5: Monthly | L5: FALSE | M5: FALSE | N5: FALSE
A6: Original data | B6: $F$9 | C6: A1:A156 | D6: 324.887796 | E6: 2020-01-27T14:13:12 | F6: TRUE | G6: F029.DER.FLU.CDSMLV.M | H6: 1JAN2007 | I6: 2019 | J6: 0 | K6: Monthly | L6: FALSE | M6: FALSE | N6: FALSE
A7: Original data | B7: $G$9 | C7: A1:A156 | D7: 44.296747 | E7: 2020-01-27T14:13:12 | F7: TRUE | G7: F029.DER.FLU.CDSMLC.M | H7: 1JAN2007 | I7: 2019 | J7: 0 | K7: Monthly | L7: FALSE | M7: FALSE | N7: FALSE
A8: Original data | B8: $H$9 | C8: A1:A156 | D8: 872.129052 | E8: 2020-01-27T14:13:12 | F8: TRUE | G8: F029.DER.FLU.CBVMLV.M | H8: 1JAN2007 | I8: 2019 | J8: 0 | K8: Monthly | L8: FALSE | M8: FALSE | N8: FALSE
A9: Original data | B9: $I$9 | C9: A1:A156 | D9: 1981.579447 | E9: 2020-01-27T14:13:12 | F9: TRUE | G9: F029.DER.FLU.CBVMLC.M | H9: 1JAN2007 | I9: 2019 | J9: 0 | K9: Monthly | L9: FALSE | M9: FALSE | N9: FALSE
A10: Original data | B10: $J$9 | C10: A1:A156 | D10: 245.332627 | E10: 2020-01-27T14:13:12 | F10: TRUE | G10: F029.DER.FLU.FMMLV.M | H10: 1JAN2007 | I10: 2019 | J10: 0 | K10: Monthly | L10: FALSE | M10: FALSE | N10: FALSE
A11: Original data | B11: $K$9 | C11: A1:A156 | D11: 29.335 | E11: 2020-01-27T14:13:12 | F11: TRUE | G11: F029.DER.FLU.FMMLC.M | H11: 1JAN2007 | I11: 2019 | J11: 0 | K11: Monthly | L11: FALSE | M11: FALSE | N11: FALSE
A12: Original data | B12: $L$9 | C12: A1:A156 | D12: 2322.058877 | E12: 2020-01-27T14:13:12 | F12: TRUE | G12: F029.DER.FLU.OMLV.M | H12: 1JAN2007 | I12: 2019 | J12: 0 | K12: Monthly | L12: FALSE | M12: FALSE | N12: FALSE
A13: Original data | B13: $M$9 | C13: A1:A156 | D13: 896.8575858 | E13: 2020-01-27T14:13:12 | F13: TRUE | G13: F029.DER.FLU.OMLC.M | H13: 1JAN2007 | I13: 2019 | J13: 0 | K13: Monthly | L13: FALSE | M13: FALSE | N13: FALSE
A14: Original data | B14: $N$9 | C14: A1:A156 | D14: 10415.73229 | E14: 2020-01-27T14:13:12 | F14: TRUE | G14: F029.DER.PFL.CCTME.M | H14: 1JAN2007 | I14: 2019 | J14: 0 | K14: Monthly | L14: FALSE | M14: FALSE | N14: FALSE
A15: Original data | B15: $O$9 | C15: A1:A156 | D15: 14395.10542 | E15: 2020-01-27T14:13:12 | F15: TRUE | G15: F029.DER.PFL.CVTME.M | H15: 1JAN2007 | I15: 2019 | J15: 0 | K15: Monthly | L15: FALSE | M15: FALSE | N15: FALSE
A16: Original data | B16: $P$9 | C16: A1:A156 | D16: 12784.84088 | E16: 2020-01-27T14:13:12 | F16: TRUE | G16: F029.FWD.STO.AFPMLV.M | H16: 1JAN2007 | I16: 2019 | J16: 0 | K16: Monthly | L16: FALSE | M16: FALSE | N16: FALSE
A17: Original data | B17: $Q$9 | C17: A1:A156 | D17: 996.9728841 | E17: 2020-01-27T14:13:12 | F17: TRUE | G17: F029.FWD.STO.AFPMLC.M | H17: 1JAN2007 | I17: 2019 | J17: 0 | K17: Monthly | L17: FALSE | M17: FALSE | N17: FALSE
A18: Original data | B18: $R$9 | C18: A1:A156 | D18: 11787.868 | E18: 2020-01-27T14:13:12 | F18: TRUE | G18: F029.FWD.STO.MLAFP.M | H18: 1JAN2007 | I18: 2019 | J18: 0 | K18: Monthly | L18: FALSE | M18: FALSE | N18: FALSE
A19: Original data | B19: $S$9 | C19: A1:A156 | D19: 1951.406784 | E19: 2020-01-27T14:13:12 | F19: TRUE | G19: F029.FWD.STO.ENFMLV.M | H19: 1JAN2007 | I19: 2019 | J19: 0 | K19: Monthly | L19: FALSE | M19: FALSE | N19: FALSE
A20: Original data | B20: $T$9 | C20: A1:A156 | D20: 3808.237097 | E20: 2020-01-27T14:13:12 | F20: TRUE | G20: F029.FWD.STO.ENFMLC.M | H20: 1JAN2007 | I20: 2019 | J20: 0 | K20: Monthly | L20: FALSE | M20: FALSE | N20: FALSE
A21: Original data | B21: $U$9 | C21: A1:A156 | D21: -1856.830313 | E21: 2020-01-27T14:13:12 | F21: TRUE | G21: F029.FWD.STO.MLENF.M | H21: 1JAN2007 | I21: 2019 | J21: 0 | K21: Monthly | L21: FALSE | M21: FALSE | N21: FALSE
A22: Original data | B22: $V$9 | C22: A1:A156 | D22: 668.99142 | E22: 2020-01-27T14:13:12 | F22: TRUE | G22: F029.FWD.STO.CDSMLV.M | H22: 1JAN2007 | I22: 2019 | J22: 0 | K22: Monthly | L22: FALSE | M22: FALSE | N22: FALSE
A23: Original data | B23: $W$9 | C23: A1:A156 | D23: 26.859748 | E23: 2020-01-27T14:13:12 | F23: TRUE | G23: F029.FWD.STO.CDSMLC.M | H23: 1JAN2007 | I23: 2019 | J23: 0 | K23: Monthly | L23: FALSE | M23: FALSE | N23: FALSE
A24: Original data | B24: $X$9 | C24: A1:A156 | D24: 642.131672 | E24: 2020-01-27T14:13:12 | F24: TRUE | G24: F029.FWD.STO.MLCDS.M | H24: 1JAN2007 | I24: 2019 | J24: 0 | K24: Monthly | L24: FALSE | M24: FALSE | N24: FALSE
A25: Original data | B25: $Y$9 | C25: A1:A156 | D25: 581.997155 | E25: 2020-01-27T14:13:12 | F25: TRUE | G25: F029.FWD.STO.CBVMLV.M | H25: 1JAN2007 | I25: 2019 | J25: 0 | K25: Monthly | L25: FALSE | M25: FALSE | N25: FALSE
A26: Original data | B26: $Z$9 | C26: A1:A156 | D26: 1114.077257 | E26: 2020-01-27T14:13:12 | F26: TRUE | G26: F029.FWD.STO.CBVMLC.M | H26: 1JAN2007 | I26: 2019 | J26: 0 | K26: Monthly | L26: FALSE | M26: FALSE | N26: FALSE
A27: Original data | B27: $AA$9 | C27: A1:A156 | D27: -532.080102 | E27: 2020-01-27T14:13:12 | F27: TRUE | G27: F029.FWD.STO.MLCBV.M | H27: 1JAN2007 | I27: 2019 | J27: 0 | K27: Monthly | L27: FALSE | M27: FALSE | N27: FALSE
A28: Original data | B28: $AB$9 | C28: A1:A156 | D28: 276.252826 | E28: 2020-01-27T14:13:12 | F28: TRUE | G28: F029.FWD.STO.FMMLV.M | H28: 1JAN2007 | I28: 2019 | J28: 0 | K28: Monthly | L28: FALSE | M28: FALSE | N28: FALSE
A29: Original data | B29: $AC$9 | C29: A1:A156 | D29: 33.094014 | E29: 2020-01-27T14:13:12 | F29: TRUE | G29: F029.FWD.STO.FMMLC.M | H29: 1JAN2007 | I29: 2019 | J29: 0 | K29: Monthly | L29: FALSE | M29: FALSE | N29: FALSE
A30: Original data | B30: $AD$9 | C30: A1:A156 | D30: 243.158812 | E30: 2020-01-27T14:13:12 | F30: TRUE | G30: F029.FWD.STO.MLFM.M | H30: 1JAN2007 | I30: 2019 | J30: 0 | K30: Monthly | L30: FALSE | M30: FALSE | N30: FALSE
A31: Original data | B31: $AE$9 | C31: A1:A156 | D31: 3614.754245 | E31: 2020-01-27T14:13:12 | F31: TRUE | G31: F029.FWD.STO.OMLV.M | H31: 1JAN2007 | I31: 2019 | J31: 0 | K31: Monthly | L31: FALSE | M31: FALSE | N31: FALSE
A32: Original data | B32: $AF$9 | C32: A1:A156 | D32: 5776.21883 | E32: 2020-01-27T14:13:12 | F32: TRUE | G32: F029.FWD.STO.OMLC.M | H32: 1JAN2007 | I32: 2019 | J32: 0 | K32: Monthly | L32: FALSE | M32: FALSE | N32: FALSE
A33: Original data | B33: $AG$9 | C33: A1:A156 | D33: -2161.464585 | E33: 2020-01-27T14:13:12 | F33: TRUE | G33: F029.FWD.STO.MLO.M | H33: 1JAN2007 | I33: 2019 | J33: 0 | K33: Monthly | L33: FALSE | M33: FALSE | N33: FALSE
A34: Original data | B34: $AH$9 | C34: A1:A156 | D34: 19878.24331 | E34: 2020-01-27T14:13:12 | F34: TRUE | G34: F029.DER.STO.CCTML.M | H34: 1JAN2007 | I34: 2019 | J34: 0 | K34: Monthly | L34: FALSE | M34: FALSE | N34: FALSE
A35: Original data | B35: $AI$9 | C35: A1:A156 | D35: 11755.45983 | E35: 2020-01-27T14:13:12 | F35: TRUE | G35: F029.DER.STO.CVTML.M | H35: 1JAN2007 | I35: 2019 | J35: 0 | K35: Monthly | L35: FALSE | M35: FALSE | N35: FALSE
A36: Original data | B36: $AJ$9 | C36: A1:A156 | D36: 20609.02253 | E36: 2020-01-27T14:13:12 | F36: TRUE | G36: F029.DER.STO.CI.M | H36: 1JAN2007 | I36: 2019 | J36: 0 | K36: Monthly | L36: FALSE | M36: FALSE | N36: FALSE
A37: Original data | B37: $AK$9 | C37: A1:A156 | D37: 8122.737652 | E37: 2020-01-27T14:13:12 | F37: TRUE | G37: F029.FWD.STO.ML.M | H37: 1JAN2007 | I37: 2019 | J37: 0 | K37: Monthly | L37: FALSE | M37: FALSE | N37: FALSE
A38: Original data | B38: $AL$9 | C38: A1:A156 | D38: 10777.17456 | E38: 2020-01-27T14:13:12 | F38: TRUE | G38: F029.DER.STO.CCTME.M | H38: 1JAN2007 | I38: 2019 | J38: 0 | K38: Monthly | L38: FALSE | M38: FALSE | N38: FALSE
A39: Original data | B39: $AM$9 | C39: A1:A156 | D39: 19959.35217 | E39: 2020-01-27T14:13:12 | F39: TRUE | G39: F029.DER.STO.CVTME.M | H39: 1JAN2007 | I39: 2019 | J39: 0 | K39: Monthly | L39: FALSE | M39: FALSE | N39: FALSE
A40: Original data | B40: $AN$9 | C40: A1:A156 | D40: -9182.177608 | E40: 2020-01-27T14:13:12 | F40: TRUE | G40: F029.FWD.STO.ME.M | H40: 1JAN2007 | I40: 2019 | J40: 0 | K40: Monthly | L40: FALSE | M40: FALSE | N40: FALSE
A41: Original data | B41: $AO$9 | C41: A1:A156 | D41: -1059.439956 | E41: 2020-01-27T14:13:12 | F41: TRUE | G41: F029.FWD.STO.Z.M | H41: 1JAN2007 | I41: 2019 | J41: 0 | K41: Monthly | L41: FALSE | M41: FALSE | N41: FALSE
A42: Original data | B42: $AP$9 | C42: A1:A156 | D42: 1050.057719 | E42: 2020-01-27T14:13:12 | F42: TRUE | G42: F029.SPT.FLU.AFPSV.M | H42: 1JAN2007 | I42: 2019 | J42: 0 | K42: Monthly | L42: FALSE | M42: FALSE | N42: FALSE
A43: Original data | B43: $AQ$9 | C43: A1:A156 | D43: 1169.065329 | E43: 2020-01-27T14:13:12 | F43: TRUE | G43: F029.SPT.FLU.AFPSC.M | H43: 1JAN2007 | I43: 2019 | J43: 0 | K43: Monthly | L43: FALSE | M43: FALSE | N43: FALSE
A44: Original data | B44: $AR$9 | C44: A1:A156 | D44: 3012.275183 | E44: 2020-01-27T14:13:12 | F44: TRUE | G44: F029.SPT.FLU.ENFSV.M | H44: 1JAN2007 | I44: 2019 | J44: 0 | K44: Monthly | L44: FALSE | M44: FALSE | N44: FALSE
A45: Original data | B45: $AS$9 | C45: A1:A156 | D45: 2787.046022 | E45: 2020-01-27T14:13:12 | F45: TRUE | G45: F029.SPT.FLU.ENFSC.M | H45: 1JAN2007 | I45: 2019 | J45: 0 | K45: Monthly | L45: FALSE | M45: FALSE | N45: FALSE
A46: Original data | B46: $AT$9 | C46: A1:A156 | D46: 20.21946071 | E46: 2020-01-27T14:13:12 | F46: TRUE | G46: F029.SPT.FLU.CDSSV.M | H46: 1JAN2007 | I46: 2019 | J46: 0 | K46: Monthly | L46: FALSE | M46: FALSE | N46: FALSE
A47: Original data | B47: $AU$9 | C47: A1:A156 | D47: 36.6622212 | E47: 2020-01-27T14:13:12 | F47: TRUE | G47: F029.SPT.FLU.CDSSC.M | H47: 1JAN2007 | I47: 2019 | J47: 0 | K47: Monthly | L47: FALSE | M47: FALSE | N47: FALSE
A48: Original data | B48: $AV$9 | C48: A1:A156 | D48: 4545.210892 | E48: 2020-01-27T14:13:12 | F48: TRUE | G48: F029.SPT.FLU.CBVSV.M | H48: 1JAN2007 | I48: 2019 | J48: 0 | K48: Monthly | L48: FALSE | M48: FALSE | N48: FALSE
A49: Original data | B49: $AW$9 | C49: A1:A156 | D49: 4253.789108 | E49: 2020-01-27T14:13:12 | F49: TRUE | G49: F029.SPT.FLU.CBVSC.M | H49: 1JAN2007 | I49: 2019 | J49: 0 | K49: Monthly | L49: FALSE | M49: FALSE | N49: FALSE
A50: Original data | B50: $AX$9 | C50: A1:A156 | D50: 48.67053684 | E50: 2020-01-27T14:13:12 | F50: TRUE | G50: F029.SPT.FLU.FMSV.M | H50: 1JAN2007 | I50: 2019 | J50: 0 | K50: Monthly | L50: FALSE | M50: FALSE | N50: FALSE
A51: Original data | B51: $AY$9 | C51: A1:A156 | D51: 225.6788062 | E51: 2020-01-27T14:13:12 | F51: TRUE | G51: F029.SPT.FLU.FMSC.M | H51: 1JAN2007 | I51: 2019 | J51: 0 | K51: Monthly | L51: FALSE | M51: FALSE | N51: FALSE
A52: Original data | B52: $AZ$9 | C52: A1:A156 | D52: 1349.957317 | E52: 2020-01-27T14:13:13 | F52: TRUE | G52: F029.SPT.FLU.OSV.M | H52: 1JAN2007 | I52: 2019 | J52: 0 | K52: Monthly | L52: FALSE | M52: FALSE | N52: FALSE
A53: Original data | B53: $BA$9 | C53: A1:A156 | D53: 1072.993304 | E53: 2020-01-27T14:13:13 | F53: TRUE | G53: F029.SPT.FLU.OSC.M | H53: 1JAN2007 | I53: 2019 | J53: 0 | K53: Monthly | L53: FALSE | M53: FALSE | N53: FALSE
A54: Original data | B54: $BB$9 | C54: A1:A156 | D54: 613.8614618 | E54: 2020-01-27T14:13:13 | F54: TRUE | G54: F029.SPT.FLU.CCTME.M | H54: 1JAN2007 | I54: 2019 | J54: 0 | K54: Monthly | L54: FALSE | M54: FALSE | N54: FALSE
A55: Original data | B55: $BC$9 | C55: A1:A156 | D55: 679.3752101 | E55: 2020-01-27T14:13:13 | F55: TRUE | G55: F029.SPT.FLU.CVTME.M | H55: 1JAN2007 | I55: 2019 | J55: 0 | K55: Monthly | L55: FALSE | M55: FALSE | N55: FALSE
A56: Original data | B56: $BD$9 | C56: A1:A156 | D56: -353.4621339 | E56: 2020-01-27T14:13:13 | F56: TRUE | G56: F029.SPT.STO.82.M | H56: 1JAN2007 | I56: 2019 | J56: 0 | K56: Monthly | L56: FALSE | M56: FALSE | N56: FALSE
A57: Original data | B57: $BE$9 | C57: A1:A156 | D57: -1059.439956 | E57: 2020-01-27T14:13:13 | F57: TRUE | G57: F029.FWD.STO.Z.M | H57: 1JAN2007 | I57: 2019 | J57: 0 | K57: Monthly | L57: FALSE | M57: FALSE | N57: FALSE
A58: Original data | B58: $BF$9 | C58: A1:A156 | D58: -1412.90209 | E58: 2020-01-27T14:13:13 | F58: TRUE | G58: F029.FS.STO.80.M | H58: 1JAN2007 | I58: 2019 | J58: 0 | K58: Monthly | L58: FALSE | M58: FALSE | N58: FALSE

Sheet Charts
A1: 2017-01-01 | C1: Chart 1: Derivatives, amounts outstanding of the Formal Exchange Market | H1: Chart 2: Derivatives turnover of the Formal Exchange Market | M1: Chart 3: Spot turnover of the Formal Exchange Market
A2: 2019-12-01 | C2: by counterparty* (G1) | H2: by counterparty. (G2) | M2: by counterparty. (G3)
C3: (millions of US dollars) | H3: (millions of US dollars) | M3: (millions of US dollars)
C17: Source: Central Bank of Chile. | H17: Source: Central Bank of Chile. | M17: Source: Central Bank of Chile.
C18: * Net figures in right hand axis.
A21: Annex
C22: Net amounts outstanding (spot plus derivatives) | H22: Derivatives. Net amounts outstanding of the Formal | M22: Derivatives. Net amounts outstanding of the Formal | R22: Derivatives. Net amounts outstanding of the Formal
C23: of the Formal Exchange Market. | H23: Exchange Market with Foreign Sector. | M23: Exchange Market with Local Counterparties. | R23: Exchange Market with Pension Funds.
C24: (millions of US dollars) | H24: (millions of US dollars) | M24: (millions of US dollars) | R24: (millions of US dollars)
C38: Source: Central Bank of Chile. | H38: Source: Central Bank of Chile. | M38: Source: Central Bank of Chile. | R38: Source: Central Bank of Chile.
C40: Derivatives. Net amounts outstanding of the Formal | H40: Derivatives. Net amounts outstanding of the Formal | M40: Derivatives. Net amounts outstanding of the Formal | R40: Derivatives. Net amounts outstanding of the Formal
C41: Exchange Market with Real Sector Companies. | H41: Exchange Market with Insurance Companies. | M41: Exchange Market with Brokers and Mutual Funds. | R41: Exchange Market with Other Sectors.
C42: (millions of US dollars) | H42: (millions of US dollars) | M42: (millions of US dollars) | R42: (millions of US dollars)
C56: Source: Central Bank of Chile. | H56: Source: Central Bank of Chile. | M56: Source: Central Bank of Chile. | R56: Source: Central Bank of Chile.
C58: (*) Net figures in right hand axis.
A65: Annex - Net Outstanding Charts
C66: Derivatives. Net amounts outstanding of the Formal | H66: Derivatives. Net amounts outstanding of the Formal | M66: Derivatives. Net amounts outstanding of the Formal
C67: Exchange Market with Foreign Sector. | H67: Exchange Market with Local Counterparties. | M67: Exchange Market with Pension Funds.
C68: (millions of US dollars) | H68: (millions of US dollars) | M68: (millions of US dollars)
C82: Source: Central Bank of Chile. | H82: Source: Central Bank of Chile. | M82: Source: Central Bank of Chile.
C84: Derivatives. Net amounts outstanding of the Formal | H84: Derivatives. Net amounts outstanding of the Formal | M84: Derivatives. Net amounts outstanding of the Formal | R84: Derivatives. Net amounts outstanding of the Formal
C85: Exchange Market with Real Sector Companies. | H85: Exchange Market with Insurance Companies. | M85: Exchange Market with Brokers and Mutual Funds. | R85: Exchange Market with Other Sectors.
C86: (millions of US dollars) | H86: (millions of US dollars) | M86: (millions of US dollars) | R86: (millions of US dollars)
C100: Source: Central Bank of Chile. | H100: Source: Central Bank of Chile. | M100: Source: Central Bank of Chile. | R100: Source: Central Bank of Chile.
A108: Annex - Turnover Charts
C109: Derivatives. Turnover of the Formal Exchange Market | H109: Derivatives. Turnover of the Formal Exchange Market | M109: Derivatives. Turnover of the Formal Exchange Market
C110: with Foreign Sector. | H110: with Local Counterparties. | M110: with Pension Funds.
C111: (millions of US dollars) | H111: (millions of US dollars) | M111: (millions of US dollars)
C125: Source: Central Bank of Chile. | H125: Source: Central Bank of Chile. | M125: Source: Central Bank of Chile.
C127: Derivatives. Turnover of the Formal Exchange Market | H127: Derivatives. Turnover of the Formal Exchange Market | M127: Derivatives. Turnover of the Formal Exchange Market | R127: Derivatives. Turnover of the Formal Exchange Market
C128: with Real Sector Companies. | H128: with Insurance Companies. | M128: with Brokers and Mutual Funds. | R128: with Other Sectors.
C129: (millions of US dollars) | H129: (millions of US dollars) | M129: (millions of US dollars) | R129: (millions of US dollars)
C143: Source: Central Bank of Chile. | H143: Source: Central Bank of Chile. | M143: Source: Central Bank of Chile. | R143: Source: Central Bank of Chile.

Sheet Original data
B1: DERIVADOS | AP1: FOREIGN EXCHANGE | BD1: TOTAL
B2: TURNOVER | P2: OUTSTANDING | AP2: TURNOVER | BD2: NET OUTSTANDING | BF2: TOTAL
B3: LOCAL OUNTERPARTIES | N3: FOREIGN SECTOR | P3: LOCAL COUNTERPARTIES | AL3: FOREIGN SECTOR | AO3: TOTAL | AP3: LOCAL COUNTERPARTIES | BB3: FOREIGN SECTOR | BD3: FX | BE3: DERIVATIVES
B4: Pension Funds | D4: Real Sector Companies | F4: Insurance Companies | H4: Brokers | J4: Mutual Funds | L4: Other Sectors | N4: Foreign Sector | P4: Pension Funds | S4: Real Sector Companies | V4: Insurance Companies | Y4: Brokers | AB4: Mutual Funds | AE4: Other Sectors | AH4: TOTAL LOCAL COUTERPARTIES | AL4: Foreign Sector | AP4: Pension Funds | AR4: Real Sector Companies | AT4: Insurance Companies | AV4: Brokers | AX4: Mutual Funds | AZ4: Other Sectors | BB4: Foreign Sector
B5: purchases | C5: sales | D5: purchases | E5: sales | F5: purchases | G5: sales | H5: purchases | I5: sales | J5: purchases | K5: sales | L5: purchases | M5: sales | N5: purchases | O5: sales | P5: long position | Q5: short position | R5: net outstanding | S5: long position | T5: short position | U5: net outstanding | V5: long position | W5: short position | X5: net outstanding | Y5: long position | Z5: short position | AA5: net outstanding | AB5: long position | AC5: short position | AD5: net outstanding | AE5: long position | AF5: short position | AG5: net outstanding | AH5: long position | AI5: short position | AJ5: interbank position | AK5: net outstanding | AL5: long position | AM5: short position | AN5: net outstanding | AP5: purchases | AQ5: sales | AR5: purchases | AS5: sales | AT5: purchases | AU5: sales | AV5: purchases | AW5: sales | AX5: purchases | AY5: sales | AZ5: purchases | BA5: sales | BB5: purchases | BC5: sales
B6: millions of US dollars
B7: Source: Central Bank of Chile.
B8: F029.DER.FLU.AFPMLV.M | C8: F029.DER.FLU.AFPMLC.M | D8: F029.DER.FLU.ENFMLV.M | E8: F029.DER.FLU.ENFMLC.M | F8: F029.DER.FLU.CDSMLV.M | G8: F029.DER.FLU.CDSMLC.M | H8: F029.DER.FLU.CBVMLV.M | I8: F029.DER.FLU.CBVMLC.M | J8: F029.DER.FLU.FMMLV.M | K8: F029.DER.FLU.FMMLC.M | L8: F029.DER.FLU.OMLV.M | M8: F029.DER.FLU.OMLC.M | N8: F029.DER.PFL.CCTME.M | O8: F029.DER.PFL.CVTME.M | P8: F029.FWD.STO.AFPMLV.M | Q8: F029.FWD.STO.AFPMLC.M | R8: F029.FWD.STO.MLAFP.M | S8: F029.FWD.STO.ENFMLV.M | T8: F029.FWD.STO.ENFMLC.M | U8: F029.FWD.STO.MLENF.M | V8: F029.FWD.STO.CDSMLV.M | W8: F029.FWD.STO.CDSMLC.M | X8: F029.FWD.STO.MLCDS.M | Y8: F029.FWD.STO.CBVMLV.M | Z8: F029.FWD.STO.CBVMLC.M | AA8: F029.FWD.STO.MLCBV.M | AB8: F029.FWD.STO.FMMLV.M | AC8: F029.FWD.STO.FMMLC.M | AD8: F029.FWD.STO.MLFM.M | AE8: F029.FWD.STO.OMLV.M | AF8: F029.FWD.STO.OMLC.M | AG8: F029.FWD.STO.MLO.M | AH8: F029.DER.STO.CCTML.M | AI8: F029.DER.STO.CVTML.M | AJ8: F029.DER.STO.CI.M | AK8: F029.FWD.STO.ML.M | AL8: F029.DER.STO.CCTME.M | AM8: F029.DER.STO.CVTME.M | AN8: F029.FWD.STO.ME.M | AO8: F029.FWD.STO.Z.M | AP8: F029.SPT.FLU.AFPSV.M | AQ8: F029.SPT.FLU.AFPSC.M | AR8: F029.SPT.FLU.ENFSV.M | AS8: F029.SPT.FLU.ENFSC.M | AT8: F029.SPT.FLU.CDSSV.M | AU8: F029.SPT.FLU.CDSSC.M | AV8: F029.SPT.FLU.CBVSV.M | AW8: F029.SPT.FLU.CBVSC.M | AX8: F029.SPT.FLU.FMSV.M | AY8: F029.SPT.FLU.FMSC.M | AZ8: F029.SPT.FLU.OSV.M | BA8: F029.SPT.FLU.OSC.M | BB8: F029.SPT.FLU.CCTME.M | BC8: F029.SPT.FLU.CVTME.M | BD8: F029.SPT.STO.82.M | BE8: F029.FWD.STO.Z.M | BF8: F029.FS.STO.80.M
A9: 2007-01-01 | B9: =[1]!FAMEData(B8, "01-01-2007", YEAR(Charts!$A$2), 0,"Monthly", "Down", "No Heading", "Normal") -> 2962.151231 | C9: =[1]!FAMEData(C8, "01-01-2007", YEAR(Charts!$A$2), 0,"Monthly", "Down", "No Heading", "Normal") -> 1056.030171 | D9: =[1]!FAMEData(D8, "01-01-2007", YEAR(Charts!$A$2), 0,"Monthly", "Down", "No Heading", "Normal") -> 1378.614178 | E9: =[1]!FAMEData(E8, "01-01-2007", YEAR(Charts!$A$2), 0,"Monthly", "Down", "No Heading", "Normal") -> 2150.119217 | F9: =[1]!FAMEData(F8, "01-01-2007", YEAR(Charts!$A$2), 0,"Monthly", "Down", "No Heading", "Normal") -> 324.887796 | G9: =[1]!FAMEData(G8, "01-01-2007", YEAR(Charts!$A$2), 0,"Monthly", "Down", "No Heading", "Normal") -> 44.296747 | H9: =[1]!FAMEData(H8, "01-01-2007", YEAR(Charts!$A$2), 0,"Monthly", "Down", "No Heading", "Normal") -> 872.129052 | I9: =[1]!FAMEData(I8, "01-01-2007", YEAR(Charts!$A$2), 0,"Monthly", "Down", "No Heading", "Normal") -> 1981.579447 | J9: =[1]!FAMEData(J8, "01-01-2007", YEAR(Charts!$A$2), 0,"Monthly", "Down", "No Heading", "Normal") -> 245.332627 | K9: =[1]!FAMEData(K8, "01-01-2007", YEAR(Charts!$A$2), 0,"Monthly", "Down", "No Heading", "Normal") -> 29.335 | L9: =[1]!FAMEData(L8, "01-01-2007", YEAR(Charts!$A$2), 0,"Monthly", "Down", "No Heading", "Normal") -> 2322.058877 | M9: =[1]!FAMEData(M8, "01-01-2007", YEAR(Charts!$A$2), 0,"Monthly", "Down", "No Heading", "Normal") -> 896.8575858 | N9: =[1]!FAMEData(N8, "01-01-2007", YEAR(Charts!$A$2), 0,"Monthly", "Down", "No Heading", "Normal") -> 10415.73229 | O9: =[1]!FAMEData(O8, "01-01-2007", YEAR(Charts!$A$2), 0,"Monthly", "Down", "No Heading", "Normal") -> 14395.10542 | P9: =[1]!FAMEData(P8, "01-01-2007", YEAR(Charts!$A$2), 0,"Monthly", "Down", "No Heading", "Normal") -> 12784.84088 | Q9: =[1]!FAMEData(Q8, "01-01-2007", YEAR(Charts!$A$2), 0,"Monthly", "Down", "No Heading", "Normal") -> 996.9728841 | R9: =[1]!FAMEData(R8, "01-01-2007", YEAR(Charts!$A$2), 0,"Monthly", "Down", "No Heading", "Normal") -> 11787.868 | S9: =[1]!FAMEData(S8, "01-01-2007", YEAR(Charts!$A$2), 0,"Monthly", "Down", "No Heading", "Normal") -> 1951.406784 | T9: =[1]!FAMEData(T8, "01-01-2007", YEAR(Charts!$A$2), 0,"Monthly", "Down", "No Heading", "Normal") -> 3808.237097 | U9: =[1]!FAMEData(U8, "01-01-2007", YEAR(Charts!$A$2), 0,"Monthly", "Down", "No Heading", "Normal") -> -1856.830313 | V9: =[1]!FAMEData(V8, "01-01-2007", YEAR(Charts!$A$2), 0,"Monthly", "Down", "No Heading", "Normal") -> 668.99142 | W9: =[1]!FAMEData(W8, "01-01-2007", YEAR(Charts!$A$2), 0,"Monthly", "Down", "No Heading", "Normal") -> 26.859748 | X9: =[1]!FAMEData(X8, "01-01-2007", YEAR(Charts!$A$2), 0,"Monthly", "Down", "No Heading", "Normal") -> 642.131672 | Y9: =[1]!FAMEData(Y8, "01-01-2007", YEAR(Charts!$A$2), 0,"Monthly", "Down", "No Heading", "Normal") -> 581.997155 | Z9: =[1]!FAMEData(Z8, "01-01-2007", YEAR(Charts!$A$2), 0,"Monthly", "Down", "No Heading", "Normal") -> 1114.077257 | AA9: =[1]!FAMEData(AA8, "01-01-2007", YEAR(Charts!$A$2), 0,"Monthly", "Down", "No Heading", "Normal") -> -532.080102 | AB9: =[1]!FAMEData(AB8, "01-01-2007", YEAR(Charts!$A$2), 0,"Monthly", "Down", "No Heading", "Normal") -> 276.252826 | AC9: =[1]!FAMEData(AC8, "01-01-2007", YEAR(Charts!$A$2), 0,"Monthly", "Down", "No Heading", "Normal") -> 33.094014 | AD9: =[1]!FAMEData(AD8, "01-01-2007", YEAR(Charts!$A$2), 0,"Monthly", "Down", "No Heading", "Normal") -> 243.158812 | AE9: =[1]!FAMEData(AE8, "01-01-2007", YEAR(Charts!$A$2), 0,"Monthly", "Down", "No Heading", "Normal") -> 3614.754245 | AF9: =[1]!FAMEData(AF8, "01-01-2007", YEAR(Charts!$A$2), 0,"Monthly", "Down", "No Heading", "Normal") -> 5776.21883 | AG9: =[1]!FAMEData(AG8, "01-01-2007", YEAR(Charts!$A$2), 0,"Monthly", "Down", "No Heading", "Normal") -> -2161.464585 | AH9: =[1]!FAMEData(AH8, "01-01-2007", YEAR(Charts!$A$2), 0,"Monthly", "Down", "No Heading", "Normal") -> 19878.24331 | AI9: =[1]!FAMEData(AI8, "01-01-2007", YEAR(Charts!$A$2), 0,"Monthly", "Down", "No Heading", "Normal") -> 11755.45983 | AJ9: =[1]!FAMEData(AJ8, "01-01-2007", YEAR(Charts!$A$2), 0,"Monthly", "Down", "No Heading", "Normal") -> 20609.02253 | AK9: =[1]!FAMEData(AK8, "01-01-2007", YEAR(Charts!$A$2), 0,"Monthly", "Down", "No Heading", "Normal") -> 8122.737652 | AL9: =[1]!FAMEData(AL8, "01-01-2007", YEAR(Charts!$A$2), 0,"Monthly", "Down", "No Heading", "Normal") -> 10777.17456 | AM9: =[1]!FAMEData(AM8, "01-01-2007", YEAR(Charts!$A$2), 0,"Monthly", "Down", "No Heading", "Normal") -> 19959.35217 | AN9: =[1]!FAMEData(AN8, "01-01-2007", YEAR(Charts!$A$2), 0,"Monthly", "Down", "No Heading", "Normal") -> -9182.177608 | AO9: =[1]!FAMEData(AO8, "01-01-2007", YEAR(Charts!$A$2), 0,"Monthly", "Down", "No Heading", "Normal") -> -1059.439956 | AP9: =[1]!FAMEData(AP8, "01-01-2007", YEAR(Charts!$A$2), 0,"Monthly", "Down", "No Heading", "Normal") -> 1050.057719 | AQ9: =[1]!FAMEData(AQ8, "01-01-2007", YEAR(Charts!$A$2), 0,"Monthly", "Down", "No Heading", "Normal") -> 1169.065329 | AR9: =[1]!FAMEData(AR8, "01-01-2007", YEAR(Charts!$A$2), 0,"Monthly", "Down", "No Heading", "Normal") -> 3012.275183 | AS9: =[1]!FAMEData(AS8, "01-01-2007", YEAR(Charts!$A$2), 0,"Monthly", "Down", "No Heading", "Normal") -> 2787.046022 | AT9: =[1]!FAMEData(AT8, "01-01-2007", YEAR(Charts!$A$2), 0,"Monthly", "Down", "No Heading", "Normal") -> 20.21946071 | AU9: =[1]!FAMEData(AU8, "01-01-2007", YEAR(Charts!$A$2), 0,"Monthly", "Down", "No Heading", "Normal") -> 36.6622212 | AV9: =[1]!FAMEData(AV8, "01-01-2007", YEAR(Charts!$A$2), 0,"Monthly", "Down", "No Heading", "Normal") -> 4545.210892 | AW9: =[1]!FAMEData(AW8, "01-01-2007", YEAR(Charts!$A$2), 0,"Monthly", "Down", "No Heading", "Normal") -> 4253.789108 | AX9: =[1]!FAMEData(AX8, "01-01-2007", YEAR(Charts!$A$2), 0,"Monthly", "Down", "No Heading", "Normal") -> 48.67053684 | AY9: =[1]!FAMEData(AY8, "01-01-2007", YEAR(Charts!$A$2), 0,"Monthly", "Down", "No Heading", "Normal") -> 225.6788062 | AZ9: =[1]!FAMEData(AZ8, "01-01-2007", YEAR(Charts!$A$2), 0,"Monthly", "Down", "No Heading", "Normal") -> 1349.957317 | BA9: =[1]!FAMEData(BA8, "01-01-2007", YEAR(Charts!$A$2), 0,"Monthly", "Down", "No Heading", "Normal") -> 1072.993304 | BB9: =[1]!FAMEData(BB8, "01-01-2007", YEAR(Charts!$A$2), 0,"Monthly", "Down", "No Heading", "Normal") -> 613.8614618 | BC9: =[1]!FAMEData(BC8, "01-01-2007", YEAR(Charts!$A$2), 0,"Monthly", "Down", "No Heading", "Normal") -> 679.3752101 | BD9: =[1]!FAMEData(BD8, "01-01-2007", YEAR(Charts!$A$2), 0,"Monthly", "Down", "No Heading", "Normal") -> -353.4621339 | BE9: =[1]!FAMEData(BE8, "01-01-2007", YEAR(Charts!$A$2), 0,"Monthly", "Down", "No Heading", "Normal") -> -1059.439956 | BF9: =[1]!FAMEData(BF8, "01-01-2007", YEAR(Charts!$A$2), 0,"Monthly", "Down", "No Heading", "Normal") -> -1412.90209
A10: 2007-02-01 | B10: 2786.132238 | C10: 618.0955553 | D10: 698.5161 | E10: 2017.364943 | F10: 217.16249 | G10: 67.634134 | H10: 759.860938 | I10: 1531.204115 | J10: 191.2158054 | K10: 62.2047368 | L10: 1062.472559 | M10: 162.8316558 | N10: 8398.857952 | O10: 11663.17086 | P10: 12941.42113 | Q10: 955.6322492 | R10: 11985.78888 | S10: 1833.1538 | T10: 3909.745509 | U10: -2076.591708 | V10: 715.061164 | W10: 53.246659 | X10: 661.814505 | Y10: 720.1836771 | Z10: 1364.440123 | AA10: -644.256446 | AB10: 263.939912 | AC10: 57.894628 | AD10: 206.045284 | AE10: 3326.776457 | AF10: 5606.632632 | AG10: -2279.856176 | AH10: 19800.53614 | AI10: 11947.5918 | AJ10: 19164.15131 | AK10: 7852.944338 | AL10: 9855.776537 | AM10: 18195.52621 | AN10: -8339.749673 | AO10: -486.805335 | AP10: 640.0560583 | AQ10: 662.9973597 | AR10: 2378.286055 | AS10: 2410.975829 | AT10: 25.07502547 | AU10: 83.75556613 | AV10: 3805.952528 | AW10: 3784.047472 | AX10: 23.68683263 | AY10: 253.4889674 | AZ10: 1330.460927 | BA10: 1161.499064 | BB10: 473.5320173 | BC10: 482.4457418 | BD10: -481.38 | BE10: -486.805335 | BF10: -968.185335
A11: 2007-03-01 | B11: 3688.251478 | C11: 641.8189217 | D11: 806.7037975 | E11: 2096.029402 | F11: 302.7372081 | G11: 108.5902223 | H11: 783.820345 | I11: 977.910093 | J11: 247.8552965 | K11: 66.60419593 | L11: 1408.626275 | M11: 648.5556139 | N11: 8896.933487 | O11: 16275.10854 | P11: 13329.76216 | Q11: 987.1266039 | R11: 12342.63556 | S11: 1728.632826 | T11: 3981.457059 | U11: -2252.824233 | V11: 742.609072 | W11: 61.178497 | X11: 681.430575 | Y11: 720.695236 | Z11: 1219.102083 | AA11: -498.406847 | AB11: 259.8679417 | AC11: 69.45217173 | AD11: 190.41577 | AE11: 2892.861984 | AF11: 4519.087625 | AG11: -1626.225641 | AH11: 19674.42922 | AI11: 10837.40404 | AJ11: 17778.5812 | AK11: 8837.025188 | AL11: 9171.88302 | AM11: 18042.29911 | AN11: -8870.416094 | AO11: -33.390906 | AP11: 834.9981043 | AQ11: 929.5448377 | AR11: 2850.212658 | AS11: 3179.715331 | AT11: 66.98920523 | AU11: 113.6046466 | AV11: 4979.722775 | AW11: 4640.277225 | AX11: 81.64659583 | AY11: 133.5842286 | AZ11: 1412.178425 | BA11: 966.4497583 | BB11: 364.2252791 | BC11: 693.933973 | BD11: -793.29 | BE11: -33.390906 | BF11: -826.680906
A12: 2007-04-01 | B12: 3532.010808 | C12: 585.0707561 | D12: 646.1754096 | E12: 2868.448761 | F12: 326.446349 | G12: 103.671771 | H12: 446.87612 | I12: 1130.239 | J12: 221.2060758 | K12: 74.400197 | L12: 788.4163946 | M12: 1305.954811 | N12: 8778.713807 | O12: 8871.178373 | P12: 13407.12179 | Q12: 968.3022565 | R12: 12438.81954 | S12: 1441.379601 | T12: 4892.302938 | U12: -3450.923337 | V12: 727.029491 | W12: 22 | X12: 705.029491 | Y12: 447.2271692 | Z12: 1495.674548 | AA12: -1048.447379 | AB12: 204.2365283 | AC12: 72.31929225 | AD12: 131.917236 | AE12: 2218.95857 | AF12: 4308.160025 | AG12: -2089.201455 | AH12: 18445.95315 | AI12: 11758.75906 | AJ12: 18371.59066 | AK12: 6687.194092 | AL12: 8711.346615 | AM12: 16293.55348 | AN12: -7582.206861 | AO12: -895.012769 | AP12: 932.8463419 | AQ12: 928.1931751 | AR12: 2992.632665 | AS12: 2565.740191 | AT12: 49.73127992 | AU12: 85.66665878 | AV12: 3851.95083 | AW12: 3833.04917 | AX12: 76.42850996 | AY12: 180.0165309 | AZ12: 1104.839788 | BA12: 1050.181509 | BB12: 601.1013167 | BC12: 558.2527654 | BD12: -387 | BE12: -895.012769 | BF12: -1282.012769
A13: 2007-05-01 | B13: 4614.877157 | C13: 1847.815988 | D13: 967.2664183 | E13: 2947.002406 | F13: 571.4820406 | G13: 209.897997 | H13: 932.375557 | I13: 1268.344268 | J13: 289.8392577 | K13: 44.08783016 | L13: 2886.155988 | M13: 1121.181089 | N13: 9453.15068 | O13: 11098.0867 | P13: 14013.0341 | Q13: 1299.661215 | R13: 12713.37289 | S13: 1525.603032 | T13: 5284.054369 | U13: -3758.451337 | V13: 832.806466 | W13: 82.183038 | X13: 750.623428 | Y13: 683.7212473 | Z13: 1443.544817 | AA13: -759.82357 | AB13: 254.7985402 | AC13: 57.77631416 | AD13: 197.022226 | AE13: 2930.784705 | AF13: 4009.663146 | AG13: -1078.878442 | AH13: 20240.74809 | AI13: 12176.8829 | AJ13: 20670.40344 | AK13: 8063.865194 | AL13: 10204.01055 | AM13: 18254.14573 | AN13: -8050.135185 | AO13: 13.730009 | AP13: 1168.335556 | AQ13: 1229.262214 | AR13: 3580.327239 | AS13: 4016.038852 | AT13: 62.4530255 | AU13: 94.6217111 | AV13: 5602.368138 | AW13: 5556.631862 | AX13: 76.58919676 | AY13: 242.7953557 | AZ13: 1967.145789 | BA13: 2531.585174 | BB13: 850.6762655 | BC13: 655.434831 | BD13: -1397 | BE13: 13.730009 | BF13: -1383.269991
A14: 2007-06-01 | B14: 4112.858781 | C14: 773.365 | D14: 1182.835358 | E14: 2038.509914 | F14: 407.250917 | G14: 72.404468 | H14: 740.5674616 | I14: 1203.871549 | J14: 346.9757732 | K14: 64.02287203 | L14: 3865.832589 | M14: 1083.108078 | N14: 10288.88494 | O14: 13183.82535 | P14: 13912.98254 | Q14: 880.7897089 | R14: 13032.19284 | S14: 1892.011154 | T14: 4854.561158 | U14: -2962.550005 | V14: 868.114102 | W14: 58.196013 | X14: 809.918089 | Y14: 743.1023709 | Z14: 1393.480769 | AA14: -650.378398 | AB14: 327.212874 | AC14: 56.75722903 | AD14: 270.455645 | AE14: 2990.735699 | AF14: 3777.919702 | AG14: -787.1840023 | AH14: 20734.15874 | AI14: 11021.70458 | AJ14: 21353.25965 | AK14: 9712.454162 | AL14: 10223.63885 | AM14: 18062.48704 | AN14: -7838.848186 | AO14: 1873.605976 | AP14: 1608.480142 | AQ14: 1736.349957 | AR14: 2747.55892 | AS14: 3368.455262 | AT14: 39.25508188 | AU14: 124.8509593 | AV14: 4924.206144 | AW14: 4710.793856 | AX14: 77.60819055 | AY14: 417.6096407 | AZ14: 3548.554243 | BA14: 3611.298819 | BB14: 654.1041333 | BC14: 540.1215067 | BD14: -2293.49 | BE14: 1873.605976 | BF14: -419.884024
A15: 2007-07-01 | B15: 5178.806808 | C15: 1192.83 | D15: 805.0524113 | E15: 3708.522439 | F15: 357.857774 | G15: 152.606317 | H15: 880.439839 | I15: 1603.079691 | J15: 302.0512755 | K15: 114.5645642 | L15: 2747.151519 | M15: 1444.696994 | N15: 11136.03032 | O15: 12933.30024 | P15: 14909.85614 | Q15: 911.2865529 | R15: 13998.56959 | S15: 1930.295596 | T15: 5770.383025 | U15: -3840.087429 | V15: 918.436632 | W15: 99.598387 | X15: 818.838245 | Y15: 977.0888882 | Z15: 1587.50461 | AA15: -610.415722 | AB15: 324.9218918 | AC15: 78.37553283 | AD15: 246.546359 | AE15: 3008.417052 | AF15: 4235.979872 | AG15: -1227.56282 | AH15: 22069.0162 | AI15: 12683.12798 | AJ15: 22071.98258 | AK15: 9385.888215 | AL15: 11774.71452 | AM15: 18586.53351 | AN15: -6811.818992 | AO15: 2574.069223 | AP15: 1773.689608 | AQ15: 1765.097259 | AR15: 2978.702505 | AS15: 3654.986939 | AT15: 88.65310161 | AU15: 112.9989618 | AV15: 5549.334871 | AW15: 5537.665129 | AX15: 68.95506486 | AY15: 450.0238817 | AZ15: 3004.929894 | BA15: 2636.718428 | BB15: 655.773956 | BC15: 674.0894022 | BD15: -2994.28 | BE15: 2574.069223 | BF15: -420.210777
A16: 2007-08-01 | B16: 6764.722241 | C16: 2176.543292 | D16: 1705.978522 | E16: 2695.172765 | F16: 439.751416 | G16: 168.275125 | H16: 822.939317 | I16: 1814.30179 | J16: 372.9335304 | K16: 131.8320152 | L16: 2781.182225 | M16: 2061.300775 | N16: 13610.91704 | O16: 15262.34587 | P16: 17355.09278 | Q16: 1080.993193 | R16: 16274.09959 | S16: 2365.162693 | T16: 5663.878377 | U16: -3298.715684 | V16: 1007.472947 | W16: 137.659144 | X16: 869.813803 | Y16: 915.4524823 | Z16: 1490.742468 | AA16: -575.289986 | AB16: 368.8673395 | AC16: 118.5533935 | AD16: 250.313946 | AE16: 3004.170498 | AF16: 4255.083944 | AG16: -1250.913446 | AH16: 25016.21874 | AI16: 12746.91052 | AJ16: 22544.52217 | AK16: 12269.30822 | AL16: 12739.61812 | AM16: 20087.67463 | AN16: -7348.056517 | AO16: 4921.251698 | AP16: 1405.928747 | AQ16: 3681.265015 | AR16: 3793.747921 | AS16: 3597.998446 | AT16: 89.00714277 | AU16: 191.5013862 | AV16: 6461.379426 | AW16: 6151.620574 | AX16: 267.7484685 | AY16: 531.0242401 | AZ16: 1517.202326 | BA16: 1668.639208 | BB16: 962.8375954 | BC16: 918.8011294 | BD16: -5240.3 | BE16: 4921.251698 | BF16: -319.048302
A17: 2007-09-01 | B17: 4024.92804 | C17: 1436.573 | D17: 979.0757476 | E17: 3879.336801 | F17: 370.887966 | G17: 87.443805 | H17: 348.623041 | I17: 1468.374625 | J17: 257.2912051 | K17: 78.04201399 | L17: 1217.220445 | M17: 2387.926268 | N17: 14136.9725 | O17: 12081.68146 | P17: 18491.97506 | Q17: 1240.900476 | R17: 17251.07459 | S17: 1774.791245 | T17: 6792.201715 | U17: -5017.41047 | V17: 984.458392 | W17: 138.47 | X17: 845.988392 | Y17: 687.0588492 | Z17: 1861.900174 | AA17: -1174.841325 | AB17: 340.4114492 | AC17: 128.7058432 | AD17: 211.705606 | AE17: 2824.283844 | AF17: 4839.538652 | AG17: -2015.254807 | AH17: 25102.97884 | AI17: 15001.71686 | AJ17: 23363.092 | AK17: 10101.26197 | AL17: 15156.35318 | AM17: 19561.86725 | AN17: -4405.514076 | AO17: 5695.747894 | AP17: 559.1699976 | AQ17: 686.2075834 | AR17: 2819.53172 | AS17: 3157.676393 | AT17: 88.82555128 | AU17: 56.21935002 | AV17: 4285.45647 | AW17: 4228.54353 | AX17: 90.01882899 | AY17: 63.57390871 | AZ17: 980.1381573 | BA17: 1217.717644 | BB17: 564.9456684 | BC17: 526.4515912 | BD17: -5823 | BE17: 5695.747894 | BF17: -127.252106
A18: 2007-10-01 | B18: 6152.701577 | C18: 2562.908807 | D18: 1128.670305 | E18: 4847.134326 | F18: 386.331654 | G18: 231.844212 | H18: 789.683503 | I18: 1878.7136 | J18: 347.3935249 | K18: 139.2490761 | L18: 1629.938838 | M18: 2703.607224 | N18: 14052.26346 | O18: 13992.84079 | P18: 20660.87543 | Q18: 1798.517665 | R18: 18862.35776 | S18: 1956.244273 | T18: 7638.915278 | U18: -5682.671005 | V18: 1072.486021 | W18: 215.653214 | X18: 856.832807 | Y18: 727.5485723 | Z18: 1849.455158 | AA18: -1121.906586 | AB18: 377.7665128 | AC18: 168.4085228 | AD18: 209.35799 | AE18: 2668.414251 | AF18: 5233.392492 | AG18: -2564.978241 | AH18: 27463.33506 | AI18: 16904.34233 | AJ18: 24435.46572 | AK18: 10559.36846 | AL18: 17523.76062 | AM18: 22037.57663 | AN18: -4513.816011 | AO18: 6045.552447 | AP18: 1290.461788 | AQ18: 1430.483864 | AR18: 4304.698243 | AS18: 4691.127699 | AT18: 77.38971102 | AU18: 61.16859178 | AV18: 5478.598833 | AW18: 5409.401167 | AX18: 151.0126687 | AY18: 219.2719928 | AZ18: 1242.035043 | BA18: 1673.903199 | BB18: 1198.199536 | BC18: 848.0634865 | BD18: -6413 | BE18: 6045.552447 | BF18: -367.447553
A19: 2007-11-01 | B19: 5519.584434 | C19: 2496.662922 | D19: 1919.542854 | E19: 3123.036129 | F19: 394.265897 | G19: 88.972564 | H19: 855.602 | I19: 1527.286626 | J19: 382.4195169 | K19: 71.39565106 | L19: 1937.048956 | M19: 1892.049277 | N19: 11755.30102 | O19: 15871.51205 | P19: 22194.50513 | Q19: 2080.514355 | R19: 20113.99077 | S19: 2641.470442 | T19: 6974.811394 | U19: -4333.340952 | V19: 955.299492 | W19: 119.452056 | X19: 835.847436 | Y19: 991.6896968 | Z19: 1656.350526 | AA19: -664.660829 | AB19: 431.7122505 | AC19: 86.61110652 | AD19: 345.101144 | AE19: 2781.245199 | AF19: 5205.445793 | AG19: -2424.200594 | AH19: 29995.92221 | AI19: 16123.18523 | AJ19: 25492.30491 | AK19: 13873.11271 | AL19: 17563.54149 | AM19: 26263.7146 | AN19: -8700.173115 | AO19: 5172.93959 | AP19: 584.1272256 | AQ19: 587.2994434 | AR19: 4163.825443 | AS19: 3969.82672 | AT19: 113.2096942 | AU19: 78.66310637 | AV19: 5492.626445 | AW19: 5130.373555 | AX19: 158.9479325 | AY19: 161.0885241 | AZ19: 1566.978082 | BA19: 1669.410639 | BB19: 943.9176855 | BC19: 824.4480115 | BD19: -5814 | BE19: 5172.93959 | BF19: -641.06041
A20: 2007-12-01 | B20: 4292.355861 | C20: 2734.280541 | D20: 1569.101361 | E20: 3642.640402 | F20: 384.196092 | G20: 149.505038 | H20: 333.563871 | I20: 1082.214374 | J20: 232.9688869 | K20: 208.9658422 | L20: 976.285425 | M20: 1837.172682 | N20: 11240.10988 | O20: 10376.94327 | P20: 22711.69246 | Q20: 2425.418366 | R20: 20286.27409 | S20: 1843.860791 | T20: 6992.056619 | U20: -5148.195828 | V20: 929.226418 | W20: 127.43 | X20: 801.796418 | Y20: 761.242394 | Z20: 1757.856679 | AA20: -996.614285 | AB20: 382.7188365 | AC20: 160.4818275 | AD20: 222.237009 | AE20: 2190.340001 | AF20: 5365.509109 | AG20: -3175.169108 | AH20: 28819.0809 | AI20: 16828.7526 | AJ20: 23657.8154 | AK20: 11989.96977 | AL20: 17861.73957 | AM20: 24642.4787 | AN20: -6780.739128 | AO20: 5209.230645 | AP20: 454.5801367 | AQ20: 645.5756193 | AR20: 4582.423637 | AS20: 4746.387256 | AT20: 122.9893646 | AU20: 108.9621412 | AV20: 4424.868271 | AW20: 4270.131729 | AX20: 208.4277343 | AY20: 328.879703 | AZ20: 2065.055662 | BA20: 2001.282378 | BB20: 651.6346559 | BC20: 681.2311737 | BD20: -6177.363971 | BE20: 5209.230645 | BF20: -968.133326
A21: 2008-01-01 | B21: 5559.072183 | C21: 3172.594856 | D21: 1775.603886 | E21: 5062.198532 | F21: 432.863934 | G21: 210.43097 | H21: 709.526983 | I21: 1386.752419 | J21: 235.709598 | K21: 287.7827993 | L21: 1291.004968 | M21: 1612.279819 | N21: 12714.32633 | O21: 13279.86875 | P21: 24138.2759 | Q21: 3084.110265 | R21: 21054.16564 | S21: 1605.54901 | T21: 7775.606496 | U21: -6170.057487 | V21: 889.037698 | W21: 138.734809 | X21: 750.302889 | Y21: 868.870206 | Z21: 1841.610837 | AA21: -972.740631 | AB21: 289.7254054 | AC21: 260.2015164 | AD21: 29.523889 | AE21: 2173.714101 | AF21: 5361.527766 | AG21: -3187.813665 | AH21: 29965.17232 | AI21: 18461.79169 | AJ21: 22708.83444 | AK21: 11503.0221 | AL21: 21711.87981 | AM21: 27941.6293 | AN21: -6229.749484 | AO21: 5273.27262 | AP21: 238.0235682 | AQ21: 714.8141588 | AR21: 4542.112472 | AS21: 4953.438166 | AT21: 113.6397386 | AU21: 92.86535045 | AV21: 5454.52631 | AW21: 4841.47369 | AX21: 325.3391352 | AY21: 209.4968265 | AZ21: 1862.491752 | BA21: 1815.058659 | BB21: 923.9476875 | BC21: 738.4731491 | BD21: -5988.39 | BE21: 5273.27262 | BF21: -715.11738
A22: 2008-02-01 | B22: 5635.448954 | C22: 4848.048843 | D22: 1368.864385 | E22: 3428.668269 | F22: 396.074413 | G22: 144.2883106 | H22: 334.270039 | I22: 951.111873 | J22: 235.8817976 | K22: 246.9260992 | L22: 1241.746947 | M22: 1105.920504 | N22: 8807.401284 | O22: 7893.812227 | P22: 24744.21376 | Q22: 4402.897327 | R22: 20341.31643 | S22: 1633.394516 | T22: 8101.56211 | U22: -6468.167594 | V22: 911.945673 | W22: 140.515707 | X22: 771.429966 | Y22: 577.663677 | Z22: 1572.029301 | AA22: -994.365624 | AB22: 338.935375 | AC22: 320.530293 | AD22: 18.405082 | AE22: 2375.329959 | AF22: 5265.255252 | AG22: -2889.925293 | AH22: 30581.48296 | AI22: 19802.78999 | AJ22: 23092.12619 | AK22: 10778.33444 | AL22: 19449.14734 | AM22: 24316.44009 | AN22: -4867.29274 | AO22: 5911.0417 | AP22: 779.4962002 | AQ22: 1249.51303 | AR22: 3787.827057 | AS22: 4592.455672 | AT22: 87.44596394 | AU22: 155.0744471 | AV22: 3622.410889 | AW22: 3025.589111 | AX22: 139.7189451 | AY22: 91.22343997 | AZ22: 1067.943567 | BA22: 878.3741882 | BB22: 835.4839771 | BC22: 693.9901112 | BD22: -6474.641479 | BE22: 5911.0417 | BF22: -563.599779
A23: 2008-03-01 | B23: 8610.802023 | C23: 3656.607 | D23: 1588.307242 | E23: 3612.298813 | F23: 538.976117 | G23: 160.906812 | H23: 800.655423 | I23: 1058.108858 | J23: 302.2998522 | K23: 164.4453111 | L23: 1823.120874 | M23: 1607.234949 | N23: 10330.33913 | O23: 13231.73306 | P23: 27320.66899 | Q23: 4897.291065 | R23: 22423.37792 | S23: 1972.743713 | T23: 8053.735238 | U23: -6080.991525 | V23: 951.41747 | W23: 114.000142 | X23: 837.417328 | Y23: 675.152083 | Z23: 1317.614235 | AA23: -642.462152 | AB23: 326.7208599 | AC23: 275.9372289 | AD23: 50.783631 | AE23: 2810.601924 | AF23: 4951.955081 | AG23: -2141.353157 | AH23: 34057.30504 | AI23: 19610.53299 | AJ23: 25690.24142 | AK23: 14446.67927 | AL23: 17936.68767 | AM23: 24780.10583 | AN23: -6843.418161 | AO23: 7603.261112 | AP23: 402.3440115 | AQ23: 1560.392075 | AR23: 5355.67731 | AS23: 4750.266533 | AT23: 87.80043346 | AU23: 125.3146534 | AV23: 5006.432277 | AW23: 4607.567723 | AX23: 155.0752653 | AY23: 71.29209004 | AZ23: 399.9923896 | BA23: 1285.414895 | BB23: 1522.122091 | BC23: 1185.262029 | BD23: -7128 | BE23: 7603.261112 | BF23: 475.261112
A24: 2008-04-01 | B24: 7127.079536 | C24: 3409.959303 | D24: 1561.113995 | E24: 5465.544607 | F24: 508.868754 | G24: 160.016779 | H24: 517.8440726 | I24: 952.8733544 | J24: 314.7559 | K24: 152.0595907 | L24: 1698.134168 | M24: 1879.333271 | N24: 8636.907502 | O24: 13278.2529 | P24: 27484.21475 | Q24: 4743.639828 | R24: 22740.57492 | S24: 2214.943424 | T24: 8609.200172 | U24: -6394.256748 | V24: 1028.353877 | W24: 156.483882 | X24: 871.869995 | Y24: 562.9359075 | Z24: 1064.394229 | AA24: -501.458322 | AB24: 274.5664997 | AC24: 174.6517407 | AD24: 99.914759 | AE24: 2737.064602 | AF24: 4859.004518 | AG24: -2121.939916 | AH24: 34302.07906 | AI24: 19607.37437 | AJ24: 25896.12759 | AK24: 14694.61191 | AL24: 13760.44006 | AM24: 21541.55052 | AN24: -7781.142171 | AO24: 6913.469743 | AP24: 658.6733386 | AQ24: 1640.095084 | AR24: 6266.296819 | AS24: 5720.287429 | AT24: 173.5632829 | AU24: 73.92482455 | AV24: 4904.45303 | AW24: 4014.54697 | AX24: 186.6590342 | AY24: 122.760776 | AZ24: 1430.201119 | BA24: 2278.65513 | BB24: 1296.487347 | BC24: 1205.089786 | BD24: -7337.254888 | BE24: 6913.469743 | BF24: -423.7851451
A25: 2008-05-01 | B25: 8102.060836 | C25: 3469.216871 | D25: 1432.255193 | E25: 4340.174844 | F25: 316.488346 | G25: 100.225264 | H25: 530.0113711 | I25: 842.5328969 | J25: 229.856719 | K25: 138.1764639 | L25: 1666.849572 | M25: 1294.982976 | N25: 7264.072465 | O25: 9835.761578 | P25: 28897.01747 | Q25: 4805.627848 | R25: 24091.38962 | S25: 2242.724816 | T25: 8857.27855 | U25: -6614.553734 | V25: 929.900994 | W25: 48.210663 | X25: 881.690331 | Y25: 510.1308861 | Z25: 843.7208031 | AA25: -333.589917 | AB25: 283.9124994 | AC25: 168.3039294 | AD25: 115.60857 | AE25: 2846.179165 | AF25: 4440.069906 | AG25: -1593.890742 | AH25: 35709.86583 | AI25: 19163.2117 | AJ25: 24145.03121 | AK25: 16546.56135 | AL25: 13043.64308 | AM25: 21035.2631 | AN25: -7991.620016 | AO25: 8554.941333 | AP25: 796.753565 | AQ25: 1651.434245 | AR25: 4987.380798 | AS25: 5404.72037 | AT25: 108.4869397 | AU25: 76.88379849 | AV25: 4293.816431 | AW25: 3582.183569 | AX25: 184.5361005 | AY25: 362.6694877 | AZ25: 966.6855933 | BA25: 2419.150732 | BB25: 1206.177323 | BC25: 906.1077978 | BD25: -9076.78 | BE25: 8554.941333 | BF25: -521.838667
A26: 2008-06-01 | B26: 8051.761521 | C26: 4701.518521 | D26: 2293.405752 | E26: 4300.230205 | F26: 327.444594 | G26: 92.125264 | H26: 735.9605204 | I26: 918.5572486 | J26: 376.082683 | K26: 196.527163 | L26: 2313.715712 | M26: 1413.626222 | N26: 10192.93711 | O26: 13118.66317 | P26: 28684.86408 | Q26: 5763.822928 | R26: 22921.04116 | S26: 2984.069836 | T26: 8364.711208 | U26: -5380.641372 | V26: 992.906026 | W26: 68.078972 | X26: 924.827054 | Y26: 647.6082172 | Z26: 810.8088812 | AA26: -163.200664 | AB26: 414.768682 | AC26: 188.267789 | AD26: 226.500893 | AE26: 3126.387378 | AF26: 4152.533531 | AG26: -1026.146153 | AH26: 36850.60422 | AI26: 19348.22331 | AJ26: 26204.44302 | AK26: 17502.55388 | AL26: 15814.8398 | AM26: 24082.82139 | AN26: -8267.98159 | AO26: 9234.572286 | AP26: 1180.849355 | AQ26: 389.9225937 | AR26: 5500.44226 | AS26: 5700.080482 | AT26: 103.3822 | AU26: 92.61923287 | AV26: 4805.84208 | AW26: 4220.15792 | AX26: 209.6826117 | AY26: 254.4155555 | AZ26: 1039.181055 | BA26: 2854.047687 | BB26: 1047.777386 | BC26: 1145.40653 | BD26: -9809.34 | BE26: 9234.572286 | BF26: -574.767714
A27: 2008-07-01 | B27: 8350.009285 | C27: 5327.599796 | D27: 1598.479433 | E27: 5364.947411 | F27: 339.9457 | G27: 83.081093 | H27: 331.438188 | I27: 965.57504 | J27: 262.3512182 | K27: 246.1256087 | L27: 1984.293602 | M27: 1533.560255 | N27: 11602.16028 | O27: 11761.63226 | P27: 28373.10609 | Q27: 6440.594395 | R27: 21932.5117 | S27: 3105.43453 | T27: 8312.656378 | U27: -5207.221848 | V27: 997.05571 | W27: 37.45 | X27: 959.60571 | Y27: 441.4074377 | Z27: 748.3698227 | AA27: -306.962385 | AB27: 357.0284994 | AC27: 299.9968544 | AD27: 57.031645 | AE27: 2913.618573 | AF27: 4264.2504 | AG27: -1350.631827 | AH27: 36187.65084 | AI27: 20103.31785 | AJ27: 26291.53646 | AK27: 16084.50596 | AL27: 16623.2281 | AM27: 23303.885 | AN27: -6680.6569 | AO27: 9403.849061 | AP27: 2712.135841 | AQ27: 1297.142465 | AR27: 5002.517271 | AS27: 5731.55231 | AT27: 101.3648482 | AU27: 117.1096735 | AV27: 5186.740137 | AW27: 6336.259863 | AX27: 260.7689904 | AY27: 170.7582877 | AZ27: 1700.882773 | BA27: 1324.688364 | BB27: 975.0598144 | BC27: 859.8890376 | BD27: -9723.03 | BE27: 9403.849061 | BF27: -319.180939
A28: 2008-08-01 | B28: 5689.565052 | C28: 3904.208552 | D28: 1778.620852 | E28: 4461.249893 | F28: 322.5399505 | G28: 90.576335 | H28: 600.728134 | I28: 901.35589 | J28: 221.8241398 | K28: 163.9267646 | L28: 3227.226496 | M28: 1001.872187 | N28: 9656.936526 | O28: 11501.68706 | P28: 26517.73857 | Q28: 5458.83937 | R28: 21058.8992 | S28: 3544.844359 | T28: 8568.212477 | U28: -5023.368118 | V28: 952.343305 | W28: 26.95 | X28: 925.393305 | Y28: 650.021662 | Z28: 961.69847 | AA28: -311.676808 | AB28: 368.0920891 | AC28: 252.0718041 | AD28: 116.020285 | AE28: 3544.750645 | AF28: 3995.920209 | AG28: -451.1695642 | AH28: 35577.79063 | AI28: 19263.69233 | AJ28: 25403.69583 | AK28: 16314.27126 | AL28: 16085.3195 | AM28: 22707.18447 | AN28: -6621.864972 | AO28: 9692.40629 | AP28: 1153.92911 | AQ28: 1308.950654 | AR28: 5313.179082 | AS28: 5909.385129 | AT28: 129.9940673 | AU28: 78.68060523 | AV28: 4361.150075 | AW28: 4022.849925 | AX28: 307.0784552 | AY28: 513.8054815 | AZ28: 2280.065321 | BA28: 2701.875177 | BB28: 761.9254325 | BC28: 640.7830298 | BD28: -10585.45 | BE28: 9692.40629 | BF28: -893.04371
A29: 2008-09-01 | B29: 5155.331967 | C29: 2119.118588 | D29: 1662.917314 | E29: 4173.025013 | F29: 298.1682165 | G29: 113.716263 | H29: 877.9833811 | I29: 1156.907001 | J29: 288.8148996 | K29: 330.5268319 | L29: 4640.780837 | M29: 1483.024851 | N29: 8113.564037 | O29: 11677.08561 | P29: 24848.1632 | Q29: 3793.384337 | R29: 21054.77886 | S29: 3284.104288 | T29: 8138.704243 | U29: -4854.599955 | V29: 908.429932 | W29: 45.55 | X29: 862.879932 | Y29: 904.4084706 | Z29: 1057.452951 | AA29: -153.04448 | AB29: 398.0425324 | AC29: 361.9159934 | AD29: 36.126539 | AE29: 3215.059607 | AF29: 4025.327736 | AG29: -810.2681288 | AH29: 33558.20803 | AI29: 17422.33526 | AJ29: 23649.76924 | AK29: 16136.31149 | AL29: 15176.31144 | AM29: 22193.00926 | AN29: -7016.697822 | AO29: 9119.613664 | AP29: 1245.702054 | AQ29: 952.712313 | AR29: 5965.286779 | AS29: 5943.813532 | AT29: 185.9571366 | AU29: 100.8837705 | AV29: 4840.101596 | AW29: 4639.898404 | AX29: 325.8211073 | AY29: 182.8093612 | AZ29: 5992.251338 | BA29: 5898.757566 | BB29: 1167.296031 | BC29: 693.5750526 | BD29: -9238.78 | BE29: 9119.613664 | BF29: -119.166336
A30: 2008-10-01 | B30: 2150.071104 | C30: 2423.258985 | D30: 3110.94622 | E30: 3762.315051 | F30: 449.6912517 | G30: 81.61724721 | H30: 698.2653515 | I30: 717.2410135 | J30: 338.7877244 | K30: 225.6194374 | L30: 2378.489235 | M30: 1510.578 | N30: 6565.794877 | O30: 8816.783899 | P30: 20822.91442 | Q30: 3666.986373 | R30: 17155.92805 | S30: 4810.272558 | T30: 7778.721943 | U30: -2968.449384 | V30: 871.314303 | W30: 26.113 | X30: 845.201303 | Y30: 987.1762134 | Z30: 1097.59857 | AA30: -110.422357 | AB30: 346.6921591 | AC30: 271.1334131 | AD30: 75.558746 | AE30: 2909.510736 | AF30: 3462.499731 | AG30: -552.9889946 | AH30: 30747.88039 | AI30: 16303.05303 | AJ30: 20332.71535 | AK30: 14445.26607 | AL30: 12180.20391 | AM30: 19277.76027 | AN30: -7097.556357 | AO30: 7347.709712 | AP30: 1388.00131 | AQ30: 1221.145594 | AR30: 4907.29272 | AS30: 4917.047156 | AT30: 95.79684582 | AU30: 107.8543921 | AV30: 5447.083291 | AW30: 4902.916709 | AX30: 484.5025231 | AY30: 322.7289214 | AZ30: 4161.267708 | BA30: 3713.936217 | BB30: 1330.30738 | BC30: 1273.90101 | BD30: -7963.79 | BE30: 7347.709712 | BF30: -616.080288
A31: 2008-11-01 | B31: 2785.754 | C31: 1144.6349 | D31: 1838.462877 | E31: 3369.962847 | F31: 284.734531 | G31: 84.22602778 | H31: 365.5399429 | I31: 524.8440171 | J31: 171.8518231 | K31: 127.3042639 | L31: 1075.847163 | M31: 1702.556096 | N31: 3767.299721 | O31: 4407.371497 | P31: 20030.1237 | Q31: 3220.158273 | R31: 16809.96543 | S31: 4557.793029 | T31: 7379.937857 | U31: -2822.144828 | V31: 860.092174 | W31: 44.663 | X31: 815.429174 | Y31: 871.0075622 | Z31: 1008.936629 | AA31: -137.929067 | AB31: 243.0010855 | AC31: 192.8231315 | AD31: 50.177954 | AE31: 2869.905739 | AF31: 4089.157969 | AG31: -1219.25223 | AH31: 29431.92329 | AI31: 15935.67686 | AJ31: 18657.82949 | AK31: 13496.68514 | AL31: 11190.76208 | AM31: 17653.21752 | AN31: -6462.455442 | AO31: 7034.229699 | AP31: 796.0153331 | AQ31: 1347.87319 | AR31: 4781.505379 | AS31: 4208.165609 | AT31: 63.94038079 | AU31: 95.99669621 | AV31: 4442.635356 | AW31: 4428.364644 | AX31: 405.0451183 | AY31: 385.2230917 | AZ31: 2022.797455 | BA31: 1157.474091 | BB31: 966.3001967 | BC31: 936.692678 | BD31: -7018.72 | BE31: 7034.229699 | BF31: 15.509699
A32: 2008-12-01 | B32: 3792.649719 | C32: 1168.760719 | D32: 1087.222567 | E32: 3376.710535 | F32: 246.4395 | G32: 98.65 | H32: 360.9102443 | I32: 445.86128 | J32: 138.8762354 | K32: 76.76574803 | L32: 1423.397884 | M32: 920.0752711 | N32: 3267.625498 | O32: 4230.159863 | P32: 19398.3317 | Q32: 2472.289273 | R32: 16926.04243 | S32: 3964.322583 | T32: 6642.440291 | U32: -2678.117708 | V32: 909.204418 | W32: 84.013 | X32: 825.191418 | Y32: 711.9782616 | Z32: 793.9190136 | AA32: -81.940752 | AB32: 135.0827658 | AC32: 106.0417698 | AD32: 29.040996 | AE32: 2437.376201 | AF32: 3745.826973 | AG32: -1308.450771 | AH32: 27556.29593 | AI32: 13844.53032 | AJ32: 16082.45321 | AK32: 13711.47007 | AL32: 9711.959965 | AM32: 15979.83165 | AN32: -6267.871687 | AO32: 7443.598386 | AP32: 796.0569914 | AQ32: 1320.326072 | AR32: 4333.87643 | AS32: 4884.156546 | AT32: 55.63060158 | AU32: 73.44428192 | AV32: 3877.109799 | AW32: 3802.890201 | AX32: 861.6614239 | AY32: 799.3385761 | AZ32: 2428.855682 | BA32: 1360.626075 | BB32: 784.0391187 | BC32: 847.3382495 | BD32: -6939 | BE32: 7443.598386 | BF32: 504.598386
A33: 2009-01-01 | B33: 4877.434442 | C33: 2278.525123 | D33: 1432.448368 | E33: 4041.375827 | F33: 275.506729 | G33: 65.032288 | H33: 224.0560439 | I33: 721.405078 | J33: 108.728182 | K33: 103.6208712 | L33: 1264.68848 | M33: 620.5457787 | N33: 5567.701653 | O33: 7379.844188 | P33: 18996.37938 | Q33: 2327.193418 | R33: 16669.18597 | S33: 3504.769501 | T33: 6936.978247 | U33: -3432.208745 | V33: 868.935891 | W33: 50.671288 | X33: 818.264603 | Y33: 568.473039 | Z33: 792.23401 | AA33: -223.760971 | AB33: 125.473683 | AC33: 139.26752 | AD33: -13.793837 | AE33: 2579.809646 | AF33: 3044.045417 | AG33: -464.2357716 | AH33: 26643.84114 | AI33: 13290.3899 | AJ33: 17765.73367 | AK33: 13353.15569 | AL33: 11517.01074 | AM33: 17475.04104 | AN33: -5958.030304 | AO33: 7395.125388 | AP33: 643.5617135 | AQ33: 957.3320485 | AR33: 4604.220283 | AS33: 4268.324437 | AT33: 170.7559047 | AU33: 83.62905548 | AV33: 3235.25158 | AW33: 3325.74842 | AX33: 688.45626 | AY33: 655.54374 | AZ33: 983.0193908 | BA33: 1030.468111 | BB33: 1204.822754 | BC33: 1138.214189 | BD33: -6960.17 | BE33: 7395.125388 | BF33: 434.955388
A34: 2009-02-01 | B34: 5056.482432 | C34: 3298.915573 | D34: 688.7436759 | E34: 3172.002504 | F34: 253.6255037 | G34: 47.104848 | H34: 388.3603019 | I34: 593.7717345 | J34: 103.2345155 | K34: 114.2364502 | L34: 657.349283 | M34: 637.6375387 | N34: 6140.322643 | O34: 8886.837819 | P34: 18629.96528 | Q34: 2612.646037 | R34: 16017.31925 | S34: 3191.943897 | T34: 7247.119279 | U34: -4055.175381 | V34: 879.064327 | W34: 40.04196 | X34: 839.022367 | Y34: 570.9039863 | Z34: 805.8203203 | AA34: -234.916334 | AB34: 151.1929278 | AC34: 171.5123248 | AD34: -20.319397 | AE34: 2592.238182 | AF34: 2830.419789 | AG34: -238.1816076 | AH34: 26015.3086 | AI34: 13707.55971 | AJ34: 17589.24482 | AK34: 12307.45336 | AL34: 12228.73313 | AM34: 18947.24633 | AN34: -6718.513205 | AO34: 5588.940151 | AP34: 941.4250566 | AQ34: 481.4056824 | AR34: 3312.560866 | AS34: 3231.207395 | AT34: 80.8923997 | AU34: 73.9407869 | AV34: 2620.40501 | AW34: 2562.59499 | AX34: 723.5399845 | AY34: 680.4600155 | AZ34: 757.9230422 | BA34: 633.1126727 | BB34: 647.2262832 | BC34: 578.2384569 | BD34: -6071.05 | BE34: 5588.940151 | BF34: -482.109849
A35: 2009-03-01 | B35: 3995.142188 | C35: 1842.523461 | D35: 1145.908411 | E35: 3007.386361 | F35: 313.8426502 | G35: 115.965351 | H35: 337.4071721 | I35: 653.087958 | J35: 89.74764274 | K35: 98.20049886 | L35: 972.0638603 | M35: 640.7328799 | N35: 5922.149307 | O35: 6957.97824 | P35: 17454.65798 | Q35: 1757.074813 | R35: 15697.58316 | S35: 3141.252359 | T35: 6984.757462 | U35: -3843.505103 | V35: 945.868065 | W35: 83.313 | X35: 862.555065 | Y35: 565.8491587 | Z35: 831.4289447 | AA35: -265.579786 | AB35: 141.2164065 | AC35: 179.2868245 | AD35: -38.070418 | AE35: 2491.354131 | AF35: 2615.122926 | AG35: -123.7687949 | AH35: 24740.1981 | AI35: 12450.98397 | AJ35: 17270.08597 | AK35: 12289.18433 | AL35: 12795.75319 | AM35: 18546.24921 | AN35: -5750.496019 | AO35: 6538.688311 | AP35: 495.1610249 | AQ35: 870.4099711 | AR35: 3759.396031 | AS35: 3935.731943 | AT35: 183.4369662 | AU35: 128.2563497 | AV35: 4552.938389 | AW35: 4338.061611 | AX35: 473.5849843 | AY35: 407.0679739 | AZ35: 815.8270669 | BA35: 243.3202633 | BB35: 932.1652703 | BC35: 1143.321887 | BD35: -5861.65 | BE35: 6538.688311 | BF35: 677.038311
A36: 2009-04-01 | B36: 4589.918653 | C36: 1627.427653 | D36: 1192.553686 | E36: 2636.914753 | F36: 210.78199 | G36: 45.825868 | H36: 187.7635045 | I36: 411.650558 | J36: 115.3117269 | K36: 80.85680109 | L36: 747.5929151 | M36: 741.2091849 | N36: 5199.600849 | O36: 6872.526575 | P36: 17464.27786 | Q36: 1212.417011 | R36: 16251.86085 | S36: 3161.706578 | T36: 6880.19771 | U36: -3718.491132 | V36: 904.06857 | W36: 35.438868 | X36: 868.629702 | Y36: 497.0899038 | Z36: 821.5734458 | AA36: -324.483542 | AB36: 165.5759179 | AC36: 214.9025359 | AD36: -49.326618 | AE36: 2228.98944 | AF36: 2605.684109 | AG36: -376.694669 | AH36: 24421.70827 | AI36: 11770.21368 | AJ36: 16803.14027 | AK36: 12651.46479 | AL36: 11419.48262 | AM36: 18347.14936 | AN36: -6927.666738 | AO36: 5723.798056 | AP36: 392.4431571 | AQ36: 1201.31315 | AR36: 3623.026753 | AS36: 3407.264493 | AT36: 107.7782967 | AU36: 102.0843596 | AV36: 4488.823443 | AW36: 4127.176557 | AX36: 500.7073 | AY36: 474.5204487 | AZ36: 1822.862696 | BA36: 618.1434953 | BB36: 689.8086986 | BC36: 938.3574964 | BD36: -5148.97 | BE36: 5723.798056 | BF36: 574.828056
A37: 2009-05-01 | B37: 6710.36657 | C37: 2551.496539 | D37: 1034.770612 | E37: 2938.851447 | F37: 250.2526901 | G37: 46.104244 | H37: 197.665026 | I37: 560.6935974 | J37: 116.0582457 | K37: 107.4952772 | L37: 751.9733818 | M37: 453.7836424 | N37: 4586.304419 | O37: 5488.013414 | P37: 19807.88967 | Q37: 1701.425436 | R37: 18106.46423 | S37: 3055.251302 | T37: 6920.711145 | U37: -3865.459843 | V37: 933.664925 | W37: 44.424032 | X37: 889.240893 | Y37: 409.9552081 | Z37: 709.2969631 | AA37: -299.341755 | AB37: 153.1956182 | AC37: 187.2150522 | AD37: -34.019434 | AE37: 2411.927037 | AF37: 2606.326422 | AG37: -194.3993852 | AH37: 26771.88376 | AI37: 12169.39905 | AJ37: 17689.80559 | AK37: 14602.45492 | AL37: 11339.27638 | AM37: 18249.05097 | AN37: -6909.774591 | AO37: 7692.680326 | AP37: 257.8902087 | AQ37: 1987.266906 | AR37: 3415.325358 | AS37: 3858.282119 | AT37: 82.22404267 | AU37: 99.07580643 | AV37: 3910.002894 | AW37: 3956.997106 | AX37: 352.3898433 | AY37: 443.1860747 | AZ37: 1384.976172 | BA37: 779.1442493 | BB37: 594.8708717 | BC37: 770.3977383 | BD37: -7032.54 | BE37: 7692.680326 | BF37: 660.140326
A38: 2009-06-01 | B38: 7857.284 | C38: 3157.113 | D38: 1142.358435 | E38: 4013.05955 | F38: 423.769538 | G38: 142.719723 | H38: 256.648262 | I38: 386.3388372 | J38: 147.7535345 | K38: 148.9704489 | L38: 1890.372994 | M38: 1533.847802 | N38: 6403.343511 | O38: 7811.402023 | P38: 21214.46167 | Q38: 1506.184936 | R38: 19708.27673 | S38: 3133.329676 | T38: 7687.460101 | U38: -4554.130425 | V38: 1028.530615 | W38: 128.593809 | X38: 899.936806 | Y38: 437.1584603 | Z38: 706.7881543 | AA38: -269.629694 | AB38: 158.864978 | AC38: 213.219729 | AD38: -54.354751 | AE38: 2606.29014 | AF38: 3161.85055 | AG38: -555.5604101 | AH38: 28578.63554 | AI38: 13404.09728 | AJ38: 18842.42527 | AK38: 15174.77422 | AL38: 12046.3677 | AM38: 18826.04665 | AN38: -6779.678951 | AO38: 8395.095267 | AP38: 157.4719278 | AQ38: 1639.637394 | AR38: 4111.46085 | AS38: 4833.361796 | AT38: 156.7759274 | AU38: 133.772593 | AV38: 3818.257912 | AW38: 3920.742088 | AX38: 137.5192849 | AY38: 344.3943199 | AZ38: 4449.585351 | BA38: 2236.844283 | BB38: 1002.422437 | BC38: 1264.907526 | BD38: -7571.41 | BE38: 8395.095267 | BF38: 823.685267
A39: 2009-07-01 | B39: 8248.149 | C39: 2070.896 | D39: 924.0335974 | E39: 3757.894853 | F39: 579.40248 | G39: 53.101425 | H39: 339.2463571 | I39: 574.9714418 | J39: 170.5091445 | K39: 120.4990353 | L39: 886.1747201 | M39: 187.574698 | N39: 6646.492275 | O39: 9790.716478 | P39: 23024.28301 | Q39: 1214.141936 | R39: 21810.14107 | S39: 2847.183922 | T39: 8155.675841 | U39: -5308.491918 | V39: 1012.362897 | W39: 41.214425 | X39: 971.148472 | Y39: 330.4055084 | Z39: 313.9877814 | AA39: 16.417727 | AB39: 219.9091175 | AC39: 224.5954795 | AD39: -4.686362 | AE39: 2840.650175 | AF39: 3162.929288 | AG39: -322.2791127 | AH39: 30274.79463 | AI39: 13112.54475 | AJ39: 20172.26913 | AK39: 17162.48583 | AL39: 12361.64655 | AM39: 20847.14955 | AN39: -8485.503 | AO39: 8676.98283 | AP39: 464.9134928 | AQ39: 2043.971988 | AR39: 4897.38343 | AS39: 4523.8686 | AT39: 156.3143478 | AU39: 154.6190428 | AV39: 4578.132823 | AW39: 4417.867177 | AX39: 134.0952443 | AY39: 230.0914277 | AZ39: 1313.499596 | BA39: 539.45806 | BB39: 871.5513863 | BC39: 899.7037045 | BD39: -7964.89 | BE39: 8676.98283 | BF39: 712.09283
A40: 2009-08-01 | B40: 8024.063 | C40: 1962.518 | D40: 1028.635548 | E40: 3939.79297 | F40: 641.2500839 | G40: 73.67362797 | H40: 325.282128 | I40: 437.993658 | J40: 208.7616599 | K40: 203.258158 | L40: 2255.863068 | M40: 282.1533987 | N40: 7500.346442 | O40: 11382.96544 | P40: 23308.66494 | Q40: 759.963936 | R40: 22548.70101 | S40: 2906.118797 | T40: 8357.117838 | U40: -5450.999041 | V40: 1001.621634 | W40: 43.238425 | X40: 958.383209 | Y40: 308.1355886 | Z40: 300.7029196 | AA40: 7.432669 | AB40: 263.7435469 | AC40: 282.2463429 | AD40: -18.502796 | AE40: 3404.554684 | AF40: 2835.705699 | AG40: 568.8489853 | AH40: 31192.83919 | AI40: 12578.97516 | AJ40: 19881.36069 | AK40: 18614.09999 | AL40: 13402.09351 | AM40: 22911.15386 | AN40: -9509.060353 | AO40: 9105.039637 | AP40: 252.845167 | AQ40: 1418.442203 | AR40: 4653.053176 | AS40: 4818.673655 | AT40: 125.9595295 | AU40: 114.3983166 | AV40: 4542.8323 | AW40: 4105.1677 | AX40: 211.821432 | AY40: 445.5351761 | AZ40: 2667.074989 | BA40: 1769.952099 | BB40: 616.3921714 | BC40: 471.0408507 | BD40: -8035.64 | BE40: 9105.039637 | BF40: 1069.399637
A41: 2009-09-01 | B41: 9676.009694 | C41: 4038.892994 | D41: 971.4403781 | E41: 4227.225944 | F41: 602.66073 | G41: 129.805599 | H41: 536.1387326 | I41: 753.1152034 | J41: 282.0713648 | K41: 179.4457288 | L41: 2292.983525 | M41: 812.9554942 | N41: 9336.104789 | O41: 12600.26474 | P41: 25189.62764 | Q41: 1536.316933 | R41: 23653.3107 | S41: 2759.674535 | T41: 8080.811207 | U41: -5321.136672 | V41: 1032.932314 | W41: 66.513 | X41: 966.419314 | Y41: 567.9258254 | Z41: 547.6365994 | AA41: 20.289226 | AB41: 289.9015629 | AC41: 259.9752389 | AD41: 29.926324 | AE41: 3348.014023 | AF41: 2679.086561 | AG41: 668.9274611 | AH41: 33188.0759 | AI41: 13170.33954 | AJ41: 18027.27248 | AK41: 20017.23805 | AL41: 14414.671 | AM41: 23461.49698 | AN41: -9046.825979 | AO41: 10970.41207 | AP41: 254.3639555 | AQ41: 2351.045898 | AR41: 4717.479678 | AS41: 5598.839402 | AT41: 99.82742814 | AU41: 137.6382276 | AV41: 4056.641493 | AW41: 4091.358507 | AX41: 242.7297663 | AY41: 582.2848097 | AZ41: 5060.209891 | BA41: 4506.744951 | BB41: 1192.151204 | BC41: 860.4982043 | BD41: -10540.35563 | BE41: 10970.41207 | BF41: 430.0564402
A42: 2009-10-01 | B42: 8267.43324 | C42: 2374.5672 | D42: 1307.680629 | E42: 4732.974786 | F42: 589.53758 | G42: 62.051435 | H42: 445.8611761 | I42: 761.5965189 | J42: 436.4552363 | K42: 203.7775801 | L42: 2267.721167 | M42: 756.7915442 | N42: 9231.911403 | O42: 11719.21527 | P42: 26551.69474 | Q42: 807.442936 | R42: 25744.2518 | S42: 3020.394213 | T42: 9456.856701 | U42: -6436.462488 | V42: 997.675025 | W42: 30.470935 | X42: 967.20409 | Y42: 527.4661383 | Z42: 631.2341423 | AA42: -103.768004 | AB42: 362.3941028 | AC42: 313.7251298 | AD42: 48.668973 | AE42: 3570.108521 | AF42: 2938.587316 | AG42: 631.5212048 | AH42: 35029.73274 | AI42: 14178.31716 | AJ42: 20529.5298 | AK42: 20850.91728 | AL42: 15819.39051 | AM42: 24430.03802 | AN42: -8610.647512 | AO42: 12240.26977 | AP42: 185.3656625 | AQ42: 2264.37157 | AR42: 5129.821854 | AS42: 4603.445078 | AT42: 106.0268636 | AU42: 157.2212384 | AV42: 4564.147588 | AW42: 4724.852412 | AX42: 222.5353961 | AY42: 752.8212625 | AZ42: 2995.651296 | BA42: 1967.859663 | BB42: 878.567004 | BC42: 830.9287756 | BD42: -11785.72169 | BE42: 12240.26977 | BF42: 454.5480782
A43: 2009-11-01 | B43: 9760.136 | C43: 2352.711 | D43: 1043.988127 | E43: 6155.395143 | F43: 596.303808 | G43: 168.696192 | H43: 201.4196997 | I43: 682.5803003 | J43: 410.9220404 | K43: 287.0779596 | L43: 1546.728007 | M43: 1092.830023 | N43: 9280.871914 | O43: 11807.60529 | P43: 30140.92856 | Q43: 1541.410936 | R43: 28599.51762 | S43: 2830.08336 | T43: 11337.47383 | U43: -8507.390472 | V43: 1044.928507 | W43: 63.000541 | X43: 981.9279658 | Y43: 287.392548 | Z43: 480.1336906 | AA43: -192.7411426 | AB43: 543.2846609 | AC43: 346.8260698 | AD43: 196.4585911 | AE43: 3398.991864 | AF43: 3014.81454 | AG43: 384.1773236 | AH43: 38245.6095 | AI43: 16783.65961 | AJ43: 21628.95552 | AK43: 21461.4516 | AL43: 17585.55687 | AM43: 24964.48242 | AN43: -7378.925553 | AO43: 14082.52604 | AP43: 249.4953281 | AQ43: 3155.504672 | AR43: 5666.143256 | AS43: 5673.285582 | AT43: 214.258123 | AU43: 162.741877 | AV43: 4411.307616 | AW43: 4648.692384 | AX43: 348.2218508 | AY43: 461.7781492 | AZ43: 2036.061847 | BA43: 1152.552695 | BB43: 1299.787616 | BC43: 915.2960546 | BD43: -13735.20796 | BE43: 14082.52604 | BF43: 347.3180844
A44: 2009-12-01 | B44: 7125.559774 | C44: 2815.69093 | D44: 1199.79846 | E44: 4693.099771 | F44: 587.187655 | G44: 144.812345 | H44: 197.018457 | I44: 437.981543 | J44: 241.084442 | K44: 244.915558 | L44: 2892.726881 | M44: 2592.839607 | N44: 6047.333488 | O44: 10766.2133 | P44: 30051.81177 | Q44: 2526.470306 | R44: 27525.34146 | S44: 2472.009455 | T44: 9022.277866 | U44: -6550.268411 | V44: 1344.775861 | W44: 76.775861 | X44: 1268 | Y44: 235.1457022 | Z44: 422.1457022 | AA44: -187 | AB44: 405.7470575 | AC44: 336.7470575 | AD44: 69 | AE44: 3189.225464 | AF44: 3810.254467 | AG44: -621.029003 | AH44: 37698.71531 | AI44: 16194.67126 | AJ44: 19398.4694 | AK44: 21503.8115 | AL44: 14334.05038 | AM44: 21688.07014 | AN44: -7354.019752 | AO44: 14149.79174 | AP44: 921.9582427 | AQ44: 1522.041757 | AR44: 7091.085107 | AS44: 8534.29312 | AT44: 146.6460646 | AU44: 115.3539354 | AV44: 4281.951057 | AW44: 4042.048943 | AX44: 340.874865 | AY44: 349.125135 | AZ44: 5026.084233 | BA44: 3470.893694 | BB44: 2380.89704 | BC44: 1834.035069 | BD44: -13402.35271 | BE44: 14149.79174 | BF44: 747.791743
A45: 2010-01-01 | B45: 7740.380923 | C45: 3949.934923 | D45: 1970.724487 | E45: 4939.107926 | F45: 893.73441 | G45: 113.26559 | H45: 286.3724209 | I45: 718.6275791 | J45: 374.1478862 | K45: 294.8521138 | L45: 1890.41995 | M45: 1066.006407 | N45: 8553.017082 | O45: 9954.306393 | P45: 30317.77285 | Q45: 3762.15893 | R45: 26555.61392 | S45: 5671.424356 | T45: 10887.41309 | U45: -5215.988739 | V45: 1739.865497 | W45: 77.028386 | X45: 1662.837111 | Y45: 368.1316749 | Z45: 615.9392725 | AA45: -247.8075976 | AB45: 531.9804236 | AC45: 451.7248895 | AD45: 80.25553407 | AE45: 1034.884619 | AF45: 2524.107027 | AG45: -1489.222408 | AH45: 39664.05942 | AI45: 18318.3716 | AJ45: 23091.84464 | AK45: 21345.55113 | AL45: 17355.05169 | AM45: 24659.88856 | AN45: -7304.836869 | AO45: 14040.71426 | AP45: 290.4400005 | AQ45: 1910.250905 | AR45: 5792.28613 | AS45: 4947.975629 | AT45: 250.5256402 | AU45: 274.2357038 | AV45: 4291.399178 | AW45: 3884.834812 | AX45: 394.277643 | AY45: 401.2941977 | AZ45: 1289.288648 | BA45: 1133.485201 | BB45: 1076.932728 | BC45: 655.4869481 | BD45: -13206.46763 | BE45: 14040.71426 | BF45: 834.714257
A46: 2010-02-01 | B46: 4562.457 | C46: 4212.546 | D46: 1698.946543 | E46: 3505.665422 | F46: 656.6805608 | G46: 138.737105 | H46: 276.4872879 | I46: 447.218513 | J46: 162.419785 | K46: 197.3569952 | L46: 1945.651566 | M46: 1285.166871 | N46: 8223.054141 | O46: 8314.307066 | P46: 26362.367 | Q46: 3369.76893 | R46: 22992.59807 | S46: 6293.921429 | T46: 10829.7009 | U46: -4535.779475 | V46: 1752.727413 | W46: 77.678386 | X46: 1675.049027 | Y46: 449.6797811 | Z46: 566.5572601 | AA46: -116.877479 | AB46: 490.9556924 | AC46: 423.3101693 | AD46: 67.64552306 | AE46: 1060.701914 | AF46: 2392.3386 | AG46: -1331.636686 | AH46: 36410.35323 | AI46: 17659.35425 | AJ46: 21707.10676 | AK46: 18750.86228 | AL46: 17650.8488 | AM46: 24001.36311 | AN46: -6350.514311 | AO46: 12400.34797 | AP46: 598.083458 | AQ46: 555.861023 | AR46: 4381.457978 | AS46: 4179.669404 | AT46: 429.002951 | AU46: 400.2697194 | AV46: 3233.076523 | AW46: 3118.293926 | AX46: 292.0569704 | AY46: 242.9626021 | AZ46: 1386.357888 | BA46: 670.7283292 | BB46: 1141.200115 | BC46: 1070.32949 | BD46: -11975.66687 | BE46: 12400.34797 | BF46: 424.6810986
A47: 2010-03-01 | B47: 7000.780672 | C47: 2452.342 | D47: 1728.192624 | E47: 4646.342244 | F47: 858.0621162 | G47: 226.9378838 | H47: 341.6784777 | I47: 594.3215223 | J47: 337.2744202 | K47: 97.72557982 | L47: 2583.058383 | M47: 1684.64021 | N47: 8374.221924 | O47: 9135.134244 | P47: 25813.83251 | Q47: 2632.92693 | R47: 23180.90558 | S47: 6713.608881 | T47: 10384.62508 | U47: -3671.016201 | V47: 1569.544969 | W47: 109.933157 | X47: 1459.611812 | Y47: 518.9173959 | Z47: 569.1423454 | AA47: -50.22494945 | AB47: 492.8162478 | AC47: 320.9515782 | AD47: 171.8646696 | AE47: 1424.276347 | AF47: 1800.021148 | AG47: -375.7448016 | AH47: 36532.99635 | AI47: 15817.60024 | AJ47: 22937.38819 | AK47: 20715.52516 | AL47: 18336.55005 | AM47: 25411.6119 | AN47: -7075.061847 | AO47: 13640.46331 | AP47: 676.076214 | AQ47: 1323.322914 | AR47: 5760.667853 | AS47: 6554.219958 | AT47: 663.7965482 | AU47: 386.7336588 | AV47: 4867.514442 | AW47: 5159.704608 | AX47: 202.8615497 | AY47: 349.7601676 | AZ47: 1350.221918 | BA47: 1456.083291 | BB47: 1347.427859 | BC47: 1127.36429 | BD47: -13464.09273 | BE47: 13640.46331 | BF47: 176.3705804
A48: 2010-04-01 | B48: 5048.943 | C48: 1733.791004 | D48: 1392.08505 | E48: 3977.963035 | F48: 812.4458353 | G48: 188.5541647 | H48: 253.2837467 | I48: 569.7162533 | J48: 377.960868 | K48: 82.03913195 | L48: 2079.124235 | M48: 2031.221199 | N48: 10602.31583 | O48: 11750.30071 | P48: 24666.98911 | Q48: 1933.065934 | R48: 22733.92317 | S48: 6272.806459 | T48: 10495.85857 | U48: -4223.052113 | V48: 1599.955503 | W48: 134.996021 | X48: 1464.959482 | Y48: 435.4132062 | Z48: 551.3698746 | AA48: -115.9566684 | AB48: 519.5767351 | AC48: 306.5369397 | AD48: 213.0397954 | AE48: 1608.588697 | AF48: 2506.079409 | AG48: -897.4907116 | AH48: 35103.32971 | AI48: 15927.90675 | AJ48: 22323.49091 | AK48: 19175.552 | AL48: 21090.1872 | AM48: 28119.17165 | AN48: -7028.984453 | AO48: 12146.56755 | AP48: 518.8358287 | AQ48: 1038.164171 | AR48: 5152.062357 | AS48: 4548.323636 | AT48: 676.4722499 | AU48: 436.5277501 | AV48: 4773.835194 | AW48: 4592.164806 | AX48: 182.4076193 | AY48: 376.5923807 | AZ48: 2230.009173 | BA48: 1035.527364 | BB48: 754.1095114 | BC48: 1118.744561 | BD48: -12311.63 | BE48: 12146.56755 | BF48: -165.062449
A49: 2010-05-01 | B49: 5517.196781 | C49: 5095.766472 | D49: 2466.484904 | E49: 3673.920119 | F49: 897.1894018 | G49: 197.8105982 | H49: 334.538769 | I49: 676.4612309 | J49: 282.4804925 | K49: 156.5195075 | L49: 2092.814616 | M49: 2040.410687 | N49: 10146.99942 | O49: 10866.3026 | P49: 25432.01694 | Q49: 5016.216353 | R49: 20415.80059 | S49: 7255.000298 | T49: 10172.36459 | U49: -2917.364288 | V49: 1684.584913 | W49: 183.7657582 | X49: 1500.819155 | Y49: 523.9539583 | Z49: 569.9317212 | AA49: -45.97776292 | AB49: 529.9704101 | AC49: 334.2341654 | AD49: 195.7362447 | AE49: 1121.66154 | AF49: 2721.707976 | AG49: -1600.046436 | AH49: 36547.18806 | AI49: 18998.22056 | AJ49: 23295.67419 | AK49: 17549.09654 | AL49: 23384.58933 | AM49: 29813.04678 | AN49: -6428.457449 | AO49: 11120.63909 | AP49: 2466.48238 | AQ49: 1083.51762 | AR49: 4595.807241 | AS49: 5236.497873 | AT49: 669.419153 | AU49: 583.580847 | AV49: 5520.932188 | AW49: 5161.067812 | AX49: 304.1488275 | AY49: 232.8511725 | AZ49: 1336.88749 | BA49: 1025.740436 | BB49: 1324.922244 | BC49: 1715.572286 | BD49: -11145.01277 | BE49: 11120.63909 | BF49: -24.37368126
A50: 2010-06-01 | B50: 6494.653348 | C50: 2523.413897 | D50: 1685.601842 | E50: 4032.638499 | F50: 954.3970417 | G50: 264.6029583 | H50: 306.62903 | I50: 511.2968313 | J50: 389.1948794 | K50: 106.3683193 | L50: 2784.648552 | M50: 1485.959797 | N50: 10496.82223 | O50: 12071.60919 | P50: 26942.44157 | Q50: 5510.220711 | R50: 21432.22086 | S50: 7177.709309 | T50: 9709.612222 | U50: -2531.902912 | V50: 1755.955265 | W50: 215.442386 | X50: 1540.512879 | Y50: 563.0303315 | Z50: 522.8257956 | AA50: 40.20453587 | AB50: 539.7404176 | AC50: 255.2767181 | AD50: 284.4636995 | AE50: 1526.676197 | AF50: 2322.460468 | AG50: -795.7842711 | AH50: 38505.55309 | AI50: 18535.8383 | AJ50: 23918.48367 | AK50: 19970.10958 | AL50: 24435.88816 | AM50: 30863.2951 | AN50: -6427.406941 | AO50: 13542.70264 | AP50: 798.9558 | AQ50: 2161.686769 | AR50: 4621.567135 | AS50: 5378.117425 | AT50: 523.2077448 | AU50: 508.7568552 | AV50: 5049.598313 | AW50: 5219.564687 | AX50: 175.4889884 | AY50: 231.6604166 | AZ50: 1210.381496 | BA50: 1254.041518 | BB50: 932.4077657 | BC50: 905.3516377 | BD50: -13475.91 | BE50: 13542.70264 | BF50: 66.792639
A51: 2010-07-01 | B51: 7853.099225 | C51: 3748.639343 | D51: 1137.766616 | E51: 5067.289334 | F51: 952.9795989 | G51: 261.3704011 | H51: 202.7486186 | I51: 756.2513814 | J51: 257.9110949 | K51: 284.0889051 | L51: 2712.68292 | M51: 1849.322318 | N51: 10293.07941 | O51: 9966.849644 | P51: 27088.56216 | Q51: 4969.834694 | R51: 22118.72746 | S51: 6477.44023 | T51: 10862.51762 | U51: -4385.07739 | V51: 1817.300348 | W51: 238.7001861 | X51: 1578.600162 | Y51: 432.9181791 | Z51: 517.4846571 | AA51: -84.56647796 | AB51: 492.1016492 | AC51: 339.267077 | AD51: 152.8345722 | AE51: 1478.982904 | AF51: 2774.792156 | AG51: -1295.809252 | AH51: 37787.30547 | AI51: 19702.59639 | AJ51: 22743.69857 | AK51: 18085.10387 | AL51: 25546.95025 | AM51: 29968.50875 | AN51: -4421.558494 | AO51: 13663.54538 | AP51: 546.6323473 | AQ51: 2184.626792 | AR51: 5099.71748 | AS51: 5295.269959 | AT51: 971.5694377 | AU51: 764.6974583 | AV51: 4732.585318 | AW51: 5078.897049 | AX51: 379.9563401 | AY51: 323.1831732 | AZ51: 1504.060598 | BA51: 951.7594166 | BB51: 1171.149796 | BC51: 952.4668945 | BD51: -14598.23939 | BE51: 13663.54538 | BF51: -934.694016
A52: 2010-08-01 | B52: 8152.332003 | C52: 6176.2025 | D52: 1560.88147 | E52: 5949.881168 | F52: 881.7674733 | G52: 608.3383847 | H52: 156.6375702 | I52: 694.4653775 | J52: 253.761 | K52: 284.2855003 | L52: 2396.014526 | M52: 2036.317558 | N52: 13603.94384 | O52: 11915.51106 | P52: 28288.82878 | Q52: 5482.840639 | R52: 22805.98814 | S52: 6440.067931 | T52: 11833.87421 | U52: -5393.806276 | V52: 1649.852101 | W52: 197.3717079 | X52: 1452.480393 | Y52: 387.5248249 | Z52: 645.3465501 | AA52: -257.8217251 | AB52: 531.5640642 | AC52: 322.292844 | AD52: 209.2712202 | AE52: 862.368229 | AF52: 2508.846432 | AG52: -1646.478203 | AH52: 38160.20593 | AI52: 20990.57238 | AJ52: 26539.22955 | AK52: 17170.02835 | AL52: 29612.43467 | AM52: 32335.43332 | AN52: -2722.998647 | AO52: 14447.0297 | AP52: 913.1210858 | AQ52: 1351.730931 | AR52: 6096.863728 | AS52: 6227.954407 | AT52: 1044.746003 | AU52: 775.2478605 | AV52: 5046.040209 | AW52: 5653.076951 | AX52: 413.949453 | AY52: 449.6481483 | AZ52: 2050.818153 | BA52: 1000.149869 | BB52: 1519.070735 | BC52: 1515.472867 | BD52: -14727.62 | BE52: 14447.0297 | BF52: -280.590302
A53: 2010-09-01 | B53: 6456.878175 | C53: 5369.766809 | D53: 987.4331403 | E53: 5574.953295 | F53: 606.7075147 | G53: 195.3065217 | H53: 157.2597021 | I53: 533.2488873 | J53: 188.1745734 | K53: 126.9990317 | L53: 2789.646262 | M53: 2832.208192 | N53: 11790.07634 | O53: 9289.201233 | P53: 26996.29278 | Q53: 4428.167088 | R53: 22568.1257 | S53: 6121.356335 | T53: 11974.25369 | U53: -5852.897358 | V53: 1756.951521 | W53: 202.467032 | X53: 1554.484489 | Y53: 291.6319219 | Z53: 664.2957428 | AA53: -372.6638209 | AB53: 458.2513823 | AC53: 262.2270057 | AD53: 196.0243766 | AE53: 801.3921299 | AF53: 2655.073978 | AG53: -1853.681849 | AH53: 36425.87607 | AI53: 20186.48454 | AJ53: 26752.50228 | AK53: 16239.05206 | AL53: 29989.93322 | AM53: 30083.93768 | AN53: -94.004458 | AO53: 16145.04761 | AP53: 295.3410769 | AQ53: 1551.974629 | AR53: 5570.53805 | AS53: 6370.3357 | AT53: 828.7154122 | AU53: 581.5201428 | AV53: 4142.655944 | AW53: 4837.622883 | AX53: 267.8310037 | AY53: 250.0422531 | AZ53: 2101.235054 | BA53: 883.5181925 | BB53: 1681.393927 | BC53: 1844.34282 | BD53: -15923 | BE53: 16145.04761 | BF53: 221.757605
A54: 2010-10-01 | B54: 8787.362837 | C54: 5444.465886 | D54: 1033.71169 | E54: 5493.998864 | F54: 304.8980905 | G54: 283.7255626 | H54: 343.1319226 | I54: 344.0531826 | J54: 314.9420066 | K54: 345.6529644 | L54: 2535.951968 | M54: 1997.53489 | N54: 12388.15446 | O54: 15998.52535 | P54: 27694.9805 | Q54: 3343.056419 | R54: 24351.92408 | S54: 5897.445933 | T54: 13174.584 | U54: -7277.138068 | V54: 1685.997003 | W54: 131.3192298 | X54: 1554.677773 | Y54: 373.7711405 | Z54: 680.9597494 | AA54: -307.1886089 | AB54: 563.9227068 | AC54: 422.8994053 | AD54: 141.0233015 | AE54: 635.8611869 | AF54: 2643.747925 | AG54: -2007.886738 | AH54: 36851.97847 | AI54: 20396.56673 | AJ54: 27763.3081 | AK54: 16455.07227 | AL54: 31872.43917 | AM54: 32854.78962 | AN54: -982.35045 | AO54: 15472.72182 | AP54: 471.0336063 | AQ54: 1709.01785 | AR54: 5842.17255 | AS54: 5493.890161 | AT54: 861.0991676 | AU54: 614.3222594 | AV54: 4124.229715 | AW54: 4802.225948 | AX54: 624.5868575 | AY54: 620.4132545 | AZ54: 1884.107338 | BA54: 1172.695635 | BB54: 1727.80817 | BC54: 1459.651353 | BD54: -16299.16949 | BE54: 15472.72182 | BF54: -826.4476669
A55: 2010-11-01 | B55: 6020.107147 | C55: 4074.275214 | D55: 1633.839065 | E55: 4918.336638 | F55: 596.3035037 | G55: 207.2725725 | H55: 229.0098379 | I55: 344.4668852 | J55: 326.9464844 | K55: 270.4503486 | L55: 2155.612296 | M55: 2347.208262 | N55: 13115.64671 | O55: 13917.7746 | P55: 27388.81197 | Q55: 3016.490261 | R55: 24372.32171 | S55: 5953.667462 | T55: 12846.61655 | U55: -6892.94909 | V55: 1780.182012 | W55: 122.0638242 | X55: 1658.118188 | Y55: 328.7651288 | Z55: 662.0805977 | AA55: -333.3154689 | AB55: 550.8304262 | AC55: 386.3711983 | AD55: 164.4592279 | AE55: 643.2243703 | AF55: 2524.847206 | AG55: -1881.622836 | AH55: 36645.48137 | AI55: 19558.46964 | AJ55: 26231.09706 | AK55: 17086.67227 | AL55: 31188.03799 | AM55: 32643.01668 | AN55: -1454.978691 | AO55: 15631.69358 | AP55: 1226.969162 | AQ55: 656.1372747 | AR55: 5985.545114 | AS55: 5834.0659 | AT55: 772.7429438 | AU55: 661.2149642 | AV55: 4917.244493 | AW55: 5312.503667 | AX55: 872.8352282 | AY55: 1036.811111 | AZ55: 2100.5672 | BA55: 1052.697526 | BB55: 1476.006288 | BC55: 1490.857919 | BD55: -15038.73069 | BE55: 15631.69358 | BF55: 592.9628929
A56: 2010-12-01 | B56: 6885.500538 | C56: 6082.401776 | D56: 1842.987269 | E56: 5802.888556 | F56: 601.6192073 | G56: 291.5627969 | H56: 131.0910666 | I56: 336.9307449 | J56: 295.1380398 | K56: 220.2305429 | L56: 3474.704993 | M56: 3743.477755 | N56: 13091.71192 | O56: 10199.13671 | P56: 27440.77808 | Q56: 3981.527661 | R56: 23459.25042 | S56: 6142.280216 | T56: 12902.70202 | U56: -6760.421803 | V56: 1863.439024 | W56: 138.5219391 | X56: 1724.917085 | Y56: 266.3011844 | Z56: 669.4982955 | AA56: -403.1971111 | AB56: 576.4798561 | AC56: 258.797553 | AD56: 317.6823031 | AE56: 563.2113592 | AF56: 2437.774542 | AG56: -1874.563183 | AH56: 36852.48972 | AI56: 20388.82201 | AJ56: 27417.10652 | AK56: 16463.63759 | AL56: 30417.33998 | AM56: 29997.56285 | AN56: 419.777131 | AO56: 16883.41472 | AP56: 861.8974286 | AQ56: 621.8703584 | AR56: 5779.851449 | AS56: 7912.950267 | AT56: 885.4242086 | AU56: 664.9103803 | AV56: 7085.859989 | AW56: 6369.890061 | AX56: 1149.967931 | AY56: 1255.077622 | AZ56: 484.4611853 | BA56: 1194.229541 | BB56: 2147.865423 | BC56: 2151.110851 | BD56: -16836.23654 | BE56: 16883.41472 | BF56: 47.17817812
A57: 2011-01-01 | B57: 8490.279641 | C57: 6278.056818 | D57: 2744.083423 | E57: 6052.326262 | F57: 764.161896 | G57: 214.0845316 | H57: 274.3129025 | I57: 253.8215198 | J57: 223.574 | K57: 214.7711571 | L57: 3052.716944 | M57: 2322.140874 | N57: 14064.85969 | O57: 18910.97864 | P57: 28318.011 | Q57: 4101.103 | R57: 24216.908 | S57: 7353.061993 | T57: 13867.73124 | U57: -6514.669244 | V57: 1989.112451 | W57: 167.438224 | X57: 1821.674227 | Y57: 337.5671972 | Z57: 471.8686222 | AA57: -134.301425 | AB57: 575.6474459 | AC57: 306.9162025 | AD57: 268.7312434 | AE57: 1528.044793 | AF57: 2724.345295 | AG57: -1196.300502 | AH57: 40101.44488 | AI57: 21639.40258 | AJ57: 29031.17594 | AK57: 18462.01218 | AL57: 34371.88355 | AM57: 36860.18637 | AN57: -2488.302812 | AO57: 15973.70937 | AP57: 1085.268376 | AQ57: 1476.008034 | AR57: 7356.822517 | AS57: 5326.854279 | AT57: 549.4795234 | AU57: 362.0629835 | AV57: 4895.738611 | AW57: 4654.747286 | AX57: 875.7277966 | AY57: 911.9835924 | AZ57: 1742.87232 | BA57: 2901.256594 | BB57: 1994.679941 | BC57: 1906.797129 | BD57: -15899.57257 | BE57: 15973.70937 | BF57: 74.13679826
A58: 2011-02-01 | B58: 6984.961915 | C58: 5538.081026 | D58: 1504.114723 | E58: 4548.744492 | F58: 553.892835 | G58: 233.202081 | H58: 127.402156 | I58: 251.0444461 | J58: 194.3849905 | K58: 85.64244046 | L58: 1876.891714 | M58: 1636.689488 | N58: 12257.58882 | O58: 13753.0913 | P58: 28445.21288 | Q58: 4268.297 | R58: 24176.91588 | S58: 7264.383035 | T58: 14297.01826 | U58: -7032.635224 | V58: 2036.210387 | W58: 146.3656982 | X58: 1889.844689 | Y58: 270.5444398 | Z58: 391.1207143 | AA58: -120.5762745 | AB58: 586.8549815 | AC58: 197.627465 | AD58: 389.2275165 | AE58: 1479.889956 | AF58: 2415.662873 | AG58: -935.7729165 | AH58: 40083.09568 | AI58: 21716.09201 | AJ58: 28132.40442 | AK58: 18366.8777 | AL58: 32357.79213 | AM58: 34521.54476 | AN58: -2163.752636 | AO58: 16203.12506 | AP58: 1336.197189 | AQ58: 1030.549482 | AR58: 5414.496359 | AS58: 4328.757676 | AT58: 309.4927166 | AU58: 252.0181559 | AV58: 3620.491235 | AW58: 3694.443153 | AX58: 1154.438318 | AY58: 1307.593753 | AZ58: 890.5910446 | BA58: 2950.118373 | BB58: 2493.135864 | BC58: 2197.199089 | BD58: -16450.52652 | BE58: 16203.12506 | BF58: -247.4014551
A59: 2011-03-01 | B59: 9383.193984 | C59: 7583.0385 | D59: 1852.238865 | E59: 4213.363733 | F59: 601.7754462 | G59: 265.9801122 | H59: 265.5964495 | I59: 357.5444472 | J59: 363.659346 | K59: 145.8008282 | L59: 1936.95819 | M59: 2032.638375 | N59: 16213.91887 | O59: 18600.05942 | P59: 28440.4526 | Q59: 5176.2655 | R59: 23264.1871 | S59: 7106.159678 | T59: 13173.34578 | U59: -6067.186098 | V59: 2002.006746 | W59: 132.5982701 | X59: 1869.408476 | Y59: 325.7763802 | Z59: 398.4434625 | AA59: -72.66708227 | AB59: 637.998298 | AC59: 197.46626 | AD59: 440.532038 | AE59: 1341.191817 | AF59: 2412.868441 | AG59: -1071.676624 | AH59: 39853.58552 | AI59: 21490.98771 | AJ59: 33332.47645 | AK59: 18362.70877 | AL59: 34675.20619 | AM59: 37547.62817 | AN59: -2872.421979 | AO59: 15490.28679 | AP59: 3009.884677 | AQ59: 2156.027813 | AR59: 6225.670491 | AS59: 6298.144309 | AT59: 480.2199401 | AU59: 292.6759851 | AV59: 5791.423035 | AW59: 5867.457835 | AX59: 1435.798559 | AY59: 1266.404635 | AZ59: 1620.839737 | BA59: 2947.708372 | BB59: 2127.296827 | BC59: 1316.399419 | BD59: -15931.42629 | BE59: 15490.28679 | BF59: -441.1395007
A60: 2011-04-01 | B60: 8479.124156 | C60: 5724.854775 | D60: 1925.218286 | E60: 5249.774591 | F60: 590.7201271 | G60: 183.2902398 | H60: 220.8977368 | I60: 445.1000107 | J60: 270.655 | K60: 303.9514792 | L60: 2047.243547 | M60: 2272.037165 | N60: 15684.21553 | O60: 17025.52551 | P60: 28816.8384 | Q60: 4654.129687 | R60: 24162.70872 | S60: 7107.231958 | T60: 13768.82155 | U60: -6661.589596 | V60: 2056.752271 | W60: 202.734599 | X60: 1854.017672 | Y60: 326.3369186 | Z60: 473.5180426 | AA60: -147.181124 | AB60: 686.7267252 | AC60: 281.8608417 | AD60: 404.8658835 | AE60: 1062.768058 | AF60: 2615.190256 | AG60: -1552.422198 | AH60: 40056.65433 | AI60: 21996.25498 | AJ60: 34014.03329 | AK60: 18060.0103 | AL60: 33439.94486 | AM60: 34707.08825 | AN60: -1267.143395 | AO60: 16792.86691 | AP60: 1408.802458 | AQ60: 1111.620136 | AR60: 6497.071724 | AS60: 5495.540632 | AT60: 565.9798103 | AU60: 267.8793756 | AV60: 4596.39733 | AW60: 4934.25634 | AX60: 1821.391787 | AY60: 1752.292632 | AZ60: 1998.8457 | BA60: 3479.323189 | BB60: 1304.673224 | BC60: 1174.659291 | BD60: -15861.45019 | BE60: 16792.86691 | BF60: 931.4167122
A61: 2011-05-01 | B61: 8780.712785 | C61: 6830.3125 | D61: 1947.643026 | E61: 4977.267456 | F61: 512.134464 | G61: 260.636099 | H61: 359.5999854 | I61: 517.9512623 | J61: 268.1144615 | K61: 427.6526748 | L61: 2967.274911 | M61: 2426.96978 | N61: 18399.74429 | O61: 19733.70825 | P61: 29224.48491 | Q61: 4860.538687 | R61: 24363.94622 | S61: 6879.838377 | T61: 13728.15222 | U61: -6848.313841 | V61: 1991.1335 | W61: 174.815017 | X61: 1816.318483 | Y61: 390.8276789 | Z61: 477.3167931 | AA61: -86.48911416 | AB61: 641.9834507 | AC61: 317.7939916 | AD61: 324.1894591 | AE61: 1454.580063 | AF61: 2525.565694 | AG61: -1070.98563 | AH61: 40582.84798 | AI61: 22084.1824 | AJ61: 36067.34504 | AK61: 18498.27653 | AL61: 36194.70562 | AM61: 37826.3805 | AN61: -1631.674881 | AO61: 16866.60165 | AP61: 1806.033663 | AQ61: 1935.115222 | AR61: 8209.571041 | AS61: 8065.83844 | AT61: 393.946912 | AU61: 290.3851241 | AV61: 6610.610328 | AW61: 7350.716762 | AX61: 2628.851334 | AY61: 2499.260553 | AZ61: 1677.001868 | BA61: 2351.671937 | BB61: 2698.680055 | BC61: 1712.224038 | BD61: -16200.95534 | BE61: 16866.60165 | BF61: 665.6463046
A62: 2011-06-01 | B62: 6544.480601 | C62: 7170.032607 | D62: 2049.096589 | E62: 4976.098888 | F62: 380.0488638 | G62: 236.9298383 | H62: 271.1241257 | I62: 468.0033281 | J62: 291.5908526 | K62: 323.1831416 | L62: 1880.489632 | M62: 1754.977297 | N62: 15417.03184 | O62: 18763.4734 | P62: 28769.10701 | Q62: 6578.938294 | R62: 22190.16872 | S62: 7087.319853 | T62: 13152.95903 | U62: -6065.639181 | V62: 2119.427703 | W62: 237.0263873 | X62: 1882.401316 | Y62: 298.1881788 | Z62: 360.8306807 | AA62: -62.64250187 | AB62: 630.2043122 | AC62: 306.8426127 | AD62: 323.3616995 | AE62: 1386.082873 | AF62: 2387.583712 | AG62: -1001.500839 | AH62: 40290.32993 | AI62: 23024.18072 | AJ62: 36734.04923 | AK62: 17266.02591 | AL62: 33553.01923 | AM62: 35760.59773 | AN62: -2207.578509 | AO62: 15058.4474 | AP62: 2088.667472 | AQ62: 742.127006 | AR62: 7592.327315 | AS62: 8967.56653 | AT62: 354.9301691 | AU62: 240.6303823 | AV62: 6616.642023 | AW62: 7793.892777 | AX62: 2640.451554 | AY62: 2417.550281 | AZ62: 1663.012688 | BA62: 286.5218657 | BB62: 2403.027392 | BC62: 1561.907883 | BD62: -14772 | BE62: 15058.4474 | BF62: 286.447404
A63: 2011-07-01 | B63: 6282.264138 | C63: 7143.120588 | D63: 1303.371929 | E63: 5685.515021 | F63: 475.1746742 | G63: 218.3038438 | H63: 284.7682489 | I63: 355.5494259 | J63: 296.2871033 | K63: 141.9637081 | L63: 2042.942835 | M63: 2020.676139 | N63: 16639.40134 | O63: 16269.3384 | P63: 27748.34449 | Q63: 7959.573343 | R63: 19788.77114 | S63: 6567.414578 | T63: 13654.12632 | U63: -7086.711743 | V63: 2127.513244 | W63: 271.381335 | X63: 1856.131909 | Y63: 278.1325412 | Z63: 291.6110515 | AA63: -13.47851032 | AB63: 635.9413039 | AC63: 318.3164026 | AD63: 317.6249013 | AE63: 1322.372703 | AF63: 2143.811497 | AG63: -821.4387941 | AH63: 38679.71886 | AI63: 24638.81995 | AJ63: 35747.69002 | AK63: 14040.77561 | AL63: 34642.16795 | AM63: 33940.37086 | AN63: 701.797089 | AO63: 14742.5727 | AP63: 2595.547117 | AQ63: 560.0181805 | AR63: 6979.783186 | AS63: 7273.410834 | AT63: 419.868173 | AU63: 233.0336249 | AV63: 6604.613941 | AW63: 6478.11775 | AX63: 596.0402218 | AY63: 441.4428752 | AZ63: 492.4863917 | BA63: 2847.922746 | BB63: 1634.443564 | BC63: 1498.641324 | BD63: -14793 | BE63: 14742.5727 | BF63: -50.4273
A64: 2011-08-01 | B64: 8779.1288 | C64: 11447.28384 | D64: 2545.803202 | E64: 4137.887822 | F64: 704.8984471 | G64: 303.5048769 | H64: 393.2227688 | I64: 318.92893 | J64: 374.344249 | K64: 273.417453 | L64: 2430.598378 | M64: 1650.339621 | N64: 15789.93151 | O64: 18003.13988 | P64: 26899.06447 | Q64: 11373.52904 | R64: 15525.53542 | S64: 7470.53914 | T64: 12628.38314 | U64: -5157.843996 | V64: 2121.169195 | W64: 323.7119211 | X64: 1797.457274 | Y64: 279.4630696 | Z64: 233.901228 | AA64: 45.56184155 | AB64: 768.317353 | AC64: 431.0721555 | AD64: 337.2451976 | AE64: 1572.287063 | AF64: 1956.24869 | AG64: -383.9616271 | AH64: 39110.84029 | AI64: 26946.84617 | AJ64: 37510.959 | AK64: 12164.29241 | AL64: 33977.94936 | AM64: 34305.9356 | AN64: -327.98624 | AO64: 11836.30617 | AP64: 5222.889333 | AQ64: 1136.902369 | AR64: 7332.739583 | AS64: 7538.36827 | AT64: 348.0268148 | AU64: 301.3496505 | AV64: 7435.155122 | AW64: 7944.242598 | AX64: 657.217448 | AY64: 316.2061216 | AZ64: 1471.775524 | BA64: 2286.815576 | BB64: 1514.068746 | BC64: 1803.61053 | BD64: -12155 | BE64: 11836.30617 | BF64: -318.693834
A65: 2011-09-01 | B65: 9932.434244 | C65: 8595.316656 | D65: 4281.800056 | E65: 4650.376173 | F65: 784.4642867 | G65: 341.6249823 | H65: 456.7182173 | I65: 313.8167061 | J65: 238.6972122 | K65: 235.6787107 | L65: 2614.336902 | M65: 2051.274013 | N65: 13551.75814 | O65: 18988.88666 | P65: 24262.92081 | Q65: 10354.32019 | R65: 13908.60062 | S65: 9565.671058 | T65: 11985.19537 | U65: -2419.524308 | V65: 2060.851505 | W65: 258.8515052 | X65: 1802 | Y65: 456.925051 | Z65: 276.851673 | AA65: 180.073378 | AB65: 572.211413 | AC65: 394.6396841 | AD65: 177.5717289 | AE65: 2510.395933 | AF65: 1701.839022 | AG65: 808.5569109 | AH65: 39428.97577 | AI65: 24971.69744 | AJ65: 38089.42609 | AK65: 14456.84077 | AL65: 29848.58863 | AM65: 35112.67667 | AN65: -5264.088032 | AO65: 9192.752735 | AP65: 3409.319967 | AQ65: 1162.916782 | AR65: 9916.392346 | AS65: 9736.909968 | AT65: 280.5194282 | AU65: 316.0265292 | AV65: 6572.006888 | AW65: 7038.433972 | AX65: 470.1338685 | AY65: 269.3720618 | AZ65: 1873.220277 | BA65: 265.2766412 | BB65: 2740.919398 | BC65: 3248.003358 | BD65: -8891 | BE65: 9192.752735 | BF65: 301.752735
A66: 2011-10-01 | B66: 9838.546562 | C66: 7978.991531 | D66: 2342.635604 | E66: 5290.844004 | F66: 703.3411543 | G66: 305.8380847 | H66: 217.7356359 | I66: 251.8361505 | J66: 249.320906 | K66: 166.3252299 | L66: 2860.733191 | M66: 2776.726767 | N66: 16605.92501 | O66: 17221.86943 | P66: 23181.90991 | Q66: 9087.400156 | R66: 14094.50975 | S66: 9905.018104 | T66: 12217.95387 | U66: -2312.935763 | V66: 2166.47481 | W66: 315.7099315 | X66: 1850.764878 | Y66: 394.1989258 | Z66: 291.8705786 | AA66: 102.3283472 | AB66: 548.8506611 | AC66: 397.232914 | AD66: 151.6177471 | AE66: 2243.752059 | AF66: 1391.393253 | AG66: 852.3588066 | AH66: 38440.20447 | AI66: 23701.5607 | AJ66: 35918.09741 | AK66: 14738.28622 | AL66: 31739.50536 | AM66: 35408.70596 | AN66: -3669.200603 | AO66: 11069.08561 | AP66: 2499.620477 | AQ66: 2855.579999 | AR66: 8315.846511 | AS66: 9517.968564 | AT66: 303.8385878 | AU66: 236.0712254 | AV66: 6530.169957 | AW66: 6239.479013 | AX66: 273.8535085 | AY66: 171.5088113 | AZ66: 2707.811814 | BA66: 3049.445706 | BB66: 1795.41124 | BC66: 1596.546695 | BD66: -10062 | BE66: 11069.08561 | BF66: 1007.085613
A67: 2011-11-01 | B67: 10333.0134 | C67: 7885.841175 | D67: 2425.862011 | E67: 4707.051541 | F67: 860.5630892 | G67: 323.4042158 | H67: 331.4078952 | I67: 228.9164391 | J67: 170.9641501 | K67: 362.5935563 | L67: 2576.971967 | M67: 2060.688071 | N67: 13184.14124 | O67: 15575.54417 | P67: 23308.82184 | Q67: 9088.934375 | R67: 14219.88747 | S67: 10225.20025 | T67: 12385.20045 | U67: -2160.0002 | V67: 2297.917267 | W67: 269.9172666 | X67: 2028 | Y67: 468.2497988 | Z67: 313.2497988 | AA67: 155 | AB67: 546.0908656 | AC67: 373.0908656 | AD67: 173 | AE67: 2497.052886 | AF67: 1718.800031 | AG67: 778.252855 | AH67: 39343.33291 | AI67: 24149.19279 | AJ67: 36795.91813 | AK67: 15194.31138 | AL67: 29525.19035 | AM67: 34422.66621 | AN67: -4897.475863 | AO67: 10296.83552 | AP67: 1440.204073 | AQ67: 1850.449176 | AR67: 6622.608723 | AS67: 6319.748597 | AT67: 265.3836793 | AU67: 350.4747631 | AV67: 6489.879311 | AW67: 6469.177559 | AX67: 597.7912263 | AY67: 539.1557397 | AZ67: 1940.821789 | BA67: 2358.328503 | BB67: 1676.172439 | BC67: 1191.68523 | BD67: -10110 | BE67: 10296.83552 | BF67: 186.8355195
A68: 2011-12-01 | B68: 7460.38149 | C68: 5561.8612 | D68: 2189.431827 | E68: 5100.855945 | F68: 669.8582453 | G68: 289.1890845 | H68: 220.1847409 | I68: 228.2289341 | J68: 221.28909 | K68: 241.834155 | L68: 2701.119012 | M68: 1907.110004 | N68: 12180.19635 | O68: 13905.19301 | P68: 21117.12006 | Q68: 7271.2772 | R68: 13845.84286 | S68: 9763.799839 | T68: 10981.32305 | U68: -1217.523208 | V68: 2088.385229 | W68: 245.3852285 | X68: 1843 | Y68: 384.1476896 | Z68: 288.506301 | AA68: 95.64138857 | AB68: 487.14501 | AC68: 310.6572057 | AD68: 176.4878043 | AE68: 3173.464313 | AF68: 2068.191678 | AG68: 1105.272635 | AH68: 37014.06214 | AI68: 21165.34066 | AJ68: 32295.5083 | AK68: 15848.72147 | AL68: 27389.56575 | AM68: 33755.76712 | AN68: -6366.201374 | AO68: 9482.520101 | AP68: 2069.898243 | AQ68: 2316.139895 | AR68: 7430.975598 | AS68: 8159.497497 | AT68: 300.8869619 | AU68: 188.305078 | AV68: 6550.026604 | AW68: 6428.651976 | AX68: 498.8410632 | AY68: 425.2988034 | AZ68: 2670.611013 | BA68: 2788.177243 | BB68: 2569.705371 | BC68: 1452.83278 | BD68: -9850.06 | BE68: 9482.520101 | BF68: -367.5398994
A69: 2012-01-01 | B69: 10051.92163 | C69: 7807.07 | D69: 2278.537935 | E69: 5611.938114 | F69: 780.467072 | G69: 260.535305 | H69: 183.1919212 | I69: 328.8246633 | J69: 182.2876462 | K69: 98.4857528 | L69: 2518.945582 | M69: 2381.984463 | N69: 13248.45716 | O69: 15144.95457 | P69: 21076.8563 | Q69: 6696.957 | R69: 14379.8993 | S69: 9930.712988 | T69: 12182.84502 | U69: -2252.132035 | V69: 2159.982701 | W69: 249.0120918 | X69: 1910.970609 | Y69: 305.9193213 | Z69: 357.444995 | AA69: -51.52567365 | AB69: 514.3952569 | AC69: 255.3952569 | AD69: 259 | AE69: 3221.322993 | AF69: 2445.097244 | AG69: 776.2257492 | AH69: 37209.18956 | AI69: 22186.75161 | AJ69: 32983.27728 | AK69: 15022.43795 | AL69: 29621.44353 | AM69: 34705.18553 | AN69: -5083.741997 | AO69: 9938.695953 | AP69: 1066.173874 | AQ69: 2078.305258 | AR69: 7007.121757 | AS69: 7185.801041 | AT69: 184.967909 | AU69: 241.059111 | AV69: 6388.384271 | AW69: 5833.472349 | AX69: 202.4734066 | AY69: 238.2381999 | AZ69: 1591.134788 | BA69: 2342.819776 | BB69: 1857.494872 | BC69: 1635.552518 | BD69: -11089.76692 | BE69: 9938.695953 | BF69: -1151.070971
A70: 2012-02-01 | B70: 8491.674204 | C70: 6499.508469 | D70: 1152.475731 | E70: 4174.292855 | F70: 768.684556 | G70: 267.852276 | H70: 136.4623733 | I70: 167.990767 | J70: 168.7796213 | K70: 88.76827438 | L70: 3515.876597 | M70: 2162.029258 | N70: 13935.33609 | O70: 15225.15981 | P70: 21696.87497 | Q70: 6972.729283 | R70: 14724.14568 | S70: 9281.656608 | T70: 12283.00538 | U70: -3001.348774 | V70: 2189.397971 | W70: 255.3979708 | X70: 1934 | Y70: 220.3415473 | Z70: 304.4062684 | AA70: -84.06472106 | AB70: 494.8945263 | AC70: 217.5169265 | AD70: 277.3775998 | AE70: 3582.383117 | AF70: 2416.123109 | AG70: 1166.260008 | AH70: 37465.54874 | AI70: 22449.17894 | AJ70: 32392.79544 | AK70: 15016.46071 | AL70: 31057.29171 | AM70: 35383.65743 | AN70: -4326.365713 | AO70: 10690.095 | AP70: 1334.435437 | AQ70: 1390.536711 | AR70: 6312.185162 | AS70: 6281.3486 | AT70: 121.742571 | AU70: 116.2272586 | AV70: 5310.743179 | AW70: 4990.675061 | AX70: 194.3517261 | AY70: 221.1505678 | AZ70: 1980.308934 | BA70: 3065.896455 | BB70: 1901.023856 | BC70: 1584.492683 | BD70: -11618.57025 | BE70: 10690.095 | BF70: -928.4752503
A71: 2012-03-01 | B71: 9240.562995 | C71: 6171.31239 | D71: 2105.756248 | E71: 4699.477194 | F71: 815.927353 | G71: 268.898901 | H71: 262.6555002 | I71: 201.9689701 | J71: 264.9622309 | K71: 56.30011937 | L71: 5126.840419 | M71: 2974.384529 | N71: 14153.42253 | O71: 17746.67809 | P71: 22257.56888 | Q71: 6256.5945 | R71: 16000.97438 | S71: 9394.30276 | T71: 12207.74904 | U71: -2813.446281 | V71: 2223.826511 | W71: 233.9050538 | X71: 1989.921457 | Y71: 263.8863995 | Z71: 304.3713229 | AA71: -40.48492341 | AB71: 524.9328899 | AC71: 161.0991815 | AD71: 363.8337084 | AE71: 4351.60568 | AF71: 2521.605261 | AG71: 1830.000419 | AH71: 39016.12312 | AI71: 21685.32436 | AJ71: 33951.07581 | AK71: 17330.79875 | AL71: 30235.38575 | AM71: 36941.938 | AN71: -6706.552255 | AO71: 10624.2465 | AP71: 816.0820363 | AQ71: 2730.260647 | AR71: 8582.144433 | AS71: 8383.43628 | AT71: 202.7507105 | AU71: 199.6895366 | AV71: 5497.438125 | AW71: 5186.856285 | AX71: 171.6798368 | AY71: 261.9261136 | AZ71: 2489.937304 | BA71: 1422.798941 | BB71: 3480.424196 | BC71: 2909.19937 | BD71: -11353.71959 | BE71: 10624.2465 | BF71: -729.4730889
A72: 2012-04-01 | B72: 7229.61951 | C72: 6522.744821 | D72: 1566.858147 | E72: 4624.801343 | F72: 651.7919076 | G72: 212.7244384 | H72: 174.81176 | I72: 201.6958291 | J72: 156.770095 | K72: 64.04 | L72: 2324.438696 | M72: 2524.993569 | N72: 11186.18048 | O72: 14605.41522 | P72: 21252.83665 | Q72: 6241.8945 | R72: 15010.94215 | S72: 9146.927168 | T72: 12292.59884 | U72: -3145.671671 | V72: 2182.326768 | W72: 158.2616144 | X72: 2024.065154 | Y72: 217.4678763 | Z72: 297.5347404 | AA72: -80.06686408 | AB72: 517.1064316 | AC72: 160.1064316 | AD72: 357 | AE72: 3603.650516 | AF72: 2704.643785 | AG72: 899.0067312 | AH72: 36920.31541 | AI72: 21855.03991 | AJ72: 33800.50852 | AK72: 15065.2755 | AL72: 28971.40234 | AM72: 35845.9449 | AN72: -6874.542563 | AO72: 8190.732932 | AP72: 1806.926368 | AQ72: 1219.166397 | AR72: 7826.324844 | AS72: 7406.174474 | AT72: 179.388186 | AU72: 238.4509588 | AV72: 5587.947382 | AW72: 5421.634738 | AX72: 133.9220974 | AY72: 164.5884671 | AZ72: 2077.527472 | BA72: 1743.916475 | BB72: 1945.414444 | BC72: 1351.37225 | BD72: -9456.308797 | BE72: 8190.732932 | BF72: -1265.575868
A73: 2012-05-01 | B73: 9829.223106 | C73: 7672.573106 | D73: 3905.201482 | E73: 5190.283352 | F73: 701.6700888 | G73: 307.7130842 | H73: 427.7502802 | I73: 268.6132098 | J73: 169.3661384 | K73: 188.5410948 | L73: 5922.68407 | M73: 3129.329528 | N73: 13261.23585 | O73: 19525.21219 | P73: 22188.34312 | Q73: 7561.869503 | R73: 14626.47361 | S73: 10991.83789 | T73: 12453.99955 | U73: -1462.16166 | V73: 2407.531886 | W73: 191.1977324 | X73: 2216.334154 | Y73: 443.1201378 | Z73: 370.5672585 | AA73: 72.55287926 | AB73: 505.4392924 | AC73: 249.4392924 | AD73: 256 | AE73: 5629.593498 | AF73: 2155.201848 | AG73: 3474.39165 | AH73: 42165.86582 | AI73: 22982.27518 | AJ73: 38716.871 | AK73: 19183.59064 | AL73: 31588.37241 | AM73: 42471.61537 | AN73: -10883.24296 | AO73: 8300.347675 | AP73: 1736.310088 | AQ73: 1339.650908 | AR73: 8430.884569 | AS73: 7418.17722 | AT73: 259.0112657 | AU73: 264.1717012 | AV73: 7125.834447 | AW73: 7334.150413 | AX73: 199.0596761 | AY73: 97.78224972 | AZ73: 2773.067055 | BA73: 3020.245169 | BB73: 2462.990842 | BC73: 2544.431946 | BD73: -8478.453387 | BE73: 8300.347675 | BF73: -178.1057253
A74: 2012-06-01 | B74: 8715.55058 | C74: 7871.121092 | D74: 2150.609188 | E74: 4893.958116 | F74: 742.5260867 | G74: 375.8915213 | H74: 212.0648631 | I74: 252.4440452 | J74: 215.3283954 | K74: 106.1570698 | L74: 4984.277109 | M74: 2954.726459 | N74: 16511.84798 | O74: 20992.1429 | P74: 21342.95716 | Q74: 7567.8207 | R74: 13775.13646 | S74: 10794.9009 | T74: 12038.5674 | U74: -1243.666503 | V74: 2427.348176 | W74: 170.1566357 | X74: 2257.19154 | Y74: 375.3889611 | Z74: 374.7557691 | AA74: 0.63319196 | AB74: 530.3245647 | AC74: 224.7106568 | AD74: 305.6139079 | AE74: 5689.29553 | AF74: 2749.306286 | AG74: 2939.989244 | AH74: 41160.21529 | AI74: 23125.31745 | AJ74: 37554.40374 | AK74: 18034.89784 | AL74: 31552.26759 | AM74: 42477.69478 | AN74: -10925.42718 | AO74: 7109.470654 | AP74: 1831.902587 | AQ74: 1591.027554 | AR74: 7430.245635 | AS74: 8661.197504 | AT74: 300.2792325 | AU74: 307.1682604 | AV74: 8439.267629 | AW74: 8824.258621 | AX74: 263.8589788 | AY74: 213.2133711 | AZ74: 3446.561135 | BA74: 2250.928711 | BB74: 3558.26103 | BC74: 3345.920216 | BD74: -8114.574 | BE74: 7109.470654 | BF74: -1005.103346
A75: 2012-07-01 | B75: 9892.731937 | C75: 7799.53456 | D75: 2055.318946 | E75: 5224.330662 | F75: 862.9606641 | G75: 405.951296 | H75: 205.9993704 | I75: 276.5047242 | J75: 133.2456383 | K75: 117.5221241 | L75: 3630.808168 | M75: 2841.055571 | N75: 14956.52152 | O75: 17406.22753 | P75: 21520.75488 | Q75: 7405.381084 | R75: 14115.3738 | S75: 10295.74874 | T75: 12498.15314 | U75: -2202.404402 | V75: 2494.287292 | W75: 210.1127204 | X75: 2284.174572 | Y75: 338.0011695 | Z75: 407.2644197 | AA75: -69.26325015 | AB75: 504.8445647 | AC75: 226.9203553 | AD75: 277.9242094 | AE75: 5564.747299 | AF75: 2334.485874 | AG75: 3230.261426 | AH75: 40718.38395 | AI75: 23082.31759 | AJ75: 38181.92015 | AK75: 17636.06635 | AL75: 32310.88847 | AM75: 42112.88615 | AN75: -9801.99768 | AO75: 7834.068674 | AP75: 2134.523439 | AQ75: 1940.022151 | AR75: 8096.476272 | AS75: 8577.684359 | AT75: 218.884173 | AU75: 345.0511236 | AV75: 6211.275808 | AW75: 6893.287662 | AX75: 140.6252272 | AY75: 146.7159663 | AZ75: 1841.826532 | BA75: 1899.953995 | BB75: 2790.267395 | BC75: 2038.24873 | BD75: -8776.7 | BE75: 7834.068674 | BF75: -942.6313259
A76: 2012-08-01 | B76: 8747.546287 | C76: 6298.646287 | D76: 1695.382021 | E76: 5738.633058 | F76: 783.9419545 | G76: 358.3693039 | H76: 205.5070758 | I76: 279.819448 | J76: 211.110262 | K76: 150.1415336 | L76: 6778.545708 | M76: 4650.573037 | N76: 15721.23713 | O76: 19452.48392 | P76: 20519.80392 | Q76: 5935.334072 | R76: 14584.46985 | S76: 9485.66818 | T76: 13097.34205 | U76: -3611.673873 | V76: 2478.634698 | W76: 206.2750373 | X76: 2272.359661 | Y76: 275.9154718 | Z76: 396.8044923 | AA76: -120.8890205 | AB76: 496.1169951 | AC76: 152.1490001 | AD76: 343.967995 | AE76: 7465.215721 | AF76: 4842.37547 | AG76: 2622.840251 | AH76: 40721.35499 | AI76: 24630.28012 | AJ76: 36516.32088 | AK76: 16091.07486 | AL76: 30343.28779 | AM76: 40457.15532 | AN76: -10113.86753 | AO76: 5977.207334 | AP76: 1378.353209 | AQ76: 1607.11608 | AR76: 10545.32645 | AS76: 8775.979125 | AT76: 193.0006254 | AU76: 155.0817504 | AV76: 5993.879738 | AW76: 6633.344599 | AX76: 174.9415908 | AY76: 171.4868192 | AZ76: 3021.80451 | BA76: 3251.082112 | BB76: 2071.874208 | BC76: 1674.728529 | BD76: -7696.22 | BE76: 5977.207334 | BF76: -1719.012666
A77: 2012-09-01 | B77: 9174.0721 | C77: 8129.341397 | D77: 1890.265363 | E77: 5576.731297 | F77: 570.3912673 | G77: 241.014 | H77: 151.6698615 | I77: 182.1619882 | J77: 276.2704376 | K77: 194.6315415 | L77: 4074.11988 | M77: 1854.664819 | N77: 14221.37314 | O77: 16301.20249 | P77: 20143.32077 | Q77: 6641.300362 | R77: 13502.02041 | S77: 9531.272175 | T77: 13790.22429 | U77: -4258.952115 | V77: 2495.470631 | W77: 206.6340524 | X77: 2288.836578 | Y77: 219.4124776 | Z77: 307.6483953 | AA77: -88.23591776 | AB77: 526.9618177 | AC77: 195.2910721 | AD77: 331.6707455 | AE77: 6788.550475 | AF77: 3417.67388 | AG77: 3370.876595 | AH77: 39704.98835 | AI77: 24558.77205 | AJ77: 36331.21478 | AK77: 15146.2163 | AL77: 31814.91966 | AM77: 39897.92178 | AN77: -8083.002122 | AO77: 7063.214175 | AP77: 1389.724249 | AQ77: 1657.724194 | AR77: 8404.667799 | AS77: 7695.499195 | AT77: 153.6511418 | AU77: 197.4107248 | AV77: 4673.758401 | AW77: 5366.540191 | AX77: 219.9101541 | AY77: 239.8191469 | AZ77: 967.376267 | BA77: 941.8426609 | BB77: 2233.36339 | BC77: 1837.943675 | BD77: -7572.678906 | BE77: 7063.214175 | BF77: -509.4647307
A78: 2012-10-01 | B78: 12841.6572 | C78: 10043.8072 | D78: 3406.625036 | E78: 7504.194673 | F78: 673.7913568 | G78: 307.4722873 | H78: 234.2722565 | I78: 251.2460721 | J78: 154.2973808 | K78: 76.14488362 | L78: 4623.158865 | M78: 1929.531655 | N78: 18809.48439 | O78: 22967.56887 | P78: 21943.13557 | Q78: 7015.6575 | R78: 14927.47807 | S78: 9317.591371 | T78: 13669.75188 | U78: -4352.160507 | V78: 2447.529452 | W78: 154.5397905 | X78: 2292.989662 | Y78: 253.0609773 | Z78: 306.6882876 | AA78: -53.62731025 | AB78: 504.4344811 | AC78: 128.7963037 | AD78: 375.6381773 | AE78: 5861.657453 | AF78: 2392.751365 | AG78: 3468.906088 | AH78: 40327.40931 | AI78: 23668.18512 | AJ78: 35696.62212 | AK78: 16659.22418 | AL78: 34106.3858 | AM78: 42656.83127 | AN78: -8550.445462 | AO78: 8108.778719 | AP78: 877.8600876 | AQ78: 2191.110111 | AR78: 9513.063395 | AS78: 9496.902114 | AT78: 203.2813464 | AU78: 240.6372398 | AV78: 7645.567825 | AW78: 7960.219973 | AX78: 438.4601052 | AY78: 371.8683125 | AZ78: 1388.186 | BA78: 1371.974934 | BB78: 1575.386321 | BC78: 1994.02023 | BD78: -9465.765874 | BE78: 8108.778719 | BF78: -1356.987155
A79: 2012-11-01 | B79: 10043.87215 | C79: 8330.498147 | D79: 3518.153908 | E79: 8297.846618 | F79: 865.8358792 | G79: 395.4272545 | H79: 295.8955136 | I79: 246.29595 | J79: 255.7905568 | K79: 163.8958482 | L79: 5845.342525 | M79: 3407.827592 | N79: 17500.04972 | O79: 20275.27973 | P79: 21457.58052 | Q79: 6127.311 | R79: 15330.26952 | S79: 9187.765828 | T79: 14699.17504 | U79: -5511.409208 | V79: 2725.912244 | W79: 305.4802809 | X79: 2420.431963 | Y79: 333.310536 | Z79: 330.0913243 | AA79: 3.21921161 | AB79: 498.5887505 | AC79: 152.3502559 | AD79: 346.2384946 | AE79: 7394.522963 | AF79: 3620.507273 | AG79: 3774.015691 | AH79: 41597.68085 | AI79: 25234.91517 | AJ79: 37943.95411 | AK79: 16362.76568 | AL79: 35492.71257 | AM79: 42537.81151 | AN79: -7045.098937 | AO79: 9317.66674 | AP79: 388.290767 | AQ79: 2003.163049 | AR79: 9314.402296 | AS79: 9383.326192 | AT79: 158.2975836 | AU79: 325.4658107 | AV79: 6795.953764 | AW79: 6934.623421 | AX79: 334.5414759 | AY79: 188.8487719 | AZ79: 3339.679923 | BA79: 2711.959572 | BB79: 1677.358413 | BC79: 1736.116661 | BD79: -10742.0048 | BE79: 9317.66674 | BF79: -1424.338063
A80: 2012-12-01 | B80: 5824.856017 | C80: 7663.689674 | D80: 3618.883616 | E80: 8172.355438 | F80: 694.200459 | G80: 339.577364 | H80: 229.530704 | I80: 264.960043 | J80: 187.9285895 | K80: 82.96553 | L80: 4176.2719 | M80: 2759.647222 | N80: 13162.17014 | O80: 13568.78197 | P80: 19914.69541 | Q80: 7876.77 | R80: 12037.92541 | S80: 8770.581627 | T80: 14343.78384 | U80: -5573.202217 | V80: 2606.167706 | W80: 90.61272741 | X80: 2515.554978 | Y80: 260.5912224 | Z80: 276.3426913 | AA80: -15.75146889 | AB80: 546.739587 | AC80: 161.0346986 | AD80: 385.7048884 | AE80: 7217.402862 | AF80: 3011.595191 | AG80: 4205.80767 | AH80: 39316.17841 | AI80: 25760.13915 | AJ80: 33736.81787 | AK80: 13556.03926 | AL80: 32555.94734 | AM80: 36821.23587 | AN80: -4265.288526 | AO80: 9290.750733 | AP80: 1000.999178 | AQ80: 1375.61342 | AR80: 11904.32321 | AS80: 12597.48755 | AT80: 126.3422587 | AU80: 219.6459936 | AV80: 5335.870693 | AW80: 5531.274462 | AX80: 172.2962231 | AY80: 213.7568973 | AZ80: 3450.967558 | BA80: 2038.227558 | BB80: 2469.87827 | BC80: 2257.744699 | BD80: -10519 | BE80: 9290.750733 | BF80: -1228.249267
A81: 2013-01-01 | B81: 9356.463551 | C81: 10005.67684 | D81: 3030.693233 | E81: 9203.890804 | F81: 680.989732 | G81: 396.8387546 | H81: 234.5431213 | I81: 320.6419335 | J81: 158.4998281 | K81: 60.86763538 | L81: 4816.686078 | M81: 2806.122708 | N81: 17837.53252 | O81: 17252.12718 | P81: 18512.02437 | Q81: 7246.04 | R81: 11265.98437 | S81: 8396.94598 | T81: 15120.79341 | U81: -6723.847428 | V81: 2714.248003 | W81: 239.231922 | X81: 2475.016081 | Y81: 224.4885061 | Z81: 257.4887617 | AA81: -33.00025566 | AB81: 519.3516093 | AC81: 140.4749836 | AD81: 378.8766257 | AE81: 6679.144005 | AF81: 2408.745574 | AG81: 4270.398431 | AH81: 37046.20247 | AI81: 25412.77465 | AJ81: 35505.84763 | AK81: 11633.42782 | AL81: 36662.9673 | AM81: 37897.07825 | AN81: -1234.110947 | AO81: 10399.31688 | AP81: 832.1 | AQ81: 3367.935792 | AR81: 11200.99759 | AS81: 10651.90884 | AT81: 278.9938568 | AU81: 244.1205893 | AV81: 6163.471139 | AW81: 6681.889383 | AX81: 178.3436726 | AY81: 222.6888313 | AZ81: 1931.585746 | BA81: 1050.010503 | BB81: 3093.887971 | BC81: 1973.05224 | BD81: -11024 | BE81: 10399.31688 | BF81: -624.6831232
A82: 2013-02-01 | B82: 6535.390346 | C82: 6205.437047 | D82: 5125.066227 | E82: 6500.566176 | F82: 909.8139779 | G82: 485.6894953 | H82: 106.7672762 | I82: 138.8 | J82: 235.3891963 | K82: 32.24681694 | L82: 5105.439322 | M82: 2963.155223 | N82: 17045.32666 | O82: 17752.44441 | P82: 17701.74125 | Q82: 6838.557006 | R82: 10863.18425 | S82: 9401.654131 | T82: 14559.12907 | U82: -5157.474937 | V82: 2803.429806 | W82: 198.7328867 | X82: 2604.696919 | Y82: 186.1352763 | Z82: 215.6654065 | AA82: -29.53013022 | AB82: 495.1578508 | AC82: 106.8936562 | AD82: 388.2641947 | AE82: 6595.417889 | AF82: 2425.530523 | AG82: 4169.887366 | AH82: 37183.53621 | AI82: 24344.50855 | AJ82: 36414.73018 | AK82: 12839.02766 | AL82: 36627.47102 | AM82: 39404.70699 | AN82: -2777.235977 | AO82: 10061.79168 | AP82: 1647.662 | AQ82: 1769.03444 | AR82: 10530.64652 | AS82: 10143.85649 | AT82: 254.5256303 | AU82: 396.9939322 | AV82: 3756.565199 | AW82: 3956.332836 | AX82: 130.3758974 | AY82: 182.5488778 | AZ82: 1596.321628 | BA82: 1081.201359 | BB82: 2014.880895 | BC82: 1467.262179 | BD82: -10086.47568 | BE82: 10061.79168 | BF82: -24.68399916
A83: 2013-03-01 | B83: 6388.755821 | C83: 5976.943294 | D83: 5374.761381 | E83: 8516.442171 | F83: 621.9932747 | G83: 308.5590098 | H83: 229.471607 | I83: 238.5716693 | J83: 129.8127217 | K83: 75.13738203 | L83: 3558.108257 | M83: 1981.766921 | N83: 16990.2514 | O83: 18282.06777 | P83: 15237.76572 | Q83: 4770.709 | R83: 10467.05672 | S83: 9431.16591 | T83: 13877.20346 | U83: -4446.03755 | V83: 2898.744571 | W83: 224.8223641 | X83: 2673.922207 | Y83: 209.0838821 | Z83: 217.4985373 | AA83: -8.41465518 | AB83: 515.2158277 | AC83: 121.5308118 | AD83: 393.6850159 | AE83: 5559.833884 | AF83: 2038.168332 | AG83: 3521.665552 | AH83: 33851.80979 | AI83: 21249.93251 | AJ83: 36116.44927 | AK83: 12601.87729 | AL83: 35155.63303 | AM83: 38796.26618 | AN83: -3640.633157 | AO83: 8961.244131 | AP83: 913.6114452 | AQ83: 922.8883835 | AR83: 13284.05244 | AS83: 13908.96637 | AT83: 99.36356683 | AU83: 173.3595197 | AV83: 5422.218984 | AW83: 5615.055044 | AX83: 259.4053429 | AY83: 272.1193956 | AZ83: 1694.074865 | BA83: 1369.987864 | BB83: 2675.242144 | BC83: 2386.59728 | BD83: -10398.54703 | BE83: 8961.244131 | BF83: -1437.302903
A84: 2013-04-01 | B84: 9662.509412 | C84: 10662.88272 | D84: 6841.175916 | E84: 9623.251519 | F84: 785.8944579 | G84: 603.000514 | H84: 377.063896 | I84: 551.5084261 | J84: 407.4422154 | K84: 198.0893427 | L84: 5132.700183 | M84: 2742.249089 | N84: 22340.31206 | O84: 24004.45144 | P84: 15454.08428 | Q84: 7193.433 | R84: 8260.651279 | S84: 9704.704771 | T84: 14419.47248 | U84: -4714.767709 | V84: 2926.653413 | W84: 230.709208 | X84: 2695.944205 | Y84: 271.6242987 | Z84: 330.7139596 | AA84: -59.08966085 | AB84: 710.0470374 | AC84: 197.2017636 | AD84: 512.8452738 | AE84: 6222.245468 | AF84: 1977.853485 | AG84: 4244.391983 | AH84: 35289.35927 | AI84: 24349.3839 | AJ84: 38580.94595 | AK84: 10939.97537 | AL84: 38002.07463 | AM84: 43322.37939 | AN84: -5320.304764 | AO84: 5619.670607 | AP84: 3712.754384 | AQ84: 853.0398229 | AR84: 13387.13915 | AS84: 13593.53526 | AT84: 196.4009677 | AU84: 234.1131812 | AV84: 6547.283453 | AW84: 6378.624914 | AX84: 225.0640835 | AY84: 341.9286466 | AZ84: 922.8773305 | BA84: 1801.755035 | BB84: 3708.619566 | BC84: 2007.999243 | BD84: -6948.024602 | BE84: 5619.670607 | BF84: -1328.353995
A85: 2013-05-01 | B85: 10741.28855 | C85: 7482.059523 | D85: 8319.432997 | E85: 9425.195992 | F85: 844.6493928 | G85: 434.2633494 | H85: 515.5263867 | I85: 270.8761 | J85: 437.3366559 | K85: 62.24644702 | L85: 5583.923435 | M85: 2805.074389 | N85: 17935.88417 | O85: 29327.74959 | P85: 17820.49724 | Q85: 7385.354214 | R85: 10435.14302 | S85: 11246.39697 | T85: 14044.8158 | U85: -2798.418834 | V85: 3056.221718 | W85: 184.4649285 | X85: 2871.756789 | Y85: 352.5687355 | Z85: 199.0541011 | AA85: 153.5146343 | AB85: 908.4601091 | AC85: 146.5455243 | AD85: 761.9145848 | AE85: 7389.438056 | AF85: 2530.407473 | AG85: 4859.030583 | AH85: 40773.58282 | AI85: 24490.64204 | AJ85: 43247.00256 | AK85: 16282.94078 | AL85: 34487.30193 | AM85: 47519.10483 | AN85: -13031.8029 | AO85: 3251.137879 | AP85: 1792.389097 | AQ85: 1838.099315 | AR85: 14300.2148 | AS85: 12528.36885 | AT85: 260.3044785 | AU85: 334.0997843 | AV85: 8526.831099 | AW85: 8131.138747 | AX85: 230.4206879 | AY85: 453.0411586 | AZ85: 1371.877487 | BA85: 1247.313796 | BB85: 2690.346332 | BC85: 1837.847645 | BD85: -4178.726017 | BE85: 3251.137879 | BF85: -927.5881382
A86: 2013-06-01 | B86: 10509.02467 | C86: 7721.017668 | D86: 3671.217879 | E86: 5521.787226 | F86: 1055.243466 | G86: 666.3295173 | H86: 328.937253 | I86: 445.859178 | J86: 406.6248935 | K86: 100.947 | L86: 5982.952907 | M86: 2805.001925 | N86: 20661.88136 | O86: 24575.30074 | P86: 16340.89444 | Q86: 6704.781 | R86: 9636.113438 | S86: 11684.59243 | T86: 13215.59854 | U86: -1531.00611 | V86: 3201.607703 | W86: 221.2390511 | X86: 2980.368652 | Y86: 288.8971479 | Z86: 278.5142215 | AA86: 10.38292639 | AB86: 942.4294745 | AC86: 184.9149866 | AD86: 757.5144879 | AE86: 6641.846783 | AF86: 2002.822482 | AG86: 4639.024301 | AH86: 39100.26797 | AI86: 22607.87028 | AJ86: 43685.39653 | AK86: 16492.3977 | AL86: 34359.44086 | AM86: 48482.26453 | AN86: -14122.82367 | AO86: 2369.574028 | AP86: 1671.018509 | AQ86: 1206.373413 | AR86: 8683.753743 | AS86: 9497.998331 | AT86: 177.5601861 | AU86: 527.8178062 | AV86: 7852.728393 | AW86: 8107.778282 | AX86: 839.9218502 | AY86: 907.2820361 | AZ86: 3947.544821 | BA86: 1409.091383 | BB86: 2154.9683 | BC86: 2559.628901 | BD86: -3033.609425 | BE86: 2369.574028 | BF86: -664.035397
A87: 2013-07-01 | B87: 10728.4151 | C87: 9216.544993 | D87: 3590.730548 | E87: 4831.344723 | F87: 791.2441241 | G87: 354.3253694 | H87: 414.4200903 | I87: 279.348253 | J87: 630.0705691 | K87: 154.7142337 | L87: 3515.376089 | M87: 2226.977741 | N87: 20655.949 | O87: 22835.50909 | P87: 16993.00841 | Q87: 7208.200566 | R87: 9784.807844 | S87: 12192.64349 | T87: 13205.48839 | U87: -1012.844902 | V87: 3137.028813 | W87: 123.9190139 | X87: 3013.109799 | Y87: 262.1724901 | Z87: 150.3282215 | AA87: 111.8442686 | AB87: 841.1412321 | AC87: 158.8322568 | AD87: 682.3089753 | AE87: 5794.059726 | AF87: 1681.415304 | AG87: 4112.644422 | AH87: 39220.05416 | AI87: 22528.18375 | AJ87: 43437.8068 | AK87: 16691.87041 | AL87: 32988.15616 | AM87: 45719.83966 | AN87: -12731.6835 | AO87: 3960.186909 | AP87: 1835.425068 | AQ87: 3300.534986 | AR87: 8885.923666 | AS87: 10029.60241 | AT87: 136.4134362 | AU87: 178.8503564 | AV87: 8017.079655 | AW87: 8438.389344 | AX87: 1335.575027 | AY87: 1306.172636 | AZ87: 1854.662462 | BA87: 563.2823677 | BB87: 1968.281371 | BC87: 1870.442629 | BD87: -4780.091921 | BE87: 3960.186909 | BF87: -819.9050117
A88: 2013-08-01 | B88: 7704.378972 | C88: 7828.994972 | D88: 4373.686307 | E88: 6311.95749 | F88: 907.7506986 | G88: 249.1955198 | H88: 229.1617084 | I88: 246.403108 | J88: 435.1241054 | K88: 209.9432999 | L88: 3422.334017 | M88: 2871.840332 | N88: 18514.40839 | O88: 19025.04562 | P88: 16030.58861 | Q88: 7670.705 | R88: 8359.883606 | S88: 12808.78799 | T88: 13653.58476 | U88: -844.7967703 | V88: 3224.282115 | W88: 115.9529111 | X88: 3108.329204 | Y88: 258.5786483 | Z88: 206.5522215 | AA88: 52.02642678 | AB88: 868.3196672 | AC88: 279.9713107 | AD88: 588.3483565 | AE88: 6090.635633 | AF88: 2510.237834 | AG88: 3580.3978 | AH88: 39281.19266 | AI88: 24437.00404 | AJ88: 45793.8244 | AK88: 14844.18862 | AL88: 32239.92613 | AM88: 43725.53315 | AN88: -11485.60702 | AO88: 3358.581601 | AP88: 3228.410856 | AQ88: 1447.619795 | AR88: 9561.54669 | AS88: 10520.30557 | AT88: 248.0959093 | AU88: 324.439325 | AV88: 6553.56479 | AW88: 6861.921899 | AX88: 939.2116566 | AY88: 902.2526036 | AZ88: 1674.436401 | BA88: 1738.129718 | BB88: 1579.612415 | BC88: 1645.992182 | BD88: -4445.09 | BE88: 3358.581601 | BF88: -1086.508399
A89: 2013-09-01 | B89: 8698.47037 | C89: 7455.64037 | D89: 2144.148188 | E89: 5677.475136 | F89: 826.4511598 | G89: 309.3070531 | H89: 202.4322326 | I89: 221.65597 | J89: 192.4368064 | K89: 154.1683793 | L89: 2597.032566 | M89: 1716.177818 | N89: 21092.71021 | O89: 18528.09412 | P89: 17668.75604 | Q89: 10303.7995 | R89: 7364.956541 | S89: 10980.5876 | T89: 14348.16485 | U89: -3367.577243 | V89: 3366.529363 | W89: 181.8825597 | X89: 3184.646803 | Y89: 246.0483541 | Z89: 213.1852925 | AA89: 32.86306162 | AB89: 597.615286 | AC89: 220.7689891 | AD89: 376.8462969 | AE89: 5527.844219 | AF89: 2358.022387 | AG89: 3169.821832 | AH89: 38387.38087 | AI89: 27625.82358 | AJ89: 40630.08022 | AK89: 10761.55729 | AL89: 36616.88082 | AM89: 44134.94862 | AN89: -7518.067803 | AO89: 3243.489489 | AP89: 3346.992593 | AQ89: 4331.792436 | AR89: 8494.848466 | AS89: 8362.110796 | AT89: 167.048734 | AU89: 265.7904066 | AV89: 5033.272404 | AW89: 5590.246965 | AX89: 819.79043 | AY89: 560.9767859 | AZ89: 1451.605134 | BA89: 1311.874664 | BB89: 2214.600756 | BC89: 1830.355223 | BD89: -5152.87818 | BE89: 3243.489489 | BF89: -1909.388691
A90: 2013-10-01 | B90: 7196.374184 | C90: 5289.767184 | D90: 2651.309239 | E90: 6275.495442 | F90: 826.9656336 | G90: 271.7405424 | H90: 235.767953 | I90: 372.2151053 | J90: 435.3338044 | K90: 139.9311943 | L90: 4363.31978 | M90: 4099.749273 | N90: 16660.35502 | O90: 18527.85991 | P90: 15948 | Q90: 7626 | R90: 8322 | S90: 10460.03615 | T90: 14599.42605 | U90: -4139.389906 | V90: 3368.464019 | W90: 202.7032516 | X90: 3165.760767 | Y90: 245.7250745 | Z90: 216.4462557 | AA90: 29.27881874 | AB90: 680.657452 | AC90: 201.6832188 | AD90: 478.9742332 | AE90: 6077.689366 | AF90: 2914.597999 | AG90: 3163.091368 | AH90: 36780.57206 | AI90: 25760.85678 | AJ90: 36749.81682 | AK90: 11019.71528 | AL90: 31987.8196 | AM90: 39431.6614 | AN90: -7443.841805 | AO90: 3575.873476 | AP90: 1950.305454 | AQ90: 2306.190429 | AR90: 9336.45435 | AS90: 9472.076719 | AT90: 137.1850507 | AU90: 189.2556894 | AV90: 6609.295154 | AW90: 6830.056422 | AX90: 827.276189 | AY90: 933.401011 | AZ90: 1229.290413 | BA90: 1069.554562 | BB90: 1991.922565 | BC90: 1702.727349 | BD90: -5615.583983 | BE90: 3575.873476 | BF90: -2039.710507
A91: 2013-11-01 | B91: 10557.93 | C91: 5094.62 | D91: 3934.043155 | E91: 6122.530134 | F91: 944.1750879 | G91: 258.2115791 | H91: 316.882458 | I91: 223.3252649 | J91: 308.6642493 | K91: 92.45411452 | L91: 4129.19092 | M91: 2747.052773 | N91: 17370.74971 | O91: 21567.35962 | P91: 19842.67758 | Q91: 8375 | R91: 11467.67758 | S91: 11561.71589 | T91: 14840.98878 | U91: -3279.272895 | V91: 3599.55993 | W91: 177.0017936 | X91: 3422.558136 | Y91: 270.1895795 | Z91: 160.4295044 | AA91: 109.7600751 | AB91: 810.1697224 | AC91: 264.7989575 | AD91: 545.3707649 | AE91: 6317.263038 | AF91: 2405.059652 | AG91: 3912.203386 | AH91: 42401.57573 | AI91: 26223.27869 | AJ91: 43053.06856 | AK91: 16178.29704 | AL91: 35115.48686 | AM91: 46839.77531 | AN91: -11724.28845 | AO91: 4454.00859 | AP91: 1298.102077 | AQ91: 3960.367209 | AR91: 11137.21148 | AS91: 9618.915958 | AT91: 173.281499 | AU91: 308.8282042 | AV91: 8096.200102 | AW91: 7796.768448 | AX91: 233.947819 | AY91: 262.3299889 | AZ91: 1345.430019 | BA91: 1418.115583 | BB91: 1545.906416 | BC91: 1613.000976 | BD91: -6789.258449 | BE91: 4454.00859 | BF91: -2335.24986
A92: 2013-12-01 | B92: 6951.741164 | C92: 3988.161164 | D92: 3005.856874 | E92: 5822.014024 | F92: 943.9305442 | G92: 272.6413719 | H92: 242.7241 | I92: 338.4549144 | J92: 195.8274653 | K92: 58.659847 | L92: 3289.476124 | M92: 2320.710288 | N92: 14937.75265 | O92: 16170.25369 | P92: 20092.16836 | Q92: 7818 | R92: 12274.16836 | S92: 10957.82401 | T92: 13260.54711 | U92: -2302.723095 | V92: 3707.082825 | W92: 243.0940035 | X92: 3463.988821 | Y92: 244.3472215 | Z92: 261.5409608 | AA92: -17.19373931 | AB92: 711.7310239 | AC92: 262.4970292 | AD92: 449.2339947 | AE92: 6272.781969 | AF92: 2485.719458 | AG92: 3787.062511 | AH92: 41985.93541 | AI92: 24331.39856 | AJ92: 39093.50824 | AK92: 17654.53686 | AL92: 31660.35495 | AM92: 43120.72532 | AN92: -11460.37037 | AO92: 6194.166491 | AP92: 1744.787837 | AQ92: 1692.55773 | AR92: 12500.67609 | AS92: 13207.18687 | AT92: 96.02084039 | AU92: 289.6527867 | AV92: 6346.111643 | AW92: 6817.771146 | AX92: 270.0327377 | AY92: 253.2483001 | AZ92: 1820.67474 | BA92: 1438.096368 | BB92: 2193.736705 | BC92: 2416.616966 | BD92: -7899.34975 | BE92: 6194.166491 | BF92: -1705.183259
A93: 2014-01-01 | B93: 10091.5663 | C93: 7362.92998 | D93: 3891.068937 | E93: 7373.616791 | F93: 1210.864157 | G93: 497.5906073 | H93: 381.468 | I93: 281.0267879 | J93: 452.6807142 | K93: 124.5958744 | L93: 3781.763147 | M93: 2815.810266 | N93: 18374.18822 | O93: 23822.20218 | P93: 21214.96368 | Q93: 9262.185 | R93: 11952.77868 | S93: 11610.28106 | T93: 13418.85418 | U93: -1808.573127 | V93: 3868.80164 | W93: 247.7498403 | X93: 3621.0518 | Y93: 356.276 | Z93: 248.7349888 | AA93: 107.5410112 | AB93: 590.9849906 | AC93: 145.7645002 | AD93: 445.2204904 | AE93: 6739.612202 | AF93: 2572.059025 | AG93: 4167.553177 | AH93: 44380.91957 | AI93: 25895.34754 | AJ93: 42288.08995 | AK93: 18485.57203 | AL93: 34049.844 | AM93: 49141.51106 | AN93: -15091.66706 | AO93: 3393.904965 | AP93: 3017.179869 | AQ93: 1237.548809 | AR93: 11124.10954 | AS93: 10452.53804 | AT93: 253.0991439 | AU93: 423.1961222 | AV93: 6283.083062 | AW93: 6323.927779 | AX93: 223.4681972 | AY93: 348.9908006 | AZ93: 1654.954536 | BA93: 1200.608324 | BB93: 1703.33724 | BC93: 1752.791062 | BD93: -5396.749174 | BE93: 3393.904965 | BF93: -2002.844209
A94: 2014-02-01 | B94: 8938.428504 | C94: 6427.868504 | D94: 2767.390393 | E94: 6838.158277 | F94: 1189.946333 | G94: 272.528074 | H94: 233.816 | I94: 265.641 | J94: 245.6764309 | K94: 76.52975229 | L94: 3211.739273 | M94: 2437.437469 | N94: 16970.84323 | O94: 17609.6511 | P94: 23469.93756 | Q94: 10517.1265 | R94: 12952.81105 | S94: 11758.61269 | T94: 13552.38609 | U94: -1794 | V94: 4000.98867 | W94: 245.3372038 | X94: 3754.651471 | Y94: 364.988 | Z94: 331.0513086 | AA94: 33.93669141 | AB94: 641.2784096 | AC94: 154.7176412 | AD94: 486.5607684 | AE94: 6794.619926 | AF94: 2781.29825 | AG94: 4013.321676 | AH94: 47030.42526 | AI94: 27581.917 | AJ94: 42613.43126 | AK94: 19448.50826 | AL94: 32481.08287 | AM94: 48184.77723 | AN94: -15703.69436 | AO94: 3744.813893 | AP94: 1135.277238 | AQ94: 962.6776547 | AR94: 11785.65618 | AS94: 11519.13321 | AT94: 212.2031836 | AU94: 278.82068 | AV94: 5217.362975 | AW94: 5289.2799 | AX94: 107.3288372 | AY94: 212.28252 | AZ94: 825.67303 | BA94: 1018.5196 | BB94: 1544.856541 | BC94: 1994.585902 | BD94: -5824.331346 | BE94: 3744.813893 | BF94: -2079.517453
A95: 2014-03-01 | B95: 7348.67727 | C95: 5823.97227 | D95: 2763.862122 | E95: 8523.181424 | F95: 997.7442239 | G95: 391.0482728 | H95: 274.2155 | I95: 370.9516511 | J95: 205.6684668 | K95: 112.919117 | L95: 4579.446342 | M95: 2856.203921 | N95: 19486.75409 | O95: 17418.52221 | P95: 23453.47284 | Q95: 11015.123 | R95: 12438.34984 | S95: 11654.56737 | T95: 13818.87715 | U95: -2164.309782 | V95: 3985.451828 | W95: 182.3720731 | X95: 3803.079755 | Y95: 379.3 | Z95: 441.2769648 | AA95: -61.97696481 | AB95: 617.1918583 | AC95: 188.5902462 | AD95: 428.6016122 | AE95: 6579.663411 | AF95: 2609.807883 | AG95: 3969.855528 | AH95: 46669.64731 | AI95: 28256.04732 | AJ95: 44744.4958 | AK95: 18413.59999 | AL95: 34940.60131 | AM95: 47951.92654 | AN95: -13011.32523 | AO95: 5402.274759 | AP95: 932.6000353 | AQ95: 1146.385858 | AR95: 12228.41605 | AS95: 12721.71633 | AT95: 313.5028179 | AU95: 266.7716781 | AV95: 6696.047796 | AW95: 6965.632381 | AX95: 162.1950494 | AY95: 255.9003095 | AZ95: 1648.263783 | BA95: 1403.558068 | BB95: 1920.339382 | BC95: 2117.601984 | BD95: -6490.341714 | BE95: 5402.274759 | BF95: -1088.066955
A96: 2014-04-01 | B96: 9841.897595 | C96: 8087.852595 | D96: 3886.454671 | E96: 8031.965902 | F96: 1233.655887 | G96: 393.1307078 | H96: 278.604 | I96: 254.2441689 | J96: 425.0771123 | K96: 81.730965 | L96: 2558.028472 | M96: 2263.615692 | N96: 21337.95528 | O96: 22723.49692 | P96: 23317.11948 | Q96: 11540.6666 | R96: 11776.45288 | S96: 12729.30949 | T96: 13686.1703 | U96: -956.8608103 | V96: 4035.513305 | W96: 192.056982 | X96: 3843.456323 | Y96: 342.107 | Z96: 329.5809364 | AA96: 12.52606356 | AB96: 770.001348 | AC96: 213.7348773 | AD96: 556.2664707 | AE96: 5971.849342 | AF96: 1823.481338 | AG96: 4148.368004 | AH96: 47165.89996 | AI96: 27785.69103 | AJ96: 44690.03321 | AK96: 19380.20893 | AL96: 37151.18395 | AM96: 51444.59167 | AN96: -14293.40772 | AO96: 5086.801213 | AP96: 950.0870799 | AQ96: 1559.410186 | AR96: 13982.04623 | AS96: 13298.88284 | AT96: 212.2031356 | AU96: 163.2181001 | AV96: 6249.719719 | AW96: 6250.165219 | AX96: 357.270531 | AY96: 483.294076 | AZ96: 2094.169124 | BA96: 1424.033271 | BB96: 2152.659694 | BC96: 1715.044754 | BD96: -5501.337996 | BE96: 5086.801213 | BF96: -414.5367831
A97: 2014-05-01 | B97: 7961.857294 | C97: 7365.304903 | D97: 2892.652729 | E97: 7003.247435 | F97: 1355.583636 | G97: 573.768964 | H97: 288.458317 | I97: 379.5729121 | J97: 321.5336503 | K97: 106.97 | L97: 3364.228666 | M97: 1492.899834 | N97: 21596.80365 | O97: 18662.3757 | P97: 22097.78833 | Q97: 11334.745 | R97: 10763.04333 | S97: 12425.32051 | T97: 13843.70023 | U97: -1418.379724 | V97: 4069.845926 | W97: 236.5478741 | X97: 3833.298052 | Y97: 287.490317 | Z97: 380.9918474 | AA97: -93.50153035 | AB97: 695.6912888 | AC97: 212.353899 | AD97: 483.3373898 | AE97: 5704.227548 | AF97: 2040.342687 | AG97: 3663.884861 | AH97: 45280.36392 | AI97: 28048.68154 | AJ97: 45679.06101 | AK97: 17231.68238 | AL97: 38580.4428 | AM97: 48168.82326 | AN97: -9588.380452 | AO97: 7643.301924 | AP97: 411.6312461 | AQ97: 1233.814751 | AR97: 10766.88559 | AS97: 11858.12079 | AT97: 374.363965 | AU97: 403.2114666 | AV97: 5264.475499 | AW97: 5690.196282 | AX97: 512.2711706 | AY97: 527.1607685 | AZ97: 1351.197264 | BA97: 1289.50809 | BB97: 2536.209591 | BC97: 2380.998409 | BD97: -7409.789131 | BE97: 7643.301924 | BF97: 233.5127925
A98: 2014-06-01 | B98: 8366.390112 | C98: 6556.030242 | D98: 2104.207047 | E98: 5837.817573 | F98: 1329.159281 | G98: 432.506913 | H98: 225.4350327 | I98: 261.6718709 | J98: 175.7544338 | K98: 150.643177 | L98: 2426.996076 | M98: 1341.682497 | N98: 18793.50296 | O98: 18562.65514 | P98: 22050.20366 | Q98: 10565.195 | R98: 11485.00866 | S98: 11609.02513 | T98: 13835.65488 | U98: -2226.629744 | V98: 4195.0808 | W98: 213.6149906 | X98: 3981.46581 | Y98: 260.8943497 | Z98: 316.1036751 | AA98: -55.20932542 | AB98: 639.1120676 | AC98: 317.825879 | AD98: 321.2861886 | AE98: 5493.836563 | AF98: 1664.815286 | AG98: 3829.021277 | AH98: 44248.15257 | AI98: 26913.20971 | AJ98: 42300.77633 | AK98: 17334.94287 | AL98: 36612.18729 | AM98: 45554.44686 | AN98: -8942.259571 | AO98: 8392.683295 | AP98: 719.6956267 | AQ98: 1908.095713 | AR98: 9402.068609 | AS98: 9405.271841 | AT98: 171.9031383 | AU98: 196.8908268 | AV98: 5673.050225 | AW98: 5942.333581 | AX98: 353.5585303 | AY98: 296.5486387 | AZ98: 1370.075709 | BA98: 1318.918485 | BB98: 1871.392934 | BC98: 1607.105556 | BD98: -8601.610913 | BE98: 8392.683295 | BF98: -208.9276189
A99: 2014-07-01 | B99: 8554.688816 | C99: 5923.469356 | D99: 2732.856838 | E99: 8056.56512 | F99: 1712.003795 | G99: 432.1016565 | H99: 364.0399544 | I99: 266.4696661 | J99: 300.9356486 | K99: 102.232059 | L99: 3002.121948 | M99: 1320.666422 | N99: 14494.36172 | O99: 16370.45761 | P99: 23189.7692 | Q99: 10758.57436 | R99: 12431.19485 | S99: 11697.18291 | T99: 14751.34104 | U99: -3054.158121 | V99: 4601.979247 | W99: 249.2423757 | X99: 4352.736872 | Y99: 327.7851181 | Z99: 282.6431629 | AA99: 45.14195517 | AB99: 676.356863 | AC99: 300.477938 | AD99: 375.878925 | AE99: 5515.076699 | AF99: 1388.437434 | AG99: 4126.639265 | AH99: 46008.15004 | AI99: 27730.7163 | AJ99: 42548.20257 | AK99: 18277.43374 | AL99: 34227.91055 | AM99: 44828.44654 | AN99: -10600.53599 | AO99: 7676.897756 | AP99: 840.0009815 | AQ99: 1794.987149 | AR99: 11851.94465 | AS99: 10714.95642 | AT99: 160.817376 | AU99: 480.899771 | AV99: 6178.899248 | AW99: 6313.997092 | AX99: 190.2896629 | AY99: 259.3615042 | AZ99: 1387.169525 | BA99: 1475.57002 | BB99: 1877.153196 | BC99: 1301.878576 | BD99: -8696.146909 | BE99: 7676.897756 | BF99: -1019.249153
A100: 2014-08-01 | B100: 10802.87844 | C100: 7161.676887 | D100: 2961.876884 | E100: 7400.139071 | F100: 1611.122119 | G100: 692.5102612 | H100: 334.009139 | I100: 360.3430518 | J100: 392.4982991 | K100: 120.048093 | L100: 2435.930226 | M100: 1516.003213 | N100: 16239.68874 | O100: 17887.26331 | P100: 23011.23901 | Q100: 10397.793 | R100: 12613.44601 | S100: 11882.45016 | T100: 14746.76652 | U100: -2864.316361 | V100: 4590.656137 | W100: 430.8803195 | X100: 4159.775817 | Y100: 393.9250769 | Z100: 357.2849547 | AA100: 36.64012221 | AB100: 785.1257485 | AC100: 255.662244 | AD100: 529.4635045 | AE100: 5391.897596 | AF100: 1638.412526 | AG100: 3753.48507 | AH100: 46055.7114 | AI100: 27884.56662 | AJ100: 44646.72484 | AK100: 18171.14478 | AL100: 34384.02217 | AM100: 44606.74875 | AN100: -10222.72658 | AO100: 7948.418196 | AP100: 1766.069599 | AQ100: 2469.935179 | AR100: 9844.763207 | AS100: 10835.83367 | AT100: 266.9821405 | AU100: 326.8424572 | AV100: 6208.995834 | AW100: 6365.617154 | AX100: 193.8449601 | AY100: 439.1290292 | AZ100: 2377.982752 | BA100: 1235.086597 | BB100: 1647.849864 | BC100: 992.391973 | BD100: -8949.379039 | BE100: 7948.418196 | BF100: -1000.960843
A101: 2014-09-01 | B101: 7596.378391 | C101: 5009.206259 | D101: 2590.719234 | E101: 6905.172996 | F101: 2030.476592 | G101: 726.3754437 | H101: 254.542 | I101: 268.5883102 | J101: 366.2714326 | K101: 110.218799 | L101: 2228.097282 | M101: 1439.972289 | N101: 18747.78504 | O101: 18830.51691 | P101: 23367.57545 | Q101: 10181.563 | R101: 13186.01245 | S101: 11995.63946 | T101: 14637.80431 | U101: -2642.164849 | V101: 4779.930047 | W101: 350.7958018 | X101: 4429.134245 | Y101: 307.6360769 | Z101: 319.9095627 | AA101: -12.27348579 | AB101: 716.2644535 | AC101: 245.003043 | AD101: 471.2614105 | AE101: 4695.079485 | AF101: 1566.509516 | AG101: 3128.569969 | AH101: 45862.12497 | AI101: 27301.58523 | AJ101: 46659.1691 | AK101: 18560.53974 | AL101: 37014.56126 | AM101: 46749.63726 | AN101: -9735.076007 | AO101: 8825.463734 | AP101: 875.6935121 | AQ101: 1429.612146 | AR101: 12101.05402 | AS101: 12693.73739 | AT101: 371.7314609 | AU101: 481.9027378 | AV101: 5781.648167 | AW101: 5983.337806 | AX101: 309.2443944 | AY101: 371.2514317 | AZ101: 1788.088371 | BA101: 1089.213277 | BB101: 2124.488 | BC101: 2272.080733 | BD101: -9614.690149 | BE101: 8825.463734 | BF101: -789.2264158
A102: 2014-10-01 | B102: 10284.17264 | C102: 7666.604854 | D102: 2649.744059 | E102: 7622.495754 | F102: 1539.885358 | G102: 614.0969789 | H102: 235.8374131 | I102: 294.6286336 | J102: 232.81711 | K102: 165.8715604 | L102: 2109.871095 | M102: 1623.686334 | N102: 19193.98602 | O102: 18005.98856 | P102: 23757.96356 | Q102: 11130.048 | R102: 12627.91556 | S102: 12549.23726 | T102: 15954.87295 | U102: -3405.635686 | V102: 4874.571019 | W102: 419.5079234 | X102: 4455.063096 | Y102: 256.1303671 | Z102: 344.6404375 | AA102: -88.51007039 | AB102: 587.2482437 | AC102: 335.0967224 | AD102: 252.1515212 | AE102: 3253.992492 | AF102: 1524.473954 | AG102: 1729.518538 | AH102: 45279.14294 | AI102: 29708.63998 | AJ102: 48852.42493 | AK102: 15570.50296 | AL102: 35669.28128 | AM102: 42306.46151 | AN102: -6637.18023 | AO102: 8933.322728 | AP102: 838.6505805 | AQ102: 1678.535707 | AR102: 10236.29884 | AS102: 10371.62182 | AT102: 366.4242416 | AU102: 508.1445215 | AV102: 6862.298974 | AW102: 7252.233993 | AX102: 565.6418165 | AY102: 296.476073 | AZ102: 2638.539336 | BA102: 1005.321083 | BB102: 1705.486711 | BC102: 1775.877677 | BD102: -9701.394488 | BE102: 8933.322728 | BF102: -768.0717598
A103: 2014-11-01 | B103: 7512.397909 | C103: 5544.395636 | D103: 3509.743385 | E103: 5920.41307 | F103: 1244.976989 | G103: 233.0612262 | H103: 347.4851196 | I103: 240.3578142 | J103: 550.6551961 | K103: 47.532058 | L103: 2034.878976 | M103: 1102.286059 | N103: 14900.2042 | O103: 21568.03267 | P103: 22935.32899 | Q103: 10737.69551 | R103: 12197.63348 | S103: 12968.03584 | T103: 15474.5923 | U103: -2506.556457 | V103: 4910.309503 | W103: 148.2275122 | X103: 4762.081991 | Y103: 313.5737766 | Z103: 293.791583 | AA103: 19.7821936 | AB103: 774.5905465 | AC103: 256.509986 | AD103: 518.0805605 | AE103: 3190.840275 | AF103: 1217.14911 | AG103: 1973.691165 | AH103: 45092.67893 | AI103: 28127.966 | AJ103: 49902.15965 | AK103: 16964.71293 | AL103: 34848.50526 | AM103: 45064.93864 | AN103: -10216.43338 | AO103: 6748.279545 | AP103: 1200.639127 | AQ103: 2686.592934 | AR103: 10169.07746 | AS103: 7610.775711 | AT103: 321.268577 | AU103: 492.4956122 | AV103: 5844.641466 | AW103: 5457.006328 | AX103: 186.5799138 | AY103: 447.763211 | AZ103: 2042.726432 | BA103: 823.7266312 | BB103: 1306.28186 | BC103: 1257.612504 | BD103: -7451.585254 | BE103: 6748.279545 | BF103: -703.3057084
A104: 2014-12-01 | B104: 8395.098294 | C104: 7308.167538 | D104: 3450.32158 | E104: 5799.115847 | F104: 1437.932141 | G104: 498.0046229 | H104: 177.2342388 | I104: 235.457368 | J104: 770.3263103 | K104: 111.9719893 | L104: 1725.429908 | M104: 1390.165705 | N104: 17240.42366 | O104: 18495.38233 | P104: 23726.25205 | Q104: 12911.98942 | R104: 10814.26264 | S104: 11483.73307 | T104: 14339.93771 | U104: -2856.204637 | V104: 5235.416514 | W104: 323.9686783 | X104: 4911.447835 | Y104: 226.5242483 | Z104: 236.2075431 | AA104: -9.683294767 | AB104: 682.0820988 | AC104: 234.881331 | AD104: 447.2007678 | AE104: 3004.952621 | AF104: 1036.048606 | AG104: 1968.904015 | AH104: 44358.96061 | AI104: 29083.03329 | AJ104: 45768.92063 | AK104: 15275.92733 | AL104: 33333.71014 | AM104: 42812.47027 | AN104: -9478.760125 | AO104: 5797.1672 | AP104: 3374.430798 | AQ104: 1056.77994 | AR104: 10150.01365 | AS104: 10518.65988 | AT104: 350.3212396 | AU104: 474.4218848 | AV104: 5199.501307 | AW104: 5307.665666 | AX104: 819.6323635 | AY104: 757.7144079 | AZ104: 2296.703606 | BA104: 1540.604277 | BB104: 1899.987161 | BC104: 3722.436881 | BD104: -6464.192717 | BE104: 5797.1672 | BF104: -667.0255171
A105: 2015-01-01 | B105: 7522.981254 | C105: 5583.204121 | D105: 3516.793037 | E105: 4932.994615 | F105: 1314.434068 | G105: 474.4085792 | H105: 281.9829952 | I105: 225.1643171 | J105: 637.5589273 | K105: 77.587312 | L105: 1779.851154 | M105: 1379.666256 | N105: 11407.71744 | O105: 14934.60214 | P105: 23240.04906 | Q105: 13470.17245 | R105: 9769.87661 | S105: 12310.8208 | T105: 13424.71351 | U105: -1113.892714 | V105: 5220.767317 | W105: 239.6873379 | X105: 4981.079979 | Y105: 311.5104498 | Z105: 308.9090997 | AA105: 2.60135004 | AB105: 879.5185086 | AC105: 271.78467 | AD105: 607.7338386 | AE105: 3008.117439 | AF105: 1060.09099 | AG105: 1948.02645 | AH105: 44970.78357 | AI105: 28775.35806 | AJ105: 45090.73465 | AK105: 16195.42551 | AL105: 27035.98641 | AM105: 37731.13131 | AN105: -10695.1449 | AO105: 5500.280612 | AP105: 719.0601224 | AQ105: 909.4525598 | AR105: 7188.865836 | AS105: 6934.999228 | AT105: 369.0642738 | AU105: 446.4126733 | AV105: 4194.78089 | AW105: 4351.963265 | AX105: 428.8980371 | AY105: 675.3512628 | AZ105: 2047.983116 | BA105: 894.326702 | BB105: 2555.09084 | BC105: 2415.868159 | BD105: -5525.599609 | BE105: 5500.280612 | BF105: -25.31899681
A106: 2015-02-01 | B106: 6560.92769 | C106: 5912.09459 | D106: 3493.009442 | E106: 6231.553632 | F106: 1259.759206 | G106: 314.2560979 | H106: 249.94125 | I106: 305.4366272 | J106: 506.2397441 | K106: 137.120247 | L106: 1233.868262 | M106: 1228.524258 | N106: 17251.60223 | O106: 16498.12042 | P106: 22566.55456 | Q106: 13333.30026 | R106: 9233.2543 | S106: 12145.6831 | T106: 14352.01523 | U106: -2206.33213 | V106: 5349.481446 | W106: 244.7116019 | X106: 5104.769844 | Y106: 301.3096596 | Z106: 355.2705048 | AA106: -53.9608452 | AB106: 801.158165 | AC106: 289.907755 | AD106: 511.25041 | AE106: 2845.265146 | AF106: 1207.199848 | AG106: 1638.065298 | AH106: 44009.45209 | AI106: 29782.40521 | AJ106: 42137.72486 | AK106: 14227.04688 | AL106: 30943.90293 | AM106: 38565.01638 | AN106: -7621.113456 | AO106: 6605.933422 | AP106: 725.16047 | AQ106: 1756.910795 | AR106: 8990.05593 | AS106: 8329.154611 | AT106: 242.6222182 | AU106: 366.3356208 | AV106: 4252.633454 | AW106: 4453.75854 | AX106: 493.6356403 | AY106: 491.0297832 | AZ106: 892.6626733 | BA106: 787.9464794 | BB106: 1363.581811 | BC106: 1835.359807 | BD106: -7036.889705 | BE106: 6605.933422 | BF106: -430.9562831
A107: 2015-03-01 | B107: 10957.74578 | C107: 7082.763359 | D107: 3181.227955 | E107: 6394.479884 | F107: 1383.119813 | G107: 704.166916 | H107: 455.164 | I107: 574.8357011 | J107: 452.4377861 | K107: 138.841783 | L107: 1973.952414 | M107: 1544.813505 | N107: 17656.23099 | O107: 15898.80239 | P107: 22029.24171 | Q107: 12632.85352 | R107: 9396.388187 | S107: 11648.79824 | T107: 15113.4731 | U107: -3464.674859 | V107: 5522.656717 | W107: 383.4100015 | X107: 5139.246716 | Y107: 428.7602596 | Z107: 505.8898865 | AA107: -77.12962694 | AB107: 853.7402529 | AC107: 337.975572 | AD107: 515.7646809 | AE107: 2785.775515 | AF107: 1197.006224 | AG107: 1588.769291 | AH107: 43268.97269 | AI107: 30170.6083 | AJ107: 45259.48421 | AK107: 13098.36439 | AL107: 32385.68961 | AM107: 39638.73935 | AN107: -7253.049733 | AO107: 5845.314656 | AP107: 798.2022612 | AQ107: 1995.148286 | AR107: 10946.71378 | AS107: 9175.684114 | AT107: 440.1337226 | AU107: 550.7139257 | AV107: 6893.676816 | AW107: 7115.313499 | AX107: 542.1956895 | AY107: 641.08087 | AZ107: 2063.848348 | BA107: 1159.015716 | BB107: 1431.360084 | BC107: 1846.802192 | BD107: -6767.770286 | BE107: 5845.314656 | BF107: -922.4556295
A108: 2015-04-01 | B108: 10053.26025 | C108: 8143.331209 | D108: 3714.397382 | E108: 7472.572997 | F108: 1184.312964 | G108: 721.2479235 | H108: 326.257 | I108: 421.9058479 | J108: 418.4277355 | K108: 200.78616 | L108: 2133.599182 | M108: 2059.43086 | N108: 17440.54175 | O108: 16796.91567 | P108: 21051.51461 | Q108: 12134.04496 | R108: 8917.46965 | S108: 11999.15372 | T108: 16522.90363 | U108: -4523.749917 | V108: 5287.855433 | W108: 230.2876324 | X108: 5057.567801 | Y108: 359.5765096 | Z108: 439.818298 | AA108: -80.24178844 | AB108: 784.5217721 | AC108: 404.508194 | AD108: 380.0135781 | AE108: 2751.402421 | AF108: 1641.580048 | AG108: 1109.822373 | AH108: 42234.02446 | AI108: 31373.14276 | AJ108: 45201.01294 | AK108: 10860.8817 | AL108: 32682.91143 | AM108: 37768.71529 | AN108: -5085.803855 | AO108: 5775.077842 | AP108: 943.3555209 | AQ108: 872.6299268 | AR108: 8928.67678 | AS108: 9418.934416 | AT108: 261.0005398 | AU108: 251.3281008 | AV108: 6120.445256 | AW108: 6735.827028 | AX108: 358.0838907 | AY108: 342.395815 | AZ108: 1090.667981 | BA108: 864.7071651 | BB108: 1554.340749 | BC108: 1370.461173 | BD108: -6510.91582 | BE108: 5775.077842 | BF108: -735.8379782
A109: 2015-05-01 | B109: 9139.050995 | C109: 7088.521031 | D109: 3403.05298 | E109: 5803.297626 | F109: 1124.767905 | G109: 661.8638083 | H109: 390.9947664 | I109: 407.0071354 | J109: 482.2838288 | K109: 117.1512 | L109: 1793.934242 | M109: 1657.628933 | N109: 14352.41645 | O109: 15130.60321 | P109: 20490.45777 | Q109: 11855.344 | R109: 8635.113765 | S109: 12240.92948 | T109: 15998.76974 | U109: -3757.840257 | V109: 5413.423861 | W109: 346.7087923 | X109: 5066.715069 | Y109: 476.120276 | Z109: 504.823277 | AA109: -28.70300103 | AB109: 721.8800412 | AC109: 300.792349 | AD109: 421.0876922 | AE109: 2837.035301 | AF109: 1700.854933 | AG109: 1136.180368 | AH109: 42179.84673 | AI109: 30707.29309 | AJ109: 44205.48236 | AK109: 11472.55364 | AL109: 33249.62004 | AM109: 38121.33689 | AN109: -4871.716847 | AO109: 6600.836789 | AP109: 1417.027469 | AQ109: 758.2015144 | AR109: 8169.027615 | AS109: 8907.352697 | AT109: 252.0233334 | AU109: 318.6105694 | AV109: 5400.310624 | AW109: 5778.879845 | AX109: 203.3987448 | AY109: 309.5201225 | AZ109: 774.1818408 | BA109: 1261.518366 | BB109: 1406.362581 | BC109: 1734.18775 | BD109: -7949.848876 | BE109: 6600.836789 | BF109: -1349.012087
A110: 2015-06-01 | B110: 8255.479399 | C110: 6143.681008 | D110: 4020.282891 | E110: 5385.437425 | F110: 1581.204457 | G110: 613.896547 | H110: 422.111 | I110: 340.6276452 | J110: 413.472771 | K110: 70.50824909 | L110: 1897.187882 | M110: 1382.870619 | N110: 15919.08909 | O110: 19412.48998 | P110: 20817.73211 | Q110: 12273.93301 | R110: 8543.799106 | S110: 11755.10288 | T110: 15231.63951 | U110: -3476.536632 | V110: 5483.420009 | W110: 219.5069691 | X110: 5263.91304 | Y110: 487.8219528 | Z110: 418.3325268 | AA110: 69.48942596 | AB110: 783.2287686 | AC110: 312.8528431 | AD110: 470.3759255 | AE110: 1405.224937 | AF110: 1371.165214 | AG110: 34.05972219 | AH110: 40732.53066 | AI110: 29827.43007 | AJ110: 47636.05447 | AK110: 10905.10059 | AL110: 33753.15999 | AM110: 40062.67796 | AN110: -6309.517971 | AO110: 4595.582617 | AP110: 549.2312152 | AQ110: 752.8983833 | AR110: 8488.874476 | AS110: 7239.623435 | AT110: 337.8047938 | AU110: 520.4244902 | AV110: 5301.212744 | AW110: 5324.05915 | AX110: 278.3690782 | AY110: 343.4054475 | AZ110: 826.7777245 | BA110: 558.6797861 | BB110: 1476.267324 | BC110: 1768.888639 | BD110: -5449.526854 | BE110: 4595.582617 | BF110: -853.944237
A111: 2015-07-01 | B111: 7788.383443 | C111: 6116.13522 | D111: 4661.849705 | E111: 5862.423248 | F111: 1360.569988 | G111: 428.4739382 | H111: 552.7172383 | I111: 386.5196497 | J111: 467.3978847 | K111: 147.67 | L111: 1211.079946 | M111: 779.6997931 | N111: 12074.80567 | O111: 15620.88177 | P111: 20738.12271 | Q111: 12973.42496 | R111: 7764.69775 | S111: 12907.30994 | T111: 14851.89814 | U111: -1944.588207 | V111: 5768.804856 | W111: 271.663994 | X111: 5497.140862 | Y111: 551.7465172 | Z111: 359.8124927 | AA111: 191.9340245 | AB111: 732.4775651 | AC111: 228.6934381 | AD111: 503.784127 | AE111: 1356.20095 | AF111: 1087.352802 | AG111: 268.8481479 | AH111: 42055.51284 | AI111: 29773.21949 | AJ111: 46650.11615 | AK111: 12282.29335 | AL111: 30642.65833 | AM111: 39458.38314 | AN111: -8815.72481 | AO111: 3466.56854 | AP111: 2654.495127 | AQ111: 1710.151573 | AR111: 7902.656425 | AS111: 7712.520211 | AT111: 546.8135748 | AU111: 649.2386161 | AV111: 4806.010979 | AW111: 4798.934205 | AX111: 292.5361335 | AY111: 268.9095931 | AZ111: 1111.074281 | BA111: 839.8920509 | BB111: 1237.420897 | BC111: 1380.4211 | BD111: -4736.866081 | BE111: 3466.56854 | BF111: -1270.297541
A112: 2015-08-01 | B112: 9707.91362 | C112: 7415.735476 | D112: 2923.886487 | E112: 5534.864507 | F112: 1316.25748 | G112: 532.851566 | H112: 450.7630679 | I112: 464.7751378 | J112: 247.9812423 | K112: 136.2095539 | L112: 923.5323494 | M112: 793.5359791 | N112: 13533.84427 | O112: 14054.9742 | P112: 21929.92457 | Q112: 14817.36694 | R112: 7112.557624 | S112: 12597.82462 | T112: 15257.41206 | U112: -2659.587447 | V112: 5992.252508 | W112: 330.484559 | X112: 5661.767949 | Y112: 582.1700887 | Z112: 456.1258354 | AA112: 126.0442534 | AB112: 671.479175 | AC112: 284.34654 | AD112: 387.132635 | AE112: 1345.556953 | AF112: 1074.654025 | AG112: 270.9029279 | AH112: 43116.38698 | AI112: 32220.769 | AJ112: 47210.34454 | AK112: 10895.61798 | AL112: 31636.70875 | AM112: 39732.59696 | AN112: -8095.888205 | AO112: 2799.729775 | AP112: 2328.768901 | AQ112: 1994.191517 | AR112: 7350.594046 | AS112: 8482.072115 | AT112: 372.7619666 | AU112: 373.7154803 | AV112: 4965.775936 | AW112: 5598.787355 | AX112: 329.9817145 | AY112: 313.8870267 | AZ112: 3154.831402 | BA112: 779.1774012 | BB112: 1153.981518 | BC112: 1604.495236 | BD112: -4565.873703 | BE112: 2799.729775 | BF112: -1766.143928
A113: 2015-09-01 | B113: 7273.754542 | C113: 7330.713133 | D113: 3166.720679 | E113: 5475.661284 | F113: 1287.209701 | G113: 360.347374 | H113: 414.9242805 | I113: 360.7362068 | J113: 215.9432966 | K113: 110.094304 | L113: 927.7547165 | M113: 773.9286817 | N113: 14043.59497 | O113: 14748.43609 | P113: 22182.57175 | Q113: 15430.52624 | R113: 6752.045512 | S113: 12804.67926 | T113: 15271.44397 | U113: -2466.764712 | V113: 5898.21255 | W113: 204.101797 | X113: 5694.110753 | Y113: 461.6313813 | Z113: 336.8879387 | AA113: 124.7434425 | AB113: 712.928022 | AC113: 315.222619 | AD113: 397.705403 | AE113: 1347.157516 | AF113: 1036.550709 | AG113: 310.606807 | AH113: 43367.31959 | AI113: 32587.10016 | AJ113: 49792.70962 | AK113: 10780.21943 | AL113: 30237.81766 | AM113: 38556.69669 | AN113: -8318.879031 | AO113: 2461.340404 | AP113: 2186.61838 | AQ113: 1259.536159 | AR113: 7094.526504 | AS113: 8001.453119 | AT113: 314.7211279 | AU113: 350.9264817 | AV113: 4594.709657 | AW113: 4258.17285 | AX113: 272.6212347 | AY113: 223.1565657 | AZ113: 2233.218485 | BA113: 1773.736859 | BB113: 1490.58369 | BC113: 1276.029153 | BD113: -3824.3967 | BE113: 2461.340404 | BF113: -1363.056297
A114: 2015-10-01 | B114: 6890.049293 | C114: 6157.696936 | D114: 2712.764951 | E114: 6791.736617 | F114: 1164.379139 | G114: 312.784969 | H114: 413.3560247 | I114: 446.6768509 | J114: 331.3145862 | K114: 175.4878866 | L114: 945.3855872 | M114: 1137.142672 | N114: 14881.89663 | O114: 15530.05604 | P114: 21659.50758 | Q114: 14899.20001 | R114: 6760.307569 | S114: 12524.15557 | T114: 16615.33008 | U114: -4091.174509 | V114: 5870.248062 | W114: 169.211646 | X114: 5701.036416 | Y114: 355.8744338 | Z114: 328.7406702 | AA114: 27.1337636 | AB114: 575.4240053 | AC114: 261.5447445 | AD114: 313.8792608 | AE114: 1228.496002 | AF114: 1116.037446 | AG114: 112.4585562 | AH114: 42165.89583 | AI114: 33375.99261 | AJ114: 51686.49736 | AK114: 8789.903215 | AL114: 31472.8114 | AM114: 38939.19766 | AN114: -7466.386266 | AO114: 1323.51695 | AP114: 1605.423354 | AQ114: 1064.844832 | AR114: 7505.40854 | AS114: 7377.077684 | AT114: 322.3721364 | AU114: 344.6683965 | AV114: 4957.065254 | AW114: 5331.74021 | AX114: 192.0890722 | AY114: 176.952076 | AZ114: 1351.902268 | BA114: 1033.633176 | BB114: 1192.288193 | BC114: 1183.606576 | BD114: -3132.892881 | BE114: 1323.51695 | BF114: -1809.375932
A115: 2015-11-01 | B115: 8074.272691 | C115: 6573.355498 | D115: 2682.322233 | E115: 4701.74017 | F115: 1029.11405 | G115: 233.1998888 | H115: 524.4481768 | I115: 690.0556836 | J115: 295.6487967 | K115: 91.65010074 | L115: 916.0855704 | M115: 801.6280832 | N115: 11957.09213 | O115: 15394.7122 | P115: 21819.27033 | Q115: 15250.85992 | R115: 6568.410413 | S115: 12556.401 | T115: 15193.98012 | U115: -2637.579113 | V115: 6086.071426 | W115: 215.3257698 | X115: 5870.745656 | Y115: 489.6709 | Z115: 520.1638516 | AA115: -30.49295155 | AB115: 678.7395036 | AC115: 251.5892631 | AD115: 427.1502405 | AE115: 1178.798713 | AF115: 947.9249342 | AG115: 230.8737791 | AH115: 42808.95188 | AI115: 32380.00385 | AJ115: 53210.72953 | AK115: 10428.94802 | AL115: 30834.53297 | AM115: 40180.419 | AN115: -9345.886022 | AO115: 1083.062003 | AP115: 1610.86739 | AQ115: 654.43094 | AR115: 6226.109176 | AS115: 7046.108413 | AT115: 404.5642774 | AU115: 494.1778695 | AV115: 4271.22466 | AW115: 4362.130721 | AX115: 188.3429591 | AY115: 299.7697932 | AZ115: 1314.366936 | BA115: 714.0146815 | BB115: 1021.750912 | BC115: 1045.544481 | BD115: -2716.840889 | BE115: 1083.062003 | BF115: -1633.778886
A116: 2015-12-01 | B116: 7758.581813 | C116: 5732.163561 | D116: 1869.794522 | E116: 4976.838294 | F116: 945.543378 | G116: 399.383318 | H116: 505.6635209 | I116: 408.5428728 | J116: 484.580852 | K116: 173.8341119 | L116: 878.6370121 | M116: 942.5775804 | N116: 12383.57913 | O116: 14906.32606 | P116: 20777.37815 | Q116: 14431.18107 | R116: 6346.19708 | S116: 11830.9027 | T116: 14467.2963 | U116: -2636.393592 | V116: 6282.86126 | W116: 330.9826648 | X116: 5951.878595 | Y116: 399.8514209 | Z116: 330.4994369 | AA116: 69.35198406 | AB116: 570.5301364 | AC116: 185.755899 | AD116: 384.7742374 | AE116: 1118.572194 | AF116: 1041.170802 | AG116: 77.4013922 | AH116: 40978.33105 | AI116: 30823.221 | AJ116: 47162.81921 | AK116: 10155.11005 | AL116: 29321.02977 | AM116: 37236.84832 | AN116: -7915.818549 | AO116: 2239.291502 | AP116: 1439.936155 | AQ116: 2112.910382 | AR116: 6675.194044 | AS116: 7313.693563 | AT116: 219.4533519 | AU116: 391.7937187 | AV116: 3111.050366 | AW116: 3438.449188 | AX116: 381.4920961 | AY116: 318.9438552 | AZ116: 1839.248255 | BA116: 1546.823807 | BB116: 1646.377835 | BC116: 1782.76087 | BD116: -4306.154404 | BE116: 2239.291502 | BF116: -2066.862901
A117: 2016-01-01 | B117: 8541.747083 | C117: 5657.721151 | D117: 2061.543591 | E117: 4364.939359 | F117: 1713.638289 | G117: 781.4994221 | H117: 250.2194038 | I117: 213.7588986 | J117: 458.1984067 | K117: 124.4484272 | L117: 1214.260711 | M117: 832.4984724 | N117: 12504.53816 | O117: 17610.0997 | P117: 21309.02602 | Q117: 13855.18412 | R117: 7453.841902 | S117: 12104.85321 | T117: 14161.37234 | U117: -2056.51913 | V117: 6405.863904 | W117: 283.1690554 | X117: 6122.694849 | Y117: 419.8074519 | Z117: 354.6237295 | AA117: 65.18372236 | AB117: 622.5679602 | AC117: 219.7848984 | AD117: 402.7830618 | AE117: 1187.112918 | AF117: 1111.827677 | AG117: 75.28524082 | AH117: 41932.58725 | AI117: 29782.5979 | AJ117: 48900.07357 | AK117: 12149.98935 | AL117: 30427.88261 | AM117: 40138.33342 | AN117: -9710.450806 | AO117: 2439.538541 | AP117: 2063.480587 | AQ117: 2279.8574 | AR117: 5557.532875 | AS117: 5789.205613 | AT117: 303.5151041 | AU117: 534.7976073 | AV117: 2531.73277 | AW117: 2507.79413 | AX117: 380.4876485 | AY117: 271.54669 | AZ117: 2043.53208 | BA117: 389.3012527 | BB117: 1019.886038 | BC117: 1077.733156 | BD117: -3679.80703 | BE117: 2439.538541 | BF117: -1240.268489
A118: 2016-02-01 | B118: 7238.995965 | C118: 5735.800403 | D118: 1681.89071 | E118: 5165.575319 | F118: 1434.806507 | G118: 560.8338855 | H118: 273.6301385 | I118: 320.3139222 | J118: 304.753444 | K118: 185.6798204 | L118: 1074.221393 | M118: 1233.211691 | N118: 14162.4682 | O118: 14762.73392 | P118: 21254.62394 | Q118: 12848.61333 | R118: 8406.01061 | S118: 11754.07139 | T118: 15074.47088 | U118: -3320.399497 | V118: 6367.016608 | W118: 391.5185394 | X118: 5975.498069 | Y118: 454.8963392 | Z118: 467.1843537 | AA118: -12.28801456 | AB118: 581.0288643 | AC118: 252.78694 | AD118: 328.2419242 | AE118: 1094.034814 | AF118: 1321.468403 | AG118: -227.4335898 | AH118: 41505.67196 | AI118: 30356.04245 | AJ118: 48902.41949 | AK118: 11149.6295 | AL118: 30808.235 | AM118: 38498.34618 | AN118: -7690.111173 | AO118: 3459.518329 | AP118: 1418.792663 | AQ118: 2097.68348 | AR118: 4873.556151 | AS118: 5197.634984 | AT118: 369.5038801 | AU118: 372.9288121 | AV118: 4395.902668 | AW118: 4705.432188 | AX118: 422.0659529 | AY118: 273.9668933 | AZ118: 459.6364219 | BA118: 547.3292698 | BB118: 1119.843693 | BC118: 975.1335184 | BD118: -4842.111531 | BE118: 3459.518329 | BF118: -1382.593203
A119: 2016-03-01 | B119: 10449.67339 | C119: 7003.255062 | D119: 2021.294252 | E119: 6015.944939 | F119: 1236.597632 | G119: 463.740256 | H119: 348.638177 | I119: 465.1595256 | J119: 288.4679682 | K119: 194.4473196 | L119: 1341.189758 | M119: 1580.253828 | N119: 13656.32119 | O119: 14342.80424 | P119: 22986.23757 | Q119: 13367.42174 | R119: 9618.815828 | S119: 11375.59086 | T119: 15668.31728 | U119: -4292.726421 | V119: 6245.861677 | W119: 321.9759324 | X119: 5923.885745 | Y119: 428.3069486 | Z119: 542.2671521 | AA119: -113.9602035 | AB119: 531.748081 | AC119: 282.0050298 | AD119: 249.7430511 | AE119: 1236.409051 | AF119: 1673.109906 | AG119: -436.7008553 | AH119: 42804.15419 | AI119: 31855.09705 | AJ119: 48625.77896 | AK119: 10949.05714 | AL119: 28728.68386 | AM119: 35342.98532 | AN119: -6614.301461 | AO119: 4334.755682 | AP119: 1192.618903 | AQ119: 2404.940539 | AR119: 5790.137679 | AS119: 5435.309893 | AT119: 275.0221515 | AU119: 333.9262134 | AV119: 4460.172125 | AW119: 4939.159105 | AX119: 337.5752984 | AY119: 158.255488 | AZ119: 765.8296231 | BA119: 524.5771034 | BB119: 1852.983244 | BC119: 1344.595956 | BD119: -5356.503295 | BE119: 4334.755682 | BF119: -1021.747612
A120: 2016-04-01 | B120: 7378.832938 | C120: 5428.892955 | D120: 2592.861142 | E120: 4728.792346 | F120: 1284.607024 | G120: 393.5993688 | H120: 344.8136725 | I120: 479.9249167 | J120: 221.421225 | K120: 160.427005 | L120: 1002.749412 | M120: 1026.447052 | N120: 11089.6566 | O120: 12932.23066 | P120: 22368.14847 | Q120: 12963.37727 | R120: 9404.771199 | S120: 11702.13201 | T120: 15431.57085 | U120: -3729.438847 | V120: 6259.929644 | W120: 252.8606425 | X120: 6007.069002 | Y120: 411.3836145 | Z120: 627.8866854 | AA120: -216.5030709 | AB120: 496.0107085 | AC120: 252.5126058 | AD120: 243.4981027 | AE120: 1127.372162 | AF120: 1641.921837 | AG120: -514.5496752 | AH120: 42364.97661 | AI120: 31170.1299 | AJ120: 45776.08262 | AK120: 11194.84671 | AL120: 27879.42808 | AM120: 35303.61944 | AN120: -7424.191359 | AO120: 3770.655352 | AP120: 1035.108344 | AQ120: 1117.429768 | AR120: 6323.676821 | AS120: 6325.177538 | AT120: 332.3682071 | AU120: 387.2957309 | AV120: 3113.788626 | AW120: 3291.877294 | AX120: 216.4877511 | AY120: 126.9210019 | AZ120: 691.5029253 | BA120: 824.4636031 | BB120: 1632.321778 | BC120: 1027.311607 | BD120: -5040.242988 | BE120: 3770.655352 | BF120: -1269.587636
A121: 2016-05-01 | B121: 9568.153676 | C121: 7832.263319 | D121: 2872.343286 | E121: 4126.578192 | F121: 1286.489209 | G121: 379.5932518 | H121: 425.6004228 | I121: 312.9393964 | J121: 363.4087313 | K121: 78.46213051 | L121: 1095.017943 | M121: 1013.580265 | N121: 10742.39824 | O121: 16128.59815 | P121: 21844.43026 | Q121: 13398.73756 | R121: 8445.692697 | S121: 12193.50713 | T121: 14177.11256 | U121: -1983.605435 | V121: 6480.9193 | W121: 351.1715551 | X121: 6129.747745 | Y121: 465.4931613 | Z121: 530.671047 | AA121: -65.17788569 | AB121: 635.3280253 | AC121: 228.4774375 | AD121: 406.8505878 | AE121: 1149.315295 | AF121: 1435.913182 | AG121: -286.5978865 | AH121: 42768.99317 | AI121: 30122.08334 | AJ121: 47225.7926 | AK121: 12646.90982 | AL121: 26815.03458 | AM121: 36348.29444 | AN121: -9533.25986 | AO121: 3113.649963 | AP121: 1465.92709 | AQ121: 729.8134293 | AR121: 5935.262732 | AS121: 6031.7583 | AT121: 353.171974 | AU121: 353.5627991 | AV121: 2998.173098 | AW121: 2644.255757 | AX121: 204.2026605 | AY121: 112.6396017 | AZ121: 733.5157238 | BA121: 725.3117584 | BB121: 1119.04442 | BC121: 1532.539769 | BD121: -4571.838919 | BE121: 3113.649963 | BF121: -1458.188956
A122: 2016-06-01 | B122: 6247.148186 | C122: 6832.103317 | D122: 2250.780135 | E122: 5441.082197 | F122: 1510.53658 | G122: 616.0891764 | H122: 413.3101368 | I122: 679.1086761 | J122: 293.3886067 | K122: 91.0209927 | L122: 1027.380483 | M122: 1166.990248 | N122: 13935.4464 | O122: 13575.33194 | P122: 20951.51749 | Q122: 13227.58314 | R122: 7723.934343 | S122: 11826.95445 | T122: 14628.5997 | U122: -2801.64525 | V122: 6496.845846 | W122: 418.8060645 | X122: 6078.039782 | Y122: 386.5846824 | Z122: 671.0913471 | AA122: -284.5066648 | AB122: 668.8740265 | AC122: 220.0240084 | AD122: 448.8500181 | AE122: 1072.091842 | AF122: 1448.11202 | AG122: -376.0201781 | AH122: 41402.86763 | AI122: 30613.12227 | AJ122: 47193.67092 | AK122: 10789.74537 | AL122: 24837.1626 | AM122: 31687.6136 | AN122: -6850.451 | AO122: 3939.294367 | AP122: 1393.831183 | AQ122: 1038.883961 | AR122: 5938.739097 | AS122: 6687.154931 | AT122: 575.0908415 | AU122: 550.5893165 | AV122: 2058.632282 | AW122: 2748.98788 | AX122: 251.0387814 | AY122: 171.2032285 | AZ122: 866.9207864 | BA122: 854.3578982 | BB122: 1212.608611 | BC122: 1343.72258 | BD122: -5456.195795 | BE122: 3939.294367 | BF122: -1516.901428
A123: 2016-07-01 | B123: 8293.810074 | C123: 7912.640584 | D123: 2469.103632 | E123: 5207.055217 | F123: 1434.888315 | G123: 366.089628 | H123: 239.5045916 | I123: 311.4925161 | J123: 255.7003887 | K123: 128.286464 | L123: 1081.465153 | M123: 1003.537486 | N123: 12188.37341 | O123: 13670.77788 | P123: 21190.40003 | Q123: 14138.18017 | R123: 7052.219862 | S123: 11457.78089 | T123: 14930.84194 | U123: -3473.061048 | V123: 6451.18574 | W123: 203.7132527 | X123: 6247.472487 | Y123: 344.3901157 | Z123: 580.8413181 | AA123: -236.4512024 | AB123: 712.3255057 | AC123: 238.5046288 | AD123: 473.8208769 | AE123: 1227.33449 | AF123: 1336.373002 | AG123: -109.0385118 | AH123: 41383.41677 | AI123: 31428.45431 | AJ123: 47254.63531 | AK123: 9954.962463 | AL123: 24956.76762 | AM123: 32691.14976 | AN123: -7734.382132 | AO123: 2220.580331 | AP123: 2834.053308 | AQ123: 715.724332 | AR123: 5004.4752 | AS123: 6345.609563 | AT123: 380.1068648 | AU123: 475.1055689 | AV123: 2030.818227 | AW123: 2415.570836 | AX123: 228.517007 | AY123: 213.5058597 | AZ123: 566.5001303 | BA123: 860.1507529 | BB123: 2286.020606 | BC123: 1493.934677 | BD123: -4780.528991 | BE123: 2220.580331 | BF123: -2559.94866
A124: 2016-08-01 | B124: 9417.815681 | C124: 8520.089871 | D124: 2539.46751 | E124: 4285.325017 | F124: 1609.298197 | G124: 551.6039109 | H124: 483.4784507 | I124: 343.38925 | J124: 413.5707439 | K124: 120.9470951 | L124: 1234.035228 | M124: 923.8927806 | N124: 11019.20245 | O124: 14329.63427 | P124: 21303.45794 | Q124: 14326.17582 | R124: 6977.282117 | S124: 11665.20824 | T124: 14693.90622 | U124: -3028.697986 | V124: 6703.463908 | W124: 245.0336528 | X124: 6458.430255 | Y124: 427.0973287 | Z124: 489.4091266 | AA124: -62.31179792 | AB124: 899.3856664 | AC124: 268.5832097 | AD124: 630.8024567 | AE124: 1559.491783 | AF124: 1265.126239 | AG124: 294.365545 | AH124: 42558.10487 | AI124: 31288.23427 | AJ124: 50822.81864 | AK124: 11269.87059 | AL124: 24104.22988 | AM124: 33687.75933 | AN124: -9583.529454 | AO124: 1686.341136 | AP124: 1752.066145 | AQ124: 992.142862 | AR124: 5844.876115 | AS124: 5918.950861 | AT124: 443.1276273 | AU124: 472.7372834 | AV124: 2881.188762 | AW124: 2994.355754 | AX124: 203.3096131 | AY124: 228.1186662 | AZ124: 746.9062139 | BA124: 596.1272001 | BB124: 1430.100923 | BC124: 1277.728003 | BD124: -3857.968832 | BE124: 1686.341136 | BF124: -2171.627696
A125: 2016-09-01 | B125: 7222.979353 | C125: 7861.523724 | D125: 2107.763293 | E125: 5201.138133 | F125: 1562.112254 | G125: 473.0631843 | H125: 336.5121936 | I125: 394.7615661 | J125: 293.1380743 | K125: 174.71351 | L125: 949.7036101 | M125: 1048.857843 | N125: 13751.70785 | O125: 16153.30121 | P125: 20464.09373 | Q125: 13661.93809 | R125: 6802.155632 | S125: 11863.44913 | T125: 14814.72117 | U125: -2951.272043 | V125: 6816.732402 | W125: 238.0977462 | X125: 6578.634656 | Y125: 387.8685916 | Z125: 397.7185153 | AA125: -9.849923712 | AB125: 851.3885223 | AC125: 347.8548 | AD125: 503.5337223 | AE125: 1364.601336 | AF125: 1204.982998 | AG125: 159.6183384 | AH125: 41748.13371 | AI125: 30665.31332 | AJ125: 53614.21655 | AK125: 11082.82038 | AL125: 24885.88358 | AM125: 34184.08976 | AN125: -9298.206184 | AO125: 1784.614198 | AP125: 1351.05722 | AQ125: 598.9048584 | AR125: 5589.568395 | AS125: 6002.282404 | AT125: 284.7394781 | AU125: 471.9575698 | AV125: 2581.010362 | AW125: 2796.443098 | AX125: 179.5280909 | AY125: 160.2202523 | AZ125: 798.7124911 | BA125: 654.3730142 | BB125: 1263.750913 | BC125: 1769.314809 | BD125: -4681.671872 | BE125: 1784.614198 | BF125: -2897.057675
A126: 2016-10-01 | B126: 8188.389105 | C126: 6920.229245 | D126: 2107.178681 | E126: 5043.458196 | F126: 1252.317342 | G126: 416.7592792 | H126: 256.7718171 | I126: 341.8779789 | J126: 283.7776466 | K126: 176.7795 | L126: 661.2272332 | M126: 947.2157864 | N126: 12179.91511 | O126: 10796.24068 | P126: 20806.13841 | Q126: 12692.33152 | R126: 8113.806893 | S126: 11372.59248 | T126: 15315.67078 | U126: -3943.078296 | V126: 6964.621295 | W126: 329.7529659 | X126: 6634.868329 | Y126: 357.4339739 | Z126: 415.4719084 | AA126: -58.03793456 | AB126: 826.0241238 | AC126: 355.1448 | AD126: 470.8793238 | AE126: 1117.599908 | AF126: 1285.796695 | AG126: -168.1967875 | AH126: 41444.41019 | AI126: 30394.16866 | AJ126: 55816.09167 | AK126: 11050.24153 | AL126: 24698.43933 | AM126: 32493.22496 | AN126: -7794.785633 | AO126: 3255.455896 | AP126: 904.726491 | AQ126: 1311.388401 | AR126: 5537.791268 | AS126: 6069.924052 | AT126: 254.1183474 | AU126: 414.8196345 | AV126: 2165.331233 | AW126: 2508.740801 | AX126: 164.1545824 | AY126: 158.3272041 | AZ126: 851.6202875 | BA126: 599.5804592 | BB126: 989.2442442 | BC126: 939.5452117 | BD126: -5738.9824 | BE126: 3255.455896 | BF126: -2483.526504
A127: 2016-11-01 | B127: 7952.758112 | C127: 7462.312687 | D127: 2719.341858 | E127: 5760.0755 | F127: 1549.540478 | G127: 441.955618 | H127: 416.9194538 | I127: 345.9538017 | J127: 259.7603031 | K127: 179.6839884 | L127: 1133.083564 | M127: 1007.47865 | N127: 13232.38119 | O127: 13482.79586 | P127: 21086.27657 | Q127: 12726.53941 | R127: 8359.737152 | S127: 11948.60348 | T127: 16076.49525 | U127: -4127.891777 | V127: 7145.293646 | W127: 287.4946519 | X127: 6857.798994 | Y127: 413.1132081 | Z127: 400.2143889 | AA127: 12.89881928 | AB127: 830.5453768 | AC127: 337.6149884 | AD127: 492.9303884 | AE127: 1281.51435 | AF127: 1318.164933 | AG127: -36.65058237 | AH127: 42705.34662 | AI127: 31146.52363 | AJ127: 64411.67773 | AK127: 11558.82299 | AL127: 26670.50792 | AM127: 35064.42447 | AN127: -8393.916545 | AO127: 3164.906449 | AP127: 1697.917865 | AQ127: 2171.318347 | AR127: 6761.326995 | AS127: 6496.726535 | AT127: 358.5928087 | AU127: 526.5095226 | AV127: 3192.723352 | AW127: 3157.653541 | AX127: 301.3655135 | AY127: 146.5868148 | AZ127: 1220.449883 | BA127: 685.2581594 | BB127: 1215.418224 | BC127: 1509.718031 | BD127: -5455.783628 | BE127: 3164.906449 | BF127: -2290.877179
A128: 2016-12-01 | B128: 7619.319736 | C128: 6646.335174 | D128: 1932.650065 | E128: 6075.534673 | F128: 1375.834479 | G128: 477.4666311 | H128: 398.044187 | I128: 415.6211741 | J128: 233.3321309 | K128: 125.2858462 | L128: 1284.901752 | M128: 1437.928888 | N128: 12001.47324 | O128: 12036.3782 | P128: 20394.21834 | Q128: 12106.78178 | R128: 8287.436561 | S128: 11554.62794 | T128: 15522.26092 | U128: -3967.632979 | V128: 7062.228321 | W128: 222.0513205 | X128: 6840.177 | Y128: 368.7420604 | Z128: 361.2354806 | AA128: 7.50657975 | AB128: 816.1547074 | AC128: 320.3267146 | AD128: 495.8279928 | AE128: 1294.430049 | AF128: 1446.732158 | AG128: -152.3021091 | AH128: 41490.40142 | AI128: 29979.38837 | AJ128: 63110.31766 | AK128: 11511.01305 | AL128: 23914.54744 | AM128: 32480.50016 | AN128: -8565.95272 | AO128: 2945.060326 | AP128: 1658.864605 | AQ128: 1229.690773 | AR128: 7458.656277 | AS128: 8253.556137 | AT128: 322.5966875 | AU128: 334.0194881 | AV128: 3100.887616 | AW128: 3144.95371 | AX128: 197.0072693 | AY128: 111.2258692 | AZ128: 1765.82831 | BA128: 1058.231525 | BB128: 1540.926974 | BC128: 1490.896966 | BD128: -4559.78777 | BE128: 2945.060326 | BF128: -1614.727444
A129: 2017-01-01 | B129: 6971.664977 | C129: 7382.326872 | D129: 2297.345869 | E129: 5802.56359 | F129: 1658.769133 | G129: 323.547547 | H129: 210.1175402 | I129: 468.4233914 | J129: 342.9211446 | K129: 167.4095 | L129: 852.5239889 | M129: 1024.975496 | N129: 12930.59921 | O129: 11333.19124 | P129: 20119.72988 | Q129: 12136.34377 | R129: 7983.386113 | S129: 12052.67929 | T129: 15343.12441 | U129: -3290.445118 | V129: 7174.675335 | W129: 225.6605572 | X129: 6949.014778 | Y129: 309.5804243 | Z129: 558.8549402 | AA129: -249.274516 | AB129: 743.7494665 | AC129: 280.2304782 | AD129: 463.5189883 | AE129: 1136.300225 | AF129: 1547.337439 | AG129: -411.0372134 | AH129: 41536.71462 | AI129: 30091.55159 | AJ129: 59638.59512 | AK129: 11445.16303 | AL129: 26219.29679 | AM129: 33163.71462 | AN129: -6944.417827 | AO129: 4500.745205 | AP129: 1343.024531 | AQ129: 952.963673 | AR129: 5934.221219 | AS129: 7188.024634 | AT129: 256.1487512 | AU129: 315.789539 | AV129: 2868.328318 | AW129: 3330.296628 | AX129: 132.6061339 | AY129: 256.5369548 | AZ129: 990.0833513 | BA129: 967.5805766 | BB129: 1384.615654 | BC129: 1225.69763 | BD129: -5863.657856 | BE129: 4500.745205 | BF129: -1362.91265
A130: 2017-02-01 | B130: 6040.990477 | C130: 5259.33307 | D130: 1538.117735 | E130: 4133.458436 | F130: 1357.171739 | G130: 261.5411992 | H130: 364.5500418 | I130: 393.6594859 | J130: 262.4964728 | K130: 71.18537263 | L130: 895.8843091 | M130: 848.9462883 | N130: 11162.58501 | O130: 11009.14122 | P130: 19887.07657 | Q130: 11527.20143 | R130: 8359.875139 | S130: 12033.15366 | T130: 15289.69988 | U130: -3256.54622 | V130: 7073.660105 | W130: 226.3625538 | X130: 6847.297552 | Y130: 305.2420347 | Z130: 502.9626964 | AA130: -197.7206618 | AB130: 810.8365393 | AC130: 283.3890116 | AD130: 527.4475277 | AE130: 1075.951233 | AF130: 1327.857098 | AG130: -251.9058653 | AH130: 41185.92014 | AI130: 29157.47267 | AJ130: 58800.05114 | AK130: 12028.44747 | AL130: 26603.04659 | AM130: 33141.09177 | AN130: -6538.045179 | AO130: 5490.402292 | AP130: 522.8422492 | AQ130: 1595.595587 | AR130: 5202.296339 | AS130: 5147.683507 | AT130: 277.2005335 | AU130: 284.8198438 | AV130: 1392.8381 | AW130: 1655.895704 | AX130: 174.6166605 | AY130: 197.8277858 | AZ130: 719.4379594 | BA130: 742.3368355 | BB130: 1063.484444 | BC130: 1127.112221 | BD130: -6961.430024 | BE130: 5490.402292 | BF130: -1471.027733
A131: 2017-03-01 | B131: 6574.443205 | C131: 6475.914521 | D131: 2300.24758 | E131: 5323.330398 | F131: 1739.637924 | G131: 869.5063936 | H131: 620.190018 | I131: 314.9828308 | J131: 326.0326524 | K131: 70.65608292 | L131: 1394.60386 | M131: 1057.028372 | N131: 14826.52326 | O131: 17159.53158 | P131: 19742.24688 | Q131: 11233.99608 | R131: 8508.250794 | S131: 11862.25416 | T131: 15001.01267 | U131: -3138.758511 | V131: 7261.696717 | W131: 405.2689294 | X131: 6856.427788 | Y131: 472.4743995 | Z131: 391.1537255 | AA131: 81.32067405 | AB131: 935.8803602 | AC131: 283.121595 | AD131: 652.7587652 | AE131: 1371.967154 | AF131: 1232.536024 | AG131: 139.4311296 | AH131: 41646.51967 | AI131: 28547.08903 | AJ131: 60810.7294 | AK131: 13099.43064 | AL131: 27873.829 | AM131: 37004.78045 | AN131: -9130.951444 | AO131: 3968.479196 | AP131: 1328.960444 | AQ131: 1156.444432 | AR131: 6595.816992 | AS131: 6879.404806 | AT131: 597.273572 | AU131: 686.6107311 | AV131: 3984.94525 | AW131: 3923.446142 | AX131: 160.0259327 | AY131: 220.6042132 | AZ131: 1332.769175 | BA131: 1072.476148 | BB131: 2292.314213 | BC131: 1771.259425 | BD131: -6498.181061 | BE131: 3968.479196 | BF131: -2529.701865
A132: 2017-04-01 | B132: 5647.290065 | C132: 5508.010012 | D132: 2300.58573 | E132: 4766.364555 | F132: 1356.663257 | G132: 218.5675172 | H132: 389.0187003 | I132: 318.7510712 | J132: 282.4470855 | K132: 76.06625673 | L132: 1002.827651 | M132: 913.281242 | N132: 11184.03559 | O132: 13875.58269 | P132: 18545.86294 | Q132: 10109.34933 | R132: 8436.513605 | S132: 12223.31154 | T132: 14576.55869 | U132: -2353.247148 | V132: 7237.922399 | W132: 216.5850271 | X132: 7021.337372 | Y132: 511.0271934 | Z132: 389.3653637 | AA132: 121.6618297 | AB132: 778.610355 | AC132: 120.0403888 | AD132: 658.5699661 | AE132: 1336.238373 | AF132: 1141.745546 | AG132: 194.4928276 | AH132: 40632.9728 | AI132: 26553.64435 | AJ132: 62144.39604 | AK132: 14079.32845 | AL132: 26997.48782 | AM132: 37758.83204 | AN132: -10761.34422 | AO132: 3317.98423 | AP132: 806.2142207 | AQ132: 900.9063568 | AR132: 5859.710659 | AS132: 5391.576781 | AT132: 259.4957125 | AU132: 310.0861086 | AV132: 3123.818812 | AW132: 3029.8866 | AX132: 207.8557919 | AY132: 189.6871768 | AZ132: 919.8819261 | BA132: 650.3025683 | BB132: 1589.650993 | BC132: 1111.761929 | BD132: -5140.386408 | BE132: 3317.98423 | BF132: -1822.402177
A133: 2017-05-01 | B133: 7609.41634 | C133: 6775.253507 | D133: 3366.804793 | E133: 4576.008172 | F133: 1769.47604 | G133: 390.0950655 | H133: 597.5490216 | I133: 318.0558333 | J133: 329.3957473 | K133: 94.44293328 | L133: 1300.335439 | M133: 857.3414668 | N133: 16123.71256 | O133: 18010.03626 | P133: 19329.26551 | Q133: 10554.1116 | R133: 8775.153911 | S133: 13294.03148 | T133: 14342.37688 | U133: -1048.345397 | V133: 7408.173582 | W133: 279.0286643 | X133: 7129.144918 | Y133: 720.3490743 | Z133: 360.2128638 | AA133: 360.1362105 | AB133: 922.0917627 | AC133: 136.4817201 | AD133: 785.6100426 | AE133: 1572.152557 | AF133: 1036.636476 | AG133: 535.5160813 | AH133: 43246.06397 | AI133: 26708.84821 | AJ133: 68108.57843 | AK133: 16537.21577 | AL133: 29669.53795 | AM133: 41610.81784 | AN133: -11941.27989 | AO133: 4595.935877 | AP133: 646.1218695 | AQ133: 947.7337175 | AR133: 6279.168806 | AS133: 6705.719953 | AT133: 364.7778479 | AU133: 487.9898064 | AV133: 4297.412635 | AW133: 4128.538257 | AX133: 178.1024465 | AY133: 389.604757 | AZ133: 1233.86652 | BA133: 1556.941525 | BB133: 1560.588895 | BC133: 1761.981911 | BD133: -6751.324799 | BE133: 4595.935877 | BF133: -2155.388922
A134: 2017-06-01 | B134: 6749.792314 | C134: 6162.133327 | D134: 1921.878676 | E134: 4739.883026 | F134: 1529.89888 | G134: 343.3670006 | H134: 308.336187 | I134: 378.4751773 | J134: 377.9946896 | K134: 112.984167 | L134: 1148.381847 | M134: 1142.976199 | N134: 17064.81637 | O134: 16736.5041 | P134: 20124.35022 | Q134: 10422.82083 | R134: 9701.529392 | S134: 13221.76595 | T134: 13813.96547 | U134: -592.199518 | V134: 7323.617041 | W134: 227.1489229 | X134: 7096.468118 | Y134: 665.1288414 | Z134: 364.6842377 | AA134: 300.4446036 | AB134: 1076.131324 | AC134: 198.3624078 | AD134: 877.7689158 | AE134: 1457.221741 | AF134: 1038.506359 | AG134: 418.7153819 | AH134: 43868.21512 | AI134: 26065.48823 | AJ134: 66323.0777 | AK134: 17802.72689 | AL134: 29952.87374 | AM134: 41170.40388 | AN134: -11217.53014 | AO134: 6585.196754 | AP134: 1277.221533 | AQ134: 1148.204461 | AR134: 5796.04287 | AS134: 6870.364221 | AT134: 373.8723902 | AU134: 289.5675548 | AV134: 3050.613236 | AW134: 3375.447423 | AX134: 136.7412112 | AY134: 398.9315649 | AZ134: 1367.535669 | BA134: 1832.398925 | BB134: 2711.038191 | BC134: 2155.761032 | BD134: -8723.891801 | BE134: 6585.196754 | BF134: -2138.695047
A135: 2017-07-01 | B135: 5600.111122 | C135: 4992.326559 | D135: 1902.983517 | E135: 5319.254509 | F135: 1524.085792 | G135: 276.648562 | H135: 409.5133582 | I135: 676.2701321 | J135: 378.0908083 | K135: 114.6555767 | L135: 931.480136 | M135: 1095.284874 | N135: 15107.23836 | O135: 15999.70023 | P135: 21634.43781 | Q135: 11175.74131 | R135: 10458.6965 | S135: 13142.19722 | T135: 14903.91761 | U135: -1761.720389 | V135: 7426.172817 | W135: 215.0952543 | X135: 7211.077563 | Y135: 612.4081153 | Z135: 556.3693559 | AA135: 56.03875941 | AB135: 1121.828738 | AC135: 223.9099946 | AD135: 897.9187436 | AE135: 1592.911443 | AF135: 1419.087293 | AG135: 173.8241509 | AH135: 45529.95614 | AI135: 28494.12081 | AJ135: 73750.05102 | AK135: 17035.83533 | AL135: 30440.72335 | AM135: 38361.07355 | AN135: -7920.350203 | AO135: 9115.485127 | AP135: 852.2516941 | AQ135: 2214.10067 | AR135: 5068.438119 | AS135: 5081.387506 | AT135: 210.6628363 | AU135: 261.1042285 | AV135: 2817.446943 | AW135: 3137.364541 | AX135: 151.4648191 | AY135: 352.0022395 | AZ135: 889.8121569 | BA135: 857.2830834 | BB135: 2277.18166 | BC135: 1893.226514 | BD135: -10875.66652 | BE135: 9115.485127 | BF135: -1760.181395
A136: 2017-08-01 | B136: 6476.979315 | C136: 6367.295164 | D136: 2027.480953 | E136: 5798.291187 | F136: 1774.032706 | G136: 430.4209985 | H136: 536.2689214 | I136: 649.4169212 | J136: 460.8774121 | K136: 186.839018 | L136: 1474.619966 | M136: 1285.251243 | N136: 18369.32455 | O136: 15986.3602 | P136: 22249.61433 | Q136: 10888.26139 | R136: 11361.35294 | S136: 13471.06914 | T136: 15770.65278 | U136: -2299.58364 | V136: 7414.339641 | W136: 236.3201053 | X136: 7178.019536 | Y136: 603.2224499 | Z136: 633.6543955 | AA136: -30.43194558 | AB136: 1291.938663 | AC136: 301.5147558 | AD136: 990.4239068 | AE136: 1986.210358 | AF136: 1550.404387 | AG136: 435.8059709 | AH136: 47016.39458 | AI136: 29380.80781 | AJ136: 79828.98993 | AK136: 17635.58677 | AL136: 33734.44603 | AM136: 41131.02695 | AN136: -7396.580916 | AO136: 10239.00585 | AP136: 1642.067463 | AQ136: 1381.522556 | AR136: 5983.104088 | AS136: 6464.858118 | AT136: 388.7072326 | AU136: 402.4481104 | AV136: 3172.730502 | AW136: 3440.950046 | AX136: 234.3297078 | AY136: 402.7483434 | AZ136: 983.3940647 | BA136: 1282.678153 | BB136: 2031.357186 | BC136: 1524.098954 | BD136: -12072.63323 | BE136: 10239.00585 | BF136: -1833.627381
A137: 2017-09-01 | B137: 6641.940367 | C137: 5737.42618 | D137: 1759.1101 | E137: 5231.491468 | F137: 1206.283075 | G137: 449.5652254 | H137: 472.6145868 | I137: 317.0596194 | J137: 502.6278875 | K137: 198.4075834 | L137: 1000.681848 | M137: 936.1929605 | N137: 14751.3004 | O137: 14279.35003 | P137: 22260.69307 | Q137: 10590.7513 | R137: 11669.94177 | S137: 13286.19043 | T137: 15843.36839 | U137: -2557.177966 | V137: 7584.589738 | W137: 356.4291192 | X137: 7228.160619 | Y137: 636.3237596 | Z137: 580.0917538 | AA137: 56.23200587 | AB137: 1398.934651 | AC137: 369.0871004 | AD137: 1029.847551 | AE137: 1561.716243 | AF137: 1417.372954 | AG137: 144.343289 | AH137: 46728.44789 | AI137: 29157.10062 | AJ137: 76965.84288 | AK137: 17571.34727 | AL137: 32081.34999 | AM137: 39434.6835 | AN137: -7353.333505 | AO137: 10218.01377 | AP137: 1225.463546 | AQ137: 2053.643318 | AR137: 5810.987857 | AS137: 6545.41487 | AT137: 298.6915085 | AU137: 366.4508926 | AV137: 2330.098691 | AW137: 2408.567233 | AX137: 365.5775074 | AY137: 379.1282134 | AZ137: 1568.414351 | BA137: 1130.24246 | BB137: 2121.070788 | BC137: 1511.398054 | BD137: -12694.70308 | BE137: 10218.01377 | BF137: -2476.689316
A138: 2017-10-01 | B138: 6821.771252 | C138: 5911.704861 | D138: 1860.29142 | E138: 6219.02238 | F138: 1425.26739 | G138: 289.8288422 | H138: 740.7307782 | I138: 474.5448378 | J138: 421.9001708 | K138: 147.3056724 | L138: 1186.251016 | M138: 998.9032714 | N138: 14862.02124 | O138: 14362.5134 | P138: 24114.24061 | Q138: 11258.87916 | R138: 12855.36144 | S138: 12665.26594 | T138: 16970.30292 | U138: -4305.036982 | V138: 7612.004451 | W138: 281.097023 | X138: 7330.907428 | Y138: 921.7294693 | Z138: 555.9536626 | AA138: 365.7758068 | AB138: 1372.333903 | AC138: 342.8685097 | AD138: 1029.465394 | AE138: 1669.584833 | AF138: 1387.384493 | AG138: 282.2003397 | AH138: 48355.1592 | AI138: 30796.48577 | AJ138: 80249.00833 | AK138: 17558.67343 | AL138: 31766.1063 | AM138: 39922.16728 | AN138: -8156.060983 | AO138: 9402.612447 | AP138: 1661.140976 | AQ138: 2628.914356 | AR138: 6973.229821 | AS138: 6528.304229 | AT138: 396.2475359 | AU138: 407.2804727 | AV138: 3324.316101 | AW138: 3332.016304 | AX138: 352.9698039 | AY138: 795.4000423 | AZ138: 988.5898074 | BA138: 898.4897476 | BB138: 2610.419245 | BC138: 1457.574991 | BD138: -12451.70808 | BE138: 9402.612447 | BF138: -3049.095632
A139: 2017-11-01 | B139: 7073.78254 | C139: 4902.765858 | D139: 2524.818472 | E139: 6254.557376 | F139: 1420.169334 | G139: 284.3626839 | H139: 438.8169261 | I139: 294.2338826 | J139: 342.0683473 | K139: 179.2446702 | L139: 1264.716307 | M139: 996.5799662 | N139: 15635.89138 | O139: 16036.31657 | P139: 24356.41539 | Q139: 10072.99436 | R139: 14283.42103 | S139: 12976.25909 | T139: 16360.40044 | U139: -3384.141346 | V139: 7734.112136 | W139: 192.6877392 | X139: 7541.424396 | Y139: 1005.062325 | Z139: 527.3355782 | AA139: 477.7267472 | AB139: 1466.892776 | AC139: 428.9890783 | AD139: 1037.903698 | AE139: 1930.017229 | AF139: 1548.41429 | AG139: 381.6029386 | AH139: 49468.75895 | AI139: 29130.82148 | AJ139: 82500.88073 | AK139: 20337.93746 | AL139: 33085.89335 | AM139: 42816.0705 | AN139: -9730.177155 | AO139: 10607.76031 | AP139: 1417.389726 | AQ139: 3086.985991 | AR139: 7658.272415 | AS139: 7488.512762 | AT139: 530.2484771 | AU139: 639.8066826 | AV139: 3093.741332 | AW139: 2885.702035 | AX139: 433.2047215 | AY139: 603.730657 | AZ139: 1654.017194 | BA139: 908.4953454 | BB139: 2232.311051 | BC139: 1354.086292 | BD139: -12463.54655 | BE139: 10607.76031 | BF139: -1855.786242
A140: 2017-12-01 | B140: 6754.351166 | C140: 3972.995767 | D140: 2979.660698 | E140: 7535.150198 | F140: 1403.783893 | G140: 443.4208278 | H140: 535.716975 | I140: 578.8160833 | J140: 656.7696363 | K140: 119.6640801 | L140: 1214.49102 | M140: 1318.57662 | N140: 18109.86604 | O140: 16647.23955 | P140: 24833.27413 | Q140: 9487.325567 | R140: 15345.94856 | S140: 13147.80652 | T140: 16140.68308 | U140: -2992.876557 | V140: 7897.938408 | W140: 300.0765996 | X140: 7597.861809 | Y140: 855.4503729 | Z140: 507.990389 | AA140: 347.4599839 | AB140: 1640.502462 | AC140: 367.5275087 | AD140: 1272.974953 | AE140: 1805.16753 | AF140: 1741.156619 | AG140: 64.01091138 | AH140: 50180.13942 | AI140: 28544.75976 | AJ140: 82204.01154 | AK140: 21635.37966 | AL140: 34092.96147 | AM140: 43745.56303 | AN140: -9652.601566 | AO140: 11982.77809 | AP140: 2151.152627 | AQ140: 3093.543504 | AR140: 8189.976539 | AS140: 9535.116385 | AT140: 485.1130073 | AU140: 450.4683914 | AV140: 2735.752321 | AW140: 3047.746324 | AX140: 308.112599 | AY140: 511.5052533 | AZ140: 2556.805169 | BA140: 1600.464776 | BB140: 2609.696997 | BC140: 2493.999136 | BD140: -13932.21565 | BE140: 11982.77809 | BF140: -1949.437558
A141: 2018-01-01 | B141: 7177.960095 | C141: 4916.763261 | D141: 1914.160605 | E141: 5388.743343 | F141: 1366.874133 | G141: 344.4285442 | H141: 475.6957 | I141: 504.113432 | J141: 906.970153 | K141: 198.3260956 | L141: 1283.349063 | M141: 1513.170399 | N141: 14920.01035 | O141: 17127.96982 | P141: 26826.30291 | Q141: 10675.14946 | R141: 16151.15344 | S141: 12880.61679 | T141: 15800.52588 | U141: -2919.909089 | V141: 7900.883961 | W141: 194.1141921 | X141: 7706.769769 | Y141: 959.7748837 | Z141: 640.7508054 | AA141: 319.0240783 | AB141: 1817.047603 | AC141: 383.8217591 | AD141: 1433.225844 | AE141: 1775.375805 | AF141: 2034.47994 | AG141: -259.1041342 | AH141: 52160.00195 | AI141: 29728.84204 | AJ141: 83256.91263 | AK141: 22431.15991 | AL141: 32665.12786 | AM141: 44574.57385 | AN141: -11909.44599 | AO141: 10521.71392 | AP141: 1530.49906 | AQ141: 3124.51247 | AR141: 7139.544831 | AS141: 7222.526381 | AT141: 328.2415225 | AU141: 398.0249463 | AV141: 1456.507865 | AW141: 1841.038573 | AX141: 412.5575862 | AY141: 621.4401816 | AZ141: 4616.11751 | BA141: 1303.726567 | BB141: 2690.030669 | BC141: 2429.439443 | BD141: -12822.17121 | BE141: 10521.71392 | BF141: -2300.457294
A142: 2018-02-01 | B142: 6672.994972 | C142: 5751.110656 | D142: 1493.651743 | E142: 4732.105215 | F142: 1428.170806 | G142: 545.2456998 | H142: 740.7693766 | I142: 809.631717 | J142: 582.2307889 | K142: 281.3853766 | L142: 1520.016689 | M142: 1751.291243 | N142: 14727.37347 | O142: 15828.14681 | P142: 26907.05917 | Q142: 10392.06737 | R142: 16514.9918 | S142: 12438.82616 | T142: 15659.62138 | U142: -3220.795216 | V142: 8168.490168 | W142: 253.3187616 | X142: 7915.171406 | Y142: 1322.457042 | Z142: 1141.960921 | AA142: 180.4961215 | AB142: 1824.969204 | AC142: 414.7040649 | AD142: 1410.265139 | AE142: 2412.999683 | AF142: 2682.838503 | AG142: -269.8388196 | AH142: 53074.80143 | AI142: 30544.51099 | AJ142: 79106.12092 | AK142: 22530.29043 | AL142: 31335.11162 | AM142: 42228.65639 | AN142: -10893.54476 | AO142: 11636.74567 | AP142: 2626.720685 | AQ142: 2117.783329 | AR142: 5582.947235 | AS142: 6240.532887 | AT142: 366.4979615 | AU142: 478.0326386 | AV142: 2282.710116 | AW142: 2767.415605 | AX142: 227.7544188 | AY142: 458.5979052 | AZ142: 1905.719326 | BA142: 1160.628797 | BB142: 2191.986969 | BC142: 2551.022146 | BD142: -13304.60628 | BE142: 11636.74567 | BF142: -1667.860608
A143: 2018-03-01 | B143: 10146.1819 | C143: 6305.911764 | D143: 2500.452388 | E143: 5690.016769 | F143: 1374.784932 | G143: 452.3961963 | H143: 728.97685 | I143: 437.8687228 | J143: 910.9640835 | K143: 262.760853 | L143: 1284.213892 | M143: 1140.187323 | N143: 15071.09566 | O143: 18248.41535 | P143: 27801.79711 | Q143: 9942.487209 | R143: 17859.3099 | S143: 12543.37672 | T143: 15777.57226 | U143: -3234.195539 | V143: 8388.33223 | W143: 296.6666229 | X143: 8091.665607 | Y143: 1359.21859 | Z143: 933.7800562 | AA143: 425.4385334 | AB143: 1813.716799 | AC143: 388.5512288 | AD143: 1425.16557 | AE143: 2290.107823 | AF143: 2192.30853 | AG143: 97.79929296 | AH143: 54196.54927 | AI143: 29531.3659 | AJ143: 84285.18158 | AK143: 24665.18336 | AL143: 31634.17208 | AM143: 44350.43671 | AN143: -12716.26462 | AO143: 11948.91874 | AP143: 2099.156803 | AQ143: 3556.235296 | AR143: 8393.246966 | AS143: 7048.097877 | AT143: 259.9874404 | AU143: 582.5387525 | AV143: 2980.895132 | AW143: 2973.541833 | AX143: 396.5892749 | AY143: 439.2196391 | AZ143: 2063.439353 | BA143: 1496.965424 | BB143: 2953.649501 | BC143: 2192.423154 | BD143: -13327.12908 | BE143: 11948.91874 | BF143: -1378.210339
A144: 2018-04-01 | B144: 6307.482636 | C144: 5557.587155 | D144: 2753.193227 | E144: 5707.359362 | F144: 1356.853153 | G144: 414.2182766 | H144: 576.330008 | I144: 399.8321717 | J144: 542.2540735 | K144: 293.9653258 | L144: 1763.33283 | M144: 1651.396461 | N144: 16584.34527 | O144: 18896.13954 | P144: 29401.27124 | Q144: 10763.94517 | R144: 18637.32608 | S144: 12842.99607 | T144: 15848.43911 | U144: -3005.443039 | V144: 8623.842766 | W144: 305.6290683 | X144: 8318.213697 | Y144: 1221.327166 | Z144: 716.7297227 | AA144: 504.5974434 | AB144: 1820.501381 | AC144: 542.9638341 | AD144: 1277.537547 | AE144: 2381.570735 | AF144: 2167.685261 | AG144: 213.8854742 | AH144: 56291.50936 | AI144: 30345.39216 | AJ144: 85389.44198 | AK144: 25946.1172 | AL144: 31669.84765 | AM144: 46372.74797 | AN144: -14702.90031 | AO144: 11243.21688 | AP144: 1478.17724 | AQ144: 2306.66159 | AR144: 7897.291805 | AS144: 7025.88139 | AT144: 438.5716279 | AU144: 553.8865518 | AV144: 2845.095339 | AW144: 3182.50148 | AX144: 513.6530495 | AY144: 322.08386 | AZ144: 2123.531974 | BA144: 1381.589168 | BB144: 2129.392836 | BC144: 2226.324243 | BD144: -13008.28129 | BE144: 11243.21688 | BF144: -1765.064401
A145: 2018-05-01 | B145: 8291.097802 | C145: 7107.85123 | D145: 4354.149174 | E145: 5867.182651 | F145: 1300.228793 | G145: 401.4729523 | H145: 798.6861751 | I145: 549.3333066 | J145: 623.1310723 | K145: 353.0242068 | L145: 1800.792549 | M145: 1250.288196 | N145: 18158.21817 | O145: 22907.45372 | P145: 30319.80176 | Q145: 10629.06017 | R145: 19690.74159 | S145: 14558.92805 | T145: 15870.33219 | U145: -1311.404135 | V145: 8717.321586 | W145: 235.9126707 | X145: 8481.408915 | Y145: 1397.289237 | Z145: 722.0406949 | AA145: 675.2485422 | AB145: 1929.551672 | AC145: 632.6170819 | AD145: 1296.93459 | AE145: 2839.986725 | AF145: 2054.783607 | AG145: 785.2031177 | AH145: 59762.87903 | AI145: 30144.74641 | AJ145: 88562.24885 | AK145: 29618.13262 | AL145: 34213.37548 | AM145: 53850.19743 | AN145: -19636.82195 | AO145: 9981.310675 | AP145: 3281.137231 | AQ145: 3514.620904 | AR145: 8372.413395 | AS145: 7410.507657 | AT145: 427.8713159 | AU145: 509.3415551 | AV145: 3208.442183 | AW145: 2923.590715 | AX145: 466.1426264 | AY145: 341.6630536 | AZ145: 2857.138011 | BA145: 1430.2394 | BB145: 2979.574181 | BC145: 3510.617003 | BD145: -11080.79226 | BE145: 9981.310675 | BF145: -1099.481581
A146: 2018-06-01 | B146: 6097.994875 | C146: 5447.501931 | D146: 2689.813744 | E146: 5532.828299 | F146: 1241.921969 | G146: 453.815058 | H146: 625.602196 | I146: 423.7060583 | J146: 522.8306869 | K146: 444.1513452 | L146: 1430.501533 | M146: 1529.936658 | N146: 19897.47279 | O146: 23271.63788 | P146: 28374.40318 | Q146: 9309.711969 | R146: 19064.69122 | S146: 14962.50727 | T146: 15333.88752 | U146: -371.3802511 | V146: 8707.814255 | W146: 250.5289887 | X146: 8457.285266 | Y146: 1502.263443 | Z146: 733.3153295 | AA146: 768.9481139 | AB146: 1771.774048 | AC146: 617.7120536 | AD146: 1154.061995 | AE146: 3088.471802 | AF146: 2140.597371 | AG146: 947.8744309 | AH146: 58407.234 | AI146: 28385.75323 | AJ146: 82867.28966 | AK146: 30021.48077 | AL146: 31467.93365 | AM146: 52523.31838 | AN146: -21055.38473 | AO146: 8966.096043 | AP146: 3621.643382 | AQ146: 2437.407775 | AR146: 6959.153829 | AS146: 8782.437585 | AT146: 517.6982091 | AU146: 610.1890695 | AV146: 2834.977196 | AW146: 2779.915181 | AX146: 582.6834629 | AY146: 321.2584498 | AZ146: 3417.227443 | BA146: 1634.335071 | BB146: 2506.480395 | BC146: 3497.52552 | BD146: -10985.90944 | BE146: 8966.096043 | BF146: -2019.813394
A147: 2018-07-01 | B147: 7636.47937 | C147: 5265.633668 | D147: 2455.61993 | E147: 6672.047258 | F147: 1681.132965 | G147: 298.757264 | H147: 449.162228 | I147: 414.2634449 | J147: 676.2861957 | K147: 339.1166881 | L147: 1616.661055 | M147: 1437.636426 | N147: 22004.92619 | O147: 20499.46537 | P147: 31101.78453 | Q147: 10415.29001 | R147: 20686.49452 | S147: 14949.65771 | T147: 16333.7026 | U147: -1384.044891 | V147: 8965.948644 | W147: 264.5251272 | X147: 8701.423517 | Y147: 1420.213655 | Z147: 753.2739649 | AA147: 666.9396902 | AB147: 1729.243629 | AC147: 546.7704736 | AD147: 1182.473155 | AE147: 3067.649238 | AF147: 1811.786271 | AG147: 1255.862967 | AH147: 61234.49741 | AI147: 30125.34845 | AJ147: 80365.17347 | AK147: 31109.14896 | AL147: 34203.73098 | AM147: 54669.84945 | AN147: -20466.11847 | AO147: 10643.0305 | AP147: 1591.225234 | AQ147: 2032.160273 | AR147: 7045.890452 | AS147: 7770.340244 | AT147: 635.6243709 | AU147: 736.8333616 | AV147: 2103.874557 | AW147: 2219.580068 | AX147: 434.375254 | AY147: 285.1107073 | AZ147: 1379.350847 | BA147: 1531.021563 | BB147: 2213.685052 | BC147: 2350.363556 | BD147: -12414.72992 | BE147: 10643.0305 | BF147: -1771.699424
A148: 2018-08-01 | B148: 5633.179757 | C148: 6026.701854 | D148: 2915.140117 | E148: 6633.821751 | F148: 2072.895777 | G148: 470.584513 | H148: 673.300432 | I148: 428.0492211 | J148: 860.7285724 | K148: 477.1318722 | L148: 1909.854652 | M148: 1217.733737 | N148: 19089.40452 | O148: 22613.80565 | P148: 30670.61074 | Q148: 11110.17667 | R148: 19560.43407 | S148: 15271.04512 | T148: 16175.5972 | U148: -904.5520722 | V148: 8801.087136 | W148: 275.7359984 | X148: 8525.351138 | Y148: 1560.742891 | Z148: 770.9504674 | AA148: 789.7924236 | AB148: 1642.923836 | AC148: 459.6483409 | AD148: 1183.275495 | AE148: 3216.689663 | AF148: 1771.227863 | AG148: 1445.4618 | AH148: 61163.09939 | AI148: 30563.33653 | AJ148: 78866.42226 | AK148: 30599.76286 | AL148: 31964.43922 | AM148: 52947.83111 | AN148: -20983.39189 | AO148: 9616.370967 | AP148: 2765.270151 | AQ148: 2236.333322 | AR148: 7901.871394 | AS148: 7857.934239 | AT148: 553.6023538 | AU148: 479.11816 | AV148: 3602.4727 | AW148: 3502.058631 | AX148: 502.6153271 | AY148: 413.7854391 | AZ148: 1674.520606 | BA148: 1339.684028 | BB148: 1900.826147 | BC148: 1852.245575 | BD148: -11885.11964 | BE148: 9616.370967 | BF148: -2268.748675
A149: 2018-09-01 | B149: 6405.670377 | C149: 3975.755769 | D149: 2421.066773 | E149: 6347.635202 | F149: 1015.338759 | G149: 370.9467026 | H149: 301.0251549 | I149: 342.2697617 | J149: 838.6783814 | K149: 319.2406243 | L149: 1055.716367 | M149: 1063.051249 | N149: 15292.01356 | O149: 18740.81667 | P149: 29846.95278 | Q149: 9326.102868 | R149: 20520.84992 | S149: 15281.93084 | T149: 16051.81728 | U149: -769.886439 | V149: 8605.067624 | W149: 305.9303538 | X149: 8299.13727 | Y149: 1435.846891 | Z149: 787.1814095 | AA149: 648.6654815 | AB149: 1637.535981 | AC149: 511.0161434 | AD149: 1126.519837 | AE149: 2809.020544 | AF149: 1635.543258 | AG149: 1173.477285 | AH149: 59616.35466 | AI149: 28617.59131 | AJ149: 74866.36176 | AK149: 30998.76335 | AL149: 30736.84615 | AM149: 51119.66019 | AN149: -20382.81404 | AO149: 10615.94931 | AP149: 2527.977264 | AQ149: 1992.967724 | AR149: 6520.044136 | AS149: 7681.104004 | AT149: 304.3044495 | AU149: 279.9707549 | AV149: 2333.081609 | AW149: 2450.505551 | AX149: 405.3079466 | AY149: 216.5306302 | AZ149: 1481.758724 | BA149: 1085.143644 | BB149: 2998.567054 | BC149: 3056.883242 | BD149: -11939.28333 | BE149: 10615.94931 | BF149: -1323.33402
A150: 2018-10-01 | B150: 6244.159838 | C150: 6327.543224 | D150: 3959.953605 | E150: 6836.25856 | F150: 1671.628756 | G150: 379.838701 | H150: 536.364286 | I150: 258.4991852 | J150: 979.8234237 | K150: 446.4816103 | L150: 1780.448267 | M150: 1376.108601 | N150: 18081.98926 | O150: 23354.49211 | P150: 29930.98142 | Q150: 10179.49469 | R150: 19751.48673 | S150: 16625.76357 | T150: 15939.55373 | U150: 686.2098426 | V150: 8659.009637 | W150: 119.6046626 | X150: 8539.404975 | Y150: 1379.618677 | Z150: 648.7930285 | AA150: 730.8256485 | AB150: 1434.080726 | AC150: 448.3147698 | AD150: 985.7659561 | AE150: 3201.754853 | AF150: 1678.994274 | AG150: 1522.760579 | AH150: 61231.20888 | AI150: 29014.75515 | AJ150: 77502.33448 | AK150: 32216.45373 | AL150: 31096.026 | AM150: 53944.50891 | AN150: -22848.48291 | AO150: 9367.97082 | AP150: 3059.630595 | AQ150: 1950.795137 | AR150: 9004.551787 | AS150: 9419.110049 | AT150: 536.6998453 | AU150: 642.5801902 | AV150: 3384.090297 | AW150: 3495.448316 | AX150: 474.7414937 | AY150: 380.4701635 | AZ150: 1466.048804 | BA150: 1168.51501 | BB150: 2840.738474 | BC150: 2408.250039 | BD150: -11137.36859 | BE150: 9367.97082 | BF150: -1769.397766
A151: 2018-11-01 | B151: 5474.106701 | C151: 6105.458701 | D151: 1770.326459 | E151: 5495.713318 | F151: 1100.70223 | G151: 548.6169198 | H151: 377.331936 | I151: 448.6298998 | J151: 854.4604827 | K151: 317.0020894 | L151: 1252.863439 | M151: 1209.319852 | N151: 16622.35881 | O151: 18884.88963 | P151: 29522.20943 | Q151: 11257.2368 | R151: 18264.97263 | S151: 16172.82494 | T151: 16067.20725 | U151: 105.6176925 | V151: 8692.489232 | W151: 524.6428193 | X151: 8167.846413 | Y151: 1255.517513 | Z151: 684.8132141 | AA151: 570.7042989 | AB151: 1455.055491 | AC151: 442.2847308 | AD151: 1012.77076 | AE151: 2643.271203 | AF151: 1521.667853 | AG151: 1121.60335 | AH151: 59741.36781 | AI151: 30497.85267 | AJ151: 78177.16718 | AK151: 29243.51514 | AL151: 34799.05141 | AM151: 56245.3242 | AN151: -21446.27279 | AO151: 7797.242356 | AP151: 2896.809708 | AQ151: 1188.129535 | AR151: 6071.749857 | AS151: 7548.587103 | AT151: 337.4044868 | AU151: 425.6999144 | AV151: 2690.817932 | AW151: 3048.401474 | AX151: 420.253693 | AY151: 304.3591198 | AZ151: 1083.939076 | BA151: 1113.032545 | BB151: 2892.559937 | BC151: 1969.699951 | BD151: -10445.81275 | BE151: 7797.242356 | BF151: -2648.570394
A152: 2018-12-01 | B152: 7202.86 | C152: 5629.25 | D152: 3010.402828 | E152: 6309.9196 | F152: 1343.611201 | G152: 171.0650677 | H152: 646.3828019 | I152: 289.012995 | J152: 770.2159709 | K152: 333.9705272 | L152: 1694.971776 | M152: 1165.785377 | N152: 16141.3479 | O152: 18891.33794 | P152: 30110.30711 | Q152: 11323.429 | R152: 18786.87811 | S152: 16303.18072 | T152: 15818.75852 | U152: 484.4221995 | V152: 8724.613186 | W152: 346.2951188 | X152: 8378.318068 | Y152: 1377.558165 | Z152: 543.1679976 | AA152: 834.3901677 | AB152: 1499.495078 | AC152: 546.7176077 | AD152: 952.7774701 | AE152: 2819.035835 | AF152: 1386.864739 | AG152: 1432.171096 | AH152: 60834.19009 | AI152: 29965.23298 | AJ152: 76863.94432 | AK152: 30868.95711 | AL152: 33785.69747 | AM152: 56142.28354 | AN152: -22356.58607 | AO152: 8512.371038 | AP152: 1933.911797 | AQ152: 2311.290025 | AR152: 8600.22123 | AS152: 9205.454298 | AT152: 609.8380118 | AU152: 791.7822213 | AV152: 2752.695014 | AW152: 2683.361803 | AX152: 410.442315 | AY152: 226.5946914 | AZ152: 2596.211155 | BA152: 1872.247198 | BB152: 2711.192052 | BC152: 2257.654282 | BD152: -10358.42637 | BE152: 8512.371038 | BF152: -1846.055329
A153: 2019-01-01 | B153: 7352.686373 | C153: 6175.709038 | D153: 1987.775471 | E153: 6630.986646 | F153: 1282.223209 | G153: 395.9174841 | H153: 461.208 | I153: 1100.157219 | J153: 1026.696595 | K153: 365.8584 | L153: 1402.906496 | M153: 1363.341658 | N153: 22718.3339 | O153: 22570.61599 | P153: 32248.08813 | Q153: 13001.84816 | R153: 19246.23996 | S153: 15091.84907 | T153: 15919.59267 | U153: -827.7435976 | V153: 8676.793586 | W153: 431.1305977 | X153: 8245.662989 | Y153: 1377.83271 | Z153: 991.4638457 | AA153: 386.3688643 | AB153: 1505.814138 | AC153: 400.3081734 | AD153: 1105.505964 | AE153: 2535.286482 | AF153: 1483.170085 | AG153: 1052.116396 | AH153: 61435.66412 | AI153: 32227.51354 | AJ153: 75600.61875 | AK153: 29208.15058 | AL153: 39967.67284 | AM153: 59281.44194 | AN153: -19313.76909 | AO153: 9894.381485 | AP153: 2748.790408 | AQ153: 2825.911284 | AR153: 8108.343324 | AS153: 8833.331898 | AT153: 345.4850971 | AU153: 370.4961329 | AV153: 2631.175382 | AW153: 3376.673501 | AX153: 470.0532455 | AY153: 371.9705798 | AZ153: 1569.024209 | BA153: 1722.434854 | BB153: 3170.552836 | BC153: 2246.873838 | BD153: -11418.41106 | BE153: 9894.381485 | BF153: -1524.029574
A154: 2019-02-01 | B154: 6777.966636 | C154: 5630.116636 | D154: 1779.568875 | E154: 4989.220229 | F154: 1299.254557 | G154: 351.9414418 | H154: 413.977 | I154: 390.960976 | J154: 575.0442042 | K154: 203.8578197 | L154: 1154.418901 | M154: 1134.735203 | N154: 14408.265 | O154: 15306.96075 | P154: 33067.90277 | Q154: 13348.73782 | R154: 19719.16495 | S154: 14510.35958 | T154: 16052.01427 | U154: -1541.65469 | V154: 8414.387748 | W154: 236.2067897 | X154: 8178.180958 | Y154: 1435.71971 | Z154: 1028.30476 | AA154: 407.4149502 | AB154: 1462.300688 | AC154: 378.2396842 | AD154: 1084.061004 | AE154: 2752.158401 | AF154: 1636.7695 | AG154: 1115.388901 | AH154: 61642.8289 | AI154: 32680.27282 | AJ154: 78643.44633 | AK154: 28962.55608 | AL154: 37691.71401 | AM154: 54666.0289 | AN154: -16974.31489 | AO154: 11988.24119 | AP154: 778.5252012 | AQ154: 1574.044961 | AR154: 6049.148191 | AS154: 6226.434123 | AT154: 359.4526162 | AU154: 327.7441832 | AV154: 3168.889905 | AW154: 3449.138887 | AX154: 302.7581608 | AY154: 281.5246904 | AZ154: 703.9164503 | BA154: 1874.304821 | BB154: 2345.924374 | BC154: 2142.278964 | BD154: -13691.41247 | BE154: 11988.24119 | BF154: -1703.171284
A155: 2019-03-01 | B155: 6185.244329 | C155: 4863.8748 | D155: 2951.485503 | E155: 5000.102897 | F155: 944.9073423 | G155: 329.599934 | H155: 586.4043129 | I155: 181.6003955 | J155: 846.1362557 | K155: 231.3772036 | L155: 1850.134243 | M155: 664.0899492 | N155: 18714.78476 | O155: 23715.24447 | P155: 32120.9896 | Q155: 11345.2668 | R155: 20775.7228 | S155: 15162.55508 | T155: 15705.84414 | U155: -543.2890605 | V155: 8740.715594 | W155: 333.7457319 | X155: 8406.969862 | Y155: 1548.104023 | Z155: 786.2862271 | AA155: 761.8177958 | AB155: 1590.44603 | AC155: 349.203713 | AD155: 1241.242317 | AE155: 3331.163905 | AF155: 1322.340725 | AG155: 2008.823179 | AH155: 62493.97423 | AI155: 29842.68734 | AJ155: 77026.55087 | AK155: 32651.28689 | AL155: 39961.81967 | AM155: 59983.28748 | AN155: -20021.46781 | AO155: 12629.81908 | AP155: 797.7801444 | AQ155: 1706.087862 | AR155: 6452.274551 | AS155: 6080.473743 | AT155: 312.318474 | AU155: 560.9515357 | AV155: 2645.346187 | AW155: 2443.976608 | AX155: 401.2329445 | AY155: 515.1523925 | AZ155: 1630.232891 | BA155: 1037.712719 | BB155: 2403.794188 | BC155: 2721.669046 | BD155: -14381.1241 | BE155: 12629.81908 | BF155: -1751.305012
A156: 2019-04-01 | B156: 5622.42991 | C156: 4336.262217 | D156: 2612.644972 | E156: 5210.271456 | F156: 979.899632 | G156: 491.0726431 | H156: 431.143225 | I156: 436.8676947 | J156: 1104.464828 | K156: 392.3693123 | L156: 1290.687621 | M156: 1170.8047 | N156: 17797.579 | O156: 21628.69216 | P156: 33456.39502 | Q156: 11770.634 | R156: 21685.76102 | S156: 15426.56646 | T156: 15295.78403 | U156: 130.782432 | V156: 8746.195453 | W156: 395.5274334 | X156: 8350.668019 | Y156: 1532.896576 | Z156: 842.1432905 | AA156: 690.7532854 | AB156: 1665.085269 | AC156: 408.7398254 | AD156: 1256.345443 | AE156: 3151.96614 | AF156: 1426.447187 | AG156: 1725.518953 | AH156: 63979.10492 | AI156: 30139.27576 | AJ156: 76859.58066 | AK156: 33839.82915 | AL156: 38684.60389 | AM156: 59596.01412 | AN156: -20911.41023 | AO156: 12928.41892 | AP156: 2017.606158 | AQ156: 2385.625497 | AR156: 7495.678145 | AS156: 6837.389183 | AT156: 675.6378613 | AU156: 541.3692463 | AV156: 2969.531702 | AW156: 3086.917414 | AX156: 407.3607512 | AY156: 509.5246284 | AZ156: 1520.318957 | BA156: 1877.992956 | BB156: 3341.684583 | BC156: 2600.298618 | BD156: -13792.43421 | BE156: 12928.41892 | BF156: -864.015291
A157: 2019-05-01 | B157: 8219.20327 | C157: 7908.978638 | D157: 3674.386811 | E157: 4955.573187 | F157: 864.7271358 | G157: 139.1288662 | H157: 615.8986465 | I157: 244.1858572 | J157: 689.5325332 | K157: 190.2475649 | L157: 1911.004785 | M157: 725.7369145 | N157: 22732.89286 | O157: 31779.89362 | P157: 35021.03929 | Q157: 14349.764 | R157: 20671.27529 | S157: 16666.09181 | T157: 14744.81932 | U157: 1921.272486 | V157: 8926.215402 | W157: 315.4364879 | X157: 8610.778915 | Y157: 1630.984631 | Z157: 678.6474795 | AA157: 952.3371512 | AB157: 1666.724205 | AC157: 297.1064178 | AD157: 1369.617788 | AE157: 3777.29523 | AF157: 1325.755503 | AG157: 2451.539727 | AH157: 67688.35056 | AI157: 31711.52921 | AJ157: 81434.43339 | AK157: 35976.82135 | AL157: 44311.21635 | AM157: 71545.9236 | AN157: -27234.70725 | AO157: 8742.114105 | AP157: 3577.11319 | AQ157: 1304.354592 | AR157: 7954.234035 | AS157: 6872.980467 | AT157: 174.3452017 | AU157: 446.3004664 | AV157: 4231.989995 | AW157: 3825.933652 | AX157: 294.0892892 | AY157: 306.20754 | AZ157: 1850.666838 | BA157: 1601.699005 | BB157: 3354.889781 | BC157: 4157.743924 | BD157: -11043.45037 | BE157: 8742.114105 | BF157: -2301.336263
A158: 2019-06-01 | B158: 8137.978562 | C158: 4480.915139 | D158: 1904.086768 | E158: 5760.546843 | F158: 704.0493014 | G158: 430.9849396 | H158: 475.204497 | I158: 604.5084775 | J158: 700.5639403 | K158: 278.1287999 | L158: 872.8088127 | M158: 1102.420244 | N158: 27783.09083 | O158: 27232.26731 | P158: 35299.42725 | Q158: 13585.78296 | R158: 21713.64429 | S158: 16005.56637 | T158: 15617.42563 | U158: 388.1407449 | V158: 8676.629909 | W158: 291.2887757 | X158: 8385.341133 | Y158: 1656.313814 | Z158: 922.4842414 | AA158: 733.8295723 | AB158: 1683.385056 | AC158: 364.2408627 | AD158: 1319.144194 | AE158: 3494.600945 | AF158: 1612.94067 | AG158: 1881.660275 | AH158: 66815.92335 | AI158: 32394.16314 | AJ158: 87613.83408 | AK158: 34421.76021 | AL158: 49363.541 | AM158: 72003.61387 | AN158: -22640.07288 | AO158: 11781.68733 | AP158: 1991.830131 | AQ158: 3310.182378 | AR158: 6889.495167 | AS158: 6820.732804 | AT158: 402.3099871 | AU158: 295.2617048 | AV158: 3646.06588 | AW158: 4098.268206 | AX158: 485.5776198 | AY158: 364.9579093 | AZ158: 1754.043422 | BA158: 1380.19709 | BB158: 2728.910819 | BC158: 3574.087243 | BD158: -13411.55695 | BE158: 11781.68733 | BF158: -1629.869612
A159: 2019-07-01 | B159: 7021.601943 | C159: 6209.603639 | D159: 2703.604197 | E159: 5305.784157 | F159: 951.9256719 | G159: 350.073995 | H159: 797.171 | I159: 519.9716575 | J159: 972.0457099 | K159: 324.3349601 | L159: 1347.529702 | M159: 718.2390874 | N159: 20710.95854 | O159: 23232.43179 | P159: 35480.85805 | Q159: 14274.63414 | R159: 21206.22391 | S159: 16354.63827 | T159: 15430.40261 | U159: 924.2356657 | V159: 8664.702829 | W159: 255.8034575 | X159: 8408.899372 | Y159: 1817.460946 | Z159: 901.8804529 | AA159: 915.5804931 | AB159: 1814.134095 | AC159: 339.9570243 | AD159: 1474.177071 | AE159: 3588.71073 | AF159: 1492.225979 | AG159: 2096.484751 | AH159: 67720.50493 | AI159: 32694.90366 | AJ159: 86707.61953 | AK159: 35025.60126 | AL159: 45128.58627 | AM159: 68852.10872 | AN159: -23723.52245 | AO159: 11302.07881 | AP159: 3678.110609 | AQ159: 2216.057488 | AR159: 6536.386795 | AS159: 6880.56688 | AT159: 254.4184316 | AU159: 347.9198828 | AV159: 2435.480348 | AW159: 2930.295788 | AX159: 331.6216186 | AY159: 536.0890687 | AZ159: 1452.372276 | BA159: 1175.171025 | BB159: 2212.515651 | BC159: 2596.218872 | BD159: -13426.32715 | BE159: 11302.07881 | BF159: -2124.248338
A160: 2019-08-01 | B160: 8270.597746 | C160: 6840.007248 | D160: 3176.962703 | E160: 5126.934982 | F160: 1180.585222 | G160: 451.2286208 | H160: 727.9585905 | I160: 455.1664499 | J160: 1113.642799 | K160: 273.6666694 | L160: 1527.760698 | M160: 772.8757787 | N160: 21022.26876 | O160: 25510.81632 | P160: 37110.80089 | Q160: 16845.52151 | R160: 20265.27938 | S160: 17200.04105 | T160: 15320.2987 | U160: 1879.742351 | V160: 8735.366056 | W160: 253.835055 | X160: 8481.531001 | Y160: 1999.641556 | Z160: 927.0913075 | AA160: 1072.550249 | AB160: 2176.964484 | AC160: 420.3770375 | AD160: 1756.587446 | AE160: 3480.767022 | AF160: 1455.548549 | AG160: 2025.218473 | AH160: 70703.58106 | AI160: 35222.67216 | AJ160: 87325.42718 | AK160: 35480.9089 | AL160: 46778.4744 | AM160: 73919.42837 | AN160: -27140.95397 | AO160: 8339.954931 | AP160: 3949.782815 | AQ160: 2667.888052 | AR160: 6080.382587 | AS160: 5880.211938 | AT160: 380.4258592 | AU160: 504.9010544 | AV160: 3813.648142 | AW160: 4056.197544 | AX160: 462.6336459 | AY160: 273.0978493 | AZ160: 2989.426522 | BA160: 1026.693162 | BB160: 2740.416605 | BC160: 3083.356992 | BD160: -10685.78 | BE160: 8339.954931 | BF160: -2345.825068
A161: 2019-09-01 | B161: 5187.033056 | C161: 4810.260467 | D161: 2991.678492 | E161: 5058.767053 | F161: 586.230884 | G161: 254.5787154 | H161: 553.734429 | I161: 348.3959946 | J161: 580.8740365 | K161: 169.6458576 | L161: 1357.258195 | M161: 1101.633335 | N161: 21487.62963 | O161: 21440.65362 | P161: 35840.32011 | Q161: 15896.78016 | R161: 19943.53995 | S161: 17517.37041 | T161: 14293.44668 | U161: 3189.963766 | V161: 8578.61336 | W161: 219.6439803 | X161: 8358.96938 | Y161: 2106.798031 | Z161: 960.6031279 | AA161: 1146.194903 | AB161: 2131.275194 | AC161: 481.5712412 | AD161: 1649.703952 | AE161: 3394.660148 | AF161: 1566.121695 | AG161: 1828.538453 | AH161: 69552.05727 | AI161: 33435.14687 | AJ161: 85415.81427 | AK161: 36116.9104 | AL161: 45277.63599 | AM161: 70491.63539 | AN161: -25213.9994 | AO161: 10902.911 | AP161: 1638.991438 | AQ161: 1095.980948 | AR161: 5238.609531 | AS161: 7014.837677 | AT161: 146.5897113 | AU161: 199.2115861 | AV161: 3502.201619 | AW161: 3728.808153 | AX161: 325.836721 | AY161: 291.4388145 | AZ161: 1587.711287 | BA161: 1101.770541 | BB161: 2737.579431 | BC161: 3175.524878 | BD161: -12321.22044 | BE161: 10902.911 | BF161: -1418.309444
A162: 2019-10-01 | B162: 7647.531855 | C162: 7317.919647 | D162: 2563.728566 | E162: 5661.872538 | F162: 913.0007817 | G162: 251.3329537 | H162: 688.7639821 | I162: 733.7625884 | J162: 709.4795961 | K162: 234.4301057 | L162: 1750.766449 | M162: 1350.903482 | N162: 25150.11413 | O162: 24580.26186 | P162: 35667.6921 | Q162: 17080.68125 | R162: 18587.01085 | S162: 17030.68436 | T162: 14040.8984 | U162: 2955.825991 | V162: 8626.990734 | W162: 271.149193 | X162: 8355.841541 | Y162: 1991.198687 | Z162: 1223.546633 | AA162: 767.6520544 | AB162: 2104.089736 | AC162: 449.6525049 | AD162: 1654.437231 | AE162: 3365.62249 | AF162: 1891.326997 | AG162: 1474.295493 | AH162: 68769.29813 | AI162: 34974.23496 | AJ162: 85726.69472 | AK162: 33795.06316 | AL162: 48168.94102 | AM162: 70148.64357 | AN162: -21979.70255 | AO162: 11815.36062 | AP162: 4296.43333 | AQ162: 5219.129168 | AR162: 5989.682683 | AS162: 6713.536307 | AT162: 181.3864857 | AU162: 223.9301637 | AV162: 3554.756762 | AW162: 4134.476844 | AX162: 379.2228686 | AY162: 436.0034362 | AZ162: 1864.944574 | BA162: 1229.432528 | BB162: 2924.642172 | BC162: 2324.892055 | BD162: -13690.53464 | BE162: 11815.36062 | BF162: -1875.174027
A163: 2019-11-01 | B163: 12444.3643 | C163: 8046.551216 | D163: 2569.622373 | E163: 5211.950767 | F163: 2301.10186 | G163: 964.8902463 | H163: 548.459393 | I163: 712.784248 | J163: 889.1343935 | K163: 291.5877165 | L163: 3212.972096 | M163: 2613.876154 | N163: 28586.40911 | O163: 26455.50285 | P163: 36995.9776 | Q163: 19877.65381 | R163: 17118.32379 | S163: 17301.51847 | T163: 14613.29496 | U163: 2654.263534 | V163: 9276.32101 | W163: 522.4998008 | X163: 8753.821209 | Y163: 1992.172208 | Z163: 1465.59885 | AA163: 526.5733577 | AB163: 1924.076456 | AC163: 650.3661523 | AD163: 1273.710304 | AE163: 3910.624849 | AF163: 3157.055677 | AG163: 753.5691725 | AH163: 71383.71061 | AI163: 40303.44924 | AJ163: 90184.72465 | AK163: 31080.26137 | AL163: 57544.94058 | AM163: 76425.97849 | AN163: -18881.03791 | AO163: 12199.22346 | AP163: 4104.288744 | AQ163: 5493.112157 | AR163: 6013.030517 | AS163: 6225.008096 | AT163: 825.0798534 | AU163: 714.6063205 | AV163: 3687.606111 | AW163: 5001.73729 | AX163: 509.4258308 | AY163: 782.4572072 | AZ163: 3891.044862 | BA163: 2864.184574 | BB163: 6294.737332 | BC163: 4603.586305 | BD163: -14201.66045 | BE163: 12199.22346 | BF163: -2002.436988
A164: 2019-12-01 | B164: 9497.854034 | C164: 8712.660225 | D164: 1940.073143 | E164: 5456.135464 | F164: 1426.354696 | G164: 1026.18968 | H164: 341.0800652 | I164: 627.612976 | J164: 1017.086374 | K164: 309.3745709 | L164: 6250.803028 | M164: 2378.366923 | N164: 28074.98668 | O164: 30520.9206 | P164: 38197.79274 | Q164: 20856.21523 | R164: 17341.57751 | S164: 15711.32889 | T164: 14852.82854 | U164: 824.5403777 | V164: 8874.292559 | W164: 514.5643651 | X164: 8359.728194 | Y164: 1529.958732 | Z164: 1397.445589 | AA164: 132.5131437 | AB164: 2069.806464 | AC164: 844.9421851 | AD164: 1224.864279 | AE164: 7589.964932 | AF164: 2801.650264 | AG164: 4788.314668 | AH164: 73956.16433 | AI164: 41284.62616 | AJ164: 89259.23034 | AK164: 32671.53817 | AL164: 55005.45737 | AM164: 76587.87232 | AN164: -21582.41495 | AO164: 11089.12322 | AP164: 7386.947072 | AQ164: 4866.646507 | AR164: 6788.26592 | AS164: 8034.337069 | AT164: 640.3497436 | AU164: 130.1541694 | AV164: 2698.21061 | AW164: 4759.005969 | AX164: 435.2609323 | AY164: 797.8420625 | AZ164: 5848.325137 | BA164: 3743.800437 | BB164: 4786.216277 | BC164: 4027.052417 | BD164: -12457.85173 | BE164: 11089.12322 | BF164: -1368.728505

Sheet charts data
B1: DERIVATIVES | W1: FOREIGN EXCHANGE
B2: TURNOVER | T2: OUTSTANDING | W2: TURNOVER | AL2: TOTAL
B3: LOCAL COUNTERPARTIES | Q3: FOREIGN SECTOR | S3: TOTAL | T3: LOCAL | W3: LOCAL COUNTERPARTIES | AJ3: FOREIGN SECTOR
B4: Pension Funds | D4: Real Sector Companies | F4: Insurance Companies | H4: Brokers | I4: Mutual Funds | J4: Brokers and Mutual Funds | M4: Other Sectors | O4: TOTAL LOCAL COUNTERPARTIES | Q4: Foreign Sector | T4: Brokers and Mutual Funds | W4: Pension Funds | Y4: Real Sector Companies | AA4: Insurance Companies | AC4: Brokers | AD4: Mutual Funds | AE4: Brokers and Mutual Funds | AH4: Other Sectors | AJ4: Foreign Sector
B5: sales | C5: Total | D5: sales | E5: Total | F5: sales | G5: Total | H5: sales | I5: sales | J5: Total (purchases) | K5: Total (sales) | L5: Total (sales) | M5: sales | N5: Total | O5: purchases | P5: sales | Q5: sales | R5: Total | T5: gross long position | U5: gross short position | V5: net amounts | W5: sales | X5: Total | Y5: sales | Z5: Total | AA5: sales | AB5: Total | AC5: sales | AD5: sales | AE5: purchases (sum) | AF5: sales (sum) | AG5: Total | AH5: sales | AI5: Total | AJ5: sales | AK5: Total
B6: millones de USD
B7: Negativo (*-1) | C7: compra más venta | D7: Negativo (*-1) | E7: compra más venta | F7: Negativo (*-1) | G7: compra más venta | H7: Negativo (*-1) | I7: compra más venta | J7: Suma Corredoras y FFMM | K7: Suma Corredoras y FFMM Negativo (*-1) | L7: compra más venta | M7: Negativo (*-1) | N7: compra más venta | Q7: Negativo (*-1) | R7: compra más venta | T7: Suma Corredoras y FFMM | U7: Suma Corredoras y FFMM | W7: Negativo (*-1) | X7: compra más venta | Y7: Negativo (*-1) | Z7: compra más venta | AA7: Negativo (*-1) | AB7: compra más venta | AC7: Negativo (*-1) | AD7: Negativo (*-1) | AE7: Suma Corredoras y FFMM | AF7: Suma Corredoras y FFMM Negativo (*-1) | AG7: compra más venta | AH7: Negativo (*-1) | AI7: compra más venta | AJ7: Negativo (*-1) | AK7: compra más venta
A9: =+'Original data'!A9 -> 2007-01-01 | B9: =+'Original data'!C9*-1 -> -1056.030171 | C9: =+'Original data'!B9+'Original data'!C9 -> 4018.181402 | D9: =+'Original data'!E9*-1 -> -2150.119217 | E9: =+'Original data'!D9+'Original data'!E9 -> 3528.733395 | F9: =+'Original data'!G9*-1 -> -44.296747 | G9: =+'Original data'!F9+'Original data'!G9 -> 369.184543 | H9: =+'Original data'!I9*-1 -> -1981.579447 | I9: =+'Original data'!K9*-1 -> -29.335 | J9: =+'Original data'!H9+'Original data'!J9 -> 1117.461679 | K9: =+H9+I9 -> -2010.914447 | L9: =+-K9 -> 2010.914447 | M9: =+'Original data'!M9*-1 -> -896.8575858 | N9: =+'Original data'!L9+'Original data'!M9 -> 3218.916463 | O9: =+'Original data'!B9+'Original data'!D9+'Original data'!F9+'Original data'!H9+'Original data'!J9+'Original data'!L9 -> 8105.173761 | P9: =+'Original data'!C9+'Original data'!E9+'Original data'!G9+'Original data'!I9+'Original data'!K9+'Original data'!M9 -> 6158.218168 | Q9: =+'Original data'!O9*-1 -> -14395.10542 | R9: =+'Original data'!N9+'Original data'!O9 -> 24810.83771 | S9: =+C9+E9+G9+(J9-K9)+N9+R9 -> 39074.22964 | T9: =+'Original data'!Y9+'Original data'!AB9 -> 858.249981 | U9: =+'Original data'!Z9+'Original data'!AC9 -> 1147.171271 | V9: =+'Original data'!AD9+'Original data'!AA9 -> -288.92129 | W9: =+'Original data'!AQ9*-1 -> -1169.065329 | X9: =+'Original data'!AP9+'Original data'!AQ9 -> 2219.123048 | Y9: =+'Original data'!AS9*-1 -> -2787.046022 | Z9: =+'Original data'!AR9+'Original data'!AS9 -> 5799.321205 | AA9: =+'Original data'!AU9*-1 -> -36.6622212 | AB9: =+'Original data'!AT9+'Original data'!AU9 -> 56.88168191 | AC9: =+'Original data'!AW9*-1 -> -4253.789108 | AD9: =+'Original data'!AY9*-1 -> -225.6788062 | AE9: =+'Original data'!AV9+'Original data'!AX9 -> 4593.881429 | AF9: =+AD9+AC9 -> -4479.467914 | AG9: =+AE9-AF9 -> 9073.349343 | AH9: =+'Original data'!BA9*-1 -> -1072.993304 | AI9: =+'Original data'!AZ9+'Original data'!BA9 -> 2422.950621 | AJ9: =+'Original data'!BC9*-1 -> -679.3752101 | AK9: =+'Original data'!BB9+'Original data'!BC9 -> 1293.236672 | AL9: =+X9+Z9+AB9+AG9+AI9+AK9 -> 20864.86257
A10: =+'Original data'!A10 -> 2007-02-01 | B10: =+'Original data'!C10*-1 -> -618.0955553 | C10: =+'Original data'!B10+'Original data'!C10 -> 3404.227793 | D10: =+'Original data'!E10*-1 -> -2017.364943 | E10: =+'Original data'!D10+'Original data'!E10 -> 2715.881043 | F10: =+'Original data'!G10*-1 -> -67.634134 | G10: =+'Original data'!F10+'Original data'!G10 -> 284.796624 | H10: =+'Original data'!I10*-1 -> -1531.204115 | I10: =+'Original data'!K10*-1 -> -62.2047368 | J10: =+'Original data'!H10+'Original data'!J10 -> 951.0767435 | K10: -1593.408852 | L10: =+-K10 -> 1593.408852 | M10: =+'Original data'!M10*-1 -> -162.8316558 | N10: =+'Original data'!L10+'Original data'!M10 -> 1225.304214 | O10: =+'Original data'!B10+'Original data'!D10+'Original data'!F10+'Original data'!H10+'Original data'!J10+'Original data'!L10 -> 5715.36013 | P10: =+'Original data'!C10+'Original data'!E10+'Original data'!G10+'Original data'!I10+'Original data'!K10+'Original data'!M10 -> 4459.33514 | Q10: =+'Original data'!O10*-1 -> -11663.17086 | R10: =+'Original data'!N10+'Original data'!O10 -> 20062.02881 | S10: =+C10+E10+G10+(J10-K10)+N10+R10 -> 30236.72408 | T10: =+'Original data'!Y10+'Original data'!AB10 -> 984.123589 | U10: =+'Original data'!Z10+'Original data'!AC10 -> 1422.334751 | V10: =+'Original data'!AD10+'Original data'!AA10 -> -438.211162 | W10: =+'Original data'!AQ10*-1 -> -662.9973597 | X10: =+'Original data'!AP10+'Original data'!AQ10 -> 1303.053418 | Y10: =+'Original data'!AS10*-1 -> -2410.975829 | Z10: =+'Original data'!AR10+'Original data'!AS10 -> 4789.261884 | AA10: =+'Original data'!AU10*-1 -> -83.75556613 | AB10: =+'Original data'!AT10+'Original data'!AU10 -> 108.8305916 | AC10: =+'Original data'!AW10*-1 -> -3784.047472 | AD10: =+'Original data'!AY10*-1 -> -253.4889674 | AE10: =+'Original data'!AV10+'Original data'!AX10 -> 3829.639361 | AF10: -4037.536439 | AG10: =+AE10-AF10 -> 7867.1758 | AH10: =+'Original data'!BA10*-1 -> -1161.499064 | AI10: =+'Original data'!AZ10+'Original data'!BA10 -> 2491.959991 | AJ10: =+'Original data'!BC10*-1 -> -482.4457418 | AK10: =+'Original data'!BB10+'Original data'!BC10 -> 955.9777591 | AL10: =+X10+Z10+AB10+AG10+AI10+AK10 -> 17516.25944
A11: =+'Original data'!A11 -> 2007-03-01 | B11: =+'Original data'!C11*-1 -> -641.8189217 | C11: =+'Original data'!B11+'Original data'!C11 -> 4330.0704 | D11: =+'Original data'!E11*-1 -> -2096.029402 | E11: =+'Original data'!D11+'Original data'!E11 -> 2902.7332 | F11: =+'Original data'!G11*-1 -> -108.5902223 | G11: =+'Original data'!F11+'Original data'!G11 -> 411.3274304 | H11: =+'Original data'!I11*-1 -> -977.910093 | I11: =+'Original data'!K11*-1 -> -66.60419593 | J11: =+'Original data'!H11+'Original data'!J11 -> 1031.675641 | K11: -1044.514289 | L11: 1044.514289 | M11: =+'Original data'!M11*-1 -> -648.5556139 | N11: =+'Original data'!L11+'Original data'!M11 -> 2057.181889 | O11: =+'Original data'!B11+'Original data'!D11+'Original data'!F11+'Original data'!H11+'Original data'!J11+'Original data'!L11 -> 7237.9944 | P11: =+'Original data'!C11+'Original data'!E11+'Original data'!G11+'Original data'!I11+'Original data'!K11+'Original data'!M11 -> 4539.508449 | Q11: =+'Original data'!O11*-1 -> -16275.10854 | R11: =+'Original data'!N11+'Original data'!O11 -> 25172.04203 | S11: 36949.54487 | T11: =+'Original data'!Y11+'Original data'!AB11 -> 980.5631778 | U11: =+'Original data'!Z11+'Original data'!AC11 -> 1288.554255 | V11: =+'Original data'!AD11+'Original data'!AA11 -> -307.991077 | W11: =+'Original data'!AQ11*-1 -> -929.5448377 | X11: =+'Original data'!AP11+'Original data'!AQ11 -> 1764.542942 | Y11: =+'Original data'!AS11*-1 -> -3179.715331 | Z11: =+'Original data'!AR11+'Original data'!AS11 -> 6029.92799 | AA11: =+'Original data'!AU11*-1 -> -113.6046466 | AB11: =+'Original data'!AT11+'Original data'!AU11 -> 180.5938518 | AC11: =+'Original data'!AW11*-1 -> -4640.277225 | AD11: =+'Original data'!AY11*-1 -> -133.5842286 | AE11: =+'Original data'!AV11+'Original data'!AX11 -> 5061.369371 | AF11: -4773.861453 | AG11: 9835.230824 | AH11: =+'Original data'!BA11*-1 -> -966.4497583 | AI11: =+'Original data'!AZ11+'Original data'!BA11 -> 2378.628183 | AJ11: =+'Original data'!BC11*-1 -> -693.933973 | AK11: =+'Original data'!BB11+'Original data'!BC11 -> 1058.159252 | AL11: 21247.08304
A12: =+'Original data'!A12 -> 2007-04-01 | B12: =+'Original data'!C12*-1 -> -585.0707561 | C12: =+'Original data'!B12+'Original data'!C12 -> 4117.081564 | D12: =+'Original data'!E12*-1 -> -2868.448761 | E12: =+'Original data'!D12+'Original data'!E12 -> 3514.62417 | F12: =+'Original data'!G12*-1 -> -103.671771 | G12: =+'Original data'!F12+'Original data'!G12 -> 430.11812 | H12: =+'Original data'!I12*-1 -> -1130.239 | I12: =+'Original data'!K12*-1 -> -74.400197 | J12: =+'Original data'!H12+'Original data'!J12 -> 668.0821958 | K12: -1204.639197 | L12: 1204.639197 | M12: =+'Original data'!M12*-1 -> -1305.954811 | N12: =+'Original data'!L12+'Original data'!M12 -> 2094.371206 | O12: =+'Original data'!B12+'Original data'!D12+'Original data'!F12+'Original data'!H12+'Original data'!J12+'Original data'!L12 -> 5961.131157 | P12: =+'Original data'!C12+'Original data'!E12+'Original data'!G12+'Original data'!I12+'Original data'!K12+'Original data'!M12 -> 6067.785296 | Q12: =+'Original data'!O12*-1 -> -8871.178373 | R12: =+'Original data'!N12+'Original data'!O12 -> 17649.89218 | S12: 29678.80863 | T12: =+'Original data'!Y12+'Original data'!AB12 -> 651.4636975 | U12: =+'Original data'!Z12+'Original data'!AC12 -> 1567.993841 | V12: =+'Original data'!AD12+'Original data'!AA12 -> -916.530143 | W12: =+'Original data'!AQ12*-1 -> -928.1931751 | X12: =+'Original data'!AP12+'Original data'!AQ12 -> 1861.039517 | Y12: =+'Original data'!AS12*-1 -> -2565.740191 | Z12: =+'Original data'!AR12+'Original data'!AS12 -> 5558.372856 | AA12: =+'Original data'!AU12*-1 -> -85.66665878 | AB12: =+'Original data'!AT12+'Original data'!AU12 -> 135.3979387 | AC12: =+'Original data'!AW12*-1 -> -3833.04917 | AD12: =+'Original data'!AY12*-1 -> -180.0165309 | AE12: =+'Original data'!AV12+'Original data'!AX12 -> 3928.37934 | AF12: -4013.065701 | AG12: 7941.445041 | AH12: =+'Original data'!BA12*-1 -> -1050.181509 | AI12: =+'Original data'!AZ12+'Original data'!BA12 -> 2155.021297 | AJ12: =+'Original data'!BC12*-1 -> -558.2527654 | AK12: =+'Original data'!BB12+'Original data'!BC12 -> 1159.354082 | AL12: 18810.63073
A13: =+'Original data'!A13 -> 2007-05-01 | B13: =+'Original data'!C13*-1 -> -1847.815988 | C13: =+'Original data'!B13+'Original data'!C13 -> 6462.693145 | D13: =+'Original data'!E13*-1 -> -2947.002406 | E13: =+'Original data'!D13+'Original data'!E13 -> 3914.268824 | F13: =+'Original data'!G13*-1 -> -209.897997 | G13: =+'Original data'!F13+'Original data'!G13 -> 781.3800376 | H13: =+'Original data'!I13*-1 -> -1268.344268 | I13: =+'Original data'!K13*-1 -> -44.08783016 | J13: =+'Original data'!H13+'Original data'!J13 -> 1222.214815 | K13: -1312.432098 | L13: 1312.432098 | M13: =+'Original data'!M13*-1 -> -1121.181089 | N13: =+'Original data'!L13+'Original data'!M13 -> 4007.337077 | O13: =+'Original data'!B13+'Original data'!D13+'Original data'!F13+'Original data'!H13+'Original data'!J13+'Original data'!L13 -> 10261.99642 | P13: =+'Original data'!C13+'Original data'!E13+'Original data'!G13+'Original data'!I13+'Original data'!K13+'Original data'!M13 -> 7438.329578 | Q13: =+'Original data'!O13*-1 -> -11098.0867 | R13: =+'Original data'!N13+'Original data'!O13 -> 20551.23739 | S13: 38251.56338 | T13: =+'Original data'!Y13+'Original data'!AB13 -> 938.5197874 | U13: =+'Original data'!Z13+'Original data'!AC13 -> 1501.321131 | V13: =+'Original data'!AD13+'Original data'!AA13 -> -562.801344 | W13: =+'Original data'!AQ13*-1 -> -1229.262214 | X13: =+'Original data'!AP13+'Original data'!AQ13 -> 2397.59777 | Y13: =+'Original data'!AS13*-1 -> -4016.038852 | Z13: =+'Original data'!AR13+'Original data'!AS13 -> 7596.366092 | AA13: =+'Original data'!AU13*-1 -> -94.6217111 | AB13: =+'Original data'!AT13+'Original data'!AU13 -> 157.0747366 | AC13: =+'Original data'!AW13*-1 -> -5556.631862 | AD13: =+'Original data'!AY13*-1 -> -242.7953557 | AE13: =+'Original data'!AV13+'Original data'!AX13 -> 5678.957334 | AF13: -5799.427218 | AG13: 11478.38455 | AH13: =+'Original data'!BA13*-1 -> -2531.585174 | AI13: =+'Original data'!AZ13+'Original data'!BA13 -> 4498.730963 | AJ13: =+'Original data'!BC13*-1 -> -655.434831 | AK13: =+'Original data'!BB13+'Original data'!BC13 -> 1506.111097 | AL13: 27634.26521
A14: =+'Original data'!A14 -> 2007-06-01 | B14: =+'Original data'!C14*-1 -> -773.365 | C14: =+'Original data'!B14+'Original data'!C14 -> 4886.223781 | D14: =+'Original data'!E14*-1 -> -2038.509914 | E14: =+'Original data'!D14+'Original data'!E14 -> 3221.345272 | F14: =+'Original data'!G14*-1 -> -72.404468 | G14: =+'Original data'!F14+'Original data'!G14 -> 479.655385 | H14: =+'Original data'!I14*-1 -> -1203.871549 | I14: =+'Original data'!K14*-1 -> -64.02287203 | J14: =+'Original data'!H14+'Original data'!J14 -> 1087.543235 | K14: -1267.894421 | L14: 1267.894421 | M14: =+'Original data'!M14*-1 -> -1083.108078 | N14: =+'Original data'!L14+'Original data'!M14 -> 4948.940667 | O14: =+'Original data'!B14+'Original data'!D14+'Original data'!F14+'Original data'!H14+'Original data'!J14+'Original data'!L14 -> 10656.32088 | P14: =+'Original data'!C14+'Original data'!E14+'Original data'!G14+'Original data'!I14+'Original data'!K14+'Original data'!M14 -> 5235.281881 | Q14: =+'Original data'!O14*-1 -> -13183.82535 | R14: =+'Original data'!N14+'Original data'!O14 -> 23472.71029 | S14: 39364.31305 | T14: =+'Original data'!Y14+'Original data'!AB14 -> 1070.315245 | U14: =+'Original data'!Z14+'Original data'!AC14 -> 1450.237998 | V14: =+'Original data'!AD14+'Original data'!AA14 -> -379.922753 | W14: =+'Original data'!AQ14*-1 -> -1736.349957 | X14: =+'Original data'!AP14+'Original data'!AQ14 -> 3344.830099 | Y14: =+'Original data'!AS14*-1 -> -3368.455262 | Z14: =+'Original data'!AR14+'Original data'!AS14 -> 6116.014181 | AA14: =+'Original data'!AU14*-1 -> -124.8509593 | AB14: =+'Original data'!AT14+'Original data'!AU14 -> 164.1060412 | AC14: =+'Original data'!AW14*-1 -> -4710.793856 | AD14: =+'Original data'!AY14*-1 -> -417.6096407 | AE14: =+'Original data'!AV14+'Original data'!AX14 -> 5001.814334 | AF14: -5128.403497 | AG14: 10130.21783 | AH14: =+'Original data'!BA14*-1 -> -3611.298819 | AI14: =+'Original data'!AZ14+'Original data'!BA14 -> 7159.853061 | AJ14: =+'Original data'!BC14*-1 -> -540.1215067 | AK14: =+'Original data'!BB14+'Original data'!BC14 -> 1194.22564 | AL14: 28109.24685
A15: =+'Original data'!A15 -> 2007-07-01 | B15: =+'Original data'!C15*-1 -> -1192.83 | C15: =+'Original data'!B15+'Original data'!C15 -> 6371.636808 | D15: =+'Original data'!E15*-1 -> -3708.522439 | E15: =+'Original data'!D15+'Original data'!E15 -> 4513.57485 | F15: =+'Original data'!G15*-1 -> -152.606317 | G15: =+'Original data'!F15+'Original data'!G15 -> 510.464091 | H15: =+'Original data'!I15*-1 -> -1603.079691 | I15: =+'Original data'!K15*-1 -> -114.5645642 | J15: =+'Original data'!H15+'Original data'!J15 -> 1182.491115 | K15: -1717.644255 | L15: 1717.644255 | M15: =+'Original data'!M15*-1 -> -1444.696994 | N15: =+'Original data'!L15+'Original data'!M15 -> 4191.848513 | O15: =+'Original data'!B15+'Original data'!D15+'Original data'!F15+'Original data'!H15+'Original data'!J15+'Original data'!L15 -> 10271.35963 | P15: =+'Original data'!C15+'Original data'!E15+'Original data'!G15+'Original data'!I15+'Original data'!K15+'Original data'!M15 -> 8216.300005 | Q15: =+'Original data'!O15*-1 -> -12933.30024 | R15: =+'Original data'!N15+'Original data'!O15 -> 24069.33056 | S15: 42556.99019 | T15: =+'Original data'!Y15+'Original data'!AB15 -> 1302.01078 | U15: =+'Original data'!Z15+'Original data'!AC15 -> 1665.880143 | V15: =+'Original data'!AD15+'Original data'!AA15 -> -363.869363 | W15: =+'Original data'!AQ15*-1 -> -1765.097259 | X15: =+'Original data'!AP15+'Original data'!AQ15 -> 3538.786867 | Y15: =+'Original data'!AS15*-1 -> -3654.986939 | Z15: =+'Original data'!AR15+'Original data'!AS15 -> 6633.689444 | AA15: =+'Original data'!AU15*-1 -> -112.9989618 | AB15: =+'Original data'!AT15+'Original data'!AU15 -> 201.6520634 | AC15: =+'Original data'!AW15*-1 -> -5537.665129 | AD15: =+'Original data'!AY15*-1 -> -450.0238817 | AE15: =+'Original data'!AV15+'Original data'!AX15 -> 5618.289936 | AF15: -5987.68901 | AG15: 11605.97895 | AH15: =+'Original data'!BA15*-1 -> -2636.718428 | AI15: =+'Original data'!AZ15+'Original data'!BA15 -> 5641.648322 | AJ15: =+'Original data'!BC15*-1 -> -674.0894022 | AK15: =+'Original data'!BB15+'Original data'!BC15 -> 1329.863358 | AL15: 28951.619
A16: =+'Original data'!A16 -> 2007-08-01 | B16: =+'Original data'!C16*-1 -> -2176.543292 | C16: =+'Original data'!B16+'Original data'!C16 -> 8941.265533 | D16: =+'Original data'!E16*-1 -> -2695.172765 | E16: =+'Original data'!D16+'Original data'!E16 -> 4401.151286 | F16: =+'Original data'!G16*-1 -> -168.275125 | G16: =+'Original data'!F16+'Original data'!G16 -> 608.026541 | H16: =+'Original data'!I16*-1 -> -1814.30179 | I16: =+'Original data'!K16*-1 -> -131.8320152 | J16: =+'Original data'!H16+'Original data'!J16 -> 1195.872847 | K16: -1946.133805 | L16: 1946.133805 | M16: =+'Original data'!M16*-1 -> -2061.300775 | N16: =+'Original data'!L16+'Original data'!M16 -> 4842.483 | O16: =+'Original data'!B16+'Original data'!D16+'Original data'!F16+'Original data'!H16+'Original data'!J16+'Original data'!L16 -> 12887.50725 | P16: =+'Original data'!C16+'Original data'!E16+'Original data'!G16+'Original data'!I16+'Original data'!K16+'Original data'!M16 -> 9047.425762 | Q16: =+'Original data'!O16*-1 -> -15262.34587 | R16: =+'Original data'!N16+'Original data'!O16 -> 28873.26291 | S16: 50808.19592 | T16: =+'Original data'!Y16+'Original data'!AB16 -> 1284.319822 | U16: =+'Original data'!Z16+'Original data'!AC16 -> 1609.295862 | V16: =+'Original data'!AD16+'Original data'!AA16 -> -324.97604 | W16: =+'Original data'!AQ16*-1 -> -3681.265015 | X16: =+'Original data'!AP16+'Original data'!AQ16 -> 5087.193762 | Y16: =+'Original data'!AS16*-1 -> -3597.998446 | Z16: =+'Original data'!AR16+'Original data'!AS16 -> 7391.746367 | AA16: =+'Original data'!AU16*-1 -> -191.5013862 | AB16: =+'Original data'!AT16+'Original data'!AU16 -> 280.508529 | AC16: =+'Original data'!AW16*-1 -> -6151.620574 | AD16: =+'Original data'!AY16*-1 -> -531.0242401 | AE16: =+'Original data'!AV16+'Original data'!AX16 -> 6729.127894 | AF16: -6682.644814 | AG16: 13411.77271 | AH16: =+'Original data'!BA16*-1 -> -1668.639208 | AI16: =+'Original data'!AZ16+'Original data'!BA16 -> 3185.841534 | AJ16: =+'Original data'!BC16*-1 -> -918.8011294 | AK16: =+'Original data'!BB16+'Original data'!BC16 -> 1881.638725 | AL16: 31238.70163
A17: =+'Original data'!A17 -> 2007-09-01 | B17: =+'Original data'!C17*-1 -> -1436.573 | C17: =+'Original data'!B17+'Original data'!C17 -> 5461.50104 | D17: =+'Original data'!E17*-1 -> -3879.336801 | E17: =+'Original data'!D17+'Original data'!E17 -> 4858.412549 | F17: =+'Original data'!G17*-1 -> -87.443805 | G17: =+'Original data'!F17+'Original data'!G17 -> 458.331771 | H17: =+'Original data'!I17*-1 -> -1468.374625 | I17: =+'Original data'!K17*-1 -> -78.04201399 | J17: =+'Original data'!H17+'Original data'!J17 -> 605.9142461 | K17: -1546.416639 | L17: 1546.416639 | M17: =+'Original data'!M17*-1 -> -2387.926268 | N17: =+'Original data'!L17+'Original data'!M17 -> 3605.146713 | O17: =+'Original data'!B17+'Original data'!D17+'Original data'!F17+'Original data'!H17+'Original data'!J17+'Original data'!L17 -> 7198.026445 | P17: =+'Original data'!C17+'Original data'!E17+'Original data'!G17+'Original data'!I17+'Original data'!K17+'Original data'!M17 -> 9337.696513 | Q17: =+'Original data'!O17*-1 -> -12081.68146 | R17: =+'Original data'!N17+'Original data'!O17 -> 26218.65396 | S17: 42754.37692 | T17: =+'Original data'!Y17+'Original data'!AB17 -> 1027.470298 | U17: =+'Original data'!Z17+'Original data'!AC17 -> 1990.606017 | V17: =+'Original data'!AD17+'Original data'!AA17 -> -963.135719 | W17: =+'Original data'!AQ17*-1 -> -686.2075834 | X17: =+'Original data'!AP17+'Original data'!AQ17 -> 1245.377581 | Y17: =+'Original data'!AS17*-1 -> -3157.676393 | Z17: =+'Original data'!AR17+'Original data'!AS17 -> 5977.208114 | AA17: =+'Original data'!AU17*-1 -> -56.21935002 | AB17: =+'Original data'!AT17+'Original data'!AU17 -> 145.0449013 | AC17: =+'Original data'!AW17*-1 -> -4228.54353 | AD17: =+'Original data'!AY17*-1 -> -63.57390871 | AE17: =+'Original data'!AV17+'Original data'!AX17 -> 4375.475299 | AF17: -4292.117438 | AG17: 8667.592738 | AH17: =+'Original data'!BA17*-1 -> -1217.717644 | AI17: =+'Original data'!AZ17+'Original data'!BA17 -> 2197.855801 | AJ17: =+'Original data'!BC17*-1 -> -526.4515912 | AK17: =+'Original data'!BB17+'Original data'!BC17 -> 1091.39726 | AL17: 19324.47639
A18: =+'Original data'!A18 -> 2007-10-01 | B18: =+'Original data'!C18*-1 -> -2562.908807 | C18: =+'Original data'!B18+'Original data'!C18 -> 8715.610384 | D18: =+'Original data'!E18*-1 -> -4847.134326 | E18: =+'Original data'!D18+'Original data'!E18 -> 5975.804632 | F18: =+'Original data'!G18*-1 -> -231.844212 | G18: =+'Original data'!F18+'Original data'!G18 -> 618.175866 | H18: =+'Original data'!I18*-1 -> -1878.7136 | I18: =+'Original data'!K18*-1 -> -139.2490761 | J18: =+'Original data'!H18+'Original data'!J18 -> 1137.077028 | K18: -2017.962676 | L18: 2017.962676 | M18: =+'Original data'!M18*-1 -> -2703.607224 | N18: =+'Original data'!L18+'Original data'!M18 -> 4333.546061 | O18: =+'Original data'!B18+'Original data'!D18+'Original data'!F18+'Original data'!H18+'Original data'!J18+'Original data'!L18 -> 10434.7194 | P18: =+'Original data'!C18+'Original data'!E18+'Original data'!G18+'Original data'!I18+'Original data'!K18+'Original data'!M18 -> 12363.45724 | Q18: =+'Original data'!O18*-1 -> -13992.84079 | R18: =+'Original data'!N18+'Original data'!O18 -> 28045.10425 | S18: 50843.2809 | T18: =+'Original data'!Y18+'Original data'!AB18 -> 1105.315085 | U18: =+'Original data'!Z18+'Original data'!AC18 -> 2017.863681 | V18: =+'Original data'!AD18+'Original data'!AA18 -> -912.548596 | W18: =+'Original data'!AQ18*-1 -> -1430.483864 | X18: =+'Original data'!AP18+'Original data'!AQ18 -> 2720.945652 | Y18: =+'Original data'!AS18*-1 -> -4691.127699 | Z18: =+'Original data'!AR18+'Original data'!AS18 -> 8995.825942 | AA18: =+'Original data'!AU18*-1 -> -61.16859178 | AB18: =+'Original data'!AT18+'Original data'!AU18 -> 138.5583028 | AC18: =+'Original data'!AW18*-1 -> -5409.401167 | AD18: =+'Original data'!AY18*-1 -> -219.2719928 | AE18: =+'Original data'!AV18+'Original data'!AX18 -> 5629.611501 | AF18: -5628.67316 | AG18: 11258.28466 | AH18: =+'Original data'!BA18*-1 -> -1673.903199 | AI18: =+'Original data'!AZ18+'Original data'!BA18 -> 2915.938243 | AJ18: =+'Original data'!BC18*-1 -> -848.0634865 | AK18: =+'Original data'!BB18+'Original data'!BC18 -> 2046.263022 | AL18: 28075.81582
A19: =+'Original data'!A19 -> 2007-11-01 | B19: =+'Original data'!C19*-1 -> -2496.662922 | C19: =+'Original data'!B19+'Original data'!C19 -> 8016.247356 | D19: =+'Original data'!E19*-1 -> -3123.036129 | E19: =+'Original data'!D19+'Original data'!E19 -> 5042.578982 | F19: =+'Original data'!G19*-1 -> -88.972564 | G19: =+'Original data'!F19+'Original data'!G19 -> 483.238461 | H19: =+'Original data'!I19*-1 -> -1527.286626 | I19: =+'Original data'!K19*-1 -> -71.39565106 | J19: =+'Original data'!H19+'Original data'!J19 -> 1238.021517 | K19: -1598.682277 | L19: 1598.682277 | M19: =+'Original data'!M19*-1 -> -1892.049277 | N19: =+'Original data'!L19+'Original data'!M19 -> 3829.098233 | O19: =+'Original data'!B19+'Original data'!D19+'Original data'!F19+'Original data'!H19+'Original data'!J19+'Original data'!L19 -> 11008.46366 | P19: =+'Original data'!C19+'Original data'!E19+'Original data'!G19+'Original data'!I19+'Original data'!K19+'Original data'!M19 -> 9199.403169 | Q19: =+'Original data'!O19*-1 -> -15871.51205 | R19: =+'Original data'!N19+'Original data'!O19 -> 27626.81307 | S19: 47834.67989 | T19: =+'Original data'!Y19+'Original data'!AB19 -> 1423.401947 | U19: =+'Original data'!Z19+'Original data'!AC19 -> 1742.961632 | V19: =+'Original data'!AD19+'Original data'!AA19 -> -319.559685 | W19: =+'Original data'!AQ19*-1 -> -587.2994434 | X19: =+'Original data'!AP19+'Original data'!AQ19 -> 1171.426669 | Y19: =+'Original data'!AS19*-1 -> -3969.82672 | Z19: =+'Original data'!AR19+'Original data'!AS19 -> 8133.652162 | AA19: =+'Original data'!AU19*-1 -> -78.66310637 | AB19: =+'Original data'!AT19+'Original data'!AU19 -> 191.8728006 | AC19: =+'Original data'!AW19*-1 -> -5130.373555 | AD19: =+'Original data'!AY19*-1 -> -161.0885241 | AE19: =+'Original data'!AV19+'Original data'!AX19 -> 5651.574377 | AF19: -5291.46208 | AG19: 10943.03646 | AH19: =+'Original data'!BA19*-1 -> -1669.410639 | AI19: =+'Original data'!AZ19+'Original data'!BA19 -> 3236.388721 | AJ19: =+'Original data'!BC19*-1 -> -824.4480115 | AK19: =+'Original data'!BB19+'Original data'!BC19 -> 1768.365697 | AL19: 25444.74251
A20: =+'Original data'!A20 -> 2007-12-01 | B20: =+'Original data'!C20*-1 -> -2734.280541 | C20: =+'Original data'!B20+'Original data'!C20 -> 7026.636402 | D20: =+'Original data'!E20*-1 -> -3642.640402 | E20: =+'Original data'!D20+'Original data'!E20 -> 5211.741763 | F20: =+'Original data'!G20*-1 -> -149.505038 | G20: =+'Original data'!F20+'Original data'!G20 -> 533.70113 | H20: =+'Original data'!I20*-1 -> -1082.214374 | I20: =+'Original data'!K20*-1 -> -208.9658422 | J20: =+'Original data'!H20+'Original data'!J20 -> 566.5327579 | K20: -1291.180216 | L20: 1291.180216 | M20: =+'Original data'!M20*-1 -> -1837.172682 | N20: =+'Original data'!L20+'Original data'!M20 -> 2813.458107 | O20: =+'Original data'!B20+'Original data'!D20+'Original data'!F20+'Original data'!H20+'Original data'!J20+'Original data'!L20 -> 7788.471497 | P20: =+'Original data'!C20+'Original data'!E20+'Original data'!G20+'Original data'!I20+'Original data'!K20+'Original data'!M20 -> 9654.77888 | Q20: =+'Original data'!O20*-1 -> -10376.94327 | R20: =+'Original data'!N20+'Original data'!O20 -> 21617.05316 | S20: 39060.30353 | T20: =+'Original data'!Y20+'Original data'!AB20 -> 1143.96123 | U20: =+'Original data'!Z20+'Original data'!AC20 -> 1918.338506 | V20: =+'Original data'!AD20+'Original data'!AA20 -> -774.377276 | W20: =+'Original data'!AQ20*-1 -> -645.5756193 | X20: =+'Original data'!AP20+'Original data'!AQ20 -> 1100.155756 | Y20: =+'Original data'!AS20*-1 -> -4746.387256 | Z20: =+'Original data'!AR20+'Original data'!AS20 -> 9328.810893 | AA20: =+'Original data'!AU20*-1 -> -108.9621412 | AB20: =+'Original data'!AT20+'Original data'!AU20 -> 231.9515058 | AC20: =+'Original data'!AW20*-1 -> -4270.131729 | AD20: =+'Original data'!AY20*-1 -> -328.879703 | AE20: =+'Original data'!AV20+'Original data'!AX20 -> 4633.296005 | AF20: -4599.011432 | AG20: 9232.307437 | AH20: =+'Original data'!BA20*-1 -> -2001.282378 | AI20: =+'Original data'!AZ20+'Original data'!BA20 -> 4066.338039 | AJ20: =+'Original data'!BC20*-1 -> -681.2311737 | AK20: =+'Original data'!BB20+'Original data'!BC20 -> 1332.86583 | AL20: 25292.42946
A21: =+'Original data'!A21 -> 2008-01-01 | B21: =+'Original data'!C21*-1 -> -3172.594856 | C21: =+'Original data'!B21+'Original data'!C21 -> 8731.667039 | D21: =+'Original data'!E21*-1 -> -5062.198532 | E21: =+'Original data'!D21+'Original data'!E21 -> 6837.802418 | F21: =+'Original data'!G21*-1 -> -210.43097 | G21: =+'Original data'!F21+'Original data'!G21 -> 643.294904 | H21: =+'Original data'!I21*-1 -> -1386.752419 | I21: =+'Original data'!K21*-1 -> -287.7827993 | J21: =+'Original data'!H21+'Original data'!J21 -> 945.236581 | K21: -1674.535218 | L21: 1674.535218 | M21: =+'Original data'!M21*-1 -> -1612.279819 | N21: =+'Original data'!L21+'Original data'!M21 -> 2903.284787 | O21: =+'Original data'!B21+'Original data'!D21+'Original data'!F21+'Original data'!H21+'Original data'!J21+'Original data'!L21 -> 10003.78155 | P21: =+'Original data'!C21+'Original data'!E21+'Original data'!G21+'Original data'!I21+'Original data'!K21+'Original data'!M21 -> 11732.0394 | Q21: =+'Original data'!O21*-1 -> -13279.86875 | R21: =+'Original data'!N21+'Original data'!O21 -> 25994.19508 | S21: 47730.01602 | T21: =+'Original data'!Y21+'Original data'!AB21 -> 1158.595611 | U21: =+'Original data'!Z21+'Original data'!AC21 -> 2101.812353 | V21: =+'Original data'!AD21+'Original data'!AA21 -> -943.216742 | W21: =+'Original data'!AQ21*-1 -> -714.8141588 | X21: =+'Original data'!AP21+'Original data'!AQ21 -> 952.837727 | Y21: =+'Original data'!AS21*-1 -> -4953.438166 | Z21: =+'Original data'!AR21+'Original data'!AS21 -> 9495.550638 | AA21: =+'Original data'!AU21*-1 -> -92.86535045 | AB21: =+'Original data'!AT21+'Original data'!AU21 -> 206.5050891 | AC21: =+'Original data'!AW21*-1 -> -4841.47369 | AD21: =+'Original data'!AY21*-1 -> -209.4968265 | AE21: =+'Original data'!AV21+'Original data'!AX21 -> 5779.865445 | AF21: -5050.970517 | AG21: 10830.83596 | AH21: =+'Original data'!BA21*-1 -> -1815.058659 | AI21: =+'Original data'!AZ21+'Original data'!BA21 -> 3677.550411 | AJ21: =+'Original data'!BC21*-1 -> -738.4731491 | AK21: =+'Original data'!BB21+'Original data'!BC21 -> 1662.420837 | AL21: 26825.70066
A22: =+'Original data'!A22 -> 2008-02-01 | B22: =+'Original data'!C22*-1 -> -4848.048843 | C22: =+'Original data'!B22+'Original data'!C22 -> 10483.4978 | D22: =+'Original data'!E22*-1 -> -3428.668269 | E22: =+'Original data'!D22+'Original data'!E22 -> 4797.532654 | F22: =+'Original data'!G22*-1 -> -144.2883106 | G22: =+'Original data'!F22+'Original data'!G22 -> 540.3627236 | H22: =+'Original data'!I22*-1 -> -951.111873 | I22: =+'Original data'!K22*-1 -> -246.9260992 | J22: =+'Original data'!H22+'Original data'!J22 -> 570.1518366 | K22: -1198.037972 | L22: 1198.037972 | M22: =+'Original data'!M22*-1 -> -1105.920504 | N22: =+'Original data'!L22+'Original data'!M22 -> 2347.667452 | O22: =+'Original data'!B22+'Original data'!D22+'Original data'!F22+'Original data'!H22+'Original data'!J22+'Original data'!L22 -> 9212.286536 | P22: =+'Original data'!C22+'Original data'!E22+'Original data'!G22+'Original data'!I22+'Original data'!K22+'Original data'!M22 -> 10724.9639 | Q22: =+'Original data'!O22*-1 -> -7893.812227 | R22: =+'Original data'!N22+'Original data'!O22 -> 16701.21351 | S22: 36638.46395 | T22: =+'Original data'!Y22+'Original data'!AB22 -> 916.599052 | U22: =+'Original data'!Z22+'Original data'!AC22 -> 1892.559594 | V22: =+'Original data'!AD22+'Original data'!AA22 -> -975.960542 | W22: =+'Original data'!AQ22*-1 -> -1249.51303 | X22: =+'Original data'!AP22+'Original data'!AQ22 -> 2029.00923 | Y22: =+'Original data'!AS22*-1 -> -4592.455672 | Z22: =+'Original data'!AR22+'Original data'!AS22 -> 8380.282729 | AA22: =+'Original data'!AU22*-1 -> -155.0744471 | AB22: =+'Original data'!AT22+'Original data'!AU22 -> 242.520411 | AC22: =+'Original data'!AW22*-1 -> -3025.589111 | AD22: =+'Original data'!AY22*-1 -> -91.22343997 | AE22: =+'Original data'!AV22+'Original data'!AX22 -> 3762.129834 | AF22: -3116.812551 | AG22: 6878.942385 | AH22: =+'Original data'!BA22*-1 -> -878.3741882 | AI22: =+'Original data'!AZ22+'Original data'!BA22 -> 1946.317755 | AJ22: =+'Original data'!BC22*-1 -> -693.9901112 | AK22: =+'Original data'!BB22+'Original data'!BC22 -> 1529.474088 | AL22: 21006.5466
A23: =+'Original data'!A23 -> 2008-03-01 | B23: =+'Original data'!C23*-1 -> -3656.607 | C23: =+'Original data'!B23+'Original data'!C23 -> 12267.40902 | D23: =+'Original data'!E23*-1 -> -3612.298813 | E23: =+'Original data'!D23+'Original data'!E23 -> 5200.606055 | F23: =+'Original data'!G23*-1 -> -160.906812 | G23: =+'Original data'!F23+'Original data'!G23 -> 699.882929 | H23: =+'Original data'!I23*-1 -> -1058.108858 | I23: =+'Original data'!K23*-1 -> -164.4453111 | J23: =+'Original data'!H23+'Original data'!J23 -> 1102.955275 | K23: -1222.554169 | L23: 1222.554169 | M23: =+'Original data'!M23*-1 -> -1607.234949 | N23: =+'Original data'!L23+'Original data'!M23 -> 3430.355823 | O23: =+'Original data'!B23+'Original data'!D23+'Original data'!F23+'Original data'!H23+'Original data'!J23+'Original data'!L23 -> 13664.16153 | P23: =+'Original data'!C23+'Original data'!E23+'Original data'!G23+'Original data'!I23+'Original data'!K23+'Original data'!M23 -> 10259.60174 | Q23: =+'Original data'!O23*-1 -> -13231.73306 | R23: =+'Original data'!N23+'Original data'!O23 -> 23562.07218 | S23: 47485.83546 | T23: =+'Original data'!Y23+'Original data'!AB23 -> 1001.872943 | U23: =+'Original data'!Z23+'Original data'!AC23 -> 1593.551464 | V23: =+'Original data'!AD23+'Original data'!AA23 -> -591.678521 | W23: =+'Original data'!AQ23*-1 -> -1560.392075 | X23: =+'Original data'!AP23+'Original data'!AQ23 -> 1962.736087 | Y23: =+'Original data'!AS23*-1 -> -4750.266533 | Z23: =+'Original data'!AR23+'Original data'!AS23 -> 10105.94384 | AA23: =+'Original data'!AU23*-1 -> -125.3146534 | AB23: =+'Original data'!AT23+'Original data'!AU23 -> 213.1150869 | AC23: =+'Original data'!AW23*-1 -> -4607.567723 | AD23: =+'Original data'!AY23*-1 -> -71.29209004 | AE23: =+'Original data'!AV23+'Original data'!AX23 -> 5161.507542 | AF23: -4678.859814 | AG23: 9840.367355 | AH23: =+'Original data'!BA23*-1 -> -1285.414895 | AI23: =+'Original data'!AZ23+'Original data'!BA23 -> 1685.407285 | AJ23: =+'Original data'!BC23*-1 -> -1185.262029 | AK23: =+'Original data'!BB23+'Original data'!BC23 -> 2707.384121 | AL23: 26514.95378
A24: =+'Original data'!A24 -> 2008-04-01 | B24: =+'Original data'!C24*-1 -> -3409.959303 | C24: =+'Original data'!B24+'Original data'!C24 -> 10537.03884 | D24: =+'Original data'!E24*-1 -> -5465.544607 | E24: =+'Original data'!D24+'Original data'!E24 -> 7026.658602 | F24: =+'Original data'!G24*-1 -> -160.016779 | G24: =+'Original data'!F24+'Original data'!G24 -> 668.885533 | H24: =+'Original data'!I24*-1 -> -952.8733544 | I24: =+'Original data'!K24*-1 -> -152.0595907 | J24: =+'Original data'!H24+'Original data'!J24 -> 832.5999727 | K24: -1104.932945 | L24: 1104.932945 | M24: =+'Original data'!M24*-1 -> -1879.333271 | N24: =+'Original data'!L24+'Original data'!M24 -> 3577.467438 | O24: =+'Original data'!B24+'Original data'!D24+'Original data'!F24+'Original data'!H24+'Original data'!J24+'Original data'!L24 -> 11727.79643 | P24: =+'Original data'!C24+'Original data'!E24+'Original data'!G24+'Original data'!I24+'Original data'!K24+'Original data'!M24 -> 12019.78691 | Q24: =+'Original data'!O24*-1 -> -13278.2529 | R24: =+'Original data'!N24+'Original data'!O24 -> 21915.1604 | S24: 45662.74373 | T24: =+'Original data'!Y24+'Original data'!AB24 -> 837.5024071 | U24: =+'Original data'!Z24+'Original data'!AC24 -> 1239.04597 | V24: =+'Original data'!AD24+'Original data'!AA24 -> -401.543563 | W24: =+'Original data'!AQ24*-1 -> -1640.095084 | X24: =+'Original data'!AP24+'Original data'!AQ24 -> 2298.768423 | Y24: =+'Original data'!AS24*-1 -> -5720.287429 | Z24: =+'Original data'!AR24+'Original data'!AS24 -> 11986.58425 | AA24: =+'Original data'!AU24*-1 -> -73.92482455 | AB24: =+'Original data'!AT24+'Original data'!AU24 -> 247.4881074 | AC24: =+'Original data'!AW24*-1 -> -4014.54697 | AD24: =+'Original data'!AY24*-1 -> -122.760776 | AE24: =+'Original data'!AV24+'Original data'!AX24 -> 5091.112065 | AF24: -4137.307746 | AG24: 9228.41981 | AH24: =+'Original data'!BA24*-1 -> -2278.65513 | AI24: =+'Original data'!AZ24+'Original data'!BA24 -> 3708.85625 | AJ24: =+'Original data'!BC24*-1 -> -1205.089786 | AK24: =+'Original data'!BB24+'Original data'!BC24 -> 2501.577133 | AL24: 29971.69397
A25: =+'Original data'!A25 -> 2008-05-01 | B25: =+'Original data'!C25*-1 -> -3469.216871 | C25: =+'Original data'!B25+'Original data'!C25 -> 11571.27771 | D25: =+'Original data'!E25*-1 -> -4340.174844 | E25: =+'Original data'!D25+'Original data'!E25 -> 5772.430037 | F25: =+'Original data'!G25*-1 -> -100.225264 | G25: =+'Original data'!F25+'Original data'!G25 -> 416.71361 | H25: =+'Original data'!I25*-1 -> -842.5328969 | I25: =+'Original data'!K25*-1 -> -138.1764639 | J25: =+'Original data'!H25+'Original data'!J25 -> 759.8680902 | K25: -980.7093607 | L25: 980.7093607 | M25: =+'Original data'!M25*-1 -> -1294.982976 | N25: =+'Original data'!L25+'Original data'!M25 -> 2961.832548 | O25: =+'Original data'!B25+'Original data'!D25+'Original data'!F25+'Original data'!H25+'Original data'!J25+'Original data'!L25 -> 12277.52204 | P25: =+'Original data'!C25+'Original data'!E25+'Original data'!G25+'Original data'!I25+'Original data'!K25+'Original data'!M25 -> 10185.30932 | Q25: =+'Original data'!O25*-1 -> -9835.761578 | R25: =+'Original data'!N25+'Original data'!O25 -> 17099.83404 | S25: 39562.6654 | T25: =+'Original data'!Y25+'Original data'!AB25 -> 794.0433856 | U25: =+'Original data'!Z25+'Original data'!AC25 -> 1012.024733 | V25: =+'Original data'!AD25+'Original data'!AA25 -> -217.981347 | W25: =+'Original data'!AQ25*-1 -> -1651.434245 | X25: =+'Original data'!AP25+'Original data'!AQ25 -> 2448.18781 | Y25: =+'Original data'!AS25*-1 -> -5404.72037 | Z25: =+'Original data'!AR25+'Original data'!AS25 -> 10392.10117 | AA25: =+'Original data'!AU25*-1 -> -76.88379849 | AB25: =+'Original data'!AT25+'Original data'!AU25 -> 185.3707382 | AC25: =+'Original data'!AW25*-1 -> -3582.183569 | AD25: =+'Original data'!AY25*-1 -> -362.6694877 | AE25: =+'Original data'!AV25+'Original data'!AX25 -> 4478.352532 | AF25: -3944.853056 | AG25: 8423.205588 | AH25: =+'Original data'!BA25*-1 -> -2419.150732 | AI25: =+'Original data'!AZ25+'Original data'!BA25 -> 3385.836325 | AJ25: =+'Original data'!BC25*-1 -> -906.1077978 | AK25: =+'Original data'!BB25+'Original data'!BC25 -> 2112.285121 | AL25: 26946.98675
A26: =+'Original data'!A26 -> 2008-06-01 | B26: =+'Original data'!C26*-1 -> -4701.518521 | C26: =+'Original data'!B26+'Original data'!C26 -> 12753.28004 | D26: =+'Original data'!E26*-1 -> -4300.230205 | E26: =+'Original data'!D26+'Original data'!E26 -> 6593.635958 | F26: =+'Original data'!G26*-1 -> -92.125264 | G26: =+'Original data'!F26+'Original data'!G26 -> 419.569858 | H26: =+'Original data'!I26*-1 -> -918.5572486 | I26: =+'Original data'!K26*-1 -> -196.527163 | J26: =+'Original data'!H26+'Original data'!J26 -> 1112.043203 | K26: -1115.084412 | L26: 1115.084412 | M26: =+'Original data'!M26*-1 -> -1413.626222 | N26: =+'Original data'!L26+'Original data'!M26 -> 3727.341934 | O26: =+'Original data'!B26+'Original data'!D26+'Original data'!F26+'Original data'!H26+'Original data'!J26+'Original data'!L26 -> 14098.37078 | P26: =+'Original data'!C26+'Original data'!E26+'Original data'!G26+'Original data'!I26+'Original data'!K26+'Original data'!M26 -> 11622.58462 | Q26: =+'Original data'!O26*-1 -> -13118.66317 | R26: =+'Original data'!N26+'Original data'!O26 -> 23311.60027 | S26: 49032.55568 | T26: =+'Original data'!Y26+'Original data'!AB26 -> 1062.376899 | U26: =+'Original data'!Z26+'Original data'!AC26 -> 999.0766702 | V26: =+'Original data'!AD26+'Original data'!AA26 -> 63.300229 | W26: =+'Original data'!AQ26*-1 -> -389.9225937 | X26: =+'Original data'!AP26+'Original data'!AQ26 -> 1570.771949 | Y26: =+'Original data'!AS26*-1 -> -5700.080482 | Z26: =+'Original data'!AR26+'Original data'!AS26 -> 11200.52274 | AA26: =+'Original data'!AU26*-1 -> -92.61923287 | AB26: =+'Original data'!AT26+'Original data'!AU26 -> 196.0014329 | AC26: =+'Original data'!AW26*-1 -> -4220.15792 | AD26: =+'Original data'!AY26*-1 -> -254.4155555 | AE26: =+'Original data'!AV26+'Original data'!AX26 -> 5015.524692 | AF26: -4474.573475 | AG26: 9490.098167 | AH26: =+'Original data'!BA26*-1 -> -2854.047687 | AI26: =+'Original data'!AZ26+'Original data'!BA26 -> 3893.228742 | AJ26: =+'Original data'!BC26*-1 -> -1145.40653 | AK26: =+'Original data'!BB26+'Original data'!BC26 -> 2193.183916 | AL26: 28543.80695
A27: =+'Original data'!A27 -> 2008-07-01 | B27: =+'Original data'!C27*-1 -> -5327.599796 | C27: =+'Original data'!B27+'Original data'!C27 -> 13677.60908 | D27: =+'Original data'!E27*-1 -> -5364.947411 | E27: =+'Original data'!D27+'Original data'!E27 -> 6963.426844 | F27: =+'Original data'!G27*-1 -> -83.081093 | G27: =+'Original data'!F27+'Original data'!G27 -> 423.026793 | H27: =+'Original data'!I27*-1 -> -965.57504 | I27: =+'Original data'!K27*-1 -> -246.1256087 | J27: =+'Original data'!H27+'Original data'!J27 -> 593.7894062 | K27: -1211.700649 | L27: 1211.700649 | M27: =+'Original data'!M27*-1 -> -1533.560255 | N27: =+'Original data'!L27+'Original data'!M27 -> 3517.853857 | O27: =+'Original data'!B27+'Original data'!D27+'Original data'!F27+'Original data'!H27+'Original data'!J27+'Original data'!L27 -> 12866.51743 | P27: =+'Original data'!C27+'Original data'!E27+'Original data'!G27+'Original data'!I27+'Original data'!K27+'Original data'!M27 -> 13520.8892 | Q27: =+'Original data'!O27*-1 -> -11761.63226 | R27: =+'Original data'!N27+'Original data'!O27 -> 23363.79253 | S27: 49751.19916 | T27: =+'Original data'!Y27+'Original data'!AB27 -> 798.4359371 | U27: =+'Original data'!Z27+'Original data'!AC27 -> 1048.366677 | V27: =+'Original data'!AD27+'Original data'!AA27 -> -249.93074 | W27: =+'Original data'!AQ27*-1 -> -1297.142465 | X27: =+'Original data'!AP27+'Original data'!AQ27 -> 4009.278306 | Y27: =+'Original data'!AS27*-1 -> -5731.55231 | Z27: =+'Original data'!AR27+'Original data'!AS27 -> 10734.06958 | AA27: =+'Original data'!AU27*-1 -> -117.1096735 | AB27: =+'Original data'!AT27+'Original data'!AU27 -> 218.4745216 | AC27: =+'Original data'!AW27*-1 -> -6336.259863 | AD27: =+'Original data'!AY27*-1 -> -170.7582877 | AE27: =+'Original data'!AV27+'Original data'!AX27 -> 5447.509128 | AF27: -6507.01815 | AG27: 11954.52728 | AH27: =+'Original data'!BA27*-1 -> -1324.688364 | AI27: =+'Original data'!AZ27+'Original data'!BA27 -> 3025.571136 | AJ27: =+'Original data'!BC27*-1 -> -859.8890376 | AK27: =+'Original data'!BB27+'Original data'!BC27 -> 1834.948852 | AL27: 31776.86967
A28: =+'Original data'!A28 -> 2008-08-01 | B28: =+'Original data'!C28*-1 -> -3904.208552 | C28: =+'Original data'!B28+'Original data'!C28 -> 9593.773604 | D28: =+'Original data'!E28*-1 -> -4461.249893 | E28: =+'Original data'!D28+'Original data'!E28 -> 6239.870746 | F28: =+'Original data'!G28*-1 -> -90.576335 | G28: =+'Original data'!F28+'Original data'!G28 -> 413.1162855 | H28: =+'Original data'!I28*-1 -> -901.35589 | I28: =+'Original data'!K28*-1 -> -163.9267646 | J28: =+'Original data'!H28+'Original data'!J28 -> 822.5522738 | K28: -1065.282655 | L28: 1065.282655 | M28: =+'Original data'!M28*-1 -> -1001.872187 | N28: =+'Original data'!L28+'Original data'!M28 -> 4229.098683 | O28: =+'Original data'!B28+'Original data'!D28+'Original data'!F28+'Original data'!H28+'Original data'!J28+'Original data'!L28 -> 11840.50463 | P28: =+'Original data'!C28+'Original data'!E28+'Original data'!G28+'Original data'!I28+'Original data'!K28+'Original data'!M28 -> 10523.18962 | Q28: =+'Original data'!O28*-1 -> -11501.68706 | R28: =+'Original data'!N28+'Original data'!O28 -> 21158.62358 | S28: 43522.31783 | T28: =+'Original data'!Y28+'Original data'!AB28 -> 1018.113751 | U28: =+'Original data'!Z28+'Original data'!AC28 -> 1213.770274 | V28: =+'Original data'!AD28+'Original data'!AA28 -> -195.656523 | W28: =+'Original data'!AQ28*-1 -> -1308.950654 | X28: =+'Original data'!AP28+'Original data'!AQ28 -> 2462.879764 | Y28: =+'Original data'!AS28*-1 -> -5909.385129 | Z28: =+'Original data'!AR28+'Original data'!AS28 -> 11222.56421 | AA28: =+'Original data'!AU28*-1 -> -78.68060523 | AB28: =+'Original data'!AT28+'Original data'!AU28 -> 208.6746725 | AC28: =+'Original data'!AW28*-1 -> -4022.849925 | AD28: =+'Original data'!AY28*-1 -> -513.8054815 | AE28: =+'Original data'!AV28+'Original data'!AX28 -> 4668.228531 | AF28: -4536.655406 | AG28: 9204.883937 | AH28: =+'Original data'!BA28*-1 -> -2701.875177 | AI28: =+'Original data'!AZ28+'Original data'!BA28 -> 4981.940497 | AJ28: =+'Original data'!BC28*-1 -> -640.7830298 | AK28: =+'Original data'!BB28+'Original data'!BC28 -> 1402.708462 | AL28: 29483.65154
A29: =+'Original data'!A29 -> 2008-09-01 | B29: =+'Original data'!C29*-1 -> -2119.118588 | C29: =+'Original data'!B29+'Original data'!C29 -> 7274.450555 | D29: =+'Original data'!E29*-1 -> -4173.025013 | E29: =+'Original data'!D29+'Original data'!E29 -> 5835.942327 | F29: =+'Original data'!G29*-1 -> -113.716263 | G29: =+'Original data'!F29+'Original data'!G29 -> 411.8844795 | H29: =+'Original data'!I29*-1 -> -1156.907001 | I29: =+'Original data'!K29*-1 -> -330.5268319 | J29: =+'Original data'!H29+'Original data'!J29 -> 1166.798281 | K29: -1487.433833 | L29: 1487.433833 | M29: =+'Original data'!M29*-1 -> -1483.024851 | N29: =+'Original data'!L29+'Original data'!M29 -> 6123.805688 | O29: =+'Original data'!B29+'Original data'!D29+'Original data'!F29+'Original data'!H29+'Original data'!J29+'Original data'!L29 -> 12923.99661 | P29: =+'Original data'!C29+'Original data'!E29+'Original data'!G29+'Original data'!I29+'Original data'!K29+'Original data'!M29 -> 9376.318548 | Q29: =+'Original data'!O29*-1 -> -11677.08561 | R29: =+'Original data'!N29+'Original data'!O29 -> 19790.64965 | S29: 42090.96481 | T29: =+'Original data'!Y29+'Original data'!AB29 -> 1302.451003 | U29: =+'Original data'!Z29+'Original data'!AC29 -> 1419.368944 | V29: =+'Original data'!AD29+'Original data'!AA29 -> -116.917941 | W29: =+'Original data'!AQ29*-1 -> -952.712313 | X29: =+'Original data'!AP29+'Original data'!AQ29 -> 2198.414367 | Y29: =+'Original data'!AS29*-1 -> -5943.813532 | Z29: =+'Original data'!AR29+'Original data'!AS29 -> 11909.10031 | AA29: =+'Original data'!AU29*-1 -> -100.8837705 | AB29: =+'Original data'!AT29+'Original data'!AU29 -> 286.8409072 | AC29: =+'Original data'!AW29*-1 -> -4639.898404 | AD29: =+'Original data'!AY29*-1 -> -182.8093612 | AE29: =+'Original data'!AV29+'Original data'!AX29 -> 5165.922703 | AF29: -4822.707766 | AG29: 9988.630468 | AH29: =+'Original data'!BA29*-1 -> -5898.757566 | AI29: =+'Original data'!AZ29+'Original data'!BA29 -> 11891.0089 | AJ29: =+'Original data'!BC29*-1 -> -693.5750526 | AK29: =+'Original data'!BB29+'Original data'!BC29 -> 1860.871084 | AL29: 38134.86604
A30: =+'Original data'!A30 -> 2008-10-01 | B30: =+'Original data'!C30*-1 -> -2423.258985 | C30: =+'Original data'!B30+'Original data'!C30 -> 4573.330089 | D30: =+'Original data'!E30*-1 -> -3762.315051 | E30: =+'Original data'!D30+'Original data'!E30 -> 6873.261271 | F30: =+'Original data'!G30*-1 -> -81.61724721 | G30: =+'Original data'!F30+'Original data'!G30 -> 531.3084989 | H30: =+'Original data'!I30*-1 -> -717.2410135 | I30: =+'Original data'!K30*-1 -> -225.6194374 | J30: =+'Original data'!H30+'Original data'!J30 -> 1037.053076 | K30: -942.8604509 | L30: 942.8604509 | M30: =+'Original data'!M30*-1 -> -1510.578 | N30: =+'Original data'!L30+'Original data'!M30 -> 3889.067234 | O30: =+'Original data'!B30+'Original data'!D30+'Original data'!F30+'Original data'!H30+'Original data'!J30+'Original data'!L30 -> 9126.250886 | P30: =+'Original data'!C30+'Original data'!E30+'Original data'!G30+'Original data'!I30+'Original data'!K30+'Original data'!M30 -> 8720.629734 | Q30: =+'Original data'!O30*-1 -> -8816.783899 | R30: =+'Original data'!N30+'Original data'!O30 -> 15382.57878 | S30: 33229.4594 | T30: =+'Original data'!Y30+'Original data'!AB30 -> 1333.868372 | U30: =+'Original data'!Z30+'Original data'!AC30 -> 1368.731983 | V30: =+'Original data'!AD30+'Original data'!AA30 -> -34.863611 | W30: =+'Original data'!AQ30*-1 -> -1221.145594 | X30: =+'Original data'!AP30+'Original data'!AQ30 -> 2609.146904 | Y30: =+'Original data'!AS30*-1 -> -4917.047156 | Z30: =+'Original data'!AR30+'Original data'!AS30 -> 9824.339876 | AA30: =+'Original data'!AU30*-1 -> -107.8543921 | AB30: =+'Original data'!AT30+'Original data'!AU30 -> 203.6512379 | AC30: =+'Original data'!AW30*-1 -> -4902.916709 | AD30: =+'Original data'!AY30*-1 -> -322.7289214 | AE30: =+'Original data'!AV30+'Original data'!AX30 -> 5931.585814 | AF30: -5225.645631 | AG30: 11157.23144 | AH30: =+'Original data'!BA30*-1 -> -3713.936217 | AI30: =+'Original data'!AZ30+'Original data'!BA30 -> 7875.203925 | AJ30: =+'Original data'!BC30*-1 -> -1273.90101 | AK30: =+'Original data'!BB30+'Original data'!BC30 -> 2604.20839 | AL30: 34273.78178
A31: =+'Original data'!A31 -> 2008-11-01 | B31: =+'Original data'!C31*-1 -> -1144.6349 | C31: =+'Original data'!B31+'Original data'!C31 -> 3930.3889 | D31: =+'Original data'!E31*-1 -> -3369.962847 | E31: =+'Original data'!D31+'Original data'!E31 -> 5208.425724 | F31: =+'Original data'!G31*-1 -> -84.22602778 | G31: =+'Original data'!F31+'Original data'!G31 -> 368.9605588 | H31: =+'Original data'!I31*-1 -> -524.8440171 | I31: =+'Original data'!K31*-1 -> -127.3042639 | J31: =+'Original data'!H31+'Original data'!J31 -> 537.391766 | K31: -652.148281 | L31: 652.148281 | M31: =+'Original data'!M31*-1 -> -1702.556096 | N31: =+'Original data'!L31+'Original data'!M31 -> 2778.403259 | O31: =+'Original data'!B31+'Original data'!D31+'Original data'!F31+'Original data'!H31+'Original data'!J31+'Original data'!L31 -> 6522.190336 | P31: =+'Original data'!C31+'Original data'!E31+'Original data'!G31+'Original data'!I31+'Original data'!K31+'Original data'!M31 -> 6953.528152 | Q31: =+'Original data'!O31*-1 -> -4407.371497 | R31: =+'Original data'!N31+'Original data'!O31 -> 8174.671218 | S31: 21650.38971 | T31: =+'Original data'!Y31+'Original data'!AB31 -> 1114.008648 | U31: =+'Original data'!Z31+'Original data'!AC31 -> 1201.759761 | V31: =+'Original data'!AD31+'Original data'!AA31 -> -87.751113 | W31: =+'Original data'!AQ31*-1 -> -1347.87319 | X31: =+'Original data'!AP31+'Original data'!AQ31 -> 2143.888523 | Y31: =+'Original data'!AS31*-1 -> -4208.165609 | Z31: =+'Original data'!AR31+'Original data'!AS31 -> 8989.670988 | AA31: =+'Original data'!AU31*-1 -> -95.99669621 | AB31: =+'Original data'!AT31+'Original data'!AU31 -> 159.937077 | AC31: =+'Original data'!AW31*-1 -> -4428.364644 | AD31: =+'Original data'!AY31*-1 -> -385.2230917 | AE31: =+'Original data'!AV31+'Original data'!AX31 -> 4847.680474 | AF31: -4813.587736 | AG31: 9661.26821 | AH31: =+'Original data'!BA31*-1 -> -1157.474091 | AI31: =+'Original data'!AZ31+'Original data'!BA31 -> 3180.271546 | AJ31: =+'Original data'!BC31*-1 -> -936.692678 | AK31: =+'Original data'!BB31+'Original data'!BC31 -> 1902.992875 | AL31: 26038.02922
A32: =+'Original data'!A32 -> 2008-12-01 | B32: =+'Original data'!C32*-1 -> -1168.760719 | C32: =+'Original data'!B32+'Original data'!C32 -> 4961.410438 | D32: =+'Original data'!E32*-1 -> -3376.710535 | E32: =+'Original data'!D32+'Original data'!E32 -> 4463.933102 | F32: =+'Original data'!G32*-1 -> -98.65 | G32: =+'Original data'!F32+'Original data'!G32 -> 345.0895 | H32: =+'Original data'!I32*-1 -> -445.86128 | I32: =+'Original data'!K32*-1 -> -76.76574803 | J32: =+'Original data'!H32+'Original data'!J32 -> 499.7864797 | K32: -522.627028 | L32: 522.627028 | M32: =+'Original data'!M32*-1 -> -920.0752711 | N32: =+'Original data'!L32+'Original data'!M32 -> 2343.473156 | O32: =+'Original data'!B32+'Original data'!D32+'Original data'!F32+'Original data'!H32+'Original data'!J32+'Original data'!L32 -> 7049.49615 | P32: =+'Original data'!C32+'Original data'!E32+'Original data'!G32+'Original data'!I32+'Original data'!K32+'Original data'!M32 -> 6086.823553 | Q32: =+'Original data'!O32*-1 -> -4230.159863 | R32: =+'Original data'!N32+'Original data'!O32 -> 7497.785361 | S32: 20634.10506 | T32: =+'Original data'!Y32+'Original data'!AB32 -> 847.0610274 | U32: =+'Original data'!Z32+'Original data'!AC32 -> 899.9607834 | V32: =+'Original data'!AD32+'Original data'!AA32 -> -52.899756 | W32: =+'Original data'!AQ32*-1 -> -1320.326072 | X32: =+'Original data'!AP32+'Original data'!AQ32 -> 2116.383063 | Y32: =+'Original data'!AS32*-1 -> -4884.156546 | Z32: =+'Original data'!AR32+'Original data'!AS32 -> 9218.032976 | AA32: =+'Original data'!AU32*-1 -> -73.44428192 | AB32: =+'Original data'!AT32+'Original data'!AU32 -> 129.0748835 | AC32: =+'Original data'!AW32*-1 -> -3802.890201 | AD32: =+'Original data'!AY32*-1 -> -799.3385761 | AE32: =+'Original data'!AV32+'Original data'!AX32 -> 4738.771223 | AF32: -4602.228777 | AG32: 9341 | AH32: =+'Original data'!BA32*-1 -> -1360.626075 | AI32: =+'Original data'!AZ32+'Original data'!BA32 -> 3789.481757 | AJ32: =+'Original data'!BC32*-1 -> -847.3382495 | AK32: =+'Original data'!BB32+'Original data'!BC32 -> 1631.377368 | AL32: 26225.35005
A33: =+'Original data'!A33 -> 2009-01-01 | B33: =+'Original data'!C33*-1 -> -2278.525123 | C33: =+'Original data'!B33+'Original data'!C33 -> 7155.959565 | D33: =+'Original data'!E33*-1 -> -4041.375827 | E33: =+'Original data'!D33+'Original data'!E33 -> 5473.824195 | F33: =+'Original data'!G33*-1 -> -65.032288 | G33: =+'Original data'!F33+'Original data'!G33 -> 340.539017 | H33: =+'Original data'!I33*-1 -> -721.405078 | I33: =+'Original data'!K33*-1 -> -103.6208712 | J33: =+'Original data'!H33+'Original data'!J33 -> 332.7842259 | K33: -825.0259492 | L33: 825.0259492 | M33: =+'Original data'!M33*-1 -> -620.5457787 | N33: =+'Original data'!L33+'Original data'!M33 -> 1885.234259 | O33: =+'Original data'!B33+'Original data'!D33+'Original data'!F33+'Original data'!H33+'Original data'!J33+'Original data'!L33 -> 8182.862245 | P33: =+'Original data'!C33+'Original data'!E33+'Original data'!G33+'Original data'!I33+'Original data'!K33+'Original data'!M33 -> 7830.504966 | Q33: =+'Original data'!O33*-1 -> -7379.844188 | R33: =+'Original data'!N33+'Original data'!O33 -> 12947.54584 | S33: 28960.91305 | T33: =+'Original data'!Y33+'Original data'!AB33 -> 693.946722 | U33: =+'Original data'!Z33+'Original data'!AC33 -> 931.50153 | V33: =+'Original data'!AD33+'Original data'!AA33 -> -237.554808 | W33: =+'Original data'!AQ33*-1 -> -957.3320485 | X33: =+'Original data'!AP33+'Original data'!AQ33 -> 1600.893762 | Y33: =+'Original data'!AS33*-1 -> -4268.324437 | Z33: =+'Original data'!AR33+'Original data'!AS33 -> 8872.54472 | AA33: =+'Original data'!AU33*-1 -> -83.62905548 | AB33: =+'Original data'!AT33+'Original data'!AU33 -> 254.3849602 | AC33: =+'Original data'!AW33*-1 -> -3325.74842 | AD33: =+'Original data'!AY33*-1 -> -655.54374 | AE33: =+'Original data'!AV33+'Original data'!AX33 -> 3923.707841 | AF33: -3981.292159 | AG33: 7905 | AH33: =+'Original data'!BA33*-1 -> -1030.468111 | AI33: =+'Original data'!AZ33+'Original data'!BA33 -> 2013.487501 | AJ33: =+'Original data'!BC33*-1 -> -1138.214189 | AK33: =+'Original data'!BB33+'Original data'!BC33 -> 2343.036943 | AL33: 22989.34789
A34: =+'Original data'!A34 -> 2009-02-01 | B34: =+'Original data'!C34*-1 -> -3298.915573 | C34: =+'Original data'!B34+'Original data'!C34 -> 8355.398005 | D34: =+'Original data'!E34*-1 -> -3172.002504 | E34: =+'Original data'!D34+'Original data'!E34 -> 3860.74618 | F34: =+'Original data'!G34*-1 -> -47.104848 | G34: =+'Original data'!F34+'Original data'!G34 -> 300.7303517 | H34: =+'Original data'!I34*-1 -> -593.7717345 | I34: =+'Original data'!K34*-1 -> -114.2364502 | J34: =+'Original data'!H34+'Original data'!J34 -> 491.5948174 | K34: -708.0081847 | L34: 708.0081847 | M34: =+'Original data'!M34*-1 -> -637.6375387 | N34: =+'Original data'!L34+'Original data'!M34 -> 1294.986822 | O34: =+'Original data'!B34+'Original data'!D34+'Original data'!F34+'Original data'!H34+'Original data'!J34+'Original data'!L34 -> 7147.795712 | P34: =+'Original data'!C34+'Original data'!E34+'Original data'!G34+'Original data'!I34+'Original data'!K34+'Original data'!M34 -> 7863.668648 | Q34: =+'Original data'!O34*-1 -> -8886.837819 | R34: =+'Original data'!N34+'Original data'!O34 -> 15027.16046 | S34: 30038.62482 | T34: =+'Original data'!Y34+'Original data'!AB34 -> 722.0969142 | U34: =+'Original data'!Z34+'Original data'!AC34 -> 977.3326452 | V34: =+'Original data'!AD34+'Original data'!AA34 -> -255.235731 | W34: =+'Original data'!AQ34*-1 -> -481.4056824 | X34: =+'Original data'!AP34+'Original data'!AQ34 -> 1422.830739 | Y34: =+'Original data'!AS34*-1 -> -3231.207395 | Z34: =+'Original data'!AR34+'Original data'!AS34 -> 6543.768261 | AA34: =+'Original data'!AU34*-1 -> -73.9407869 | AB34: =+'Original data'!AT34+'Original data'!AU34 -> 154.8331866 | AC34: =+'Original data'!AW34*-1 -> -2562.59499 | AD34: =+'Original data'!AY34*-1 -> -680.4600155 | AE34: =+'Original data'!AV34+'Original data'!AX34 -> 3343.944994 | AF34: -3243.055006 | AG34: 6587 | AH34: =+'Original data'!BA34*-1 -> -633.1126727 | AI34: =+'Original data'!AZ34+'Original data'!BA34 -> 1391.035715 | AJ34: =+'Original data'!BC34*-1 -> -578.2384569 | AK34: =+'Original data'!BB34+'Original data'!BC34 -> 1225.46474 | AL34: 17324.93264
A35: =+'Original data'!A35 -> 2009-03-01 | B35: =+'Original data'!C35*-1 -> -1842.523461 | C35: =+'Original data'!B35+'Original data'!C35 -> 5837.665649 | D35: =+'Original data'!E35*-1 -> -3007.386361 | E35: =+'Original data'!D35+'Original data'!E35 -> 4153.294772 | F35: =+'Original data'!G35*-1 -> -115.965351 | G35: =+'Original data'!F35+'Original data'!G35 -> 429.8080012 | H35: =+'Original data'!I35*-1 -> -653.087958 | I35: =+'Original data'!K35*-1 -> -98.20049886 | J35: =+'Original data'!H35+'Original data'!J35 -> 427.1548148 | K35: -751.2884569 | L35: 751.2884569 | M35: =+'Original data'!M35*-1 -> -640.7328799 | N35: =+'Original data'!L35+'Original data'!M35 -> 1612.79674 | O35: =+'Original data'!B35+'Original data'!D35+'Original data'!F35+'Original data'!H35+'Original data'!J35+'Original data'!L35 -> 6854.111924 | P35: =+'Original data'!C35+'Original data'!E35+'Original data'!G35+'Original data'!I35+'Original data'!K35+'Original data'!M35 -> 6357.89651 | Q35: =+'Original data'!O35*-1 -> -6957.97824 | R35: =+'Original data'!N35+'Original data'!O35 -> 12880.12755 | S35: 26092.13598 | T35: =+'Original data'!Y35+'Original data'!AB35 -> 707.0655651 | U35: =+'Original data'!Z35+'Original data'!AC35 -> 1010.715769 | V35: =+'Original data'!AD35+'Original data'!AA35 -> -303.650204 | W35: =+'Original data'!AQ35*-1 -> -870.4099711 | X35: =+'Original data'!AP35+'Original data'!AQ35 -> 1365.570996 | Y35: =+'Original data'!AS35*-1 -> -3935.731943 | Z35: =+'Original data'!AR35+'Original data'!AS35 -> 7695.127974 | AA35: =+'Original data'!AU35*-1 -> -128.2563497 | AB35: =+'Original data'!AT35+'Original data'!AU35 -> 311.6933159 | AC35: =+'Original data'!AW35*-1 -> -4338.061611 | AD35: =+'Original data'!AY35*-1 -> -407.0679739 | AE35: =+'Original data'!AV35+'Original data'!AX35 -> 5026.523373 | AF35: -4745.129585 | AG35: 9771.652958 | AH35: =+'Original data'!BA35*-1 -> -243.3202633 | AI35: =+'Original data'!AZ35+'Original data'!BA35 -> 1059.14733 | AJ35: =+'Original data'!BC35*-1 -> -1143.321887 | AK35: =+'Original data'!BB35+'Original data'!BC35 -> 2075.487158 | AL35: 22278.67973
A36: =+'Original data'!A36 -> 2009-04-01 | B36: =+'Original data'!C36*-1 -> -1627.427653 | C36: =+'Original data'!B36+'Original data'!C36 -> 6217.346306 | D36: =+'Original data'!E36*-1 -> -2636.914753 | E36: =+'Original data'!D36+'Original data'!E36 -> 3829.46844 | F36: =+'Original data'!G36*-1 -> -45.825868 | G36: =+'Original data'!F36+'Original data'!G36 -> 256.607858 | H36: =+'Original data'!I36*-1 -> -411.650558 | I36: =+'Original data'!K36*-1 -> -80.85680109 | J36: =+'Original data'!H36+'Original data'!J36 -> 303.0752315 | K36: -492.507359 | L36: 492.507359 | M36: =+'Original data'!M36*-1 -> -741.2091849 | N36: =+'Original data'!L36+'Original data'!M36 -> 1488.8021 | O36: =+'Original data'!B36+'Original data'!D36+'Original data'!F36+'Original data'!H36+'Original data'!J36+'Original data'!L36 -> 7043.922476 | P36: =+'Original data'!C36+'Original data'!E36+'Original data'!G36+'Original data'!I36+'Original data'!K36+'Original data'!M36 -> 5543.884818 | Q36: =+'Original data'!O36*-1 -> -6872.526575 | R36: =+'Original data'!N36+'Original data'!O36 -> 12072.12742 | S36: 24659.93472 | T36: =+'Original data'!Y36+'Original data'!AB36 -> 662.6658217 | U36: =+'Original data'!Z36+'Original data'!AC36 -> 1036.475982 | V36: =+'Original data'!AD36+'Original data'!AA36 -> -373.81016 | W36: =+'Original data'!AQ36*-1 -> -1201.31315 | X36: =+'Original data'!AP36+'Original data'!AQ36 -> 1593.756307 | Y36: =+'Original data'!AS36*-1 -> -3407.264493 | Z36: =+'Original data'!AR36+'Original data'!AS36 -> 7030.291246 | AA36: =+'Original data'!AU36*-1 -> -102.0843596 | AB36: =+'Original data'!AT36+'Original data'!AU36 -> 209.8626563 | AC36: =+'Original data'!AW36*-1 -> -4127.176557 | AD36: =+'Original data'!AY36*-1 -> -474.5204487 | AE36: =+'Original data'!AV36+'Original data'!AX36 -> 4989.530743 | AF36: -4601.697006 | AG36: 9591.227749 | AH36: =+'Original data'!BA36*-1 -> -618.1434953 | AI36: =+'Original data'!AZ36+'Original data'!BA36 -> 2441.006191 | AJ36: =+'Original data'!BC36*-1 -> -938.3574964 | AK36: =+'Original data'!BB36+'Original data'!BC36 -> 1628.166195 | AL36: 22494.31034
A37: =+'Original data'!A37 -> 2009-05-01 | B37: =+'Original data'!C37*-1 -> -2551.496539 | C37: =+'Original data'!B37+'Original data'!C37 -> 9261.863109 | D37: =+'Original data'!E37*-1 -> -2938.851447 | E37: =+'Original data'!D37+'Original data'!E37 -> 3973.622059 | F37: =+'Original data'!G37*-1 -> -46.104244 | G37: =+'Original data'!F37+'Original data'!G37 -> 296.3569341 | H37: =+'Original data'!I37*-1 -> -560.6935974 | I37: =+'Original data'!K37*-1 -> -107.4952772 | J37: =+'Original data'!H37+'Original data'!J37 -> 313.7232718 | K37: -668.1888745 | L37: 668.1888745 | M37: =+'Original data'!M37*-1 -> -453.7836424 | N37: =+'Original data'!L37+'Original data'!M37 -> 1205.757024 | O37: =+'Original data'!B37+'Original data'!D37+'Original data'!F37+'Original data'!H37+'Original data'!J37+'Original data'!L37 -> 9061.086526 | P37: =+'Original data'!C37+'Original data'!E37+'Original data'!G37+'Original data'!I37+'Original data'!K37+'Original data'!M37 -> 6658.424747 | Q37: =+'Original data'!O37*-1 -> -5488.013414 | R37: =+'Original data'!N37+'Original data'!O37 -> 10074.31783 | S37: 25793.82911 | T37: =+'Original data'!Y37+'Original data'!AB37 -> 563.1508263 | U37: =+'Original data'!Z37+'Original data'!AC37 -> 896.5120153 | V37: =+'Original data'!AD37+'Original data'!AA37 -> -333.361189 | W37: =+'Original data'!AQ37*-1 -> -1987.266906 | X37: =+'Original data'!AP37+'Original data'!AQ37 -> 2245.157115 | Y37: =+'Original data'!AS37*-1 -> -3858.282119 | Z37: =+'Original data'!AR37+'Original data'!AS37 -> 7273.607477 | AA37: =+'Original data'!AU37*-1 -> -99.07580643 | AB37: =+'Original data'!AT37+'Original data'!AU37 -> 181.2998491 | AC37: =+'Original data'!AW37*-1 -> -3956.997106 | AD37: =+'Original data'!AY37*-1 -> -443.1860747 | AE37: =+'Original data'!AV37+'Original data'!AX37 -> 4262.392737 | AF37: -4400.183181 | AG37: 8662.575918 | AH37: =+'Original data'!BA37*-1 -> -779.1442493 | AI37: =+'Original data'!AZ37+'Original data'!BA37 -> 2164.120421 | AJ37: =+'Original data'!BC37*-1 -> -770.3977383 | AK37: =+'Original data'!BB37+'Original data'!BC37 -> 1365.26861 | AL37: 21892.02939
A38: =+'Original data'!A38 -> 2009-06-01 | B38: =+'Original data'!C38*-1 -> -3157.113 | C38: =+'Original data'!B38+'Original data'!C38 -> 11014.397 | D38: =+'Original data'!E38*-1 -> -4013.05955 | E38: =+'Original data'!D38+'Original data'!E38 -> 5155.417985 | F38: =+'Original data'!G38*-1 -> -142.719723 | G38: =+'Original data'!F38+'Original data'!G38 -> 566.489261 | H38: =+'Original data'!I38*-1 -> -386.3388372 | I38: =+'Original data'!K38*-1 -> -148.9704489 | J38: =+'Original data'!H38+'Original data'!J38 -> 404.4017965 | K38: -535.3092861 | L38: 535.3092861 | M38: =+'Original data'!M38*-1 -> -1533.847802 | N38: =+'Original data'!L38+'Original data'!M38 -> 3424.220796 | O38: =+'Original data'!B38+'Original data'!D38+'Original data'!F38+'Original data'!H38+'Original data'!J38+'Original data'!L38 -> 11718.18676 | P38: =+'Original data'!C38+'Original data'!E38+'Original data'!G38+'Original data'!I38+'Original data'!K38+'Original data'!M38 -> 9382.049361 | Q38: =+'Original data'!O38*-1 -> -7811.402023 | R38: =+'Original data'!N38+'Original data'!O38 -> 14214.74553 | S38: 35314.98166 | T38: =+'Original data'!Y38+'Original data'!AB38 -> 596.0234383 | U38: =+'Original data'!Z38+'Original data'!AC38 -> 920.0078833 | V38: =+'Original data'!AD38+'Original data'!AA38 -> -323.984445 | W38: =+'Original data'!AQ38*-1 -> -1639.637394 | X38: =+'Original data'!AP38+'Original data'!AQ38 -> 1797.109322 | Y38: =+'Original data'!AS38*-1 -> -4833.361796 | Z38: =+'Original data'!AR38+'Original data'!AS38 -> 8944.822646 | AA38: =+'Original data'!AU38*-1 -> -133.772593 | AB38: =+'Original data'!AT38+'Original data'!AU38 -> 290.5485204 | AC38: =+'Original data'!AW38*-1 -> -3920.742088 | AD38: =+'Original data'!AY38*-1 -> -344.3943199 | AE38: =+'Original data'!AV38+'Original data'!AX38 -> 3955.777197 | AF38: -4265.136407 | AG38: 8220.913605 | AH38: =+'Original data'!BA38*-1 -> -2236.844283 | AI38: =+'Original data'!AZ38+'Original data'!BA38 -> 6686.429635 | AJ38: =+'Original data'!BC38*-1 -> -1264.907526 | AK38: =+'Original data'!BB38+'Original data'!BC38 -> 2267.329963 | AL38: 28207.15369
A39: =+'Original data'!A39 -> 2009-07-01 | B39: =+'Original data'!C39*-1 -> -2070.896 | C39: =+'Original data'!B39+'Original data'!C39 -> 10319.045 | D39: =+'Original data'!E39*-1 -> -3757.894853 | E39: =+'Original data'!D39+'Original data'!E39 -> 4681.92845 | F39: =+'Original data'!G39*-1 -> -53.101425 | G39: =+'Original data'!F39+'Original data'!G39 -> 632.503905 | H39: =+'Original data'!I39*-1 -> -574.9714418 | I39: =+'Original data'!K39*-1 -> -120.4990353 | J39: =+'Original data'!H39+'Original data'!J39 -> 509.7555016 | K39: -695.4704771 | L39: 695.4704771 | M39: =+'Original data'!M39*-1 -> -187.574698 | N39: =+'Original data'!L39+'Original data'!M39 -> 1073.749418 | O39: =+'Original data'!B39+'Original data'!D39+'Original data'!F39+'Original data'!H39+'Original data'!J39+'Original data'!L39 -> 11147.5153 | P39: =+'Original data'!C39+'Original data'!E39+'Original data'!G39+'Original data'!I39+'Original data'!K39+'Original data'!M39 -> 6764.937453 | Q39: =+'Original data'!O39*-1 -> -9790.716478 | R39: =+'Original data'!N39+'Original data'!O39 -> 16437.20875 | S39: 34349.6615 | T39: =+'Original data'!Y39+'Original data'!AB39 -> 550.3146259 | U39: =+'Original data'!Z39+'Original data'!AC39 -> 538.5832609 | V39: =+'Original data'!AD39+'Original data'!AA39 -> 11.731365 | W39: =+'Original data'!AQ39*-1 -> -2043.971988 | X39: =+'Original data'!AP39+'Original data'!AQ39 -> 2508.885481 | Y39: =+'Original data'!AS39*-1 -> -4523.8686 | Z39: =+'Original data'!AR39+'Original data'!AS39 -> 9421.25203 | AA39: =+'Original data'!AU39*-1 -> -154.6190428 | AB39: =+'Original data'!AT39+'Original data'!AU39 -> 310.9333906 | AC39: =+'Original data'!AW39*-1 -> -4417.867177 | AD39: =+'Original data'!AY39*-1 -> -230.0914277 | AE39: =+'Original data'!AV39+'Original data'!AX39 -> 4712.228067 | AF39: -4647.958605 | AG39: 9360.186672 | AH39: =+'Original data'!BA39*-1 -> -539.45806 | AI39: =+'Original data'!AZ39+'Original data'!BA39 -> 1852.957656 | AJ39: =+'Original data'!BC39*-1 -> -899.7037045 | AK39: =+'Original data'!BB39+'Original data'!BC39 -> 1771.255091 | AL39: 25225.47032
A40: =+'Original data'!A40 -> 2009-08-01 | B40: =+'Original data'!C40*-1 -> -1962.518 | C40: =+'Original data'!B40+'Original data'!C40 -> 9986.581 | D40: =+'Original data'!E40*-1 -> -3939.79297 | E40: =+'Original data'!D40+'Original data'!E40 -> 4968.428518 | F40: =+'Original data'!G40*-1 -> -73.67362797 | G40: =+'Original data'!F40+'Original data'!G40 -> 714.9237119 | H40: =+'Original data'!I40*-1 -> -437.993658 | I40: =+'Original data'!K40*-1 -> -203.258158 | J40: =+'Original data'!H40+'Original data'!J40 -> 534.0437879 | K40: -641.251816 | L40: 641.251816 | M40: =+'Original data'!M40*-1 -> -282.1533987 | N40: =+'Original data'!L40+'Original data'!M40 -> 2538.016466 | O40: =+'Original data'!B40+'Original data'!D40+'Original data'!F40+'Original data'!H40+'Original data'!J40+'Original data'!L40 -> 12483.85549 | P40: =+'Original data'!C40+'Original data'!E40+'Original data'!G40+'Original data'!I40+'Original data'!K40+'Original data'!M40 -> 6899.389813 | Q40: =+'Original data'!O40*-1 -> -11382.96544 | R40: =+'Original data'!N40+'Original data'!O40 -> 18883.31188 | S40: 38266.55718 | T40: =+'Original data'!Y40+'Original data'!AB40 -> 571.8791354 | U40: =+'Original data'!Z40+'Original data'!AC40 -> 582.9492624 | V40: =+'Original data'!AD40+'Original data'!AA40 -> -11.070127 | W40: =+'Original data'!AQ40*-1 -> -1418.442203 | X40: =+'Original data'!AP40+'Original data'!AQ40 -> 1671.28737 | Y40: =+'Original data'!AS40*-1 -> -4818.673655 | Z40: =+'Original data'!AR40+'Original data'!AS40 -> 9471.726831 | AA40: =+'Original data'!AU40*-1 -> -114.3983166 | AB40: =+'Original data'!AT40+'Original data'!AU40 -> 240.3578461 | AC40: =+'Original data'!AW40*-1 -> -4105.1677 | AD40: =+'Original data'!AY40*-1 -> -445.5351761 | AE40: =+'Original data'!AV40+'Original data'!AX40 -> 4754.653732 | AF40: -4550.702876 | AG40: 9305.356608 | AH40: =+'Original data'!BA40*-1 -> -1769.952099 | AI40: =+'Original data'!AZ40+'Original data'!BA40 -> 4437.027088 | AJ40: =+'Original data'!BC40*-1 -> -471.0408507 | AK40: =+'Original data'!BB40+'Original data'!BC40 -> 1087.433022 | AL40: 26213.18877
A41: =+'Original data'!A41 -> 2009-09-01 | B41: =+'Original data'!C41*-1 -> -4038.892994 | C41: =+'Original data'!B41+'Original data'!C41 -> 13714.90269 | D41: =+'Original data'!E41*-1 -> -4227.225944 | E41: =+'Original data'!D41+'Original data'!E41 -> 5198.666322 | F41: =+'Original data'!G41*-1 -> -129.805599 | G41: =+'Original data'!F41+'Original data'!G41 -> 732.466329 | H41: =+'Original data'!I41*-1 -> -753.1152034 | I41: =+'Original data'!K41*-1 -> -179.4457288 | J41: =+'Original data'!H41+'Original data'!J41 -> 818.2100973 | K41: -932.5609323 | L41: 932.5609323 | M41: =+'Original data'!M41*-1 -> -812.9554942 | N41: =+'Original data'!L41+'Original data'!M41 -> 3105.939019 | O41: =+'Original data'!B41+'Original data'!D41+'Original data'!F41+'Original data'!H41+'Original data'!J41+'Original data'!L41 -> 14361.30442 | P41: =+'Original data'!C41+'Original data'!E41+'Original data'!G41+'Original data'!I41+'Original data'!K41+'Original data'!M41 -> 10141.44096 | Q41: =+'Original data'!O41*-1 -> -12600.26474 | R41: =+'Original data'!N41+'Original data'!O41 -> 21936.36953 | S41: 46439.11491 | T41: =+'Original data'!Y41+'Original data'!AB41 -> 857.8273883 | U41: =+'Original data'!Z41+'Original data'!AC41 -> 807.6118383 | V41: =+'Original data'!AD41+'Original data'!AA41 -> 50.21555 | W41: =+'Original data'!AQ41*-1 -> -2351.045898 | X41: =+'Original data'!AP41+'Original data'!AQ41 -> 2605.409854 | Y41: =+'Original data'!AS41*-1 -> -5598.839402 | Z41: =+'Original data'!AR41+'Original data'!AS41 -> 10316.31908 | AA41: =+'Original data'!AU41*-1 -> -137.6382276 | AB41: =+'Original data'!AT41+'Original data'!AU41 -> 237.4656557 | AC41: =+'Original data'!AW41*-1 -> -4091.358507 | AD41: =+'Original data'!AY41*-1 -> -582.2848097 | AE41: =+'Original data'!AV41+'Original data'!AX41 -> 4299.371259 | AF41: -4673.643317 | AG41: 8973.014576 | AH41: =+'Original data'!BA41*-1 -> -4506.744951 | AI41: =+'Original data'!AZ41+'Original data'!BA41 -> 9566.954841 | AJ41: =+'Original data'!BC41*-1 -> -860.4982043 | AK41: =+'Original data'!BB41+'Original data'!BC41 -> 2052.649408 | AL41: 33751.81342
A42: =+'Original data'!A42 -> 2009-10-01 | B42: =+'Original data'!C42*-1 -> -2374.5672 | C42: =+'Original data'!B42+'Original data'!C42 -> 10642.00044 | D42: =+'Original data'!E42*-1 -> -4732.974786 | E42: =+'Original data'!D42+'Original data'!E42 -> 6040.655415 | F42: =+'Original data'!G42*-1 -> -62.051435 | G42: =+'Original data'!F42+'Original data'!G42 -> 651.589015 | H42: =+'Original data'!I42*-1 -> -761.5965189 | I42: =+'Original data'!K42*-1 -> -203.7775801 | J42: =+'Original data'!H42+'Original data'!J42 -> 882.3164123 | K42: -965.3740991 | L42: 965.3740991 | M42: =+'Original data'!M42*-1 -> -756.7915442 | N42: =+'Original data'!L42+'Original data'!M42 -> 3024.512711 | O42: =+'Original data'!B42+'Original data'!D42+'Original data'!F42+'Original data'!H42+'Original data'!J42+'Original data'!L42 -> 13314.68903 | P42: =+'Original data'!C42+'Original data'!E42+'Original data'!G42+'Original data'!I42+'Original data'!K42+'Original data'!M42 -> 8891.759064 | Q42: =+'Original data'!O42*-1 -> -11719.21527 | R42: =+'Original data'!N42+'Original data'!O42 -> 20951.12667 | S42: 43157.57477 | T42: =+'Original data'!Y42+'Original data'!AB42 -> 889.8602411 | U42: =+'Original data'!Z42+'Original data'!AC42 -> 944.9592721 | V42: =+'Original data'!AD42+'Original data'!AA42 -> -55.099031 | W42: =+'Original data'!AQ42*-1 -> -2264.37157 | X42: =+'Original data'!AP42+'Original data'!AQ42 -> 2449.737233 | Y42: =+'Original data'!AS42*-1 -> -4603.445078 | Z42: =+'Original data'!AR42+'Original data'!AS42 -> 9733.266932 | AA42: =+'Original data'!AU42*-1 -> -157.2212384 | AB42: =+'Original data'!AT42+'Original data'!AU42 -> 263.248102 | AC42: =+'Original data'!AW42*-1 -> -4724.852412 | AD42: =+'Original data'!AY42*-1 -> -752.8212625 | AE42: =+'Original data'!AV42+'Original data'!AX42 -> 4786.682984 | AF42: -5477.673674 | AG42: 10264.35666 | AH42: =+'Original data'!BA42*-1 -> -1967.859663 | AI42: =+'Original data'!AZ42+'Original data'!BA42 -> 4963.510959 | AJ42: =+'Original data'!BC42*-1 -> -830.9287756 | AK42: =+'Original data'!BB42+'Original data'!BC42 -> 1709.49578 | AL42: 29383.61566
A43: =+'Original data'!A43 -> 2009-11-01 | B43: =+'Original data'!C43*-1 -> -2352.711 | C43: =+'Original data'!B43+'Original data'!C43 -> 12112.847 | D43: =+'Original data'!E43*-1 -> -6155.395143 | E43: =+'Original data'!D43+'Original data'!E43 -> 7199.38327 | F43: =+'Original data'!G43*-1 -> -168.696192 | G43: =+'Original data'!F43+'Original data'!G43 -> 765 | H43: =+'Original data'!I43*-1 -> -682.5803003 | I43: =+'Original data'!K43*-1 -> -287.0779596 | J43: =+'Original data'!H43+'Original data'!J43 -> 612.3417401 | K43: -969.6582599 | L43: 969.6582599 | M43: =+'Original data'!M43*-1 -> -1092.830023 | N43: =+'Original data'!L43+'Original data'!M43 -> 2639.55803 | O43: =+'Original data'!B43+'Original data'!D43+'Original data'!F43+'Original data'!H43+'Original data'!J43+'Original data'!L43 -> 13559.49768 | P43: =+'Original data'!C43+'Original data'!E43+'Original data'!G43+'Original data'!I43+'Original data'!K43+'Original data'!M43 -> 10739.29062 | Q43: =+'Original data'!O43*-1 -> -11807.60529 | R43: =+'Original data'!N43+'Original data'!O43 -> 21088.4772 | S43: 45387.2655 | T43: =+'Original data'!Y43+'Original data'!AB43 -> 830.6772089 | U43: =+'Original data'!Z43+'Original data'!AC43 -> 826.9597604 | V43: =+'Original data'!AD43+'Original data'!AA43 -> 3.7174485 | W43: =+'Original data'!AQ43*-1 -> -3155.504672 | X43: =+'Original data'!AP43+'Original data'!AQ43 -> 3405 | Y43: =+'Original data'!AS43*-1 -> -5673.285582 | Z43: =+'Original data'!AR43+'Original data'!AS43 -> 11339.42884 | AA43: =+'Original data'!AU43*-1 -> -162.741877 | AB43: =+'Original data'!AT43+'Original data'!AU43 -> 377 | AC43: =+'Original data'!AW43*-1 -> -4648.692384 | AD43: =+'Original data'!AY43*-1 -> -461.7781492 | AE43: =+'Original data'!AV43+'Original data'!AX43 -> 4759.529467 | AF43: -5110.470533 | AG43: 9870 | AH43: =+'Original data'!BA43*-1 -> -1152.552695 | AI43: =+'Original data'!AZ43+'Original data'!BA43 -> 3188.614542 | AJ43: =+'Original data'!BC43*-1 -> -915.2960546 | AK43: =+'Original data'!BB43+'Original data'!BC43 -> 2215.083671 | AL43: 30395.12705
A44: =+'Original data'!A44 -> 2009-12-01 | B44: =+'Original data'!C44*-1 -> -2815.69093 | C44: =+'Original data'!B44+'Original data'!C44 -> 9941.250704 | D44: =+'Original data'!E44*-1 -> -4693.099771 | E44: =+'Original data'!D44+'Original data'!E44 -> 5892.898231 | F44: =+'Original data'!G44*-1 -> -144.812345 | G44: =+'Original data'!F44+'Original data'!G44 -> 732 | H44: =+'Original data'!I44*-1 -> -437.981543 | I44: =+'Original data'!K44*-1 -> -244.915558 | J44: =+'Original data'!H44+'Original data'!J44 -> 438.102899 | K44: -682.897101 | L44: 682.897101 | M44: =+'Original data'!M44*-1 -> -2592.839607 | N44: =+'Original data'!L44+'Original data'!M44 -> 5485.566488 | O44: =+'Original data'!B44+'Original data'!D44+'Original data'!F44+'Original data'!H44+'Original data'!J44+'Original data'!L44 -> 12243.37567 | P44: =+'Original data'!C44+'Original data'!E44+'Original data'!G44+'Original data'!I44+'Original data'!K44+'Original data'!M44 -> 10929.33975 | Q44: =+'Original data'!O44*-1 -> -10766.2133 | R44: =+'Original data'!N44+'Original data'!O44 -> 16813.54679 | S44: 39986.26221 | T44: =+'Original data'!Y44+'Original data'!AB44 -> 640.8927597 | U44: =+'Original data'!Z44+'Original data'!AC44 -> 758.8927597 | V44: =+'Original data'!AD44+'Original data'!AA44 -> -118 | W44: =+'Original data'!AQ44*-1 -> -1522.041757 | X44: =+'Original data'!AP44+'Original data'!AQ44 -> 2444 | Y44: =+'Original data'!AS44*-1 -> -8534.29312 | Z44: =+'Original data'!AR44+'Original data'!AS44 -> 15625.37823 | AA44: =+'Original data'!AU44*-1 -> -115.3539354 | AB44: =+'Original data'!AT44+'Original data'!AU44 -> 262 | AC44: =+'Original data'!AW44*-1 -> -4042.048943 | AD44: =+'Original data'!AY44*-1 -> -349.125135 | AE44: =+'Original data'!AV44+'Original data'!AX44 -> 4622.825922 | AF44: -4391.174078 | AG44: 9014 | AH44: =+'Original data'!BA44*-1 -> -3470.893694 | AI44: =+'Original data'!AZ44+'Original data'!BA44 -> 8496.977927 | AJ44: =+'Original data'!BC44*-1 -> -1834.035069 | AK44: =+'Original data'!BB44+'Original data'!BC44 -> 4214.932109 | AL44: 40057.28826
A45: =+'Original data'!A45 -> 2010-01-01 | B45: =+'Original data'!C45*-1 -> -3949.934923 | C45: =+'Original data'!B45+'Original data'!C45 -> 11690.31585 | D45: =+'Original data'!E45*-1 -> -4939.107926 | E45: =+'Original data'!D45+'Original data'!E45 -> 6909.832413 | F45: =+'Original data'!G45*-1 -> -113.26559 | G45: =+'Original data'!F45+'Original data'!G45 -> 1007 | H45: =+'Original data'!I45*-1 -> -718.6275791 | I45: =+'Original data'!K45*-1 -> -294.8521138 | J45: =+'Original data'!H45+'Original data'!J45 -> 660.5203071 | K45: -1013.479693 | L45: 1013.479693 | M45: =+'Original data'!M45*-1 -> -1066.006407 | N45: =+'Original data'!L45+'Original data'!M45 -> 2956.426356 | O45: =+'Original data'!B45+'Original data'!D45+'Original data'!F45+'Original data'!H45+'Original data'!J45+'Original data'!L45 -> 13155.78008 | P45: =+'Original data'!C45+'Original data'!E45+'Original data'!G45+'Original data'!I45+'Original data'!K45+'Original data'!M45 -> 11081.79454 | Q45: =+'Original data'!O45*-1 -> -9954.306393 | R45: =+'Original data'!N45+'Original data'!O45 -> 18507.32348 | S45: 42744.89809 | T45: =+'Original data'!Y45+'Original data'!AB45 -> 900.1120985 | U45: =+'Original data'!Z45+'Original data'!AC45 -> 1067.664162 | V45: =+'Original data'!AD45+'Original data'!AA45 -> -167.5520635 | W45: =+'Original data'!AQ45*-1 -> -1910.250905 | X45: =+'Original data'!AP45+'Original data'!AQ45 -> 2200.690905 | Y45: =+'Original data'!AS45*-1 -> -4947.975629 | Z45: =+'Original data'!AR45+'Original data'!AS45 -> 10740.26176 | AA45: =+'Original data'!AU45*-1 -> -274.2357038 | AB45: =+'Original data'!AT45+'Original data'!AU45 -> 524.761344 | AC45: =+'Original data'!AW45*-1 -> -3884.834812 | AD45: =+'Original data'!AY45*-1 -> -401.2941977 | AE45: =+'Original data'!AV45+'Original data'!AX45 -> 4685.676821 | AF45: -4286.129009 | AG45: 8971.805831 | AH45: =+'Original data'!BA45*-1 -> -1133.485201 | AI45: =+'Original data'!AZ45+'Original data'!BA45 -> 2422.773849 | AJ45: =+'Original data'!BC45*-1 -> -655.4869481 | AK45: =+'Original data'!BB45+'Original data'!BC45 -> 1732.419676 | AL45: 26592.71336
A46: =+'Original data'!A46 -> 2010-02-01 | B46: =+'Original data'!C46*-1 -> -4212.546 | C46: =+'Original data'!B46+'Original data'!C46 -> 8775.003 | D46: =+'Original data'!E46*-1 -> -3505.665422 | E46: =+'Original data'!D46+'Original data'!E46 -> 5204.611965 | F46: =+'Original data'!G46*-1 -> -138.737105 | G46: =+'Original data'!F46+'Original data'!G46 -> 795.4176658 | H46: =+'Original data'!I46*-1 -> -447.218513 | I46: =+'Original data'!K46*-1 -> -197.3569952 | J46: =+'Original data'!H46+'Original data'!J46 -> 438.9070729 | K46: -644.5755082 | L46: 644.5755082 | M46: =+'Original data'!M46*-1 -> -1285.166871 | N46: =+'Original data'!L46+'Original data'!M46 -> 3230.818437 | O46: =+'Original data'!B46+'Original data'!D46+'Original data'!F46+'Original data'!H46+'Original data'!J46+'Original data'!L46 -> 9302.642743 | P46: =+'Original data'!C46+'Original data'!E46+'Original data'!G46+'Original data'!I46+'Original data'!K46+'Original data'!M46 -> 9786.690906 | Q46: =+'Original data'!O46*-1 -> -8314.307066 | R46: =+'Original data'!N46+'Original data'!O46 -> 16537.36121 | S46: 35626.69486 | T46: =+'Original data'!Y46+'Original data'!AB46 -> 940.6354735 | U46: =+'Original data'!Z46+'Original data'!AC46 -> 989.8674294 | V46: =+'Original data'!AD46+'Original data'!AA46 -> -49.23195594 | W46: =+'Original data'!AQ46*-1 -> -555.861023 | X46: =+'Original data'!AP46+'Original data'!AQ46 -> 1153.944481 | Y46: =+'Original data'!AS46*-1 -> -4179.669404 | Z46: =+'Original data'!AR46+'Original data'!AS46 -> 8561.127381 | AA46: =+'Original data'!AU46*-1 -> -400.2697194 | AB46: =+'Original data'!AT46+'Original data'!AU46 -> 829.2726704 | AC46: =+'Original data'!AW46*-1 -> -3118.293926 | AD46: =+'Original data'!AY46*-1 -> -242.9626021 | AE46: =+'Original data'!AV46+'Original data'!AX46 -> 3525.133493 | AF46: -3361.256528 | AG46: 6886.390021 | AH46: =+'Original data'!BA46*-1 -> -670.7283292 | AI46: =+'Original data'!AZ46+'Original data'!BA46 -> 2057.086217 | AJ46: =+'Original data'!BC46*-1 -> -1070.32949 | AK46: =+'Original data'!BB46+'Original data'!BC46 -> 2211.529605 | AL46: 21699.35038
A47: =+'Original data'!A47 -> 2010-03-01 | B47: =+'Original data'!C47*-1 -> -2452.342 | C47: =+'Original data'!B47+'Original data'!C47 -> 9453.122672 | D47: =+'Original data'!E47*-1 -> -4646.342244 | E47: =+'Original data'!D47+'Original data'!E47 -> 6374.534868 | F47: =+'Original data'!G47*-1 -> -226.9378838 | G47: =+'Original data'!F47+'Original data'!G47 -> 1085 | H47: =+'Original data'!I47*-1 -> -594.3215223 | I47: =+'Original data'!K47*-1 -> -97.72557982 | J47: =+'Original data'!H47+'Original data'!J47 -> 678.9528979 | K47: -692.0471021 | L47: 692.0471021 | M47: =+'Original data'!M47*-1 -> -1684.64021 | N47: =+'Original data'!L47+'Original data'!M47 -> 4267.698593 | O47: =+'Original data'!B47+'Original data'!D47+'Original data'!F47+'Original data'!H47+'Original data'!J47+'Original data'!L47 -> 12849.04669 | P47: =+'Original data'!C47+'Original data'!E47+'Original data'!G47+'Original data'!I47+'Original data'!K47+'Original data'!M47 -> 9702.30944 | Q47: =+'Original data'!O47*-1 -> -9135.134244 | R47: =+'Original data'!N47+'Original data'!O47 -> 17509.35617 | S47: 40060.7123 | T47: =+'Original data'!Y47+'Original data'!AB47 -> 1011.733644 | U47: =+'Original data'!Z47+'Original data'!AC47 -> 890.0939236 | V47: =+'Original data'!AD47+'Original data'!AA47 -> 121.6397202 | W47: =+'Original data'!AQ47*-1 -> -1323.322914 | X47: =+'Original data'!AP47+'Original data'!AQ47 -> 1999.399128 | Y47: =+'Original data'!AS47*-1 -> -6554.219958 | Z47: =+'Original data'!AR47+'Original data'!AS47 -> 12314.88781 | AA47: =+'Original data'!AU47*-1 -> -386.7336588 | AB47: =+'Original data'!AT47+'Original data'!AU47 -> 1050.530207 | AC47: =+'Original data'!AW47*-1 -> -5159.704608 | AD47: =+'Original data'!AY47*-1 -> -349.7601676 | AE47: =+'Original data'!AV47+'Original data'!AX47 -> 5070.375992 | AF47: -5509.464775 | AG47: 10579.84077 | AH47: =+'Original data'!BA47*-1 -> -1456.083291 | AI47: =+'Original data'!AZ47+'Original data'!BA47 -> 2806.305209 | AJ47: =+'Original data'!BC47*-1 -> -1127.36429 | AK47: =+'Original data'!BB47+'Original data'!BC47 -> 2474.792149 | AL47: 31225.75527
A48: =+'Original data'!A48 -> 2010-04-01 | B48: =+'Original data'!C48*-1 -> -1733.791004 | C48: =+'Original data'!B48+'Original data'!C48 -> 6782.734004 | D48: =+'Original data'!E48*-1 -> -3977.963035 | E48: =+'Original data'!D48+'Original data'!E48 -> 5370.048084 | F48: =+'Original data'!G48*-1 -> -188.5541647 | G48: =+'Original data'!F48+'Original data'!G48 -> 1001 | H48: =+'Original data'!I48*-1 -> -569.7162533 | I48: =+'Original data'!K48*-1 -> -82.03913195 | J48: =+'Original data'!H48+'Original data'!J48 -> 631.2446147 | K48: -651.7553853 | L48: 651.7553853 | M48: =+'Original data'!M48*-1 -> -2031.221199 | N48: =+'Original data'!L48+'Original data'!M48 -> 4110.345435 | O48: =+'Original data'!B48+'Original data'!D48+'Original data'!F48+'Original data'!H48+'Original data'!J48+'Original data'!L48 -> 9963.842735 | P48: =+'Original data'!C48+'Original data'!E48+'Original data'!G48+'Original data'!I48+'Original data'!K48+'Original data'!M48 -> 8583.284788 | Q48: =+'Original data'!O48*-1 -> -11750.30071 | R48: =+'Original data'!N48+'Original data'!O48 -> 22352.61654 | S48: 40899.74406 | T48: =+'Original data'!Y48+'Original data'!AB48 -> 954.9899413 | U48: =+'Original data'!Z48+'Original data'!AC48 -> 857.9068143 | V48: =+'Original data'!AD48+'Original data'!AA48 -> 97.083127 | W48: =+'Original data'!AQ48*-1 -> -1038.164171 | X48: =+'Original data'!AP48+'Original data'!AQ48 -> 1557 | Y48: =+'Original data'!AS48*-1 -> -4548.323636 | Z48: =+'Original data'!AR48+'Original data'!AS48 -> 9700.385993 | AA48: =+'Original data'!AU48*-1 -> -436.5277501 | AB48: =+'Original data'!AT48+'Original data'!AU48 -> 1113 | AC48: =+'Original data'!AW48*-1 -> -4592.164806 | AD48: =+'Original data'!AY48*-1 -> -376.5923807 | AE48: =+'Original data'!AV48+'Original data'!AX48 -> 4956.242813 | AF48: -4968.757187 | AG48: 9925 | AH48: =+'Original data'!BA48*-1 -> -1035.527364 | AI48: =+'Original data'!AZ48+'Original data'!BA48 -> 3265.536537 | AJ48: =+'Original data'!BC48*-1 -> -1118.744561 | AK48: =+'Original data'!BB48+'Original data'!BC48 -> 1872.854072 | AL48: 27433.7766
A49: =+'Original data'!A49 -> 2010-05-01 | B49: =+'Original data'!C49*-1 -> -5095.766472 | C49: =+'Original data'!B49+'Original data'!C49 -> 10612.96325 | D49: =+'Original data'!E49*-1 -> -3673.920119 | E49: =+'Original data'!D49+'Original data'!E49 -> 6140.405022 | F49: =+'Original data'!G49*-1 -> -197.8105982 | G49: =+'Original data'!F49+'Original data'!G49 -> 1095 | H49: =+'Original data'!I49*-1 -> -676.4612309 | I49: =+'Original data'!K49*-1 -> -156.5195075 | J49: =+'Original data'!H49+'Original data'!J49 -> 617.0192616 | K49: -832.9807384 | L49: 832.9807384 | M49: =+'Original data'!M49*-1 -> -2040.410687 | N49: =+'Original data'!L49+'Original data'!M49 -> 4133.225303 | O49: =+'Original data'!B49+'Original data'!D49+'Original data'!F49+'Original data'!H49+'Original data'!J49+'Original data'!L49 -> 11590.70496 | P49: =+'Original data'!C49+'Original data'!E49+'Original data'!G49+'Original data'!I49+'Original data'!K49+'Original data'!M49 -> 11840.88861 | Q49: =+'Original data'!O49*-1 -> -10866.3026 | R49: =+'Original data'!N49+'Original data'!O49 -> 21013.30202 | S49: 44444.8956 | T49: =+'Original data'!Y49+'Original data'!AB49 -> 1053.924368 | U49: =+'Original data'!Z49+'Original data'!AC49 -> 904.1658867 | V49: =+'Original data'!AD49+'Original data'!AA49 -> 149.7584818 | W49: =+'Original data'!AQ49*-1 -> -1083.51762 | X49: =+'Original data'!AP49+'Original data'!AQ49 -> 3550 | Y49: =+'Original data'!AS49*-1 -> -5236.497873 | Z49: =+'Original data'!AR49+'Original data'!AS49 -> 9832.305115 | AA49: =+'Original data'!AU49*-1 -> -583.580847 | AB49: =+'Original data'!AT49+'Original data'!AU49 -> 1253 | AC49: =+'Original data'!AW49*-1 -> -5161.067812 | AD49: =+'Original data'!AY49*-1 -> -232.8511725 | AE49: =+'Original data'!AV49+'Original data'!AX49 -> 5825.081016 | AF49: -5393.918984 | AG49: 11219 | AH49: =+'Original data'!BA49*-1 -> -1025.740436 | AI49: =+'Original data'!AZ49+'Original data'!BA49 -> 2362.627927 | AJ49: =+'Original data'!BC49*-1 -> -1715.572286 | AK49: =+'Original data'!BB49+'Original data'!BC49 -> 3040.49453 | AL49: 31257.42757
A50: =+'Original data'!A50 -> 2010-06-01 | B50: =+'Original data'!C50*-1 -> -2523.413897 | C50: =+'Original data'!B50+'Original data'!C50 -> 9018.067245 | D50: =+'Original data'!E50*-1 -> -4032.638499 | E50: =+'Original data'!D50+'Original data'!E50 -> 5718.240341 | F50: =+'Original data'!G50*-1 -> -264.6029583 | G50: =+'Original data'!F50+'Original data'!G50 -> 1219 | H50: =+'Original data'!I50*-1 -> -511.2968313 | I50: =+'Original data'!K50*-1 -> -106.3683193 | J50: =+'Original data'!H50+'Original data'!J50 -> 695.8239093 | K50: -617.6651506 | L50: 617.6651506 | M50: =+'Original data'!M50*-1 -> -1485.959797 | N50: =+'Original data'!L50+'Original data'!M50 -> 4270.608349 | O50: =+'Original data'!B50+'Original data'!D50+'Original data'!F50+'Original data'!H50+'Original data'!J50+'Original data'!L50 -> 12615.12469 | P50: =+'Original data'!C50+'Original data'!E50+'Original data'!G50+'Original data'!I50+'Original data'!K50+'Original data'!M50 -> 8924.280302 | Q50: =+'Original data'!O50*-1 -> -12071.60919 | R50: =+'Original data'!N50+'Original data'!O50 -> 22568.43143 | S50: 44107.83642 | T50: =+'Original data'!Y50+'Original data'!AB50 -> 1102.770749 | U50: =+'Original data'!Z50+'Original data'!AC50 -> 778.1025137 | V50: =+'Original data'!AD50+'Original data'!AA50 -> 324.6682354 | W50: =+'Original data'!AQ50*-1 -> -2161.686769 | X50: =+'Original data'!AP50+'Original data'!AQ50 -> 2960.642569 | Y50: =+'Original data'!AS50*-1 -> -5378.117425 | Z50: =+'Original data'!AR50+'Original data'!AS50 -> 9999.684559 | AA50: =+'Original data'!AU50*-1 -> -508.7568552 | AB50: =+'Original data'!AT50+'Original data'!AU50 -> 1031.9646 | AC50: =+'Original data'!AW50*-1 -> -5219.564687 | AD50: =+'Original data'!AY50*-1 -> -231.6604166 | AE50: =+'Original data'!AV50+'Original data'!AX50 -> 5225.087301 | AF50: -5451.225104 | AG50: 10676.31241 | AH50: =+'Original data'!BA50*-1 -> -1254.041518 | AI50: =+'Original data'!AZ50+'Original data'!BA50 -> 2464.423014 | AJ50: =+'Original data'!BC50*-1 -> -905.3516377 | AK50: =+'Original data'!BB50+'Original data'!BC50 -> 1837.759403 | AL50: 28970.78655
A51: =+'Original data'!A51 -> 2010-07-01 | B51: =+'Original data'!C51*-1 -> -3748.639343 | C51: =+'Original data'!B51+'Original data'!C51 -> 11601.73857 | D51: =+'Original data'!E51*-1 -> -5067.289334 | E51: =+'Original data'!D51+'Original data'!E51 -> 6205.05595 | F51: =+'Original data'!G51*-1 -> -261.3704011 | G51: =+'Original data'!F51+'Original data'!G51 -> 1214.35 | H51: =+'Original data'!I51*-1 -> -756.2513814 | I51: =+'Original data'!K51*-1 -> -284.0889051 | J51: =+'Original data'!H51+'Original data'!J51 -> 460.6597135 | K51: -1040.340286 | L51: 1040.340286 | M51: =+'Original data'!M51*-1 -> -1849.322318 | N51: =+'Original data'!L51+'Original data'!M51 -> 4562.005238 | O51: =+'Original data'!B51+'Original data'!D51+'Original data'!F51+'Original data'!H51+'Original data'!J51+'Original data'!L51 -> 13117.18807 | P51: =+'Original data'!C51+'Original data'!E51+'Original data'!G51+'Original data'!I51+'Original data'!K51+'Original data'!M51 -> 11966.96168 | Q51: =+'Original data'!O51*-1 -> -9966.849644 | R51: =+'Original data'!N51+'Original data'!O51 -> 20259.92906 | S51: 45344.07881 | T51: =+'Original data'!Y51+'Original data'!AB51 -> 925.0198283 | U51: =+'Original data'!Z51+'Original data'!AC51 -> 856.7517341 | V51: =+'Original data'!AD51+'Original data'!AA51 -> 68.26809424 | W51: =+'Original data'!AQ51*-1 -> -2184.626792 | X51: =+'Original data'!AP51+'Original data'!AQ51 -> 2731.259139 | Y51: =+'Original data'!AS51*-1 -> -5295.269959 | Z51: =+'Original data'!AR51+'Original data'!AS51 -> 10394.98744 | AA51: =+'Original data'!AU51*-1 -> -764.6974583 | AB51: =+'Original data'!AT51+'Original data'!AU51 -> 1736.266896 | AC51: =+'Original data'!AW51*-1 -> -5078.897049 | AD51: =+'Original data'!AY51*-1 -> -323.1831732 | AE51: =+'Original data'!AV51+'Original data'!AX51 -> 5112.541658 | AF51: -5402.080222 | AG51: 10514.62188 | AH51: =+'Original data'!BA51*-1 -> -951.7594166 | AI51: =+'Original data'!AZ51+'Original data'!BA51 -> 2455.820015 | AJ51: =+'Original data'!BC51*-1 -> -952.4668945 | AK51: =+'Original data'!BB51+'Original data'!BC51 -> 2123.61669 | AL51: 29956.57206
A52: =+'Original data'!A52 -> 2010-08-01 | B52: =+'Original data'!C52*-1 -> -6176.2025 | C52: =+'Original data'!B52+'Original data'!C52 -> 14328.5345 | D52: =+'Original data'!E52*-1 -> -5949.881168 | E52: =+'Original data'!D52+'Original data'!E52 -> 7510.762638 | F52: =+'Original data'!G52*-1 -> -608.3383847 | G52: =+'Original data'!F52+'Original data'!G52 -> 1490.105858 | H52: =+'Original data'!I52*-1 -> -694.4653775 | I52: =+'Original data'!K52*-1 -> -284.2855003 | J52: =+'Original data'!H52+'Original data'!J52 -> 410.3985702 | K52: -978.7508778 | L52: 978.7508778 | M52: =+'Original data'!M52*-1 -> -2036.317558 | N52: =+'Original data'!L52+'Original data'!M52 -> 4432.332084 | O52: =+'Original data'!B52+'Original data'!D52+'Original data'!F52+'Original data'!H52+'Original data'!J52+'Original data'!L52 -> 13401.39404 | P52: =+'Original data'!C52+'Original data'!E52+'Original data'!G52+'Original data'!I52+'Original data'!K52+'Original data'!M52 -> 15749.49049 | Q52: =+'Original data'!O52*-1 -> -11915.51106 | R52: =+'Original data'!N52+'Original data'!O52 -> 25519.45489 | S52: 54670.33942 | T52: =+'Original data'!Y52+'Original data'!AB52 -> 919.0888891 | U52: =+'Original data'!Z52+'Original data'!AC52 -> 967.639394 | V52: =+'Original data'!AD52+'Original data'!AA52 -> -48.5505049 | W52: =+'Original data'!AQ52*-1 -> -1351.730931 | X52: =+'Original data'!AP52+'Original data'!AQ52 -> 2264.852017 | Y52: =+'Original data'!AS52*-1 -> -6227.954407 | Z52: =+'Original data'!AR52+'Original data'!AS52 -> 12324.81813 | AA52: =+'Original data'!AU52*-1 -> -775.2478605 | AB52: =+'Original data'!AT52+'Original data'!AU52 -> 1819.993864 | AC52: =+'Original data'!AW52*-1 -> -5653.076951 | AD52: =+'Original data'!AY52*-1 -> -449.6481483 | AE52: =+'Original data'!AV52+'Original data'!AX52 -> 5459.989662 | AF52: -6102.7251 | AG52: 11562.71476 | AH52: =+'Original data'!BA52*-1 -> -1000.149869 | AI52: =+'Original data'!AZ52+'Original data'!BA52 -> 3050.968022 | AJ52: =+'Original data'!BC52*-1 -> -1515.472867 | AK52: =+'Original data'!BB52+'Original data'!BC52 -> 3034.543601 | AL52: 34057.8904
